Workbook

Sheet DEPARTAMENTAL
A4: POBLACION ESTIMADA POR EDADES SIMPLES Y GRUPOS DE EDAD, SEGÚN DEPARTAMENTO. 2025
A5: * Actualizado con datos INEI
A6: POBLACION 2025 | D6: POBLACION TOTAL, POR EDADS SIMPLES | X6: POBLACIÓN TOTAL, POR GRUPOS QUINQUEN ALES DE EDAD | AL6: EDADES ESPECIALES | AO6: NACIMIENTOS VIVOS | AP6: POBLACION FEMENINA TOTAL | AQ6: POBLACION FEMENINA | AT6: GESTANTES ESPERADAS | BC6: TOTAL
A7: UBIGEO | B7: DEPARTAMENTO | C7: Total | D7: 0 | E7: 1 | F7: 2 | G7: 3 | H7: 4 | I7: 5 | J7: 6 | K7: 7 | L7: 8 | M7: 9 | N7: 10 | O7: 11 | P7: 12 | Q7: 13 | R7: 14 | S7: 15 | T7: 16 | U7: 17 | V7: 18 | W7: 19 | X7: 20-24 | Y7: 25-29 | Z7: 30-34 | AA7: 35-39 | AB7: 40-44 | AC7: 45-49 | AD7: 50-54 | AE7: 55-59 | AF7: 60-64 | AG7: 65-69 | AH7: 70-74 | AI7: 75-79 | AJ7: 80-84 | AK7: 85-+ | AL7: 28 DIAS | AM7: 0-5 MESES | AN7: 6-11 MESES | AQ7: 10 - 14 | AR7: 15- 19 | AS7: 20- 49 | AV7: TOTAL | AW7: NIÑO | AX7: Adolescente | AY7: Joven | AZ7: Adulto | BA7: Adulto Mayor | BC7: 00-04 | BD7: 05-09 | BE7: 10-14 | BF7: 15-19 | BG7: 20-24 | BH7: 25-29 | BI7: 30-34 | BJ7: 35-39 | BK7: 40-44 | BL7: 45-49 | BM7: 50-54 | BN7: 55-59 | BO7: 60-64 | BP7: 65-69 | BQ7: 70-74 | BR7: 75-79 | BS7: 80-84 | BT7: 85-+ | BV7: Hombres | BW7: Mujeres | BX7: Nacimientos vivos | BY7: Gestantes Esperadas
A8: 00 | B8: PERU | C8: =SUM(C9:C9) -> 6,120,139 | D8: 17,311 | E8: 16,375 | F8: 55,723 | G8: 58,441 | H8: 71,100 | I8: 79,096 | J8: 75,574 | K8: 79,346 | L8: 79,716 | M8: 73,623 | N8: 68,000 | O8: 68,239 | P8: 70,704 | Q8: 68,895 | R8: 67,437 | S8: 74,143 | T8: 74,534 | U8: 73,037 | V8: 72,022 | W8: 74,856 | X8: 379,932 | Y8: 418,581 | Z8: 439,447 | AA8: 399,040 | AB8: 427,169 | AC8: 435,591 | AD8: 425,649 | AE8: 420,074 | AF8: 388,909 | AG8: 321,028 | AH8: 270,744 | AI8: 196,303 | AJ8: 134,834 | AK8: 144,666 | AL8: 1,782 | AM8: 27,859 | AN8: 30,370 | AO8: 89,435 | AP8: 3,152,224 | AQ8: 168,930 | AR8: 182,038 | AS8: 1,252,704 | AT8: 169,522 | AV8: =C8 -> 6,120,139 | AW8: =SUM(D8:O8) -> 742,544 | AX8: =SUM(P8:U8) -> 428,750 | AY8: =SUM(V8:Y8) -> 945,391 | AZ8: =SUM(Z8:AE8) -> 2,546,970 | BA8: =SUM(AF8:AK8) -> 1,456,484 | BC8: =SUM(BC9:BC9) -> 218,950 | BD8: 387,355 | BE8: 343,275 | BF8: 368,592 | BG8: 379,932 | BH8: 418,581 | BI8: 439,447 | BJ8: 399,040 | BK8: 427,169 | BL8: 435,591 | BM8: 425,649 | BN8: 420,074 | BO8: 388,909 | BP8: 321,028 | BQ8: 270,744 | BR8: 196,303 | BS8: 134,834 | BT8: 144,666 | BV8: =SUM(BV9:BV9) -> 818,583 | BW8: =SUM(BW9:BW9) -> 843,731 | BX8: =SUM(BX9:BX9) -> 89,435 | BY8: =SUM(BY9:BY9) -> 169,522
A9: 04 | B9: AREQUIPA | C9: =SUM(D9:AK9) -> 6120139 | D9: =SUMIF(DISTRITAL!$C$9:$C$117,DEPARTAMENTAL!$B9,DISTRITAL!G$9:G$117) -> 17311 | E9: =SUMIF(DISTRITAL!$C$9:$C$117,DEPARTAMENTAL!$B9,DISTRITAL!H$9:H$117) -> 16375 | F9: =SUMIF(DISTRITAL!$C$9:$C$117,DEPARTAMENTAL!$B9,DISTRITAL!I$9:I$117) -> 55723 | G9: =SUMIF(DISTRITAL!$C$9:$C$117,DEPARTAMENTAL!$B9,DISTRITAL!J$9:J$117) -> 58441 | H9: =SUMIF(DISTRITAL!$C$9:$C$117,DEPARTAMENTAL!$B9,DISTRITAL!K$9:K$117) -> 71100 | I9: =SUMIF(DISTRITAL!$C$9:$C$117,DEPARTAMENTAL!$B9,DISTRITAL!L$9:L$117) -> 79096 | J9: =SUMIF(DISTRITAL!$C$9:$C$117,DEPARTAMENTAL!$B9,DISTRITAL!M$9:M$117) -> 75574 | K9: =SUMIF(DISTRITAL!$C$9:$C$117,DEPARTAMENTAL!$B9,DISTRITAL!N$9:N$117) -> 79346 | L9: =SUMIF(DISTRITAL!$C$9:$C$117,DEPARTAMENTAL!$B9,DISTRITAL!O$9:O$117) -> 79716 | M9: =SUMIF(DISTRITAL!$C$9:$C$117,DEPARTAMENTAL!$B9,DISTRITAL!P$9:P$117) -> 73623 | N9: =SUMIF(DISTRITAL!$C$9:$C$117,DEPARTAMENTAL!$B9,DISTRITAL!Q$9:Q$117) -> 68000 | O9: =SUMIF(DISTRITAL!$C$9:$C$117,DEPARTAMENTAL!$B9,DISTRITAL!R$9:R$117) -> 68239 | P9: =SUMIF(DISTRITAL!$C$9:$C$117,DEPARTAMENTAL!$B9,DISTRITAL!S$9:S$117) -> 70704 | Q9: =SUMIF(DISTRITAL!$C$9:$C$117,DEPARTAMENTAL!$B9,DISTRITAL!T$9:T$117) -> 68895 | R9: =SUMIF(DISTRITAL!$C$9:$C$117,DEPARTAMENTAL!$B9,DISTRITAL!U$9:U$117) -> 67437 | S9: =SUMIF(DISTRITAL!$C$9:$C$117,DEPARTAMENTAL!$B9,DISTRITAL!V$9:V$117) -> 74143 | T9: =SUMIF(DISTRITAL!$C$9:$C$117,DEPARTAMENTAL!$B9,DISTRITAL!W$9:W$117) -> 74534 | U9: =SUMIF(DISTRITAL!$C$9:$C$117,DEPARTAMENTAL!$B9,DISTRITAL!X$9:X$117) -> 73037 | V9: =SUMIF(DISTRITAL!$C$9:$C$117,DEPARTAMENTAL!$B9,DISTRITAL!Y$9:Y$117) -> 72022 | W9: =SUMIF(DISTRITAL!$C$9:$C$117,DEPARTAMENTAL!$B9,DISTRITAL!Z$9:Z$117) -> 74856 | X9: =SUMIF(DISTRITAL!$C$9:$C$117,DEPARTAMENTAL!$B9,DISTRITAL!AA$9:AA$117) -> 379932 | Y9: =SUMIF(DISTRITAL!$C$9:$C$117,DEPARTAMENTAL!$B9,DISTRITAL!AB$9:AB$117) -> 418581 | Z9: =SUMIF(DISTRITAL!$C$9:$C$117,DEPARTAMENTAL!$B9,DISTRITAL!AC$9:AC$117) -> 439447 | AA9: =SUMIF(DISTRITAL!$C$9:$C$117,DEPARTAMENTAL!$B9,DISTRITAL!AD$9:AD$117) -> 399040 | AB9: =SUMIF(DISTRITAL!$C$9:$C$117,DEPARTAMENTAL!$B9,DISTRITAL!AE$9:AE$117) -> 427169 | AC9: =SUMIF(DISTRITAL!$C$9:$C$117,DEPARTAMENTAL!$B9,DISTRITAL!AF$9:AF$117) -> 435591 | AD9: =SUMIF(DISTRITAL!$C$9:$C$117,DEPARTAMENTAL!$B9,DISTRITAL!AG$9:AG$117) -> 425649 | AE9: =SUMIF(DISTRITAL!$C$9:$C$117,DEPARTAMENTAL!$B9,DISTRITAL!AH$9:AH$117) -> 420074 | AF9: =SUMIF(DISTRITAL!$C$9:$C$117,DEPARTAMENTAL!$B9,DISTRITAL!AI$9:AI$117) -> 388909 | AG9: =SUMIF(DISTRITAL!$C$9:$C$117,DEPARTAMENTAL!$B9,DISTRITAL!AJ$9:AJ$117) -> 321028 | AH9: =SUMIF(DISTRITAL!$C$9:$C$117,DEPARTAMENTAL!$B9,DISTRITAL!AK$9:AK$117) -> 270744 | AI9: =SUMIF(DISTRITAL!$C$9:$C$117,DEPARTAMENTAL!$B9,DISTRITAL!AL$9:AL$117) -> 196303 | AJ9: =SUMIF(DISTRITAL!$C$9:$C$117,DEPARTAMENTAL!$B9,DISTRITAL!AM$9:AM$117) -> 134834 | AK9: =SUMIF(DISTRITAL!$C$9:$C$117,DEPARTAMENTAL!$B9,DISTRITAL!AN$9:AN$117) -> 144666 | AL9: =SUMIF(DISTRITAL!$C$9:$C$117,DEPARTAMENTAL!$B9,DISTRITAL!AO$9:AO$117) -> 1782 | AM9: =SUMIF(DISTRITAL!$C$9:$C$117,DEPARTAMENTAL!$B9,DISTRITAL!AP$9:AP$117) -> 27859 | AN9: =SUMIF(DISTRITAL!$C$9:$C$117,DEPARTAMENTAL!$B9,DISTRITAL!AQ$9:AQ$117) -> 30370 | AO9: =SUMIF(DISTRITAL!$C$9:$C$117,DEPARTAMENTAL!$B9,DISTRITAL!AR$9:AR$117) -> 89,435 | AP9: =SUMIF(DISTRITAL!$C$9:$C$117,DEPARTAMENTAL!$B9,DISTRITAL!AS$9:AS$117) -> 3,152,224 | AQ9: =SUMIF(DISTRITAL!$C$9:$C$117,DEPARTAMENTAL!$B9,DISTRITAL!AT$9:AT$117) -> 168930 | AR9: =SUMIF(DISTRITAL!$C$9:$C$117,DEPARTAMENTAL!$B9,DISTRITAL!AU$9:AU$117) -> 182038 | AS9: =SUMIF(DISTRITAL!$C$9:$C$117,DEPARTAMENTAL!$B9,DISTRITAL!AV$9:AV$117) -> 1252704 | AT9: =SUMIF(DISTRITAL!$C$9:$C$117,DEPARTAMENTAL!$B9,DISTRITAL!AW$9:AW$117) -> 169522 | AV9: =C9 -> 6,120,139 | AW9: =SUM(D9:O9) -> 742,544 | AX9: =SUM(P9:U9) -> 428,750 | AY9: =SUM(V9:Y9) -> 945,391 | AZ9: =SUM(Z9:AE9) -> 2,546,970 | BA9: =SUM(AF9:AK9) -> 1,456,484 | BC9: =SUM(D9:H9) -> 218,950 | BD9: =SUM(I9:M9) -> 387,355 | BE9: =SUM(N9:R9) -> 343,275 | BF9: =SUM(S9:W9) -> 368,592 | BG9: =X9 -> 379,932 | BH9: =Y9 -> 418,581 | BI9: =Z9 -> 439,447 | BJ9: =AA9 -> 399,040 | BK9: =AB9 -> 427,169 | BL9: =AC9 -> 435,591 | BM9: =AD9 -> 425,649 | BN9: =AE9 -> 420,074 | BO9: =AF9 -> 388,909 | BP9: =AG9 -> 321,028 | BQ9: =AH9 -> 270,744 | BR9: =AI9 -> 196,303 | BS9: =AJ9 -> 134,834 | BT9: =AK9 -> 144,666 | BV9: =SUMIF('Pob x Genero'!$C$9:$C$117,DEPARTAMENTAL!B9,'Pob x Genero'!$G$9:$G$117) -> 818,583 | BW9: =SUMIF('Pob x Genero'!$C$9:$C$117,DEPARTAMENTAL!B9,'Pob x Genero'!$AT$9:$AT$117) -> 843,731 | BX9: =AO9 -> 89,435 | BY9: =AT9 -> 169,522
A11: NOTA: LA POBLACION ESTIMADA DE EDADES SIMPLES Y GRUPOS DE EDAD DE DISTRITOS, CORRESPONDEN A CIFRAS REFERENCIALES HASTA OBTENER LAS CIFRAS DE LAS PROYECCIONES DEL INEI
A12: FUENTE: CENSO NACIONAL XI DE POBLACION Y VI DE VIVIENDA 2017/- BOLETIN DEMOGRAFICO Nº 24,37, 39 / RENIEC / Padrón Nominal/ CNV
A13: La población de 0-5 años corresponden al reporte de la poblacion del Padrón Nominal con corte al 31/12/2024, con ajuste en la Edad "0"
A14: OFICINA DE GESTION DE LA INFORMACION - MINISTERIO DE SALUD
A19: HOMBRES | D19: POBLACION TOTAL, POR EDADS SIMPLES | X19: POBLACIÓN TOTAL, POR GRUPOS QUINQUEN ALES DE EDAD | AL19: EDADES ESPECIALES | AO19: NACIMIENTOS VIVOS | BC19: HOMBRES
A20: UBIGEO | B20: DEPARTAMENTO | C20: Total | D20: 0 | E20: 1 | F20: 2 | G20: 3 | H20: 4 | I20: 5 | J20: 6 | K20: 7 | L20: 8 | M20: 9 | N20: 10 | O20: 11 | P20: 12 | Q20: 13 | R20: 14 | S20: 15 | T20: 16 | U20: 17 | V20: 18 | W20: 19 | X20: 20-24 | Y20: 25-29 | Z20: 30-34 | AA20: 35-39 | AB20: 40-44 | AC20: 45-49 | AD20: 50-54 | AE20: 55-59 | AF20: 60-64 | AG20: 65-69 | AH20: 70-74 | AI20: 75-79 | AJ20: 80-84 | AK20: 85-+ | AL20: 28 DIAS | AM20: 0-5 MESES | AN20: 6-11 MESES | AV20: TOTAL | AW20: NIÑO | AX20: Adolescente | AY20: Joven | AZ20: Adulto | BA20: Adulto Mayor | BC20: 00-04 | BD20: 05-09 | BE20: 10-14 | BF20: 15-19 | BG20: 20-24 | BH20: 25-29 | BI20: 30-34 | BJ20: 35-39 | BK20: 40-44 | BL20: 45-49 | BM20: 50-54 | BN20: 55-59 | BO20: 60-64 | BP20: 65-69 | BQ20: 70-74 | BR20: 75-79 | BS20: 80-84 | BT20: 85-+
A21: 00 | B21: PERU | C21: =SUM(C22:C22) -> 818,583 | D21: 8,897 | E21: 8,325 | F21: 8,972 | G21: 9,184 | H21: 10,669 | I21: 11,392 | J21: 13,324 | K21: 13,692 | L21: 13,527 | M21: 13,359 | N21: 11,866 | O21: 11,866 | P21: 12,274 | Q21: 11,708 | R21: 10,991 | S21: 12,620 | T21: 12,792 | U21: 12,689 | V21: 12,448 | W21: 12,681 | X21: 58,784 | Y21: 63,333 | Z21: 66,465 | AA21: 62,287 | AB21: 60,582 | AC21: 56,244 | AD21: 47,933 | AE21: 44,629 | AF21: 37,706 | AG21: 28,919 | AH21: 23,107 | AI21: 16,290 | AJ21: 9,959 | AK21: 9,069 | AL21: 328 | AM21: 4,244 | AN21: 4,661 | AO21: 13,240 | AV21: 818,583 | AW21: 135,073 | AX21: 73,074 | AY21: 147,246 | AZ21: 338,140 | BA21: 125,050 | BC21: =SUM(BC22:BC22) -> 46,047 | BD21: 65,294 | BE21: 58,705 | BF21: 63,230 | BG21: 58,784 | BH21: 63,333 | BI21: 66,465 | BJ21: 62,287 | BK21: 60,582 | BL21: 56,244 | BM21: 47,933 | BN21: 44,629 | BO21: 37,706 | BP21: 28,919 | BQ21: 23,107 | BR21: 16,290 | BS21: 9,959 | BT21: 9,069
A22: 04 | B22: AREQUIPA | C22: =SUM(D22:AK22) -> 818583 | D22: =SUMIF('Pob x Genero'!$C$9:$C$117,$B22,'Pob x Genero'!H$9:H$117) -> 8897 | E22: =SUMIF('Pob x Genero'!$C$9:$C$117,$B22,'Pob x Genero'!I$9:I$117) -> 8325 | F22: =SUMIF('Pob x Genero'!$C$9:$C$117,$B22,'Pob x Genero'!J$9:J$117) -> 8972 | G22: =SUMIF('Pob x Genero'!$C$9:$C$117,$B22,'Pob x Genero'!K$9:K$117) -> 9184 | H22: =SUMIF('Pob x Genero'!$C$9:$C$117,$B22,'Pob x Genero'!L$9:L$117) -> 10669 | I22: =SUMIF('Pob x Genero'!$C$9:$C$117,$B22,'Pob x Genero'!M$9:M$117) -> 11392 | J22: =SUMIF('Pob x Genero'!$C$9:$C$117,$B22,'Pob x Genero'!N$9:N$117) -> 13324 | K22: =SUMIF('Pob x Genero'!$C$9:$C$117,$B22,'Pob x Genero'!O$9:O$117) -> 13692 | L22: =SUMIF('Pob x Genero'!$C$9:$C$117,$B22,'Pob x Genero'!P$9:P$117) -> 13527 | M22: =SUMIF('Pob x Genero'!$C$9:$C$117,$B22,'Pob x Genero'!Q$9:Q$117) -> 13359 | N22: =SUMIF('Pob x Genero'!$C$9:$C$117,$B22,'Pob x Genero'!R$9:R$117) -> 11866 | O22: =SUMIF('Pob x Genero'!$C$9:$C$117,$B22,'Pob x Genero'!S$9:S$117) -> 11866 | P22: =SUMIF('Pob x Genero'!$C$9:$C$117,$B22,'Pob x Genero'!T$9:T$117) -> 12274 | Q22: =SUMIF('Pob x Genero'!$C$9:$C$117,$B22,'Pob x Genero'!U$9:U$117) -> 11708 | R22: =SUMIF('Pob x Genero'!$C$9:$C$117,$B22,'Pob x Genero'!V$9:V$117) -> 10991 | S22: =SUMIF('Pob x Genero'!$C$9:$C$117,$B22,'Pob x Genero'!W$9:W$117) -> 12620 | T22: =SUMIF('Pob x Genero'!$C$9:$C$117,$B22,'Pob x Genero'!X$9:X$117) -> 12792 | U22: =SUMIF('Pob x Genero'!$C$9:$C$117,$B22,'Pob x Genero'!Y$9:Y$117) -> 12689 | V22: =SUMIF('Pob x Genero'!$C$9:$C$117,$B22,'Pob x Genero'!Z$9:Z$117) -> 12448 | W22: =SUMIF('Pob x Genero'!$C$9:$C$117,$B22,'Pob x Genero'!AA$9:AA$117) -> 12681 | X22: =SUMIF('Pob x Genero'!$C$9:$C$117,$B22,'Pob x Genero'!AB$9:AB$117) -> 58784 | Y22: =SUMIF('Pob x Genero'!$C$9:$C$117,$B22,'Pob x Genero'!AC$9:AC$117) -> 63333 | Z22: =SUMIF('Pob x Genero'!$C$9:$C$117,$B22,'Pob x Genero'!AD$9:AD$117) -> 66465 | AA22: =SUMIF('Pob x Genero'!$C$9:$C$117,$B22,'Pob x Genero'!AE$9:AE$117) -> 62287 | AB22: =SUMIF('Pob x Genero'!$C$9:$C$117,$B22,'Pob x Genero'!AF$9:AF$117) -> 60582 | AC22: =SUMIF('Pob x Genero'!$C$9:$C$117,$B22,'Pob x Genero'!AG$9:AG$117) -> 56244 | AD22: =SUMIF('Pob x Genero'!$C$9:$C$117,$B22,'Pob x Genero'!AH$9:AH$117) -> 47933 | AE22: =SUMIF('Pob x Genero'!$C$9:$C$117,$B22,'Pob x Genero'!AI$9:AI$117) -> 44629 | AF22: =SUMIF('Pob x Genero'!$C$9:$C$117,$B22,'Pob x Genero'!AJ$9:AJ$117) -> 37706 | AG22: =SUMIF('Pob x Genero'!$C$9:$C$117,$B22,'Pob x Genero'!AK$9:AK$117) -> 28919 | AH22: =SUMIF('Pob x Genero'!$C$9:$C$117,$B22,'Pob x Genero'!AL$9:AL$117) -> 23107 | AI22: =SUMIF('Pob x Genero'!$C$9:$C$117,$B22,'Pob x Genero'!AM$9:AM$117) -> 16290 | AJ22: =SUMIF('Pob x Genero'!$C$9:$C$117,$B22,'Pob x Genero'!AN$9:AN$117) -> 9959 | AK22: =SUMIF('Pob x Genero'!$C$9:$C$117,$B22,'Pob x Genero'!AO$9:AO$117) -> 9069 | AL22: =SUMIF('Pob x Genero'!$C$9:$C$117,$B22,'Pob x Genero'!AP$9:AP$117) -> 328 | AM22: =SUMIF('Pob x Genero'!$C$9:$C$117,$B22,'Pob x Genero'!AQ$9:AQ$117) -> 4244 | AN22: =SUMIF('Pob x Genero'!$C$9:$C$117,$B22,'Pob x Genero'!AR$9:AR$117) -> 4661 | AO22: =SUMIF('Pob x Genero'!$C$9:$C$117,$B22,'Pob x Genero'!AS$9:AS$117) -> 13240 | AV22: 818,583 | AW22: 135,073 | AX22: 73,074 | AY22: 147,246 | AZ22: 338,140 | BA22: 125,050 | BC22: =SUM(D22:H22) -> 46,047 | BD22: =SUM(I22:M22) -> 65,294 | BE22: =SUM(N22:R22) -> 58,705 | BF22: =SUM(S22:W22) -> 63,230 | BG22: =X22 -> 58,784 | BH22: =Y22 -> 63,333 | BI22: =Z22 -> 66,465 | BJ22: =AA22 -> 62,287 | BK22: =AB22 -> 60,582 | BL22: =AC22 -> 56,244 | BM22: =AD22 -> 47,933 | BN22: =AE22 -> 44,629 | BO22: =AF22 -> 37,706 | BP22: =AG22 -> 28,919 | BQ22: =AH22 -> 23,107 | BR22: =AI22 -> 16,290 | BS22: =AJ22 -> 9,959 | BT22: =AK22 -> 9,069
A25: MUJERES | D25: POBLACION TOTAL, POR EDADS SIMPLES | X25: POBLACIÓN TOTAL, POR GRUPOS QUINQUEN ALES DE EDAD | AL25: EDADES ESPECIALES | AO25: NACIMIENTOS VIVOS | AP25: POBLACION FEMENINA TOTAL | AQ25: POBLACION FEMENINA | AT25: GESTANTES ESPERADAS | BC25: MUJERES
A26: UBIGEO | B26: DEPARTAMENTO | C26: Total | D26: 0 | E26: 1 | F26: 2 | G26: 3 | H26: 4 | I26: 5 | J26: 6 | K26: 7 | L26: 8 | M26: 9 | N26: 10 | O26: 11 | P26: 12 | Q26: 13 | R26: 14 | S26: 15 | T26: 16 | U26: 17 | V26: 18 | W26: 19 | X26: 20-24 | Y26: 25-29 | Z26: 30-34 | AA26: 35-39 | AB26: 40-44 | AC26: 45-49 | AD26: 50-54 | AE26: 55-59 | AF26: 60-64 | AG26: 65-69 | AH26: 70-74 | AI26: 75-79 | AJ26: 80-84 | AK26: 85-+ | AL26: 28 DIAS | AM26: 0-5 MESES | AN26: 6-11 MESES | AQ26: 10 - 14 | AR26: 15- 19 | AS26: 20- 49 | AV26: TOTAL | AW26: NIÑO | AX26: Adolescente | AY26: Joven | AZ26: Adulto | BA26: Adulto Mayor | BC26: 00-04 | BD26: 05-09 | BE26: 10-14 | BF26: 15-19 | BG26: 20-24 | BH26: 25-29 | BI26: 30-34 | BJ26: 35-39 | BK26: 40-44 | BL26: 45-49 | BM26: 50-54 | BN26: 55-59 | BO26: 60-64 | BP26: 65-69 | BQ26: 70-74 | BR26: 75-79 | BS26: 80-84 | BT26: 85-+
A27: 00 | B27: PERU | C27: =SUM(C28:C28) -> 843,731 | D27: 8,414 | E27: 8,050 | F27: 8,694 | G27: 8,876 | H27: 10,278 | I27: 10,894 | J27: 12,961 | K27: 13,216 | L27: 12,990 | M27: 12,125 | N27: 11,846 | O27: 11,888 | P27: 12,267 | Q27: 11,718 | R27: 11,003 | S27: 12,659 | T27: 12,740 | U27: 12,691 | V27: 12,444 | W27: 12,369 | X27: 62,370 | Y27: 71,746 | Z27: 68,785 | AA27: 60,040 | AB27: 60,228 | AC27: 56,307 | AD27: 51,200 | AE27: 46,045 | AF27: 38,481 | AG27: 31,608 | AH27: 25,666 | AI27: 18,143 | AJ27: 11,969 | AK27: 13,020 | AL27: 333 | AM27: 4,068 | AN27: 4,352 | AO27: 12,636 | AP27: 3,152,224 | AQ27: 168,930 | AR27: 182,038 | AS27: 1,252,704 | AT27: 169,522 | AV27: =C27 -> 843,731 | AW27: =SUM(D27:O27) -> 130,232 | AX27: =SUM(P27:U27) -> 73,078 | AY27: =SUM(V27:Y27) -> 158,929 | AZ27: =SUM(Z27:AE27) -> 342,605 | BA27: =SUM(AF27:AK27) -> 138,887 | BC27: =SUM(BC28:BC28) -> 44,312 | BD27: 62,186 | BE27: 58,722 | BF27: 62,903 | BG27: 62,370 | BH27: 71,746 | BI27: 68,785 | BJ27: 60,040 | BK27: 60,228 | BL27: 56,307 | BM27: 51,200 | BN27: 46,045 | BO27: 38,481 | BP27: 31,608 | BQ27: 25,666 | BR27: 18,143 | BS27: 11,969 | BT27: 13,020
A28: 04 | B28: AREQUIPA | C28: =SUM(D28:AK28) -> 843731 | D28: =SUMIF('Pob x Genero'!$C$9:$C$117,$B28,'Pob x Genero'!AU$9:AU$117) -> 8414 | E28: =SUMIF('Pob x Genero'!$C$9:$C$117,$B28,'Pob x Genero'!AV$9:AV$117) -> 8050 | F28: =SUMIF('Pob x Genero'!$C$9:$C$117,$B28,'Pob x Genero'!AW$9:AW$117) -> 8694 | G28: =SUMIF('Pob x Genero'!$C$9:$C$117,$B28,'Pob x Genero'!AX$9:AX$117) -> 8876 | H28: =SUMIF('Pob x Genero'!$C$9:$C$117,$B28,'Pob x Genero'!AY$9:AY$117) -> 10278 | I28: =SUMIF('Pob x Genero'!$C$9:$C$117,$B28,'Pob x Genero'!AZ$9:AZ$117) -> 10894 | J28: =SUMIF('Pob x Genero'!$C$9:$C$117,$B28,'Pob x Genero'!BA$9:BA$117) -> 12961 | K28: =SUMIF('Pob x Genero'!$C$9:$C$117,$B28,'Pob x Genero'!BB$9:BB$117) -> 13216 | L28: =SUMIF('Pob x Genero'!$C$9:$C$117,$B28,'Pob x Genero'!BC$9:BC$117) -> 12990 | M28: =SUMIF('Pob x Genero'!$C$9:$C$117,$B28,'Pob x Genero'!BD$9:BD$117) -> 12125 | N28: =SUMIF('Pob x Genero'!$C$9:$C$117,$B28,'Pob x Genero'!BE$9:BE$117) -> 11846 | O28: =SUMIF('Pob x Genero'!$C$9:$C$117,$B28,'Pob x Genero'!BF$9:BF$117) -> 11888 | P28: =SUMIF('Pob x Genero'!$C$9:$C$117,$B28,'Pob x Genero'!BG$9:BG$117) -> 12267 | Q28: =SUMIF('Pob x Genero'!$C$9:$C$117,$B28,'Pob x Genero'!BH$9:BH$117) -> 11718 | R28: =SUMIF('Pob x Genero'!$C$9:$C$117,$B28,'Pob x Genero'!BI$9:BI$117) -> 11003 | S28: =SUMIF('Pob x Genero'!$C$9:$C$117,$B28,'Pob x Genero'!BJ$9:BJ$117) -> 12659 | T28: =SUMIF('Pob x Genero'!$C$9:$C$117,$B28,'Pob x Genero'!BK$9:BK$117) -> 12740 | U28: =SUMIF('Pob x Genero'!$C$9:$C$117,$B28,'Pob x Genero'!BL$9:BL$117) -> 12691 | V28: =SUMIF('Pob x Genero'!$C$9:$C$117,$B28,'Pob x Genero'!BM$9:BM$117) -> 12444 | W28: =SUMIF('Pob x Genero'!$C$9:$C$117,$B28,'Pob x Genero'!BN$9:BN$117) -> 12369 | X28: =SUMIF('Pob x Genero'!$C$9:$C$117,$B28,'Pob x Genero'!BO$9:BO$117) -> 62370 | Y28: =SUMIF('Pob x Genero'!$C$9:$C$117,$B28,'Pob x Genero'!BP$9:BP$117) -> 71746 | Z28: =SUMIF('Pob x Genero'!$C$9:$C$117,$B28,'Pob x Genero'!BQ$9:BQ$117) -> 68785 | AA28: =SUMIF('Pob x Genero'!$C$9:$C$117,$B28,'Pob x Genero'!BR$9:BR$117) -> 60040 | AB28: =SUMIF('Pob x Genero'!$C$9:$C$117,$B28,'Pob x Genero'!BS$9:BS$117) -> 60228 | AC28: =SUMIF('Pob x Genero'!$C$9:$C$117,$B28,'Pob x Genero'!BT$9:BT$117) -> 56307 | AD28: =SUMIF('Pob x Genero'!$C$9:$C$117,$B28,'Pob x Genero'!BU$9:BU$117) -> 51200 | AE28: =SUMIF('Pob x Genero'!$C$9:$C$117,$B28,'Pob x Genero'!BV$9:BV$117) -> 46045 | AF28: =SUMIF('Pob x Genero'!$C$9:$C$117,$B28,'Pob x Genero'!BW$9:BW$117) -> 38481 | AG28: =SUMIF('Pob x Genero'!$C$9:$C$117,$B28,'Pob x Genero'!BX$9:BX$117) -> 31608 | AH28: =SUMIF('Pob x Genero'!$C$9:$C$117,$B28,'Pob x Genero'!BY$9:BY$117) -> 25666 | AI28: =SUMIF('Pob x Genero'!$C$9:$C$117,$B28,'Pob x Genero'!BZ$9:BZ$117) -> 18143 | AJ28: =SUMIF('Pob x Genero'!$C$9:$C$117,$B28,'Pob x Genero'!CA$9:CA$117) -> 11969 | AK28: =SUMIF('Pob x Genero'!$C$9:$C$117,$B28,'Pob x Genero'!CB$9:CB$117) -> 13020 | AL28: =SUMIF('Pob x Genero'!$C$9:$C$117,$B28,'Pob x Genero'!CC$9:CC$117) -> 333 | AM28: =SUMIF('Pob x Genero'!$C$9:$C$117,$B28,'Pob x Genero'!CD$9:CD$117) -> 4068 | AN28: =SUMIF('Pob x Genero'!$C$9:$C$117,$B28,'Pob x Genero'!CE$9:CE$117) -> 4352 | AO28: =SUMIF('Pob x Genero'!$C$9:$C$117,$B28,'Pob x Genero'!CF$9:CF$117) -> 12636 | AP28: =AP9 -> 3,152,224 | AQ28: =AQ9 -> 168,930 | AR28: =AR9 -> 182,038 | AS28: =AS9 -> 1,252,704 | AT28: =AT9 -> 169,522 | AV28: 843,731 | AW28: 130,232 | AX28: 73,078 | AY28: 158,929 | AZ28: 342,605 | BA28: 138,887 | BC28: =SUM(D28:H28) -> 44,312 | BD28: =SUM(I28:M28) -> 62,186 | BE28: =SUM(N28:R28) -> 58,722 | BF28: =SUM(S28:W28) -> 62,903 | BG28: =X28 -> 62,370 | BH28: =Y28 -> 71,746 | BI28: =Z28 -> 68,785 | BJ28: =AA28 -> 60,040 | BK28: =AB28 -> 60,228 | BL28: =AC28 -> 56,307 | BM28: =AD28 -> 51,200 | BN28: =AE28 -> 46,045 | BO28: =AF28 -> 38,481 | BP28: =AG28 -> 31,608 | BQ28: =AH28 -> 25,666 | BR28: =AI28 -> 18,143 | BS28: =AJ28 -> 11,969 | BT28: =AK28 -> 13,020

Sheet PROVINCIAL
A4: POBLACION ESTIMADA POR EDADES SIMPLES Y GRUPOS DE EDAD, SEGÚN DEPARTAMENTO y PROVINCIA. 2025
A5: * Actualizado con datos INEI
A6: POBLACION 2025 | F6: POBLACION TOTAL, POR EDADS SIMPLES | Z6: POBLACIÓN TOTAL, POR GRUPOS QUINQUEN ALES DE EDAD | AN6: EDADES ESPECIALES | AQ6: NACIMIENTOS VIVOS | AR6: POBLACION FEMENINA TOTAL | AS6: POBLACION FEMENINA | AV6: GESTANTES ESPERADAS
A7: UBIGEO | B7: DIRESA | C7: DEPARTAMENTO | D7: PROVINCIA | E7: Total | F7: 0 | G7: 1 | H7: 2 | I7: 3 | J7: 4 | K7: 5 | L7: 6 | M7: 7 | N7: 8 | O7: 9 | P7: 10 | Q7: 11 | R7: 12 | S7: 13 | T7: 14 | U7: 15 | V7: 16 | W7: 17 | X7: 18 | Y7: 19 | Z7: 20-24 | AA7: 25-29 | AB7: 30-34 | AC7: 35-39 | AD7: 40-44 | AE7: 45-49 | AF7: 50-54 | AG7: 55-59 | AH7: 60-64 | AI7: 65-69 | AJ7: 70-74 | AK7: 75-79 | AL7: 80-84 | AM7: 85-+ | AN7: 28 DIAS | AO7: 0-5 MESES | AP7: 6-11 MESES | AS7: 10 - 14 | AT7: 15- 19 | AU7: 20- 49 | AX7: TOTAL | AY7: NIÑO | AZ7: Adolescente | BA7: Joven | BB7: Adulto | BC7: Adulto Mayor
A8: 0000 | B8: PERU | C8: PERU | D8: PERU | E8: 1,774,714 | F8: 17,311 | G8: 16,375 | H8: 21,140 | I8: 126,986 | J8: 20,947 | K8: 22,286 | L8: 26,285 | M8: 26,908 | N8: 26,517 | O8: 25,484 | P8: 23,712 | Q8: 23,754 | R8: 24,541 | S8: 23,426 | T8: 21,994 | U8: 25,279 | V8: 25,532 | W8: 25,380 | X8: 24,892 | Y8: 25,050 | Z8: 121,154 | AA8: 135,079 | AB8: 135,250 | AC8: 122,327 | AD8: 120,810 | AE8: 112,551 | AF8: 99,133 | AG8: 90,674 | AH8: 76,187 | AI8: 60,527 | AJ8: 48,773 | AK8: 34,433 | AL8: 21,928 | AM8: 22,089 | AN8: 661 | AO8: 8,312 | AP8: 9,013 | AQ8: 25,876 | AR8: 843,731 | AS8: 58,722 | AT8: 62,903 | AU8: 379,476 | AV8: 41,624 | AX8: 1,774,714 | AY8: 377,705 | AZ8: 146,152 | BA8: 306,175 | BB8: 680,745 | BC8: 263,937
A9: 0401 | B9: AREQUIPA | C9: AREQUIPA | D9: AREQUIPA | E9: 1291480 | F9: 12717 | G9: 12453 | H9: 16639 | I9: 13743 | J9: 16124 | K9: 17574 | L9: 20821 | M9: 21186 | N9: 21044 | O9: 20095 | P9: 18452 | Q9: 18345 | R9: 19113 | S9: 18152 | T9: 16842 | U9: 19265 | V9: 19130 | W9: 19074 | X9: 19139 | Y9: 19578 | Z9: 95519 | AA9: 106506 | AB9: 107034 | AC9: 95387 | AD9: 94523 | AE9: 87320 | AF9: 76240 | AG9: 68728 | AH9: 57807 | AI9: 46302 | AJ9: 37346 | AK9: 26279 | AL9: 16542 | AM9: 16461 | AN9: 502 | AO9: 6258 | AP9: 6460 | AQ9: 18680 | AR9: 650,965 | AS9: 44918 | AT9: 47407 | AU9: 295573 | AV9: 31423 | AX9: 1,291,480 | AY9: 209,193 | AZ9: 111,576 | BA9: 240,742 | BB9: 529,232 | BC9: 200,737
A10: 0402 | B10: AREQUIPA | C10: AREQUIPA | D10: CAMANA | E10: 182654 | F10: 862 | G10: 771 | H10: 798 | I10: =ROUND(I$9*$H10/100,0) -> 109669 | J10: =ROUND(J$9*$H10/100,0) -> 128670 | K10: 140241 | L10: 166152 | M10: 169064 | N10: 167931 | O10: 160358 | P10: 147247 | Q10: 146393 | R10: 152522 | S10: 144853 | T10: 134399 | U10: 153735 | V10: 152657 | W10: 152211 | X10: 152729 | Y10: 156232 | Z10: =ROUND(Z$9*$H10/100,0) -> 762242 | AA10: 849918 | AB10: 854131 | AC10: 761188 | AD10: 754294 | AE10: 696814 | AF10: 608395 | AG10: 548449 | AH10: 461300 | AI10: 369490 | AJ10: 298021 | AK10: 209706 | AL10: 132005 | AM10: 131359 | AN10: 4006 | AO10: 49939 | AP10: =ROUND(AP$9*$H10/100,0) -> 51551 | AQ10: 149066 | AR10: 5,194,701 | AS10: 358446 | AT10: 378308 | AU10: 2358673 | AV10: 250756 | AW10: 0 | AX10: 10,306,010 | AY10: 1,669,360 | AZ10: 890,376 | BA10: 1,921,121 | BB10: 4,223,271 | BC10: 1,601,881
A11: 0403 | B11: AREQUIPA | C11: AREQUIPA | D11: CARAVELI | E11: 51919 | F11: 633 | G11: 569 | H11: 694 | I11: =ROUND(I$9*$H11/100,0) -> 95376 | J11: 111901 | K11: 121964 | L11: 144498 | M11: 147031 | N11: 146045 | O11: 139459 | P11: 128057 | Q11: 127314 | R11: 132644 | S11: 125975 | T11: 116883 | U11: 133699 | V11: 132762 | W11: 132374 | X11: 132825 | Y11: 135871 | Z11: 662902 | AA11: 739152 | AB11: 742816 | AC11: 661986 | AD11: 655990 | AE11: 606001 | AF11: 529106 | AG11: 476972 | AH11: 401181 | AI11: 321336 | AJ11: 259181 | AK11: 182376 | AL11: 114801 | AM11: 114239 | AN11: 3484 | AO11: 43431 | AP11: 44832 | AQ11: 129639 | AR11: 4,517,697 | AS11: 311731 | AT11: 329005 | AU11: 2051277 | AV11: 218076 | AW11: 0 | AX11: 8,962,871 | AY11: 1,451,799 | AZ11: 774,337 | BA11: 1,670,749 | BB11: 3,672,870 | BC11: 1,393,115
A12: 0404 | B12: AREQUIPA | C12: AREQUIPA | D12: CASTILLA | E12: 37929 | F12: 404 | G12: 327 | H12: 391 | I12: 53735 | J12: 63045 | K12: 68714 | L12: 81410 | M12: 82837 | N12: 82282 | O12: 78571 | P12: 72147 | Q12: 71729 | R12: 74732 | S12: 70974 | T12: 65852 | U12: 75326 | V12: 74798 | W12: 74579 | X12: 74833 | Y12: 76550 | Z12: 373479 | AA12: 416438 | AB12: 418503 | AC12: 372963 | AD12: 369585 | AE12: 341421 | AF12: 298098 | AG12: 268726 | AH12: 226025 | AI12: 181041 | AJ12: 146023 | AK12: 102751 | AL12: 64679 | AM12: 64363 | AN12: 1963 | AO12: 24469 | AP12: 25259 | AQ12: 73039 | AR12: 2,545,273 | AS12: 175629 | AT12: 185361 | AU12: 1155690 | AV12: 122864 | AW12: 0 | AX12: 5,049,687 | AY12: 817,945 | AZ12: 436,262 | BA12: 941,301 | BB12: 2,069,297 | BC12: 784,882
A13: 0405 | B13: AREQUIPA | C13: AREQUIPA | D13: CAYLLOMA | E13: 118445 | F13: 1303 | G13: 1254 | H13: 1550 | I13: 213017 | J13: 249922 | K13: 272397 | L13: 322726 | M13: 328383 | N13: 326182 | O13: 311473 | P13: 286006 | Q13: 284348 | R13: 296252 | S13: 281356 | T13: 261051 | U13: 298608 | V13: 296515 | W13: 295647 | X13: 296655 | Y13: 303459 | Z13: 1480545 | AA13: 1650843 | AB13: 1659027 | AC13: 1478499 | AD13: 1465107 | AE13: 1353460 | AF13: 1181720 | AG13: 1065284 | AH13: 896009 | AI13: 717681 | AJ13: 578863 | AK13: 407325 | AL13: 256401 | AM13: 255146 | AN13: 7781 | AO13: 96999 | AP13: 100130 | AQ13: 289540 | AR13: 10,089,958 | AS13: 696229 | AT13: 734809 | AU13: 4581382 | AV13: 487057 | AW13: 0 | AX13: 20,017,940 | AY13: 3,242,492 | AZ13: 1,729,428 | BA13: 3,731,501 | BB13: 8,203,096 | BC13: 3,111,424
A14: 0406 | B14: AREQUIPA | C14: AREQUIPA | D14: CONDESUYOS | E14: 17953 | F14: 224 | G14: 213 | H14: 220 | I14: 30235 | J14: 35473 | K14: 38663 | L14: 45806 | M14: 46609 | N14: 46297 | O14: 44209 | P14: 40594 | Q14: 40359 | R14: 42049 | S14: 39934 | T14: 37052 | U14: 42383 | V14: 42086 | W14: 41963 | X14: 42106 | Y14: 43072 | Z14: 210142 | AA14: 234313 | AB14: 235475 | AC14: 209851 | AD14: 207951 | AE14: 192104 | AF14: 167728 | AG14: 151202 | AH14: 127175 | AI14: 101864 | AJ14: 82161 | AK14: 57814 | AL14: 36392 | AM14: 36214 | AN14: 1104 | AO14: 13768 | AP14: 14212 | AQ14: 41096 | AR14: 1,432,123 | AS14: 98820 | AT14: 104295 | AU14: 650261 | AV14: 69131 | AW14: 0 | AX14: 2,841,256 | AY14: 460,225 | AZ14: 245,467 | BA14: 529,632 | BB14: 1,164,310 | BC14: 441,621
A15: 0407 | B15: AREQUIPA | C15: AREQUIPA | D15: ISLAY | E15: 59841 | F15: 598 | G15: 570 | H15: 674 | I15: 92628 | J15: 108676 | K15: 118449 | L15: 140334 | M15: 142794 | N15: 141837 | O15: 135440 | P15: 124366 | Q15: 123645 | R15: 128822 | S15: 122344 | T15: 113515 | U15: 129846 | V15: 128936 | W15: 128559 | X15: 128997 | Y15: 131956 | Z15: 643798 | AA15: 717850 | AB15: 721409 | AC15: 642908 | AD15: 637085 | AE15: 588537 | AF15: 513858 | AG15: 463227 | AH15: 389619 | AI15: 312075 | AJ15: 251712 | AK15: 177120 | AL15: 111493 | AM15: 110947 | AN15: 3383 | AO15: 42179 | AP15: 43540 | AQ15: 125903 | AR15: 4,387,504 | AS15: 302747 | AT15: 319523 | AU15: 1992162 | AV15: 211791 | AW15: 0 | AX15: 8,704,575 | AY15: 1,409,961 | AZ15: 752,022 | BA15: 1,622,601 | BB15: 3,567,024 | BC15: 1,352,967
A16: 0408 | B16: AREQUIPA | C16: AREQUIPA | D16: LA UNION | E16: 14493 | F16: 570 | G16: 218 | H16: 174 | I16: 23913 | J16: 28056 | K16: 30579 | L16: 36229 | M16: 36864 | N16: 36617 | O16: 34965 | P16: 32106 | Q16: 31920 | R16: 33257 | S16: 31584 | T16: 29305 | U16: 33521 | V16: 33286 | W16: 33189 | X16: 33302 | Y16: 34066 | Z16: 166203 | AA16: 185320 | AB16: 186239 | AC16: 165973 | AD16: 164470 | AE16: 151937 | AF16: 132658 | AG16: 119587 | AH16: 100584 | AI16: 80565 | AJ16: 64982 | AK16: 45725 | AL16: 28783 | AM16: 28642 | AN16: 873 | AO16: 10889 | AP16: 11240 | AQ16: 32503 | AR16: 1,132,679 | AS16: 78157 | AT16: 82488 | AU16: 514297 | AV16: 54676 | AW16: 0 | AX16: 2,247,175 | AY16: 363,996 | AZ16: 194,142 | BA16: 418,891 | BB16: 920,864 | BC16: 349,282
A18: NOTA: LA POBLACION ESTIMADA DE EDADES SIMPLES Y GRUPOS DE EDAD DE DISTRITOS, CORRESPONDEN A CIFRAS REFERENCIALES HASTA OBTENER LAS CIFRAS DE LAS PROYECCIONES DEL INEI
A19: FUENTE: CENSO NACIONAL XI DE POBLACION Y VI DE VIVIENDA 2017/- BOLETIN DEMOGRAFICO Nº 24,37, 39 / RENIEC / Padrón Nominal/ CNV
A20: La población de 0-5 años corresponden al reporte de la poblacion del Padrón Nominal con corte al 31/12/2024, con ajuste en la Edad "0"
A21: OFICINA DE GESTION DE LA INFORMACION - MINISTERIO DE SALUD

Sheet DISTRITAL
A4: POBLACION ESTIMADA POR EDADES SIMPLES Y GRUPOS DE EDAD, SEGÚN DEPARTAMENTO, PROVINCIA Y DISTRITO. 2025
A5: * Actualizado con datos INEI
A6: POBLACION 2025 | G6: POBLACION TOTAL, POR EDADS SIMPLES | AA6: POBLACIÓN TOTAL, POR GRUPOS QUINQUEN ALES DE EDAD | AO6: EDADES ESPECIALES | AR6: NACIMIENTOS VIVOS | AS6: POBLACION FEMENINA TOTAL | AT6: POBLACION FEMENINA | AW6: GESTANTES ESPERADAS
A7: UBIGEO | B7: DIRESA | C7: DEPARTAMENTO | D7: PROVINCIA | E7: DISTRITO | F7: Total | G7: 0 | H7: 1 | I7: 2 | J7: 3 | K7: 4 | L7: 5 | M7: 6 | N7: 7 | O7: 8 | P7: 9 | Q7: 10 | R7: 11 | S7: 12 | T7: 13 | U7: 14 | V7: 15 | W7: 16 | X7: 17 | Y7: 18 | Z7: 19 | AA7: 20-24 | AB7: 25-29 | AC7: 30-34 | AD7: 35-39 | AE7: 40-44 | AF7: 45-49 | AG7: 50-54 | AH7: 55-59 | AI7: 60-64 | AJ7: 65-69 | AK7: 70-74 | AL7: 75-79 | AM7: 80-84 | AN7: 85-+ | AO7: 28 DIAS | AP7: 0-5 MESES | AQ7: 6-11 MESES | AT7: 10 - 14 | AU7: 15- 19 | AV7: 20- 49 | AZ7: TOTAL | BA7: NIÑO | BB7: Adolescente | BC7: Joven | BD7: Adulto | BE7: Adulto Mayor
A8: 000000 | B8: PERU | C8: PERU | D8: PERU | E8: PERU | F8: 1,665,788 | G8: 17,311 | H8: 16,375 | I8: 21,140 | J8: 18,060 | K8: 20,947 | L8: 22,286 | M8: 26,285 | N8: 26,908 | O8: 26,517 | P8: 25,484 | Q8: 23,712 | R8: 23,754 | S8: 24,541 | T8: 23,426 | U8: 21,994 | V8: 25,279 | W8: 25,532 | X8: 25,380 | Y8: 24,892 | Z8: 25,050 | AA8: 121,154 | AB8: 135,079 | AC8: 135,250 | AD8: 122,327 | AE8: 120,810 | AF8: 112,551 | AG8: 99,133 | AH8: 90,674 | AI8: 76,187 | AJ8: 60,527 | AK8: 48,773 | AL8: 34,433 | AM8: 21,928 | AN8: 22,089 | AO8: 661 | AP8: 8,312 | AQ8: 9,013 | AR8: 25,876 | AS8: 843,731 | AT8: 58,722 | AU8: 62,903 | AV8: 379,476 | AW8: 41,624 | AZ8: 1,665,788 | BA8: 268,779 | BB8: 146,152 | BC8: 306,175 | BD8: 680,745 | BE8: 263,937
A9: 040101 | B9: AREQUIPA | C9: AREQUIPA | D9: AREQUIPA | E9: AREQUIPA | F9: 60,675 | G9: 561 | H9: 533 | I9: 480 | J9: 534 | K9: 667 | L9: 749 | M9: 635 | N9: 684 | O9: 684 | P9: 639 | Q9: 561 | R9: 581 | S9: 604 | T9: 596 | U9: 615 | V9: 660 | W9: 646 | X9: 639 | Y9: 611 | Z9: 638 | AA9: 3,343 | AB9: 3,607 | AC9: 3,923 | AD9: 3,575 | AE9: 3,925 | AF9: 4,241 | AG9: 4,384 | AH9: 4,524 | AI9: 4,335 | AJ9: 3,642 | AK9: 3,156 | AL9: 2,312 | AM9: 1,621 | AN9: 1,770 | AO9: 11 | AP9: 264 | AQ9: 297 | AR9: 859 | AS9: 30,631 | AT9: 1,400 | AU9: 1,522 | AV9: 11,197 | AW9: 1,754 | AZ9: 60,675 | BA9: 7,308 | BB9: 3,760 | BC9: 8,199 | BD9: 24,572 | BE9: 16,836
A10: 040102 | B10: AREQUIPA | C10: AREQUIPA | D10: AREQUIPA | E10: ALTO SELVA ALEGRE | F10: 99,905 | G10: 914 | H10: 910 | I10: =ROUND(I$9*$H10/100,0) -> 4,368 | J10: =ROUND(J$9*$H10/100,0) -> 4,859 | K10: 6,070 | L10: 6,816 | M10: 5,779 | N10: 6,224 | O10: 6,224 | P10: 5,815 | Q10: 5,105 | R10: 5,287 | S10: 5,496 | T10: 5,424 | U10: 5,597 | V10: 6,006 | W10: 5,879 | X10: 5,815 | Y10: 5,560 | Z10: =ROUND(Z$9*$H10/100,0) -> 5,806 | AA10: 30,421 | AB10: 32,824 | AC10: 35,699 | AD10: 32,533 | AE10: 35,718 | AF10: 38,593 | AG10: 39,894 | AH10: 41,168 | AI10: 39,449 | AJ10: 33,142 | AK10: 28,720 | AL10: 21,039 | AM10: 14,751 | AN10: 16,107 | AO10: 100 | AP10: =ROUND(AP$9*$H10/100,0) -> 2,402 | AQ10: 2,703 | AR10: 7,817 | AS10: 278,742 | AT10: 12,740 | AU10: 13,850 | AV10: 101,893 | AW10: 15,961 | AZ10: 552,143 | BA10: 66,503 | BB10: 34,216 | BC10: 74,611 | BD10: 223,605 | BE10: 153,208
A11: 040103 | B11: AREQUIPA | C11: AREQUIPA | D11: AREQUIPA | E11: CAYMA | F11: 114,695 | G11: 1,104 | H11: 1,180 | I11: =ROUND(I$9*$H11/100,0) -> 5,664 | J11: 6,301 | K11: 7,871 | L11: 8,838 | M11: 7,493 | N11: 8,071 | O11: 8,071 | P11: 7,540 | Q11: 6,620 | R11: 6,856 | S11: 7,127 | T11: 7,033 | U11: 7,257 | V11: 7,788 | W11: 7,623 | X11: 7,540 | Y11: 7,210 | Z11: 7,528 | AA11: 39,447 | AB11: 42,563 | AC11: 46,291 | AD11: 42,185 | AE11: 46,315 | AF11: 50,044 | AG11: 51,731 | AH11: 53,383 | AI11: 51,153 | AJ11: 42,976 | AK11: 37,241 | AL11: 27,282 | AM11: 19,128 | AN11: 20,886 | AO11: 130 | AP11: 3,115 | AQ11: 3,505 | AR11: 10,136 | AS11: 361,446 | AT11: 16,520 | AU11: 17,960 | AV11: 132,125 | AW11: 20,697 | AZ11: 715,965 | BA11: 86,234 | BB11: 44,368 | BC11: 96,748 | BD11: 289,950 | BE11: 198,665
A12: 040104 | B12: AREQUIPA | C12: AREQUIPA | D12: AREQUIPA | E12: CERRO COLORADO | F12: 232,673 | G12: 2,527 | H12: 2,250 | I12: 10,800 | J12: 12,015 | K12: 15,008 | L12: 16,853 | M12: 14,288 | N12: 15,390 | O12: 15,390 | P12: 14,378 | Q12: 12,623 | R12: 13,073 | S12: 13,590 | T12: 13,410 | U12: 13,838 | V12: 14,850 | W12: 14,535 | X12: 14,378 | Y12: 13,748 | Z12: 14,355 | AA12: 75,218 | AB12: 81,158 | AC12: 88,268 | AD12: 80,438 | AE12: 88,313 | AF12: 95,423 | AG12: 98,640 | AH12: 101,790 | AI12: 97,538 | AJ12: 81,945 | AK12: 71,010 | AL12: 52,020 | AM12: 36,473 | AN12: 39,825 | AO12: 248 | AP12: 5,940 | AQ12: 6,683 | AR12: 19,328 | AS12: 689,198 | AT12: 31,500 | AU12: 34,245 | AV12: 251,933 | AW12: 39,465 | AZ12: 1,365,188 | BA12: 164,430 | BB12: 84,600 | BC12: 184,478 | BD12: 552,870 | BE12: 378,810
A13: 040105 | B13: AREQUIPA | C13: AREQUIPA | D13: AREQUIPA | E13: CHARACATO | F13: 19,480 | G13: 161 | H13: 139 | I13: 667 | J13: 742 | K13: 927 | L13: 1,041 | M13: 883 | N13: 951 | O13: 951 | P13: 888 | Q13: 780 | R13: 808 | S13: 840 | T13: 828 | U13: 855 | V13: 917 | W13: 898 | X13: 888 | Y13: 849 | Z13: 887 | AA13: 4,647 | AB13: 5,014 | AC13: 5,453 | AD13: 4,969 | AE13: 5,456 | AF13: 5,895 | AG13: 6,094 | AH13: 6,288 | AI13: 6,026 | AJ13: 5,062 | AK13: 4,387 | AL13: 3,214 | AM13: 2,253 | AN13: 2,460 | AO13: 15 | AP13: 367 | AQ13: 413 | AR13: 1,194 | AS13: 42,577 | AT13: 1,946 | AU13: 2,116 | AV13: 15,564 | AW13: 2,438 | AZ13: 84,338 | BA13: 10,158 | BB13: 5,226 | BC13: 11,397 | BD13: 34,155 | BE13: 23,402
A14: 040106 | B14: AREQUIPA | C14: AREQUIPA | D14: AREQUIPA | E14: CHIGUATA | F14: 3,633 | G14: 49 | H14: 43 | I14: 206 | J14: 230 | K14: 287 | L14: 322 | M14: 273 | N14: 294 | O14: 294 | P14: 275 | Q14: 241 | R14: 250 | S14: 260 | T14: 256 | U14: 264 | V14: 284 | W14: 278 | X14: 275 | Y14: 263 | Z14: 274 | AA14: 1,437 | AB14: 1,551 | AC14: 1,687 | AD14: 1,537 | AE14: 1,688 | AF14: 1,824 | AG14: 1,885 | AH14: 1,945 | AI14: 1,864 | AJ14: 1,566 | AK14: 1,357 | AL14: 994 | AM14: 697 | AN14: 761 | AO14: 5 | AP14: 114 | AQ14: 128 | AR14: 369 | AS14: 13,171 | AT14: 602 | AU14: 654 | AV14: 4,815 | AW14: 754 | AZ14: 26,090 | BA14: 3,142 | BB14: 1,617 | BC14: 3,526 | BD14: 10,566 | BE14: 7,239
A15: 040107 | B15: AREQUIPA | C15: AREQUIPA | D15: AREQUIPA | E15: JACOBO HUNTER | F15: 57,137 | G15: 498 | H15: 509 | I15: 2,443 | J15: 2,718 | K15: 3,395 | L15: 3,812 | M15: 3,232 | N15: 3,482 | O15: 3,482 | P15: 3,253 | Q15: 2,855 | R15: 2,957 | S15: 3,074 | T15: 3,034 | U15: 3,130 | V15: 3,359 | W15: 3,288 | X15: 3,253 | Y15: 3,110 | Z15: 3,247 | AA15: 17,016 | AB15: 18,360 | AC15: 19,968 | AD15: 18,197 | AE15: 19,978 | AF15: 21,587 | AG15: 22,315 | AH15: 23,027 | AI15: 22,065 | AJ15: 18,538 | AK15: 16,064 | AL15: 11,768 | AM15: 8,251 | AN15: 9,009 | AO15: 56 | AP15: 1,344 | AQ15: 1,512 | AR15: 4,372 | AS15: 155,912 | AT15: 7,126 | AU15: 7,747 | AV15: 56,993 | AW15: 8,928 | AZ15: 308,836 | BA15: 37,198 | BB15: 19,138 | BC15: 41,733 | BD15: 125,071 | BE15: 85,695
A16: 040108 | B16: AREQUIPA | C16: AREQUIPA | D16: AREQUIPA | E16: LA JOYA | F16: 44,201 | G16: 491 | H16: 516 | I16: 2,477 | J16: 2,755 | K16: 3,442 | L16: 3,865 | M16: 3,277 | N16: 3,529 | O16: 3,529 | P16: 3,297 | Q16: 2,895 | R16: 2,998 | S16: 3,117 | T16: 3,075 | U16: 3,173 | V16: 3,406 | W16: 3,333 | X16: 3,297 | Y16: 3,153 | Z16: 3,292 | AA16: 17,250 | AB16: 18,612 | AC16: 20,243 | AD16: 18,447 | AE16: 20,253 | AF16: 21,884 | AG16: 22,621 | AH16: 23,344 | AI16: 22,369 | AJ16: 18,793 | AK16: 16,285 | AL16: 11,930 | AM16: 8,364 | AN16: 9,133 | AO16: 57 | AP16: 1,362 | AQ16: 1,533 | AR16: 4,432 | AS16: 158,056 | AT16: 7,224 | AU16: 7,854 | AV16: 57,777 | AW16: 9,051 | AZ16: 313,083 | BA16: 37,709 | BB16: 19,402 | BC16: 42,307 | BD16: 126,792 | BE16: 86,874
A17: 040109 | B17: AREQUIPA | C17: AREQUIPA | D17: AREQUIPA | E17: MARIANO MELGAR | F17: 71,941 | G17: 727 | H17: 724 | I17: 3,475 | J17: 3,866 | K17: 4,829 | L17: 5,423 | M17: 4,597 | N17: 4,952 | O17: 4,952 | P17: 4,626 | Q17: 4,062 | R17: 4,206 | S17: 4,373 | T17: 4,315 | U17: 4,453 | V17: 4,778 | W17: 4,677 | X17: 4,626 | Y17: 4,424 | Z17: 4,619 | AA17: 24,203 | AB17: 26,115 | AC17: 28,403 | AD17: 25,883 | AE17: 28,417 | AF17: 30,705 | AG17: 31,740 | AH17: 32,754 | AI17: 31,385 | AJ17: 26,368 | AK17: 22,849 | AL17: 16,739 | AM17: 11,736 | AN17: 12,815 | AO17: 80 | AP17: 1,911 | AQ17: 2,150 | AR17: 6,219 | AS17: 221,768 | AT17: 10,136 | AU17: 11,019 | AV17: 81,066 | AW17: 12,699 | AZ17: 439,287 | BA17: 52,910 | BB17: 27,222 | BC17: 59,361 | BD17: 177,901 | BE17: 121,893
A18: 040110 | B18: AREQUIPA | C18: AREQUIPA | D18: AREQUIPA | E18: MIRAFLORES | F18: 70,842 | G18: 603 | H18: 643 | I18: 727 | J18: 702 | K18: 821 | L18: 922 | M18: 1,020 | N18: 1,058 | O18: 1,122 | P18: 987 | Q18: 1,020 | R18: 923 | S18: 925 | T18: 905 | U18: 835 | V18: 923 | W18: 992 | X18: 947 | Y18: 972 | Z18: 1,047 | AA18: 5,196 | AB18: 5,784 | AC18: 5,752 | AD18: 5,057 | AE18: 5,308 | AF18: 5,077 | AG18: 4,591 | AH18: 4,074 | AI18: 3,513 | AJ18: 2,675 | AK18: 2,146 | AL18: 1,501 | AM18: 983 | AN18: 1,091 | AO18: 29 | AP18: 295 | AQ18: 308 | AR18: 984 | AS18: 36,211 | AT18: 2,353 | AU18: 2,503 | AV18: 16,332 | AW18: 1,739 | AZ18: 70,842 | BA18: 10,548 | BB18: 5,527 | BC18: 12,999 | BD18: 29,859 | BE18: 11,909
A19: 040111 | B19: AREQUIPA | C19: AREQUIPA | D19: AREQUIPA | E19: MOLLEBAYA | F19: 8,627 | G19: 67 | H19: 56 | I19: =ROUND(I$18*$H19/100,0) -> 407 | J19: =ROUND(J$18*$H19/100,0) -> 393 | K19: 460 | L19: 516 | M19: 571 | N19: 592 | O19: 628 | P19: 553 | Q19: 571 | R19: 517 | S19: 518 | T19: 507 | U19: 468 | V19: 517 | W19: 556 | X19: 530 | Y19: 544 | Z19: =ROUND(Z$18*$H19/100,0) -> 586 | AA19: 2,910 | AB19: 3,239 | AC19: 3,221 | AD19: 2,832 | AE19: 2,972 | AF19: 2,843 | AG19: 2,571 | AH19: 2,281 | AI19: 1,967 | AJ19: 1,498 | AK19: 1,202 | AL19: 841 | AM19: 550 | AN19: 611 | AO19: 16 | AP19: =ROUND(AP$18*$H19/100,0) -> 165 | AQ19: 172 | AR19: 551 | AS19: 20,278 | AT19: 1,318 | AU19: 1,402 | AV19: 9,146 | AW19: 974 | AZ19: 39,672 | BA19: 5,907 | BB19: 3,095 | BC19: 7,279 | BD19: 16,721 | BE19: 6,669
A20: 040112 | B20: AREQUIPA | C20: AREQUIPA | D20: AREQUIPA | E20: PAUCARPATA | F20: 142,855 | G20: 1,505 | H20: 1,642 | I20: =ROUND(I$18*$H20/100,0) -> 11,937 | J20: 11,527 | K20: 13,481 | L20: 15,139 | M20: 16,748 | N20: 17,372 | O20: 18,423 | P20: 16,207 | Q20: 16,748 | R20: 15,156 | S20: 15,189 | T20: 14,860 | U20: 13,711 | V20: 15,156 | W20: 16,289 | X20: 15,550 | Y20: 15,960 | Z20: 17,192 | AA20: 85,318 | AB20: 94,973 | AC20: 94,448 | AD20: 83,036 | AE20: 87,157 | AF20: 83,364 | AG20: 75,384 | AH20: 66,895 | AI20: 57,683 | AJ20: 43,924 | AK20: 35,237 | AL20: 24,646 | AM20: 16,141 | AN20: 17,914 | AO20: 476 | AP20: 4,844 | AQ20: 5,057 | AR20: 16,157 | AS20: 594,585 | AT20: 38,636 | AU20: 41,099 | AV20: 268,171 | AW20: 28,554 | AZ20: 1,163,226 | BA20: 173,198 | BB20: 90,753 | BC20: 213,444 | BD20: 490,285 | BE20: 195,546
A21: 040113 | B21: AREQUIPA | C21: AREQUIPA | D21: AREQUIPA | E21: POCSI | F21: 525 | G21: 11 | H21: 4 | I21: 29 | J21: 28 | K21: 33 | L21: 37 | M21: 41 | N21: 42 | O21: 45 | P21: 39 | Q21: 41 | R21: 37 | S21: 37 | T21: 36 | U21: 33 | V21: 37 | W21: 40 | X21: 38 | Y21: 39 | Z21: 42 | AA21: 208 | AB21: 231 | AC21: 230 | AD21: 202 | AE21: 212 | AF21: 203 | AG21: 184 | AH21: 163 | AI21: 141 | AJ21: 107 | AK21: 86 | AL21: 60 | AM21: 39 | AN21: 44 | AO21: 1 | AP21: 12 | AQ21: 12 | AR21: 39 | AS21: 1,448 | AT21: 94 | AU21: 100 | AV21: 653 | AW21: 70 | AZ21: 2,834 | BA21: 422 | BB21: 221 | BC21: 520 | BD21: 1,194 | BE21: 476
A22: 040114 | B22: AREQUIPA | C22: AREQUIPA | D22: AREQUIPA | E22: POLOBAYA | F22: 878 | G22: 13 | H22: 6 | I22: 44 | J22: 42 | K22: 49 | L22: 55 | M22: 61 | N22: 63 | O22: 67 | P22: 59 | Q22: 61 | R22: 55 | S22: 56 | T22: 54 | U22: 50 | V22: 55 | W22: 60 | X22: 57 | Y22: 58 | Z22: 63 | AA22: 312 | AB22: 347 | AC22: 345 | AD22: 303 | AE22: 318 | AF22: 305 | AG22: 275 | AH22: 244 | AI22: 211 | AJ22: 161 | AK22: 129 | AL22: 90 | AM22: 59 | AN22: 65 | AO22: 2 | AP22: 18 | AQ22: 18 | AR22: 59 | AS22: 2,173 | AT22: 141 | AU22: 150 | AV22: 980 | AW22: 104 | AZ22: 4,251 | BA22: 633 | BB22: 332 | BC22: 780 | BD22: 1,792 | BE22: 715
A23: 040115 | B23: AREQUIPA | C23: AREQUIPA | D23: AREQUIPA | E23: QUEQUEÑA | F23: 8,720 | G23: 39 | H23: 35 | I23: 254 | J23: 246 | K23: 287 | L23: 323 | M23: 357 | N23: 370 | O23: 393 | P23: 345 | Q23: 357 | R23: 323 | S23: 324 | T23: 317 | U23: 292 | V23: 323 | W23: 347 | X23: 331 | Y23: 340 | Z23: 366 | AA23: 1,819 | AB23: 2,024 | AC23: 2,013 | AD23: 1,770 | AE23: 1,858 | AF23: 1,777 | AG23: 1,607 | AH23: 1,426 | AI23: 1,230 | AJ23: 936 | AK23: 751 | AL23: 525 | AM23: 344 | AN23: 382 | AO23: 10 | AP23: 103 | AQ23: 108 | AR23: 344 | AS23: 12,674 | AT23: 824 | AU23: 876 | AV23: 5,716 | AW23: 609 | AZ23: 24,795 | BA23: 3,692 | BB23: 1,934 | BC23: 4,550 | BD23: 10,451 | BE23: 4,168
A24: 040116 | B24: AREQUIPA | C24: AREQUIPA | D24: AREQUIPA | E24: SABANDIA | F24: 5,241 | G24: 81 | H24: 67 | I24: 487 | J24: 470 | K24: 550 | L24: 618 | M24: 683 | N24: 709 | O24: 752 | P24: 661 | Q24: 683 | R24: 618 | S24: 620 | T24: 606 | U24: 559 | V24: 618 | W24: 665 | X24: 634 | Y24: 651 | Z24: 701 | AA24: 3,481 | AB24: 3,875 | AC24: 3,854 | AD24: 3,388 | AE24: 3,556 | AF24: 3,402 | AG24: 3,076 | AH24: 2,730 | AI24: 2,354 | AJ24: 1,792 | AK24: 1,438 | AL24: 1,006 | AM24: 659 | AN24: 731 | AO24: 19 | AP24: 198 | AQ24: 206 | AR24: 659 | AS24: 24,261 | AT24: 1,577 | AU24: 1,677 | AV24: 10,942 | AW24: 1,165 | AZ24: 47,464 | BA24: 7,067 | BB24: 3,703 | BC24: 8,709 | BD24: 20,006 | BE24: 7,979
A25: 040117 | B25: AREQUIPA | C25: AREQUIPA | D25: AREQUIPA | E25: SACHACA | F25: 31,532 | G25: 365 | H25: 331 | I25: 347 | J25: 371 | K25: 429 | L25: 466 | M25: 508 | N25: 525 | O25: 499 | P25: 471 | Q25: 384 | R25: 446 | S25: 466 | T25: 470 | U25: 414 | V25: 479 | W25: 456 | X25: 478 | Y25: 461 | Z25: 470 | AA25: 2,298 | AB25: 2,323 | AC25: 2,420 | AD25: 2,189 | AE25: 2,283 | AF25: 2,135 | AG25: 1,870 | AH25: 1,708 | AI25: 1,476 | AJ25: 1,296 | AK25: 1,048 | AL25: 748 | AM25: 458 | AN25: 444 | AO25: 13 | AP25: 198 | AQ25: 167 | AR25: 528 | AS25: 16,052 | AT25: 1,066 | AU25: 1,180 | AV25: 6,894 | AW25: 669 | AZ25: 31,532 | BA25: 5,142 | BB25: 2,763 | BC25: 5,552 | BD25: 12,605 | BE25: 5,470
A26: 040118 | B26: AREQUIPA | C26: AREQUIPA | D26: AREQUIPA | E26: SAN JUAN DE SIGUAS | F26: 597 | G26: 6 | H26: 5 | I26: =ROUND(I$25*$H26/100,0) -> 17 | J26: =ROUND(J$25*$H26/100,0) -> 19 | K26: 21 | L26: 23 | M26: 25 | N26: 26 | O26: 25 | P26: 24 | Q26: 19 | R26: 22 | S26: 23 | T26: 24 | U26: 21 | V26: 24 | W26: 23 | X26: 24 | Y26: 23 | Z26: =ROUND(Z$25*$H26/100,0) -> 24 | AA26: 115 | AB26: 116 | AC26: 121 | AD26: 109 | AE26: 114 | AF26: 107 | AG26: 94 | AH26: 85 | AI26: 74 | AJ26: 65 | AK26: 52 | AL26: 37 | AM26: 23 | AN26: 22 | AO26: 1 | AP26: =ROUND(AP$25*$H26/100,0) -> 10 | AQ26: 8 | AR26: 26 | AS26: 803 | AT26: 53 | AU26: 59 | AV26: 345 | AW26: 33 | AZ26: 1,577 | BA26: 257 | BB26: 138 | BC26: 278 | BD26: 630 | BE26: 274
A27: 040119 | B27: AREQUIPA | C27: AREQUIPA | D27: AREQUIPA | E27: SAN JUAN DE TARUCANI | F27: 1,377 | G27: 20 | H27: 15 | I27: =ROUND(I$25*$H27/100,0) -> 52 | J27: 56 | K27: 64 | L27: 70 | M27: 76 | N27: 79 | O27: 75 | P27: 71 | Q27: 58 | R27: 67 | S27: 70 | T27: 71 | U27: 62 | V27: 72 | W27: 68 | X27: 72 | Y27: 69 | Z27: 71 | AA27: 345 | AB27: 348 | AC27: 363 | AD27: 328 | AE27: 342 | AF27: 320 | AG27: 281 | AH27: 256 | AI27: 221 | AJ27: 194 | AK27: 157 | AL27: 112 | AM27: 69 | AN27: 67 | AO27: 2 | AP27: 30 | AQ27: 25 | AR27: 79 | AS27: 2,408 | AT27: 160 | AU27: 177 | AV27: 1,034 | AW27: 100 | AZ27: 4,730 | BA27: 771 | BB27: 414 | BC27: 833 | BD27: 1,891 | BE27: 821
A28: 040120 | B28: AREQUIPA | C28: AREQUIPA | D28: AREQUIPA | E28: SANTA ISABEL DE SIGUAS | F28: 705 | G28: 8 | H28: 3 | I28: 10 | J28: 11 | K28: 13 | L28: 14 | M28: 15 | N28: 16 | O28: 15 | P28: 14 | Q28: 12 | R28: 13 | S28: 14 | T28: 14 | U28: 12 | V28: 14 | W28: 14 | X28: 14 | Y28: 14 | Z28: 14 | AA28: 69 | AB28: 70 | AC28: 73 | AD28: 66 | AE28: 68 | AF28: 64 | AG28: 56 | AH28: 51 | AI28: 44 | AJ28: 39 | AK28: 31 | AL28: 22 | AM28: 14 | AN28: 13 | AO28: 0 | AP28: 6 | AQ28: 5 | AR28: 16 | AS28: 482 | AT28: 32 | AU28: 35 | AV28: 207 | AW28: 20 | AZ28: 946 | BA28: 154 | BB28: 83 | BC28: 167 | BD28: 378 | BE28: 164
A29: 040121 | B29: AREQUIPA | C29: AREQUIPA | D29: AREQUIPA | E29: SANTA RITA DE SIGUAS | F29: 8,744 | G29: 93 | H29: 86 | I29: 298 | J29: 319 | K29: 369 | L29: 401 | M29: 437 | N29: 452 | O29: 429 | P29: 405 | Q29: 330 | R29: 384 | S29: 401 | T29: 404 | U29: 356 | V29: 412 | W29: 392 | X29: 411 | Y29: 396 | Z29: 404 | AA29: 1,976 | AB29: 1,998 | AC29: 2,081 | AD29: 1,883 | AE29: 1,963 | AF29: 1,836 | AG29: 1,608 | AH29: 1,469 | AI29: 1,269 | AJ29: 1,115 | AK29: 901 | AL29: 643 | AM29: 394 | AN29: 382 | AO29: 11 | AP29: 170 | AQ29: 144 | AR29: 454 | AS29: 13,805 | AT29: 917 | AU29: 1,015 | AV29: 5,929 | AW29: 575 | AZ29: 27,118 | BA29: 4,422 | BB29: 2,376 | BC29: 4,775 | BD29: 10,840 | BE29: 4,704
A30: 040122 | B30: AREQUIPA | C30: AREQUIPA | D30: AREQUIPA | E30: SOCABAYA | F30: 91,530 | G30: 714 | H30: 717 | I30: 2,488 | J30: 2,660 | K30: 3,076 | L30: 3,341 | M30: 3,642 | N30: 3,764 | O30: 3,578 | P30: 3,377 | Q30: 2,753 | R30: 3,198 | S30: 3,341 | T30: 3,370 | U30: 2,968 | V30: 3,434 | W30: 3,270 | X30: 3,427 | Y30: 3,305 | Z30: 3,370 | AA30: 16,477 | AB30: 16,656 | AC30: 17,351 | AD30: 15,695 | AE30: 16,369 | AF30: 15,308 | AG30: 13,408 | AH30: 12,246 | AI30: 10,583 | AJ30: 9,292 | AK30: 7,514 | AL30: 5,363 | AM30: 3,284 | AN30: 3,183 | AO30: 93 | AP30: 1,420 | AQ30: 1,197 | AR30: 3,786 | AS30: 115,093 | AT30: 7,643 | AU30: 8,461 | AV30: 49,430 | AW30: 4,797 | AZ30: 226,084 | BA30: 36,868 | BB30: 19,811 | BC30: 39,808 | BD30: 90,378 | BE30: 39,220
A31: 040123 | B31: AREQUIPA | C31: AREQUIPA | D31: AREQUIPA | E31: TIABAYA | F31: 19,123 | G31: 262 | H31: 261 | I31: 906 | J31: 968 | K31: 1,120 | L31: 1,216 | M31: 1,326 | N31: 1,370 | O31: 1,302 | P31: 1,229 | Q31: 1,002 | R31: 1,164 | S31: 1,216 | T31: 1,227 | U31: 1,081 | V31: 1,250 | W31: 1,190 | X31: 1,248 | Y31: 1,203 | Z31: 1,227 | AA31: 5,998 | AB31: 6,063 | AC31: 6,316 | AD31: 5,713 | AE31: 5,959 | AF31: 5,572 | AG31: 4,881 | AH31: 4,458 | AI31: 3,852 | AJ31: 3,383 | AK31: 2,735 | AL31: 1,952 | AM31: 1,195 | AN31: 1,159 | AO31: 34 | AP31: 517 | AQ31: 436 | AR31: 1,378 | AS31: 41,896 | AT31: 2,782 | AU31: 3,080 | AV31: 17,993 | AW31: 1,746 | AZ31: 82,299 | BA31: 13,421 | BB31: 7,211 | BC31: 14,491 | BD31: 32,899 | BE31: 14,277
A32: 040124 | B32: AREQUIPA | C32: AREQUIPA | D32: AREQUIPA | E32: UCHUMAYO | F32: 18,826 | G32: 212 | H32: 214 | I32: 222 | J32: 202 | K32: 247 | L32: 266 | M32: 305 | N32: 293 | O32: 276 | P32: 257 | Q32: 251 | R32: 251 | S32: 286 | T32: 242 | U32: 213 | V32: 258 | W32: 260 | X32: 249 | Y32: 271 | Z32: 262 | AA32: 1,212 | AB32: 1,631 | AC32: 1,660 | AD32: 1,627 | AE32: 1,608 | AF32: 1,361 | AG32: 1,105 | AH32: 1,008 | AI32: 830 | AJ32: 670 | AK32: 460 | AL32: 309 | AM32: 183 | AN32: 125 | AO32: 13 | AP32: 97 | AQ32: 115 | AR32: 282 | AS32: 9,923 | AT32: 687 | AU32: 698 | AV32: 4,667 | AW32: 534 | AZ32: 18,826 | BA32: 2,996 | BB32: 1,508 | BC32: 3,376 | BD32: 8,369 | BE32: 2,577
A33: 040125 | B33: AREQUIPA | C33: AREQUIPA | D33: AREQUIPA | E33: VITOR | F33: 5,469 | G33: 67 | H33: 52 | I33: =ROUND(I$32*$H33/100,0) -> 115 | J33: =ROUND(J$32*$H33/100,0) -> 105 | K33: 128 | L33: 138 | M33: 159 | N33: 152 | O33: 144 | P33: 134 | Q33: 131 | R33: 131 | S33: 149 | T33: 126 | U33: 111 | V33: 134 | W33: 135 | X33: 129 | Y33: 141 | Z33: =ROUND(Z$32*$H33/100,0) -> 136 | AA33: 630 | AB33: 848 | AC33: 863 | AD33: 846 | AE33: 836 | AF33: 708 | AG33: 575 | AH33: 524 | AI33: 432 | AJ33: 348 | AK33: 239 | AL33: 161 | AM33: 95 | AN33: 65 | AO33: 7 | AP33: =ROUND(AP$32*$H33/100,0) -> 50 | AQ33: 60 | AR33: 147 | AS33: 5,160 | AT33: 357 | AU33: 363 | AV33: 2,427 | AW33: 278 | AZ33: 9,790 | BA33: 1,558 | BB33: 784 | BC33: 1,756 | BD33: 4,352 | BE33: 1,340
A34: 040126 | B34: AREQUIPA | C34: AREQUIPA | D34: AREQUIPA | E34: YANAHUARA | F34: 30,515 | G34: 277 | H34: 181 | I34: =ROUND(I$32*$H34/100,0) -> 402 | J34: 366 | K34: 447 | L34: 481 | M34: 552 | N34: 530 | O34: 500 | P34: 465 | Q34: 454 | R34: 454 | S34: 518 | T34: 438 | U34: 386 | V34: 467 | W34: 471 | X34: 451 | Y34: 491 | Z34: 474 | AA34: 2,194 | AB34: 2,952 | AC34: 3,005 | AD34: 2,945 | AE34: 2,910 | AF34: 2,463 | AG34: 2,000 | AH34: 1,824 | AI34: 1,502 | AJ34: 1,213 | AK34: 833 | AL34: 559 | AM34: 331 | AN34: 226 | AO34: 24 | AP34: 176 | AQ34: 208 | AR34: 510 | AS34: 17,961 | AT34: 1,243 | AU34: 1,263 | AV34: 8,447 | AW34: 967 | AZ34: 34,075 | BA34: 5,423 | BB34: 2,729 | BC34: 6,111 | BD34: 15,148 | BE34: 4,664
A35: 040127 | B35: AREQUIPA | C35: AREQUIPA | D35: AREQUIPA | E35: YARABAMBA | F35: 1,977 | G35: 50 | H35: 44 | I35: 98 | J35: 89 | K35: 109 | L35: 117 | M35: 134 | N35: 129 | O35: 121 | P35: 113 | Q35: 110 | R35: 110 | S35: 126 | T35: 106 | U35: 94 | V35: 114 | W35: 114 | X35: 110 | Y35: 119 | Z35: 115 | AA35: 533 | AB35: 718 | AC35: 730 | AD35: 716 | AE35: 708 | AF35: 599 | AG35: 486 | AH35: 444 | AI35: 365 | AJ35: 295 | AK35: 202 | AL35: 136 | AM35: 81 | AN35: 55 | AO35: 6 | AP35: 43 | AQ35: 51 | AR35: 124 | AS35: 4,366 | AT35: 302 | AU35: 307 | AV35: 2,053 | AW35: 235 | AZ35: 8,283 | BA35: 1,318 | BB35: 664 | BC35: 1,485 | BD35: 3,682 | BE35: 1,134
A36: 040128 | B36: AREQUIPA | C36: AREQUIPA | D36: AREQUIPA | E36: YURA | F36: 48,226 | G36: 594 | H36: 563 | I36: 1,250 | J36: 1,137 | K36: 1,391 | L36: 1,498 | M36: 1,717 | N36: 1,650 | O36: 1,554 | P36: 1,447 | Q36: 1,413 | R36: 1,413 | S36: 1,610 | T36: 1,362 | U36: 1,199 | V36: 1,453 | W36: 1,464 | X36: 1,402 | Y36: 1,526 | Z36: 1,475 | AA36: 6,824 | AB36: 9,183 | AC36: 9,346 | AD36: 9,160 | AE36: 9,053 | AF36: 7,662 | AG36: 6,221 | AH36: 5,675 | AI36: 4,673 | AJ36: 3,772 | AK36: 2,590 | AL36: 1,740 | AM36: 1,030 | AN36: 704 | AO36: 73 | AP36: 546 | AQ36: 647 | AR36: 1,588 | AS36: 55,866 | AT36: 3,868 | AU36: 3,930 | AV36: 26,275 | AW36: 3,006 | AZ36: 105,990 | BA36: 16,867 | BB36: 8,490 | BC36: 19,007 | BD36: 47,117 | BE36: 14,509
A37: 040129 | B37: AREQUIPA | C37: AREQUIPA | D37: AREQUIPA | E37: JOSE LUIS BUSTAMANTE Y RIVERO | F37: 90,831 | G37: 698 | H37: 724 | I37: 1,607 | J37: 1,462 | K37: 1,788 | L37: 1,926 | M37: 2,208 | N37: 2,121 | O37: 1,998 | P37: 1,861 | Q37: 1,817 | R37: 1,817 | S37: 2,071 | T37: 1,752 | U37: 1,542 | V37: 1,868 | W37: 1,882 | X37: 1,803 | Y37: 1,962 | Z37: 1,897 | AA37: 8,775 | AB37: 11,808 | AC37: 12,018 | AD37: 11,779 | AE37: 11,642 | AF37: 9,854 | AG37: 8,000 | AH37: 7,298 | AI37: 6,009 | AJ37: 4,851 | AK37: 3,330 | AL37: 2,237 | AM37: 1,325 | AN37: 905 | AO37: 94 | AP37: 702 | AQ37: 833 | AR37: 2,042 | AS37: 71,843 | AT37: 4,974 | AU37: 5,054 | AV37: 33,789 | AW37: 3,866 | AZ37: 136,300 | BA37: 21,691 | BB37: 10,918 | BC37: 24,442 | BD37: 60,592 | BE37: 18,657
A38: 040201 | B38: AREQUIPA | C38: AREQUIPA | D38: CAMANA | E38: CAMANA | F38: 15,524 | G38: 156 | H38: 97 | I38: 215 | J38: 196 | K38: 240 | L38: 258 | M38: 296 | N38: 284 | O38: 268 | P38: 249 | Q38: 243 | R38: 243 | S38: 277 | T38: 235 | U38: 207 | V38: 250 | W38: 252 | X38: 242 | Y38: 263 | Z38: 254 | AA38: 1,176 | AB38: 1,582 | AC38: 1,610 | AD38: 1,578 | AE38: 1,560 | AF38: 1,320 | AG38: 1,072 | AH38: 978 | AI38: 805 | AJ38: 650 | AK38: 446 | AL38: 300 | AM38: 178 | AN38: 121 | AO38: 13 | AP38: 94 | AQ38: 112 | AR38: 274 | AS38: 9,625 | AT38: 666 | AU38: 677 | AV38: 4,527 | AW38: 518 | AZ38: 18,261 | BA38: 2,906 | BB38: 1,463 | BC38: 3,275 | BD38: 8,118 | BE38: 2,500
A39: 040202 | B39: AREQUIPA | C39: AREQUIPA | D39: CAMANA | E39: JOSE MARIA QUIMPER | F39: 5,988 | G39: 86 | H39: 76 | I39: 169 | J39: 154 | K39: 188 | L39: 202 | M39: 232 | N39: 223 | O39: 210 | P39: 195 | Q39: 191 | R39: 191 | S39: 217 | T39: 184 | U39: 162 | V39: 196 | W39: 198 | X39: 189 | Y39: 206 | Z39: 199 | AA39: 921 | AB39: 1,240 | AC39: 1,262 | AD39: 1,237 | AE39: 1,222 | AF39: 1,034 | AG39: 840 | AH39: 766 | AI39: 631 | AJ39: 509 | AK39: 350 | AL39: 235 | AM39: 139 | AN39: 95 | AO39: 10 | AP39: 74 | AQ39: 87 | AR39: 214 | AS39: 7,541 | AT39: 522 | AU39: 530 | AV39: 3,547 | AW39: 406 | AZ39: 14,308 | BA39: 2,277 | BB39: 1,146 | BC39: 2,566 | BD39: 6,360 | BE39: 1,959
A40: 040203 | B40: AREQUIPA | C40: AREQUIPA | D40: CAMANA | E40: MARIANO NICOLAS VALCARCEL | F40: 9,512 | G40: 158 | H40: 149 | I40: 331 | J40: 301 | K40: 368 | L40: 396 | M40: 454 | N40: 437 | O40: 411 | P40: 383 | Q40: 374 | R40: 374 | S40: 426 | T40: 361 | U40: 317 | V40: 384 | W40: 387 | X40: 371 | Y40: 404 | Z40: 390 | AA40: 1,806 | AB40: 2,430 | AC40: 2,473 | AD40: 2,424 | AE40: 2,396 | AF40: 2,028 | AG40: 1,646 | AH40: 1,502 | AI40: 1,237 | AJ40: 998 | AK40: 685 | AL40: 460 | AM40: 273 | AN40: 186 | AO40: 19 | AP40: 145 | AQ40: 171 | AR40: 420 | AS40: 14,785 | AT40: 1,024 | AU40: 1,040 | AV40: 6,954 | AW40: 796 | AZ40: 28,051 | BA40: 4,464 | BB40: 2,247 | BC40: 5,030 | BD40: 12,470 | BE40: 3,840
A41: 040204 | B41: AREQUIPA | C41: AREQUIPA | D41: CAMANA | E41: MARISCAL CACERES | F41: 8,458 | G41: 108 | H41: 103 | I41: 229 | J41: 208 | K41: 254 | L41: 274 | M41: 314 | N41: 302 | O41: 284 | P41: 265 | Q41: 259 | R41: 259 | S41: 295 | T41: 249 | U41: 219 | V41: 266 | W41: 268 | X41: 256 | Y41: 279 | Z41: 270 | AA41: 1,248 | AB41: 1,680 | AC41: 1,710 | AD41: 1,676 | AE41: 1,656 | AF41: 1,402 | AG41: 1,138 | AH41: 1,038 | AI41: 855 | AJ41: 690 | AK41: 474 | AL41: 318 | AM41: 188 | AN41: 129 | AO41: 13 | AP41: 100 | AQ41: 118 | AR41: 290 | AS41: 10,221 | AT41: 708 | AU41: 719 | AV41: 4,807 | AW41: 550 | AZ41: 19,391 | BA41: 3,086 | BB41: 1,553 | BC41: 3,477 | BD41: 8,620 | BE41: 2,654
A42: 040205 | B42: AREQUIPA | C42: AREQUIPA | D42: CAMANA | E42: NICOLAS DE PIEROLA | F42: 9,336 | G42: 92 | H42: 87 | I42: 193 | J42: 176 | K42: 215 | L42: 231 | M42: 265 | N42: 255 | O42: 240 | P42: 224 | Q42: 218 | R42: 218 | S42: 249 | T42: 211 | U42: 185 | V42: 224 | W42: 226 | X42: 217 | Y42: 236 | Z42: 228 | AA42: 1,054 | AB42: 1,419 | AC42: 1,444 | AD42: 1,415 | AE42: 1,399 | AF42: 1,184 | AG42: 961 | AH42: 877 | AI42: 722 | AJ42: 583 | AK42: 400 | AL42: 269 | AM42: 159 | AN42: 109 | AO42: 11 | AP42: 84 | AQ42: 100 | AR42: 245 | AS42: 8,633 | AT42: 598 | AU42: 607 | AV42: 4,060 | AW42: 465 | AZ42: 16,379 | BA42: 2,607 | BB42: 1,312 | BC42: 2,937 | BD42: 7,281 | BE42: 2,242
A43: 040206 | B43: AREQUIPA | C43: AREQUIPA | D43: CAMANA | E43: OCOÑA | F43: 4,900 | G43: 57 | H43: 48 | I43: 49 | J43: 46 | K43: 68 | L43: 58 | M43: 70 | N43: 75 | O43: 65 | P43: 47 | Q43: 49 | R43: 55 | S43: 53 | T43: 66 | U43: 64 | V43: 78 | W43: 72 | X43: 95 | Y43: 63 | Z43: 60 | AA43: 281 | AB43: 368 | AC43: 295 | AD43: 320 | AE43: 345 | AF43: 319 | AG43: 345 | AH43: 336 | AI43: 323 | AJ43: 244 | AK43: 208 | AL43: 120 | AM43: 80 | AN43: 78 | AO43: 6 | AP43: 29 | AQ43: 28 | AR43: 104 | AS43: 2,568 | AT43: 157 | AU43: 201 | AV43: 1,062 | AW43: 102 | AZ43: 4,900 | BA43: 687 | BB43: 428 | BC43: 772 | BD43: 1,960 | BE43: 1,053
A44: 040207 | B44: AREQUIPA | C44: AREQUIPA | D44: CAMANA | E44: QUILCA | F44: 1,449 | G44: 14 | H44: 11 | I44: =ROUND(I$43*$H44/100,0) -> 5 | J44: =ROUND(J$43*$H44/100,0) -> 5 | K44: 7 | L44: 6 | M44: 8 | N44: 8 | O44: 7 | P44: 5 | Q44: 5 | R44: 6 | S44: 6 | T44: 7 | U44: 7 | V44: 9 | W44: 8 | X44: 10 | Y44: 7 | Z44: 7 | AA44: 31 | AB44: 40 | AC44: 32 | AD44: 35 | AE44: 38 | AF44: 35 | AG44: 38 | AH44: 37 | AI44: 36 | AJ44: 27 | AK44: 23 | AL44: 13 | AM44: 9 | AN44: 9 | AO44: 1 | AP44: 3 | AQ44: 3 | AR44: 11 | AS44: 282 | AT44: 17 | AU44: 22 | AV44: 117 | AW44: 11 | AZ44: 539 | BA44: 76 | BB44: 47 | BC44: 85 | BD44: 216 | BE44: 116
A45: 040208 | B45: AREQUIPA | C45: AREQUIPA | D45: CAMANA | E45: SAMUEL PASTOR | F45: 18,561 | G45: 191 | H45: 200 | I45: 255 | J45: 249 | K45: 307 | L45: 325 | M45: 333 | N45: 325 | O45: 324 | P45: 291 | Q45: 278 | R45: 311 | S45: 315 | T45: 270 | U45: 259 | V45: 310 | W45: 314 | X45: 308 | Y45: 312 | Z45: 286 | AA45: 1,388 | AB45: 1,546 | AC45: 1,465 | AD45: 1,384 | AE45: 1,286 | AF45: 1,217 | AG45: 1,127 | AH45: 990 | AI45: 846 | AJ45: 576 | AK45: 402 | AL45: 260 | AM45: 153 | AN45: 158 | AO45: 3 | AP45: 84 | AQ45: 107 | AR45: 363 | AS45: 9,482 | AT45: 727 | AU45: 757 | AV45: 4,330 | AW45: 505 | AZ45: 18,561 | BA45: 3,389 | BB45: 1,776 | BC45: 3,532 | BD45: 7,469 | BE45: 2,395
A46: 040301 | B46: AREQUIPA | C46: AREQUIPA | D46: CARAVELI | E46: CARAVELI | F46: 5,398 | G46: 91 | H46: 97 | I46: =ROUND(I$45*$H46/100,0) -> 247 | J46: =ROUND(J$45*$H46/100,0) -> 242 | K46: 298 | L46: 315 | M46: 323 | N46: 315 | O46: 314 | P46: 282 | Q46: 270 | R46: 302 | S46: 306 | T46: 262 | U46: 251 | V46: 301 | W46: 305 | X46: 299 | Y46: 303 | Z46: =ROUND(Z$45*$H46/100,0) -> 277 | AA46: 1,346 | AB46: 1,500 | AC46: 1,421 | AD46: 1,342 | AE46: 1,247 | AF46: 1,180 | AG46: 1,093 | AH46: 960 | AI46: 821 | AJ46: 559 | AK46: 390 | AL46: 252 | AM46: 148 | AN46: 153 | AO46: 3 | AP46: =ROUND(AP$45*$H46/100,0) -> 81 | AQ46: 104 | AR46: 352 | AS46: 9,198 | AT46: 705 | AU46: 734 | AV46: 4,200 | AW46: 490 | AZ46: 18,004 | BA46: 3,287 | BB46: 1,723 | BC46: 3,426 | BD46: 7,245 | BE46: 2,323
A47: 040302 | B47: AREQUIPA | C47: AREQUIPA | D47: CARAVELI | E47: ACARI | F47: 6,593 | G47: 49 | H47: 38 | I47: =ROUND(I$45*$H47/100,0) -> 97 | J47: 95 | K47: 117 | L47: 124 | M47: 127 | N47: 124 | O47: 123 | P47: 111 | Q47: 106 | R47: 118 | S47: 120 | T47: 103 | U47: 98 | V47: 118 | W47: 119 | X47: 117 | Y47: 119 | Z47: 109 | AA47: 527 | AB47: 587 | AC47: 557 | AD47: 526 | AE47: 489 | AF47: 462 | AG47: 428 | AH47: 376 | AI47: 321 | AJ47: 219 | AK47: 153 | AL47: 99 | AM47: 58 | AN47: 60 | AO47: 1 | AP47: 32 | AQ47: 41 | AR47: 138 | AS47: 3,603 | AT47: 276 | AU47: 288 | AV47: 1,645 | AW47: 192 | AZ47: 7,053 | BA47: 1,288 | BB47: 675 | BC47: 1,342 | BD47: 2,838 | BE47: 910
A48: 040303 | B48: AREQUIPA | C48: AREQUIPA | D48: CARAVELI | E48: ATICO | F48: 6,696 | G48: 81 | H48: 74 | I48: 79 | J48: 58 | K48: 74 | L48: 67 | M48: 118 | N48: 92 | O48: 98 | P48: 98 | Q48: 111 | R48: 113 | S48: 74 | T48: 109 | U48: 113 | V48: 115 | W48: 125 | X48: 110 | Y48: 113 | Z48: 90 | AA48: 404 | AB48: 498 | AC48: 559 | AD48: 519 | AE48: 487 | AF48: 497 | AG48: 448 | AH48: 388 | AI48: 293 | AJ48: 258 | AK48: 166 | AL48: 133 | AM48: 78 | AN48: 56 | AO48: 5 | AP48: 29 | AQ48: 52 | AR48: 112 | AS48: 3,453 | AT48: 262 | AU48: 280 | AV48: 1,574 | AW48: 191 | AZ48: 6,696 | BA48: 1,063 | BB48: 646 | BC48: 1,105 | BD48: 2,898 | BE48: 984
A49: 040304 | B49: AREQUIPA | C49: AREQUIPA | D49: CARAVELI | E49: ATIQUIPA | F49: 745 | G49: 11 | H49: 4 | I49: =ROUND(I$48*$H49/100,0) -> 3 | J49: =ROUND(J$48*$H49/100,0) -> 2 | K49: 3 | L49: 3 | M49: 5 | N49: 4 | O49: 4 | P49: 4 | Q49: 4 | R49: 5 | S49: 3 | T49: 4 | U49: 5 | V49: 5 | W49: 5 | X49: 4 | Y49: 5 | Z49: =ROUND(Z$48*$H49/100,0) -> 4 | AA49: 16 | AB49: 20 | AC49: 22 | AD49: 21 | AE49: 19 | AF49: 20 | AG49: 18 | AH49: 16 | AI49: 12 | AJ49: 10 | AK49: 7 | AL49: 5 | AM49: 3 | AN49: 2 | AO49: 0 | AP49: =ROUND(AP$48*$H49/100,0) -> 1 | AQ49: 2 | AR49: 4 | AS49: 138 | AT49: 10 | AU49: 11 | AV49: 63 | AW49: 8 | AZ49: 268 | BA49: 43 | BB49: 26 | BC49: 44 | BD49: 116 | BE49: 39
A50: 040305 | B50: AREQUIPA | C50: AREQUIPA | D50: CARAVELI | E50: BELLA UNION | F50: 3,563 | G50: 48 | H50: 32 | I50: =ROUND(I$48*$H50/100,0) -> 25 | J50: 19 | K50: 24 | L50: 21 | M50: 38 | N50: 29 | O50: 31 | P50: 31 | Q50: 36 | R50: 36 | S50: 24 | T50: 35 | U50: 36 | V50: 37 | W50: 40 | X50: 35 | Y50: 36 | Z50: 29 | AA50: 129 | AB50: 159 | AC50: 179 | AD50: 166 | AE50: 156 | AF50: 159 | AG50: 143 | AH50: 124 | AI50: 94 | AJ50: 83 | AK50: 53 | AL50: 43 | AM50: 25 | AN50: 18 | AO50: 2 | AP50: 9 | AQ50: 17 | AR50: 36 | AS50: 1,105 | AT50: 84 | AU50: 90 | AV50: 504 | AW50: 61 | AZ50: 2,143 | BA50: 340 | BB50: 207 | BC50: 354 | BD50: 927 | BE50: 315
A51: 040306 | B51: AREQUIPA | C51: AREQUIPA | D51: CARAVELI | E51: CAHUACHO | F51: 1,369 | G51: 11 | H51: 8 | I51: 6 | J51: 5 | K51: 6 | L51: 5 | M51: 9 | N51: 7 | O51: 8 | P51: 8 | Q51: 9 | R51: 9 | S51: 6 | T51: 9 | U51: 9 | V51: 9 | W51: 10 | X51: 9 | Y51: 9 | Z51: 7 | AA51: 32 | AB51: 40 | AC51: 45 | AD51: 42 | AE51: 39 | AF51: 40 | AG51: 36 | AH51: 31 | AI51: 23 | AJ51: 21 | AK51: 13 | AL51: 11 | AM51: 6 | AN51: 4 | AO51: 0 | AP51: 2 | AQ51: 4 | AR51: 9 | AS51: 276 | AT51: 21 | AU51: 22 | AV51: 126 | AW51: 15 | AZ51: 536 | BA51: 85 | BB51: 52 | BC51: 88 | BD51: 232 | BE51: 79
A52: 040307 | B52: AREQUIPA | C52: AREQUIPA | D52: CARAVELI | E52: CHALA | F52: 11,423 | G52: 160 | H52: 163 | I52: 129 | J52: 95 | K52: 121 | L52: 109 | M52: 192 | N52: 150 | O52: 160 | P52: 160 | Q52: 181 | R52: 184 | S52: 121 | T52: 178 | U52: 184 | V52: 187 | W52: 204 | X52: 179 | Y52: 184 | Z52: 147 | AA52: 659 | AB52: 812 | AC52: 911 | AD52: 846 | AE52: 794 | AF52: 810 | AG52: 730 | AH52: 632 | AI52: 478 | AJ52: 421 | AK52: 271 | AL52: 217 | AM52: 127 | AN52: 91 | AO52: 8 | AP52: 47 | AQ52: 85 | AR52: 183 | AS52: 5,628 | AT52: 427 | AU52: 456 | AV52: 2,566 | AW52: 311 | AZ52: 10,914 | BA52: 1,733 | BB52: 1,053 | BC52: 1,801 | BD52: 4,724 | BE52: 1,604
A53: 040308 | B53: AREQUIPA | C53: AREQUIPA | D53: CARAVELI | E53: CHAPARRA | F53: 3,778 | G53: 38 | H53: 36 | I53: 28 | J53: 21 | K53: 27 | L53: 24 | M53: 42 | N53: 33 | O53: 35 | P53: 35 | Q53: 40 | R53: 41 | S53: 27 | T53: 39 | U53: 41 | V53: 41 | W53: 45 | X53: 40 | Y53: 41 | Z53: 32 | AA53: 145 | AB53: 179 | AC53: 201 | AD53: 187 | AE53: 175 | AF53: 179 | AG53: 161 | AH53: 140 | AI53: 105 | AJ53: 93 | AK53: 60 | AL53: 48 | AM53: 28 | AN53: 20 | AO53: 2 | AP53: 10 | AQ53: 19 | AR53: 40 | AS53: 1,243 | AT53: 94 | AU53: 101 | AV53: 567 | AW53: 69 | AZ53: 2,411 | BA53: 383 | BB53: 233 | BC53: 398 | BD53: 1,043 | BE53: 354
A54: 040309 | B54: AREQUIPA | C54: AREQUIPA | D54: CARAVELI | E54: HUANUHUANU | F54: 3,453 | G54: 45 | H54: 31 | I54: 24 | J54: 18 | K54: 23 | L54: 21 | M54: 37 | N54: 29 | O54: 30 | P54: 30 | Q54: 34 | R54: 35 | S54: 23 | T54: 34 | U54: 35 | V54: 36 | W54: 39 | X54: 34 | Y54: 35 | Z54: 28 | AA54: 125 | AB54: 154 | AC54: 173 | AD54: 161 | AE54: 151 | AF54: 154 | AG54: 139 | AH54: 120 | AI54: 91 | AJ54: 80 | AK54: 51 | AL54: 41 | AM54: 24 | AN54: 17 | AO54: 2 | AP54: 9 | AQ54: 16 | AR54: 35 | AS54: 1,070 | AT54: 81 | AU54: 87 | AV54: 488 | AW54: 59 | AZ54: 2,076 | BA54: 330 | BB54: 200 | BC54: 343 | BD54: 898 | BE54: 305
A55: 040310 | B55: AREQUIPA | C55: AREQUIPA | D55: CARAVELI | E55: JAQUI | F55: 1,978 | G55: 29 | H55: 21 | I55: 17 | J55: 12 | K55: 16 | L55: 14 | M55: 25 | N55: 19 | O55: 21 | P55: 21 | Q55: 23 | R55: 24 | S55: 16 | T55: 23 | U55: 24 | V55: 24 | W55: 26 | X55: 23 | Y55: 24 | Z55: 19 | AA55: 85 | AB55: 105 | AC55: 117 | AD55: 109 | AE55: 102 | AF55: 104 | AG55: 94 | AH55: 81 | AI55: 62 | AJ55: 54 | AK55: 35 | AL55: 28 | AM55: 16 | AN55: 12 | AO55: 1 | AP55: 6 | AQ55: 11 | AR55: 24 | AS55: 725 | AT55: 55 | AU55: 59 | AV55: 331 | AW55: 40 | AZ55: 1,406 | BA55: 223 | BB55: 136 | BC55: 232 | BD55: 609 | BE55: 207
A56: 040311 | B56: AREQUIPA | C56: AREQUIPA | D56: CARAVELI | E56: LOMAS | F56: 1,731 | G56: 18 | H56: 16 | I56: 28 | J56: 26 | K56: 17 | L56: 14 | M56: 23 | N56: 18 | O56: 26 | P56: 40 | Q56: 23 | R56: 19 | S56: 26 | T56: 21 | U56: 23 | V56: 25 | W56: 26 | X56: 22 | Y56: 17 | Z56: 18 | AA56: 119 | AB56: 139 | AC56: 140 | AD56: 133 | AE56: 134 | AF56: 135 | AG56: 108 | AH56: 112 | AI56: 103 | AJ56: 61 | AK56: 48 | AL56: 32 | AM56: 10 | AN56: 11 | AO56: 1 | AP56: 8 | AQ56: 10 | AR56: 34 | AS56: 905 | AT56: 60 | AU56: 62 | AV56: 421 | AW56: 43 | AZ56: 1,731 | BA56: 268 | BB56: 143 | BC56: 293 | BD56: 762 | BE56: 265
A57: 040312 | B57: AREQUIPA | C57: AREQUIPA | D57: CARAVELI | E57: QUICACHA | F57: 2,385 | G57: 25 | H57: 19 | I57: =ROUND(I$56*$H57/100,0) -> 5 | J57: =ROUND(J$56*$H57/100,0) -> 5 | K57: 3 | L57: 3 | M57: 4 | N57: 3 | O57: 5 | P57: 8 | Q57: 4 | R57: 4 | S57: 5 | T57: 4 | U57: 4 | V57: 5 | W57: 5 | X57: 4 | Y57: 3 | Z57: =ROUND(Z$56*$H57/100,0) -> 3 | AA57: 23 | AB57: 26 | AC57: 27 | AD57: 25 | AE57: 25 | AF57: 26 | AG57: 21 | AH57: 21 | AI57: 20 | AJ57: 12 | AK57: 9 | AL57: 6 | AM57: 2 | AN57: 2 | AO57: 0 | AP57: =ROUND(AP$56*$H57/100,0) -> 2 | AQ57: 2 | AR57: 6 | AS57: 172 | AT57: 11 | AU57: 12 | AV57: 80 | AW57: 8 | AZ57: 329 | BA57: 51 | BB57: 27 | BC57: 56 | BD57: 145 | BE57: 50
A58: 040313 | B58: AREQUIPA | C58: AREQUIPA | D58: CARAVELI | E58: YAUCA | F58: 2,807 | G58: 27 | H58: 30 | I58: =ROUND(I$56*$H58/100,0) -> 8 | J58: 8 | K58: 5 | L58: 4 | M58: 7 | N58: 5 | O58: 8 | P58: 12 | Q58: 7 | R58: 6 | S58: 8 | T58: 6 | U58: 7 | V58: 8 | W58: 8 | X58: 7 | Y58: 5 | Z58: 5 | AA58: 36 | AB58: 42 | AC58: 42 | AD58: 40 | AE58: 40 | AF58: 41 | AG58: 32 | AH58: 34 | AI58: 31 | AJ58: 18 | AK58: 14 | AL58: 10 | AM58: 3 | AN58: 3 | AO58: 0 | AP58: 2 | AQ58: 3 | AR58: 10 | AS58: 272 | AT58: 18 | AU58: 19 | AV58: 126 | AW58: 13 | AZ58: 519 | BA58: 80 | BB58: 43 | BC58: 88 | BD58: 229 | BE58: 80
A59: 040401 | B59: AREQUIPA | C59: AREQUIPA | D59: CASTILLA | E59: APLAO | F59: 10,457 | G59: 113 | H59: 114 | I59: 32 | J59: 30 | K59: 19 | L59: 16 | M59: 26 | N59: 21 | O59: 30 | P59: 46 | Q59: 26 | R59: 22 | S59: 30 | T59: 24 | U59: 26 | V59: 29 | W59: 30 | X59: 25 | Y59: 19 | Z59: 21 | AA59: 136 | AB59: 158 | AC59: 160 | AD59: 152 | AE59: 153 | AF59: 154 | AG59: 123 | AH59: 128 | AI59: 117 | AJ59: 70 | AK59: 55 | AL59: 36 | AM59: 11 | AN59: 13 | AO59: 1 | AP59: 9 | AQ59: 11 | AR59: 39 | AS59: 1,032 | AT59: 68 | AU59: 71 | AV59: 480 | AW59: 49 | AZ59: 1,973 | BA59: 306 | BB59: 163 | BC59: 334 | BD59: 869 | BE59: 302
A60: 040402 | B60: AREQUIPA | C60: AREQUIPA | D60: CASTILLA | E60: ANDAGUA | F60: 982 | G60: 14 | H60: 5 | I60: 1 | J60: 1 | K60: 1 | L60: 1 | M60: 1 | N60: 1 | O60: 1 | P60: 2 | Q60: 1 | R60: 1 | S60: 1 | T60: 1 | U60: 1 | V60: 1 | W60: 1 | X60: 1 | Y60: 1 | Z60: 1 | AA60: 6 | AB60: 7 | AC60: 7 | AD60: 7 | AE60: 7 | AF60: 7 | AG60: 5 | AH60: 6 | AI60: 5 | AJ60: 3 | AK60: 2 | AL60: 2 | AM60: 1 | AN60: 1 | AO60: 0 | AP60: 0 | AQ60: 1 | AR60: 2 | AS60: 45 | AT60: 3 | AU60: 3 | AV60: 21 | AW60: 2 | AZ60: 87 | BA60: 13 | BB60: 7 | BC60: 15 | BD60: 38 | BE60: 13
A61: 040403 | B61: AREQUIPA | C61: AREQUIPA | D61: CASTILLA | E61: AYO | F61: 377 | G61: 5 | H61: 2 | I61: 1 | J61: 1 | K61: 0 | L61: 0 | M61: 0 | N61: 0 | O61: 1 | P61: 1 | Q61: 0 | R61: 0 | S61: 1 | T61: 0 | U61: 0 | V61: 1 | W61: 1 | X61: 0 | Y61: 0 | Z61: 0 | AA61: 2 | AB61: 3 | AC61: 3 | AD61: 3 | AE61: 3 | AF61: 3 | AG61: 2 | AH61: 2 | AI61: 2 | AJ61: 1 | AK61: 1 | AL61: 1 | AM61: 0 | AN61: 0 | AO61: 0 | AP61: 0 | AQ61: 0 | AR61: 1 | AS61: 18 | AT61: 1 | AU61: 1 | AV61: 8 | AW61: 1 | AZ61: 35 | BA61: 5 | BB61: 3 | BC61: 6 | BD61: 15 | BE61: 5
A62: 040404 | B62: AREQUIPA | C62: AREQUIPA | D62: CASTILLA | E62: CHACHAS | F62: 1,847 | G62: 35 | H62: 27 | I62: 8 | J62: 7 | K62: 5 | L62: 4 | M62: 6 | N62: 5 | O62: 7 | P62: 11 | Q62: 6 | R62: 5 | S62: 7 | T62: 6 | U62: 6 | V62: 7 | W62: 7 | X62: 6 | Y62: 5 | Z62: 5 | AA62: 32 | AB62: 38 | AC62: 38 | AD62: 36 | AE62: 36 | AF62: 36 | AG62: 29 | AH62: 30 | AI62: 28 | AJ62: 16 | AK62: 13 | AL62: 9 | AM62: 3 | AN62: 3 | AO62: 0 | AP62: 2 | AQ62: 3 | AR62: 9 | AS62: 244 | AT62: 16 | AU62: 17 | AV62: 114 | AW62: 12 | AZ62: 467 | BA62: 72 | BB62: 39 | BC62: 79 | BD62: 206 | BE62: 72
A63: 040405 | B63: AREQUIPA | C63: AREQUIPA | D63: CASTILLA | E63: CHILCAYMARCA | F63: 1,148 | G63: 13 | H63: 12 | I63: 3 | J63: 3 | K63: 2 | L63: 2 | M63: 3 | N63: 2 | O63: 3 | P63: 5 | Q63: 3 | R63: 2 | S63: 3 | T63: 3 | U63: 3 | V63: 3 | W63: 3 | X63: 3 | Y63: 2 | Z63: 2 | AA63: 14 | AB63: 17 | AC63: 17 | AD63: 16 | AE63: 16 | AF63: 16 | AG63: 13 | AH63: 13 | AI63: 12 | AJ63: 7 | AK63: 6 | AL63: 4 | AM63: 1 | AN63: 1 | AO63: 0 | AP63: 1 | AQ63: 1 | AR63: 4 | AS63: 109 | AT63: 7 | AU63: 7 | AV63: 51 | AW63: 5 | AZ63: 208 | BA63: 32 | BB63: 17 | BC63: 35 | BD63: 91 | BE63: 32
A64: 040406 | B64: AREQUIPA | C64: AREQUIPA | D64: CASTILLA | E64: CHOCO | F64: 806 | G64: 10 | H64: 4 | I64: 1 | J64: 1 | K64: 1 | L64: 1 | M64: 1 | N64: 1 | O64: 1 | P64: 2 | Q64: 1 | R64: 1 | S64: 1 | T64: 1 | U64: 1 | V64: 1 | W64: 1 | X64: 1 | Y64: 1 | Z64: 1 | AA64: 5 | AB64: 6 | AC64: 6 | AD64: 5 | AE64: 5 | AF64: 5 | AG64: 4 | AH64: 4 | AI64: 4 | AJ64: 2 | AK64: 2 | AL64: 1 | AM64: 0 | AN64: 0 | AO64: 0 | AP64: 0 | AQ64: 0 | AR64: 1 | AS64: 36 | AT64: 2 | AU64: 2 | AV64: 17 | AW64: 2 | AZ64: 69 | BA64: 11 | BB64: 6 | BC64: 12 | BD64: 30 | BE64: 11
A65: 040407 | B65: AREQUIPA | C65: AREQUIPA | D65: CASTILLA | E65: HUANCARQUI | F65: 1,731 | G65: 28 | H65: 17 | I65: 5 | J65: 4 | K65: 3 | L65: 2 | M65: 4 | N65: 3 | O65: 4 | P65: 7 | Q65: 4 | R65: 3 | S65: 4 | T65: 4 | U65: 4 | V65: 4 | W65: 4 | X65: 4 | Y65: 3 | Z65: 3 | AA65: 20 | AB65: 24 | AC65: 24 | AD65: 23 | AE65: 23 | AF65: 23 | AG65: 18 | AH65: 19 | AI65: 18 | AJ65: 10 | AK65: 8 | AL65: 5 | AM65: 2 | AN65: 2 | AO65: 0 | AP65: 1 | AQ65: 2 | AR65: 6 | AS65: 154 | AT65: 10 | AU65: 11 | AV65: 72 | AW65: 7 | AZ65: 294 | BA65: 46 | BB65: 24 | BC65: 50 | BD65: 130 | BE65: 45
A66: 040408 | B66: AREQUIPA | C66: AREQUIPA | D66: CASTILLA | E66: MACHAGUAY | F66: 482 | G66: 12 | H66: 6 | I66: 3 | J66: 5 | K66: 2 | L66: 7 | M66: 2 | N66: 4 | O66: 2 | P66: 5 | Q66: 2 | R66: 9 | S66: 3 | T66: 5 | U66: 7 | V66: 5 | W66: 7 | X66: 9 | Y66: 6 | Z66: 9 | AA66: 25 | AB66: 19 | AC66: 18 | AD66: 15 | AE66: 24 | AF66: 29 | AG66: 34 | AH66: 35 | AI66: 37 | AJ66: 19 | AK66: 39 | AL66: 21 | AM66: 24 | AN66: 33 | AO66: 0 | AP66: 4 | AQ66: 8 | AR66: 22 | AS66: 259 | AT66: 17 | AU66: 18 | AV66: 72 | AW66: 9 | AZ66: 482 | BA66: 59 | BB66: 36 | BC66: 59 | BD66: 155 | BE66: 173
A67: 040409 | B67: AREQUIPA | C67: AREQUIPA | D67: CASTILLA | E67: ORCOPAMPA | F67: 9,089 | G67: 58 | H67: 55 | I67: =ROUND(I$66*$H67/100,0) -> 2 | J67: =ROUND(J$66*$H67/100,0) -> 3 | K67: 1 | L67: 4 | M67: 1 | N67: 2 | O67: 1 | P67: 3 | Q67: 1 | R67: 5 | S67: 2 | T67: 3 | U67: 4 | V67: 3 | W67: 4 | X67: 5 | Y67: 3 | Z67: =ROUND(Z$66*$H67/100,0) -> 5 | AA67: 14 | AB67: 10 | AC67: 10 | AD67: 8 | AE67: 13 | AF67: 16 | AG67: 19 | AH67: 19 | AI67: 20 | AJ67: 10 | AK67: 21 | AL67: 12 | AM67: 13 | AN67: 18 | AO67: 0 | AP67: =ROUND(AP$66*$H67/100,0) -> 2 | AQ67: 4 | AR67: 12 | AS67: 142 | AT67: 9 | AU67: 10 | AV67: 40 | AW67: 5 | AZ67: 265 | BA67: 32 | BB67: 20 | BC67: 32 | BD67: 85 | BE67: 95
A68: 040410 | B68: AREQUIPA | C68: AREQUIPA | D68: CASTILLA | E68: PAMPACOLCA | F68: 2,145 | G68: 33 | H68: 20 | I68: =ROUND(I$66*$H68/100,0) -> 1 | J68: 1 | K68: 0 | L68: 1 | M68: 0 | N68: 1 | O68: 0 | P68: 1 | Q68: 0 | R68: 2 | S68: 1 | T68: 1 | U68: 1 | V68: 1 | W68: 1 | X68: 2 | Y68: 1 | Z68: 2 | AA68: 5 | AB68: 4 | AC68: 4 | AD68: 3 | AE68: 5 | AF68: 6 | AG68: 7 | AH68: 7 | AI68: 7 | AJ68: 4 | AK68: 8 | AL68: 4 | AM68: 5 | AN68: 7 | AO68: 0 | AP68: 1 | AQ68: 2 | AR68: 4 | AS68: 52 | AT68: 3 | AU68: 4 | AV68: 14 | AW68: 2 | AZ68: 96 | BA68: 12 | BB68: 7 | BC68: 12 | BD68: 31 | BE68: 35
A69: 040411 | B69: AREQUIPA | C69: AREQUIPA | D69: CASTILLA | E69: TIPAN | F69: 450 | G69: 4 | H69: 2 | I69: 0 | J69: 0 | K69: 0 | L69: 0 | M69: 0 | N69: 0 | O69: 0 | P69: 0 | Q69: 0 | R69: 0 | S69: 0 | T69: 0 | U69: 0 | V69: 0 | W69: 0 | X69: 0 | Y69: 0 | Z69: 0 | AA69: 1 | AB69: 0 | AC69: 0 | AD69: 0 | AE69: 0 | AF69: 1 | AG69: 1 | AH69: 1 | AI69: 1 | AJ69: 0 | AK69: 1 | AL69: 0 | AM69: 0 | AN69: 1 | AO69: 0 | AP69: 0 | AQ69: 0 | AR69: 0 | AS69: 5 | AT69: 0 | AU69: 0 | AV69: 1 | AW69: 0 | AZ69: 10 | BA69: 1 | BB69: 1 | BC69: 1 | BD69: 3 | BE69: 3
A70: 040412 | B70: AREQUIPA | C70: AREQUIPA | D70: CASTILLA | E70: UÑON | F70: 296 | G70: 4 | H70: 1 | I70: 0 | J70: 0 | K70: 0 | L70: 0 | M70: 0 | N70: 0 | O70: 0 | P70: 0 | Q70: 0 | R70: 0 | S70: 0 | T70: 0 | U70: 0 | V70: 0 | W70: 0 | X70: 0 | Y70: 0 | Z70: 0 | AA70: 0 | AB70: 0 | AC70: 0 | AD70: 0 | AE70: 0 | AF70: 0 | AG70: 0 | AH70: 0 | AI70: 0 | AJ70: 0 | AK70: 0 | AL70: 0 | AM70: 0 | AN70: 0 | AO70: 0 | AP70: 0 | AQ70: 0 | AR70: 0 | AS70: 3 | AT70: 0 | AU70: 0 | AV70: 1 | AW70: 0 | AZ70: 5 | BA70: 1 | BB70: 0 | BC70: 1 | BD70: 2 | BE70: 2
A71: 040413 | B71: AREQUIPA | C71: AREQUIPA | D71: CASTILLA | E71: URACA | F71: 6,584 | G71: 59 | H71: 51 | I71: 2 | J71: 3 | K71: 1 | L71: 4 | M71: 1 | N71: 2 | O71: 1 | P71: 3 | Q71: 1 | R71: 5 | S71: 2 | T71: 3 | U71: 4 | V71: 3 | W71: 4 | X71: 5 | Y71: 3 | Z71: 5 | AA71: 13 | AB71: 10 | AC71: 9 | AD71: 8 | AE71: 12 | AF71: 15 | AG71: 17 | AH71: 18 | AI71: 19 | AJ71: 10 | AK71: 20 | AL71: 11 | AM71: 12 | AN71: 17 | AO71: 0 | AP71: 2 | AQ71: 4 | AR71: 11 | AS71: 132 | AT71: 9 | AU71: 9 | AV71: 37 | AW71: 5 | AZ71: 246 | BA71: 30 | BB71: 18 | BC71: 30 | BD71: 79 | BE71: 88
A72: 040414 | B72: AREQUIPA | C72: AREQUIPA | D72: CASTILLA | E72: VIRACO | F72: 1,535 | G72: 16 | H72: 11 | I72: 0 | J72: 1 | K72: 0 | L72: 1 | M72: 0 | N72: 0 | O72: 0 | P72: 1 | Q72: 0 | R72: 1 | S72: 0 | T72: 1 | U72: 1 | V72: 1 | W72: 1 | X72: 1 | Y72: 1 | Z72: 1 | AA72: 3 | AB72: 2 | AC72: 2 | AD72: 2 | AE72: 3 | AF72: 3 | AG72: 4 | AH72: 4 | AI72: 4 | AJ72: 2 | AK72: 4 | AL72: 2 | AM72: 3 | AN72: 4 | AO72: 0 | AP72: 0 | AQ72: 1 | AR72: 2 | AS72: 28 | AT72: 2 | AU72: 2 | AV72: 8 | AW72: 1 | AZ72: 53 | BA72: 6 | BB72: 4 | BC72: 6 | BD72: 17 | BE72: 19
A73: 040501 | B73: AREQUIPA | C73: AREQUIPA | D73: CAYLLOMA | E73: CHIVAY | F73: 7,959 | G73: 53 | H73: 51 | I73: 95 | J73: 59 | K73: 81 | L73: 79 | M73: 137 | N73: 142 | O73: 145 | P73: 141 | Q73: 145 | R73: 121 | S73: 170 | T73: 148 | U73: 115 | V73: 172 | W73: 177 | X73: 165 | Y73: 167 | Z73: 145 | AA73: 752 | AB73: 704 | AC73: 641 | AD73: 534 | AE73: 475 | AF73: 436 | AG73: 357 | AH73: 429 | AI73: 317 | AJ73: 216 | AK73: 202 | AL73: 186 | AM73: 89 | AN73: 113 | AO73: 1 | AP73: 26 | AQ73: 27 | AR73: 94 | AS73: 4,058 | AT73: 341 | AU73: 402 | AV73: 1,807 | AW73: 139 | AZ73: 7,959 | BA73: 1,249 | BB73: 947 | BC73: 1,768 | BD73: 2,872 | BE73: 1,123
A74: 040502 | B74: AREQUIPA | C74: AREQUIPA | D74: CAYLLOMA | E74: ACHOMA | F74: 1,225 | G74: 14 | H74: 9 | I74: =ROUND(I$73*$H74/100,0) -> 9 | J74: =ROUND(J$73*$H74/100,0) -> 5 | K74: 7 | L74: 7 | M74: 12 | N74: 13 | O74: 13 | P74: 13 | Q74: 13 | R74: 11 | S74: 15 | T74: 13 | U74: 10 | V74: 15 | W74: 16 | X74: 15 | Y74: 15 | Z74: =ROUND(Z$73*$H74/100,0) -> 13 | AA74: 68 | AB74: 63 | AC74: 58 | AD74: 48 | AE74: 43 | AF74: 39 | AG74: 32 | AH74: 39 | AI74: 29 | AJ74: 19 | AK74: 18 | AL74: 17 | AM74: 8 | AN74: 10 | AO74: 0 | AP74: =ROUND(AP$73*$H74/100,0) -> 2 | AQ74: 2 | AR74: 8 | AS74: 365 | AT74: 31 | AU74: 36 | AV74: 163 | AW74: 13 | AZ74: 716 | BA74: 112 | BB74: 85 | BC74: 159 | BD74: 258 | BE74: 101
A75: 040503 | B75: AREQUIPA | C75: AREQUIPA | D75: CAYLLOMA | E75: CABANACONDE | F75: 2,960 | G75: 17 | H75: 15 | I75: =ROUND(I$73*$H75/100,0) -> 14 | J75: 9 | K75: 12 | L75: 12 | M75: 21 | N75: 21 | O75: 22 | P75: 21 | Q75: 22 | R75: 18 | S75: 26 | T75: 22 | U75: 17 | V75: 26 | W75: 27 | X75: 25 | Y75: 25 | Z75: 22 | AA75: 113 | AB75: 106 | AC75: 96 | AD75: 80 | AE75: 71 | AF75: 65 | AG75: 54 | AH75: 64 | AI75: 48 | AJ75: 32 | AK75: 30 | AL75: 28 | AM75: 13 | AN75: 17 | AO75: 0 | AP75: 4 | AQ75: 4 | AR75: 14 | AS75: 609 | AT75: 51 | AU75: 60 | AV75: 271 | AW75: 21 | AZ75: 1,194 | BA75: 187 | BB75: 142 | BC75: 265 | BD75: 431 | BE75: 168
A76: 040504 | B76: AREQUIPA | C76: AREQUIPA | D76: CAYLLOMA | E76: CALLALLI | F76: 2,214 | G76: 28 | H76: 20 | I76: 19 | J76: 12 | K76: 16 | L76: 16 | M76: 27 | N76: 28 | O76: 29 | P76: 28 | Q76: 29 | R76: 24 | S76: 34 | T76: 30 | U76: 23 | V76: 34 | W76: 35 | X76: 33 | Y76: 33 | Z76: 29 | AA76: 150 | AB76: 141 | AC76: 128 | AD76: 107 | AE76: 95 | AF76: 87 | AG76: 71 | AH76: 86 | AI76: 63 | AJ76: 43 | AK76: 40 | AL76: 37 | AM76: 18 | AN76: 23 | AO76: 0 | AP76: 5 | AQ76: 5 | AR76: 19 | AS76: 812 | AT76: 68 | AU76: 80 | AV76: 361 | AW76: 28 | AZ76: 1,592 | BA76: 250 | BB76: 189 | BC76: 354 | BD76: 574 | BE76: 225
A77: 040505 | B77: AREQUIPA | C77: AREQUIPA | D77: CAYLLOMA | E77: CAYLLOMA | F77: 5,339 | G77: 39 | H77: 37 | I77: 35 | J77: 22 | K77: 30 | L77: 29 | M77: 51 | N77: 53 | O77: 54 | P77: 52 | Q77: 54 | R77: 45 | S77: 63 | T77: 55 | U77: 43 | V77: 64 | W77: 65 | X77: 61 | Y77: 62 | Z77: 54 | AA77: 278 | AB77: 260 | AC77: 237 | AD77: 198 | AE77: 176 | AF77: 161 | AG77: 132 | AH77: 159 | AI77: 117 | AJ77: 80 | AK77: 75 | AL77: 69 | AM77: 33 | AN77: 42 | AO77: 0 | AP77: 10 | AQ77: 10 | AR77: 35 | AS77: 1,501 | AT77: 126 | AU77: 149 | AV77: 669 | AW77: 51 | AZ77: 2,945 | BA77: 462 | BB77: 350 | BC77: 654 | BD77: 1,063 | BE77: 416
A78: 040506 | B78: AREQUIPA | C78: AREQUIPA | D78: CAYLLOMA | E78: COPORAQUE | F78: 1,554 | G78: 18 | H78: 11 | I78: 10 | J78: 6 | K78: 9 | L78: 9 | M78: 15 | N78: 16 | O78: 16 | P78: 16 | Q78: 16 | R78: 13 | S78: 19 | T78: 16 | U78: 13 | V78: 19 | W78: 19 | X78: 18 | Y78: 18 | Z78: 16 | AA78: 83 | AB78: 77 | AC78: 71 | AD78: 59 | AE78: 52 | AF78: 48 | AG78: 39 | AH78: 47 | AI78: 35 | AJ78: 24 | AK78: 22 | AL78: 20 | AM78: 10 | AN78: 12 | AO78: 0 | AP78: 3 | AQ78: 3 | AR78: 10 | AS78: 446 | AT78: 38 | AU78: 44 | AV78: 199 | AW78: 15 | AZ78: 875 | BA78: 137 | BB78: 104 | BC78: 194 | BD78: 316 | BE78: 124
A79: 040507 | B79: AREQUIPA | C79: AREQUIPA | D79: CAYLLOMA | E79: HUAMBO | F79: 964 | G79: 10 | H79: 9 | I79: 5 | J79: 9 | K79: 7 | L79: 7 | M79: 9 | N79: 9 | O79: 2 | P79: 4 | Q79: 13 | R79: 9 | S79: 8 | T79: 8 | U79: 13 | V79: 12 | W79: 21 | X79: 21 | Y79: 11 | Z79: 6 | AA79: 56 | AB79: 60 | AC79: 56 | AD79: 45 | AE79: 58 | AF79: 49 | AG79: 66 | AH79: 73 | AI79: 52 | AJ79: 84 | AK79: 50 | AL79: 41 | AM79: 42 | AN79: 39 | AO79: 0 | AP79: 7 | AQ79: 3 | AR79: 14 | AS79: 523 | AT79: 32 | AU79: 44 | AV79: 165 | AW79: 20 | AZ79: 964 | BA79: 93 | BB79: 83 | BC79: 133 | BD79: 347 | BE79: 308
A80: 040508 | B80: AREQUIPA | C80: AREQUIPA | D80: CAYLLOMA | E80: HUANCA | F80: 1,499 | G80: 19 | H80: 12 | I80: =ROUND(I$79*$H80/100,0) -> 1 | J80: =ROUND(J$79*$H80/100,0) -> 1 | K80: 1 | L80: 1 | M80: 1 | N80: 1 | O80: 0 | P80: 0 | Q80: 2 | R80: 1 | S80: 1 | T80: 1 | U80: 2 | V80: 1 | W80: 3 | X80: 3 | Y80: 1 | Z80: =ROUND(Z$79*$H80/100,0) -> 1 | AA80: 7 | AB80: 7 | AC80: 7 | AD80: 5 | AE80: 7 | AF80: 6 | AG80: 8 | AH80: 9 | AI80: 6 | AJ80: 10 | AK80: 6 | AL80: 5 | AM80: 5 | AN80: 5 | AO80: 0 | AP80: =ROUND(AP$79*$H80/100,0) -> 1 | AQ80: 0 | AR80: 2 | AS80: 63 | AT80: 4 | AU80: 5 | AV80: 20 | AW80: 2 | AZ80: 116 | BA80: 11 | BB80: 10 | BC80: 16 | BD80: 42 | BE80: 37
A81: 040509 | B81: AREQUIPA | C81: AREQUIPA | D81: CAYLLOMA | E81: ICHUPAMPA | F81: 972 | G81: 11 | H81: 5 | I81: =ROUND(I$79*$H81/100,0) -> 0 | J81: 0 | K81: 0 | L81: 0 | M81: 0 | N81: 0 | O81: 0 | P81: 0 | Q81: 1 | R81: 0 | S81: 0 | T81: 0 | U81: 1 | V81: 1 | W81: 1 | X81: 1 | Y81: 1 | Z81: 0 | AA81: 3 | AB81: 3 | AC81: 3 | AD81: 2 | AE81: 3 | AF81: 2 | AG81: 3 | AH81: 4 | AI81: 3 | AJ81: 4 | AK81: 3 | AL81: 2 | AM81: 2 | AN81: 2 | AO81: 0 | AP81: 0 | AQ81: 0 | AR81: 1 | AS81: 26 | AT81: 2 | AU81: 2 | AV81: 8 | AW81: 1 | AZ81: 48 | BA81: 5 | BB81: 4 | BC81: 7 | BD81: 17 | BE81: 15
A82: 040510 | B82: AREQUIPA | C82: AREQUIPA | D82: CAYLLOMA | E82: LARI | F82: 1,338 | G82: 13 | H82: 13 | I82: 14 | J82: 12 | K82: 14 | L82: 10 | M82: 14 | N82: 16 | O82: 7 | P82: 16 | Q82: 21 | R82: 21 | S82: 13 | T82: 23 | U82: 17 | V82: 23 | W82: 24 | X82: 20 | Y82: 25 | Z82: 23 | AA82: 100 | AB82: 110 | AC82: 107 | AD82: 66 | AE82: 86 | AF82: 90 | AG82: 83 | AH82: 82 | AI82: 71 | AJ82: 62 | AK82: 38 | AL82: 35 | AM82: 42 | AN82: 27 | AO82: 2 | AP82: 6 | AQ82: 8 | AR82: 28 | AS82: 714 | AT82: 54 | AU82: 62 | AV82: 286 | AW82: 40 | AZ82: 1,338 | BA82: 171 | BB82: 120 | BC82: 258 | BD82: 514 | BE82: 275
A83: 040511 | B83: AREQUIPA | C83: AREQUIPA | D83: CAYLLOMA | E83: LLUTA | F83: 1,282 | G83: 16 | H83: 14 | I83: =ROUND(I$82*$H83/100,0) -> 2 | J83: =ROUND(J$82*$H83/100,0) -> 2 | K83: 2 | L83: 1 | M83: 2 | N83: 2 | O83: 1 | P83: 2 | Q83: 3 | R83: 3 | S83: 2 | T83: 3 | U83: 2 | V83: 3 | W83: 3 | X83: 3 | Y83: 4 | Z83: =ROUND(Z$82*$H83/100,0) -> 3 | AA83: 14 | AB83: 15 | AC83: 15 | AD83: 9 | AE83: 12 | AF83: 13 | AG83: 12 | AH83: 11 | AI83: 10 | AJ83: 9 | AK83: 5 | AL83: 5 | AM83: 6 | AN83: 4 | AO83: 0 | AP83: =ROUND(AP$82*$H83/100,0) -> 1 | AQ83: 1 | AR83: 4 | AS83: 100 | AT83: 8 | AU83: 9 | AV83: 40 | AW83: 6 | AZ83: 187 | BA83: 24 | BB83: 17 | BC83: 36 | BD83: 72 | BE83: 39
A84: 040512 | B84: AREQUIPA | C84: AREQUIPA | D84: CAYLLOMA | E84: MACA | F84: 1,059 | G84: 7 | H84: 3 | I84: =ROUND(I$82*$H84/100,0) -> 0 | J84: 0 | K84: 0 | L84: 0 | M84: 0 | N84: 0 | O84: 0 | P84: 0 | Q84: 1 | R84: 1 | S84: 0 | T84: 1 | U84: 1 | V84: 1 | W84: 1 | X84: 1 | Y84: 1 | Z84: 1 | AA84: 3 | AB84: 3 | AC84: 3 | AD84: 2 | AE84: 3 | AF84: 3 | AG84: 2 | AH84: 2 | AI84: 2 | AJ84: 2 | AK84: 1 | AL84: 1 | AM84: 1 | AN84: 1 | AO84: 0 | AP84: 0 | AQ84: 0 | AR84: 1 | AS84: 21 | AT84: 2 | AU84: 2 | AV84: 9 | AW84: 1 | AZ84: 40 | BA84: 5 | BB84: 4 | BC84: 8 | BD84: 15 | BE84: 8
A85: 040513 | B85: AREQUIPA | C85: AREQUIPA | D85: CAYLLOMA | E85: MADRIGAL | F85: 935 | G85: 7 | H85: 2 | I85: 0 | J85: 0 | K85: 0 | L85: 0 | M85: 0 | N85: 0 | O85: 0 | P85: 0 | Q85: 0 | R85: 0 | S85: 0 | T85: 0 | U85: 0 | V85: 0 | W85: 0 | X85: 0 | Y85: 1 | Z85: 0 | AA85: 2 | AB85: 2 | AC85: 2 | AD85: 1 | AE85: 2 | AF85: 2 | AG85: 2 | AH85: 2 | AI85: 1 | AJ85: 1 | AK85: 1 | AL85: 1 | AM85: 1 | AN85: 1 | AO85: 0 | AP85: 0 | AQ85: 0 | AR85: 1 | AS85: 14 | AT85: 1 | AU85: 1 | AV85: 6 | AW85: 1 | AZ85: 27 | BA85: 3 | BB85: 2 | BC85: 5 | BD85: 10 | BE85: 6
A86: 040514 | B86: AREQUIPA | C86: AREQUIPA | D86: CAYLLOMA | E86: SAN ANTONIO DE CHUCA | F86: 1,192 | G86: 18 | H86: 11 | I86: 2 | J86: 1 | K86: 2 | L86: 1 | M86: 2 | N86: 2 | O86: 1 | P86: 2 | Q86: 2 | R86: 2 | S86: 1 | T86: 3 | U86: 2 | V86: 3 | W86: 3 | X86: 2 | Y86: 3 | Z86: 3 | AA86: 11 | AB86: 12 | AC86: 12 | AD86: 7 | AE86: 9 | AF86: 10 | AG86: 9 | AH86: 9 | AI86: 8 | AJ86: 7 | AK86: 4 | AL86: 4 | AM86: 5 | AN86: 3 | AO86: 0 | AP86: 1 | AQ86: 1 | AR86: 3 | AS86: 79 | AT86: 6 | AU86: 7 | AV86: 31 | AW86: 4 | AZ86: 147 | BA86: 19 | BB86: 13 | BC86: 28 | BD86: 57 | BE86: 30
A87: 040515 | B87: AREQUIPA | C87: AREQUIPA | D87: CAYLLOMA | E87: SIBAYO | F87: 1,122 | G87: 13 | H87: 11 | I87: 2 | J87: 1 | K87: 2 | L87: 1 | M87: 2 | N87: 2 | O87: 1 | P87: 2 | Q87: 2 | R87: 2 | S87: 1 | T87: 3 | U87: 2 | V87: 3 | W87: 3 | X87: 2 | Y87: 3 | Z87: 3 | AA87: 11 | AB87: 12 | AC87: 12 | AD87: 7 | AE87: 9 | AF87: 10 | AG87: 9 | AH87: 9 | AI87: 8 | AJ87: 7 | AK87: 4 | AL87: 4 | AM87: 5 | AN87: 3 | AO87: 0 | AP87: 1 | AQ87: 1 | AR87: 3 | AS87: 79 | AT87: 6 | AU87: 7 | AV87: 31 | AW87: 4 | AZ87: 147 | BA87: 19 | BB87: 13 | BC87: 28 | BD87: 57 | BE87: 30
A88: 040516 | B88: AREQUIPA | C88: AREQUIPA | D88: CAYLLOMA | E88: TAPAY | F88: 1,044 | G88: 14 | H88: 2 | I88: 0 | J88: 0 | K88: 0 | L88: 0 | M88: 0 | N88: 0 | O88: 0 | P88: 0 | Q88: 0 | R88: 0 | S88: 0 | T88: 0 | U88: 0 | V88: 0 | W88: 0 | X88: 0 | Y88: 1 | Z88: 0 | AA88: 2 | AB88: 2 | AC88: 2 | AD88: 1 | AE88: 2 | AF88: 2 | AG88: 2 | AH88: 2 | AI88: 1 | AJ88: 1 | AK88: 1 | AL88: 1 | AM88: 1 | AN88: 1 | AO88: 0 | AP88: 0 | AQ88: 0 | AR88: 1 | AS88: 14 | AT88: 1 | AU88: 1 | AV88: 6 | AW88: 1 | AZ88: 27 | BA88: 3 | BB88: 2 | BC88: 5 | BD88: 10 | BE88: 6
A89: 040517 | B89: AREQUIPA | C89: AREQUIPA | D89: CAYLLOMA | E89: TISCO | F89: 2,192 | G89: 12 | H89: 12 | I89: 2 | J89: 1 | K89: 2 | L89: 1 | M89: 2 | N89: 2 | O89: 1 | P89: 2 | Q89: 3 | R89: 3 | S89: 2 | T89: 3 | U89: 2 | V89: 3 | W89: 3 | X89: 2 | Y89: 3 | Z89: 3 | AA89: 12 | AB89: 13 | AC89: 13 | AD89: 8 | AE89: 10 | AF89: 11 | AG89: 10 | AH89: 10 | AI89: 9 | AJ89: 7 | AK89: 5 | AL89: 4 | AM89: 5 | AN89: 3 | AO89: 0 | AP89: 1 | AQ89: 1 | AR89: 3 | AS89: 86 | AT89: 6 | AU89: 7 | AV89: 34 | AW89: 5 | AZ89: 161 | BA89: 21 | BB89: 14 | BC89: 31 | BD89: 62 | BE89: 33
A90: 040518 | B90: AREQUIPA | C90: AREQUIPA | D90: CAYLLOMA | E90: TUTI | F90: 1,093 | G90: 10 | H90: 10 | I90: 1 | J90: 1 | K90: 1 | L90: 1 | M90: 1 | N90: 2 | O90: 1 | P90: 2 | Q90: 2 | R90: 2 | S90: 1 | T90: 2 | U90: 2 | V90: 2 | W90: 2 | X90: 2 | Y90: 3 | Z90: 2 | AA90: 10 | AB90: 11 | AC90: 11 | AD90: 7 | AE90: 9 | AF90: 9 | AG90: 8 | AH90: 8 | AI90: 7 | AJ90: 6 | AK90: 4 | AL90: 4 | AM90: 4 | AN90: 3 | AO90: 0 | AP90: 1 | AQ90: 1 | AR90: 3 | AS90: 71 | AT90: 5 | AU90: 6 | AV90: 29 | AW90: 4 | AZ90: 134 | BA90: 17 | BB90: 12 | BC90: 26 | BD90: 51 | BE90: 28
A91: 040519 | B91: AREQUIPA | C91: AREQUIPA | D91: CAYLLOMA | E91: YANQUE | F91: 3,145 | G91: 30 | H91: 22 | I91: 3 | J91: 3 | K91: 3 | L91: 2 | M91: 3 | N91: 4 | O91: 2 | P91: 4 | Q91: 5 | R91: 5 | S91: 3 | T91: 5 | U91: 4 | V91: 5 | W91: 5 | X91: 4 | Y91: 6 | Z91: 5 | AA91: 22 | AB91: 24 | AC91: 24 | AD91: 15 | AE91: 19 | AF91: 20 | AG91: 18 | AH91: 18 | AI91: 16 | AJ91: 14 | AK91: 8 | AL91: 8 | AM91: 9 | AN91: 6 | AO91: 0 | AP91: 1 | AQ91: 2 | AR91: 6 | AS91: 157 | AT91: 12 | AU91: 14 | AV91: 63 | AW91: 9 | AZ91: 294 | BA91: 38 | BB91: 26 | BC91: 57 | BD91: 113 | BE91: 61
A92: 040520 | B92: AREQUIPA | C92: AREQUIPA | D92: CAYLLOMA | E92: MAJES | F92: 79,357 | G92: 954 | H92: 985 | I92: 138 | J92: 118 | K92: 138 | L92: 99 | M92: 138 | N92: 158 | O92: 69 | P92: 158 | Q92: 207 | R92: 207 | S92: 128 | T92: 227 | U92: 167 | V92: 227 | W92: 236 | X92: 197 | Y92: 246 | Z92: 227 | AA92: 985 | AB92: 1,084 | AC92: 1,054 | AD92: 650 | AE92: 847 | AF92: 887 | AG92: 818 | AH92: 808 | AI92: 699 | AJ92: 611 | AK92: 374 | AL92: 345 | AM92: 414 | AN92: 266 | AO92: 20 | AP92: 59 | AQ92: 79 | AR92: 276 | AS92: 7,033 | AT92: 532 | AU92: 611 | AV92: 2,817 | AW92: 394 | AZ92: 13,179 | BA92: 1,684 | BB92: 1,182 | BC92: 2,541 | BD92: 5,063 | BE92: 2,709
A93: 040601 | B93: AREQUIPA | C93: AREQUIPA | D93: CONDESUYOS | E93: CHUQUIBAMBA | F93: 3,529 | G93: 40 | H93: 39 | I93: 5 | J93: 5 | K93: 5 | L93: 4 | M93: 5 | N93: 6 | O93: 3 | P93: 6 | Q93: 8 | R93: 8 | S93: 5 | T93: 9 | U93: 7 | V93: 9 | W93: 9 | X93: 8 | Y93: 10 | Z93: 9 | AA93: 39 | AB93: 43 | AC93: 42 | AD93: 26 | AE93: 34 | AF93: 35 | AG93: 32 | AH93: 32 | AI93: 28 | AJ93: 24 | AK93: 15 | AL93: 14 | AM93: 16 | AN93: 11 | AO93: 1 | AP93: 2 | AQ93: 3 | AR93: 11 | AS93: 278 | AT93: 21 | AU93: 24 | AV93: 112 | AW93: 16 | AZ93: 522 | BA93: 67 | BB93: 47 | BC93: 101 | BD93: 200 | BE93: 107
A94: 040602 | B94: AREQUIPA | C94: AREQUIPA | D94: CONDESUYOS | E94: ANDARAY | F94: 752 | G94: 9 | H94: 3 | I94: 0 | J94: 0 | K94: 0 | L94: 0 | M94: 0 | N94: 0 | O94: 0 | P94: 0 | Q94: 1 | R94: 1 | S94: 0 | T94: 1 | U94: 1 | V94: 1 | W94: 1 | X94: 1 | Y94: 1 | Z94: 1 | AA94: 3 | AB94: 3 | AC94: 3 | AD94: 2 | AE94: 3 | AF94: 3 | AG94: 2 | AH94: 2 | AI94: 2 | AJ94: 2 | AK94: 1 | AL94: 1 | AM94: 1 | AN94: 1 | AO94: 0 | AP94: 0 | AQ94: 0 | AR94: 1 | AS94: 21 | AT94: 2 | AU94: 2 | AV94: 9 | AW94: 1 | AZ94: 40 | BA94: 5 | BB94: 4 | BC94: 8 | BD94: 15 | BE94: 8
A95: 040603 | B95: AREQUIPA | C95: AREQUIPA | D95: CONDESUYOS | E95: CAYARANI | F95: 3,322 | G95: 30 | H95: 28 | I95: 4 | J95: 3 | K95: 4 | L95: 3 | M95: 4 | N95: 4 | O95: 2 | P95: 4 | Q95: 6 | R95: 6 | S95: 4 | T95: 6 | U95: 5 | V95: 6 | W95: 7 | X95: 6 | Y95: 7 | Z95: 6 | AA95: 28 | AB95: 31 | AC95: 30 | AD95: 18 | AE95: 24 | AF95: 25 | AG95: 23 | AH95: 23 | AI95: 20 | AJ95: 17 | AK95: 11 | AL95: 10 | AM95: 12 | AN95: 8 | AO95: 1 | AP95: 2 | AQ95: 2 | AR95: 8 | AS95: 200 | AT95: 15 | AU95: 17 | AV95: 80 | AW95: 11 | AZ95: 375 | BA95: 48 | BB95: 34 | BC95: 72 | BD95: 144 | BE95: 77
A96: 040604 | B96: AREQUIPA | C96: AREQUIPA | D96: CONDESUYOS | E96: CHICHAS | F96: 789 | G96: 9 | H96: 5 | I96: 4 | J96: 4 | K96: 2 | L96: 2 | M96: 8 | N96: 7 | O96: 6 | P96: 6 | Q96: 8 | R96: 8 | S96: 11 | T96: 8 | U96: 8 | V96: 9 | W96: 11 | X96: 12 | Y96: 5 | Z96: 11 | AA96: 32 | AB96: 38 | AC96: 40 | AD96: 35 | AE96: 34 | AF96: 50 | AG96: 61 | AH96: 62 | AI96: 49 | AJ96: 58 | AK96: 38 | AL96: 48 | AM96: 38 | AN96: 62 | AO96: 0 | AP96: 6 | AQ96: 3 | AR96: 20 | AS96: 433 | AT96: 25 | AU96: 27 | AV96: 121 | AW96: 18 | AZ96: 789 | BA96: 69 | BB96: 59 | BC96: 86 | BD96: 282 | BE96: 293
A97: 040605 | B97: AREQUIPA | C97: AREQUIPA | D97: CONDESUYOS | E97: IRAY | F97: 769 | G97: 12 | H97: 7 | I97: =ROUND(I$96*$H97/100,0) -> 0 | J97: =ROUND(J$96*$H97/100,0) -> 0 | K97: 0 | L97: 0 | M97: 1 | N97: 0 | O97: 0 | P97: 0 | Q97: 1 | R97: 1 | S97: 1 | T97: 1 | U97: 1 | V97: 1 | W97: 1 | X97: 1 | Y97: 0 | Z97: =ROUND(Z$96*$H97/100,0) -> 1 | AA97: 2 | AB97: 3 | AC97: 3 | AD97: 2 | AE97: 2 | AF97: 4 | AG97: 4 | AH97: 4 | AI97: 3 | AJ97: 4 | AK97: 3 | AL97: 3 | AM97: 3 | AN97: 4 | AO97: 0 | AP97: =ROUND(AP$96*$H97/100,0) -> 0 | AQ97: 0 | AR97: 1 | AS97: 30 | AT97: 2 | AU97: 2 | AV97: 8 | AW97: 1 | AZ97: 55 | BA97: 5 | BB97: 4 | BC97: 6 | BD97: 20 | BE97: 21
A98: 040606 | B98: AREQUIPA | C98: AREQUIPA | D98: CONDESUYOS | E98: RIO GRANDE | F98: 4,049 | G98: 65 | H98: 79 | I98: =ROUND(I$96*$H98/100,0) -> 3 | J98: 3 | K98: 2 | L98: 2 | M98: 6 | N98: 6 | O98: 5 | P98: 5 | Q98: 6 | R98: 6 | S98: 9 | T98: 6 | U98: 6 | V98: 7 | W98: 9 | X98: 9 | Y98: 4 | Z98: 9 | AA98: 25 | AB98: 30 | AC98: 32 | AD98: 28 | AE98: 27 | AF98: 40 | AG98: 48 | AH98: 49 | AI98: 39 | AJ98: 46 | AK98: 30 | AL98: 38 | AM98: 30 | AN98: 49 | AO98: 0 | AP98: 5 | AQ98: 2 | AR98: 16 | AS98: 342 | AT98: 20 | AU98: 21 | AV98: 96 | AW98: 14 | AZ98: 623 | BA98: 55 | BB98: 47 | BC98: 68 | BD98: 223 | BE98: 231
A99: 040607 | B99: AREQUIPA | C99: AREQUIPA | D99: CONDESUYOS | E99: SALAMANCA | F99: 486 | G99: 7 | H99: 6 | I99: 4 | J99: 6 | K99: 4 | L99: 4 | M99: 4 | N99: 3 | O99: 5 | P99: 3 | Q99: 5 | R99: 5 | S99: 5 | T99: 5 | U99: 2 | V99: 4 | W99: 7 | X99: 8 | Y99: 5 | Z99: 6 | AA99: 29 | AB99: 23 | AC99: 24 | AD99: 24 | AE99: 25 | AF99: 29 | AG99: 34 | AH99: 37 | AI99: 28 | AJ99: 31 | AK99: 28 | AL99: 28 | AM99: 27 | AN99: 21 | AO99: 0 | AP99: 3 | AQ99: 4 | AR99: 9 | AS99: 253 | AT99: 9 | AU99: 15 | AV99: 69 | AW99: 15 | AZ99: 486 | BA99: 56 | BB99: 31 | BC99: 63 | BD99: 173 | BE99: 163
A100: 040608 | B100: AREQUIPA | C100: AREQUIPA | D100: CONDESUYOS | E100: YANAQUIHUA | F100: 4,257 | G100: 52 | H100: 46 | I100: =ROUND(I$99*$H100/100,0) -> 2 | J100: =ROUND(J$99*$H100/100,0) -> 3 | K100: 2 | L100: 2 | M100: 2 | N100: 1 | O100: 2 | P100: 1 | Q100: 2 | R100: 2 | S100: 2 | T100: 2 | U100: 1 | V100: 2 | W100: 3 | X100: 4 | Y100: 2 | Z100: 3 | AA100: 13 | AB100: 11 | AC100: 11 | AD100: 11 | AE100: 12 | AF100: 13 | AG100: 16 | AH100: 17 | AI100: 13 | AJ100: 14 | AK100: 13 | AL100: 13 | AM100: 12 | AN100: 10 | AO100: 0 | AP100: 1 | AQ100: 2 | AR100: 4 | AS100: 116 | AT100: 4 | AU100: 7 | AV100: 32 | AW100: 7 | AZ100: 224 | BA100: 26 | BB100: 14 | BC100: 29 | BD100: 80 | BE100: 75
A101: 040701 | B101: AREQUIPA | C101: AREQUIPA | D101: ISLAY | E101: MOLLENDO | F101: 28,553 | G101: 243 | H101: 227 | I101: 293 | J101: 317 | K101: 319 | L101: 378 | M101: 379 | N101: 428 | O101: 386 | P101: 389 | Q101: 332 | R101: 347 | S101: 382 | T101: 353 | U101: 386 | V101: 395 | W101: 429 | X101: 403 | Y101: 409 | Z101: 403 | AA101: 1,909 | AB101: 2,009 | AC101: 1,905 | AD101: 1,813 | AE101: 2,009 | AF101: 2,045 | AG101: 1,877 | AH101: 1,771 | AI101: 1,576 | AJ101: 1,309 | AK101: 1,163 | AL101: 864 | AM101: 600 | AN101: 505 | AO101: 13 | AP101: 127 | AQ101: 116 | AR101: 391 | AS101: 14,649 | AT101: 928 | AU101: 1,054 | AV101: 6,041 | AW101: 583 | AZ101: 28,553 | BA101: 4,038 | BB101: 2,348 | BC101: 4,730 | BD101: 11,420 | BE101: 6,017
A102: 040702 | B102: AREQUIPA | C102: AREQUIPA | D102: ISLAY | E102: COCACHACRA | F102: 9,274 | G102: 102 | H102: 99 | I102: =ROUND(I$101*$H102/100,0) -> 290 | J102: =ROUND(J$101*$H102/100,0) -> 314 | K102: 316 | L102: 374 | M102: 375 | N102: 424 | O102: 382 | P102: 385 | Q102: 329 | R102: 344 | S102: 378 | T102: 349 | U102: 382 | V102: 391 | W102: 425 | X102: 399 | Y102: 405 | Z102: 399 | AA102: 1,890 | AB102: 1,989 | AC102: 1,886 | AD102: 1,795 | AE102: 1,989 | AF102: 2,025 | AG102: 1,858 | AH102: 1,753 | AI102: 1,560 | AJ102: 1,296 | AK102: 1,151 | AL102: 855 | AM102: 594 | AN102: 500 | AO102: 13 | AP102: 126 | AQ102: 115 | AR102: 387 | AS102: 14,503 | AT102: 919 | AU102: 1,043 | AV102: 5,981 | AW102: 577 | AZ102: 28,267 | BA102: 3,998 | BB102: 2,325 | BC102: 4,683 | BD102: 11,306 | BE102: 5,957
A103: 040703 | B103: AREQUIPA | C103: AREQUIPA | D103: ISLAY | E103: DEAN VALDIVIA | F103: 7,834 | G103: 85 | H103: 85 | I103: 93 | J103: 100 | K103: 104 | L103: 83 | M103: 114 | N103: 106 | O103: 93 | P103: 107 | Q103: 82 | R103: 85 | S103: 122 | T103: 83 | U103: 96 | V103: 120 | W103: 133 | X103: 104 | Y103: 110 | Z103: 112 | AA103: 570 | AB103: 647 | AC103: 668 | AD103: 550 | AE103: 576 | AF103: 513 | AG103: 467 | AH103: 461 | AI103: 389 | AJ103: 310 | AK103: 239 | AL103: 168 | AM103: 123 | AN103: 136 | AO103: 1 | AP103: 46 | AQ103: 39 | AR103: 152 | AS103: 4,039 | AT103: 235 | AU103: 301 | AV103: 1,827 | AW103: 206 | AZ103: 7,834 | BA103: 1,137 | BB103: 658 | BC103: 1,439 | BD103: 3,235 | BE103: 1,365
A104: 040704 | B104: AREQUIPA | C104: AREQUIPA | D104: ISLAY | E104: ISLAY | F104: 5,490 | G104: 80 | H104: 79 | I104: =ROUND(I$103*$H104/100,0) -> 73 | J104: =ROUND(J$103*$H104/100,0) -> 79 | K104: 82 | L104: 66 | M104: 90 | N104: 84 | O104: 73 | P104: 85 | Q104: 65 | R104: 67 | S104: 96 | T104: 66 | U104: 76 | V104: 95 | W104: 105 | X104: 82 | Y104: 87 | Z104: 88 | AA104: 450 | AB104: 511 | AC104: 528 | AD104: 435 | AE104: 455 | AF104: 405 | AG104: 369 | AH104: 364 | AI104: 307 | AJ104: 245 | AK104: 189 | AL104: 133 | AM104: 97 | AN104: 107 | AO104: 1 | AP104: 36 | AQ104: 31 | AR104: 120 | AS104: 3,191 | AT104: 186 | AU104: 238 | AV104: 1,443 | AW104: 163 | AZ104: 6,189 | BA104: 898 | BB104: 520 | BC104: 1,137 | BD104: 2,556 | BE104: 1,078
A105: 040705 | B105: AREQUIPA | C105: AREQUIPA | D105: ISLAY | E105: MEJIA | F105: 1,480 | G105: 12 | H105: 7 | I105: 16 | J105: 16 | K105: 16 | L105: 12 | M105: 13 | N105: 15 | O105: 14 | P105: 16 | Q105: 22 | R105: 11 | S105: 9 | T105: 13 | U105: 14 | V105: 8 | W105: 11 | X105: 12 | Y105: 16 | Z105: 17 | AA105: 95 | AB105: 99 | AC105: 99 | AD105: 108 | AE105: 116 | AF105: 95 | AG105: 109 | AH105: 119 | AI105: 123 | AJ105: 68 | AK105: 70 | AL105: 44 | AM105: 35 | AN105: 30 | AO105: 0 | AP105: 8 | AQ105: 5 | AR105: 28 | AS105: 803 | AT105: 38 | AU105: 27 | AV105: 352 | AW105: 42 | AZ105: 1,480 | BA105: 170 | BB105: 67 | BC105: 227 | BD105: 646 | BE105: 370
A106: 040706 | B106: AREQUIPA | C106: AREQUIPA | D106: ISLAY | E106: PUNTA DE BOMBON | F106: 7,210 | G106: 76 | H106: 73 | I106: =ROUND(I$105*$H106/100,0) -> 12 | J106: =ROUND(J$105*$H106/100,0) -> 12 | K106: 12 | L106: 9 | M106: 9 | N106: 11 | O106: 10 | P106: 12 | Q106: 16 | R106: 8 | S106: 7 | T106: 9 | U106: 10 | V106: 6 | W106: 8 | X106: 9 | Y106: 12 | Z106: =ROUND(Z$105*$H106/100,0) -> 12 | AA106: 69 | AB106: 72 | AC106: 72 | AD106: 79 | AE106: 85 | AF106: 69 | AG106: 80 | AH106: 87 | AI106: 90 | AJ106: 50 | AK106: 51 | AL106: 32 | AM106: 26 | AN106: 22 | AO106: 0 | AP106: =ROUND(AP$105*$H106/100,0) -> 6 | AQ106: 4 | AR106: 20 | AS106: 586 | AT106: 28 | AU106: 20 | AV106: 257 | AW106: 31 | AZ106: 1,080 | BA106: 124 | BB106: 49 | BC106: 166 | BD106: 472 | BE106: 270
A107: 040801 | B107: AREQUIPA | C107: AREQUIPA | D107: LA UNION | E107: COTAHUASI | F107: 3,104 | G107: 44 | H107: 32 | I107: =ROUND(I$105*$H107/100,0) -> 5 | J107: 5 | K107: 5 | L107: 4 | M107: 4 | N107: 5 | O107: 4 | P107: 5 | Q107: 7 | R107: 4 | S107: 3 | T107: 4 | U107: 4 | V107: 3 | W107: 4 | X107: 4 | Y107: 5 | Z107: 5 | AA107: 30 | AB107: 32 | AC107: 32 | AD107: 35 | AE107: 37 | AF107: 30 | AG107: 35 | AH107: 38 | AI107: 39 | AJ107: 22 | AK107: 22 | AL107: 14 | AM107: 11 | AN107: 10 | AO107: 0 | AP107: 3 | AQ107: 2 | AR107: 9 | AS107: 257 | AT107: 12 | AU107: 9 | AV107: 113 | AW107: 13 | AZ107: 474 | BA107: 54 | BB107: 21 | BC107: 73 | BD107: 207 | BE107: 118
A108: 040802 | B108: AREQUIPA | C108: AREQUIPA | D108: LA UNION | E108: ALCA | F108: 1,844 | G108: 37 | H108: 23 | I108: 27 | J108: 34 | K108: 27 | L108: 22 | M108: 26 | N108: 33 | O108: 35 | P108: 33 | Q108: 29 | R108: 30 | S108: 18 | T108: 20 | U108: 29 | V108: 35 | W108: 35 | X108: 42 | Y108: 41 | Z108: 34 | AA108: 148 | AB108: 112 | AC108: 104 | AD108: 87 | AE108: 86 | AF108: 99 | AG108: 102 | AH108: 111 | AI108: 94 | AJ108: 76 | AK108: 57 | AL108: 65 | AM108: 46 | AN108: 47 | AO108: 0 | AP108: 20 | AQ108: 17 | AR108: 49 | AS108: 939 | AT108: 70 | AU108: 103 | AV108: 308 | AW108: 61 | AZ108: 1,844 | BA108: 356 | BB108: 179 | BC108: 335 | BD108: 589 | BE108: 385
A109: 040803 | B109: AREQUIPA | C109: AREQUIPA | D109: LA UNION | E109: CHARCANA | F109: 703 | G109: 10 | H109: 7 | I109: =ROUND(I$108*$H109/100,0) -> 2 | J109: =ROUND(J$108*$H109/100,0) -> 2 | K109: 2 | L109: 2 | M109: 2 | N109: 2 | O109: 2 | P109: 2 | Q109: 2 | R109: 2 | S109: 1 | T109: 1 | U109: 2 | V109: 2 | W109: 2 | X109: 3 | Y109: 3 | Z109: 2 | AA109: 10 | AB109: 8 | AC109: 7 | AD109: 6 | AE109: 6 | AF109: 7 | AG109: 7 | AH109: 8 | AI109: 7 | AJ109: 5 | AK109: 4 | AL109: 5 | AM109: 3 | AN109: 3 | AO109: 0 | AP109: 1 | AQ109: 1 | AR109: 3 | AS109: 66 | AT109: 5 | AU109: 7 | AV109: 22 | AW109: 4 | AZ109: 129 | BA109: 25 | BB109: 13 | BC109: 23 | BD109: 41 | BE109: 27
A110: 040804 | B110: AREQUIPA | C110: AREQUIPA | D110: LA UNION | E110: HUAYNACOTAS | F110: 2,112 | G110: 39 | H110: 35 | I110: 29 | J110: 39 | K110: 34 | L110: 23 | M110: 40 | N110: 33 | O110: 37 | P110: 36 | Q110: 30 | R110: 44 | S110: 34 | T110: 34 | U110: 32 | V110: 43 | W110: 45 | X110: 46 | Y110: 39 | Z110: 35 | AA110: 183 | AB110: 143 | AC110: 102 | AD110: 97 | AE110: 120 | AF110: 127 | AG110: 120 | AH110: 121 | AI110: 80 | AJ110: 82 | AK110: 65 | AL110: 52 | AM110: 40 | AN110: 53 | AO110: 0 | AP110: 21 | AQ110: 19 | AR110: 82 | AS110: 1,094 | AT110: 87 | AU110: 108 | AV110: 392 | AW110: 112 | AZ110: 2,112 | BA110: 419 | BB110: 234 | BC110: 400 | BD110: 687 | BE110: 372
A111: 040805 | B111: AREQUIPA | C111: AREQUIPA | D111: LA UNION | E111: PAMPAMARCA | F111: 1,581 | G111: 371 | H111: 80 | I111: =ROUND(I$110*$H111/100,0) -> 23 | J111: =ROUND(J$110*$H111/100,0) -> 31 | K111: 27 | L111: 18 | M111: 32 | N111: 26 | O111: 30 | P111: 29 | Q111: 24 | R111: 35 | S111: 27 | T111: 27 | U111: 26 | V111: 34 | W111: 36 | X111: 37 | Y111: 31 | Z111: =ROUND(Z$110*$H111/100,0) -> 28 | AA111: 146 | AB111: 114 | AC111: 82 | AD111: 78 | AE111: 96 | AF111: 102 | AG111: 96 | AH111: 97 | AI111: 64 | AJ111: 66 | AK111: 52 | AL111: 42 | AM111: 32 | AN111: 42 | AO111: 0 | AP111: =ROUND(AP$110*$H111/100,0) -> 17 | AQ111: 15 | AR111: 66 | AS111: 875 | AT111: 70 | AU111: 86 | AV111: 314 | AW111: 90 | AZ111: 1,690 | BA111: 335 | BB111: 187 | BC111: 320 | BD111: 550 | BE111: 298
A112: 040806 | B112: AREQUIPA | C112: AREQUIPA | D112: LA UNION | E112: PUYCA | F112: 2,549 | G112: 28 | H112: 21 | I112: =ROUND(I$110*$H112/100,0) -> 6 | J112: 8 | K112: 7 | L112: 5 | M112: 8 | N112: 7 | O112: 8 | P112: 8 | Q112: 6 | R112: 9 | S112: 7 | T112: 7 | U112: 7 | V112: 9 | W112: 9 | X112: 10 | Y112: 8 | Z112: 7 | AA112: 38 | AB112: 30 | AC112: 21 | AD112: 20 | AE112: 25 | AF112: 27 | AG112: 25 | AH112: 25 | AI112: 17 | AJ112: 17 | AK112: 14 | AL112: 11 | AM112: 8 | AN112: 11 | AO112: 0 | AP112: 4 | AQ112: 4 | AR112: 17 | AS112: 230 | AT112: 18 | AU112: 23 | AV112: 82 | AW112: 24 | AZ112: 444 | BA112: 88 | BB112: 49 | BC112: 84 | BD112: 144 | BE112: 78
A113: 040807 | B113: AREQUIPA | C113: AREQUIPA | D113: LA UNION | E113: QUECHUALLA | F113: 433 | G113: 3 | H113: 1 | I113: 1 | J113: 0 | K113: 2 | L113: 3 | M113: 2 | N113: 2 | O113: 5 | P113: 4 | Q113: 1 | R113: 1 | S113: 1 | T113: 1 | U113: 1 | V113: 2 | W113: 2 | X113: 2 | Y113: 5 | Z113: 2 | AA113: 10 | AB113: 29 | AC113: 45 | AD113: 33 | AE113: 27 | AF113: 31 | AG113: 27 | AH113: 41 | AI113: 40 | AJ113: 37 | AK113: 20 | AL113: 19 | AM113: 14 | AN113: 19 | AO113: 0 | AP113: 0 | AQ113: 3 | AR113: 5 | AS113: 220 | AT113: 4 | AU113: 8 | AV113: 90 | AW113: 17 | AZ113: 433 | BA113: 25 | BB113: 9 | BC113: 46 | BD113: 204 | BE113: 149
A114: 040808 | B114: AREQUIPA | C114: AREQUIPA | D114: LA UNION | E114: SAYLA | F114: 351 | G114: 16 | H114: 10 | I114: =ROUND(I$113*$H114/100,0) -> 0 | J114: =ROUND(J$113*$H114/100,0) -> 0 | K114: 0 | L114: 0 | M114: 0 | N114: 0 | O114: 1 | P114: 0 | Q114: 0 | R114: 0 | S114: 0 | T114: 0 | U114: 0 | V114: 0 | W114: 0 | X114: 0 | Y114: 1 | Z114: =ROUND(Z$113*$H114/100,0) -> 0 | AA114: 1 | AB114: 3 | AC114: 5 | AD114: 3 | AE114: 3 | AF114: 3 | AG114: 3 | AH114: 4 | AI114: 4 | AJ114: 4 | AK114: 2 | AL114: 2 | AM114: 1 | AN114: 2 | AO114: 0 | AP114: =ROUND(AP$113*$H114/100,0) -> 0 | AQ114: 0 | AR114: 1 | AS114: 22 | AT114: 0 | AU114: 1 | AV114: 9 | AW114: 2 | AZ114: 43 | BA114: 3 | BB114: 1 | BC114: 5 | BD114: 20 | BE114: 15
A115: 040809 | B115: AREQUIPA | C115: AREQUIPA | D115: LA UNION | E115: TAURIA | F115: 506 | G115: 8 | H115: 2 | I115: =ROUND(I$113*$H115/100,0) -> 0 | J115: 0 | K115: 0 | L115: 0 | M115: 0 | N115: 0 | O115: 0 | P115: 0 | Q115: 0 | R115: 0 | S115: 0 | T115: 0 | U115: 0 | V115: 0 | W115: 0 | X115: 0 | Y115: 0 | Z115: 0 | AA115: 0 | AB115: 1 | AC115: 1 | AD115: 1 | AE115: 1 | AF115: 1 | AG115: 1 | AH115: 1 | AI115: 1 | AJ115: 1 | AK115: 0 | AL115: 0 | AM115: 0 | AN115: 0 | AO115: 0 | AP115: 0 | AQ115: 0 | AR115: 0 | AS115: 4 | AT115: 0 | AU115: 0 | AV115: 2 | AW115: 0 | AZ115: 9 | BA115: 1 | BB115: 0 | BC115: 1 | BD115: 4 | BE115: 3
A116: 040810 | B116: AREQUIPA | C116: AREQUIPA | D116: LA UNION | E116: TOMEPAMPA | F116: 713 | G116: 5 | H116: 3 | I116: 0 | J116: 0 | K116: 0 | L116: 0 | M116: 0 | N116: 0 | O116: 0 | P116: 0 | Q116: 0 | R116: 0 | S116: 0 | T116: 0 | U116: 0 | V116: 0 | W116: 0 | X116: 0 | Y116: 0 | Z116: 0 | AA116: 0 | AB116: 1 | AC116: 1 | AD116: 1 | AE116: 1 | AF116: 1 | AG116: 1 | AH116: 1 | AI116: 1 | AJ116: 1 | AK116: 1 | AL116: 1 | AM116: 0 | AN116: 1 | AO116: 0 | AP116: 0 | AQ116: 0 | AR116: 0 | AS116: 7 | AT116: 0 | AU116: 0 | AV116: 3 | AW116: 1 | AZ116: 13 | BA116: 1 | BB116: 0 | BC116: 1 | BD116: 6 | BE116: 4
A117: 040811 | B117: AREQUIPA | C117: AREQUIPA | D117: LA UNION | E117: TORO | F117: 597 | G117: 9 | H117: 4 | I117: 1 | J117: 4 | K117: 6 | L117: 1 | M117: 4 | N117: 3 | O117: 3 | P117: 8 | Q117: 10 | R117: 3 | S117: 2 | T117: 3 | U117: 8 | V117: 4 | W117: 7 | X117: 11 | Y117: 5 | Z117: 11 | AA117: 31 | AB117: 35 | AC117: 24 | AD117: 30 | AE117: 29 | AF117: 46 | AG117: 46 | AH117: 48 | AI117: 37 | AJ117: 26 | AK117: 26 | AL117: 30 | AM117: 39 | AN117: 43 | AO117: 1 | AP117: 4 | AQ117: 5 | AR117: 13 | AS117: 322 | AT117: 15 | AU117: 21 | AV117: 102 | AW117: 13 | AZ117: 597 | BA117: 56 | BB117: 35 | BC117: 82 | BD117: 223 | BE117: 201
A119: NOTA: LA POBLACION ESTIMADA DE EDADES SIMPLES Y GRUPOS DE EDAD DE DISTRITOS, CORRESPONDEN A CIFRAS REFERENCIALES HASTA OBTENER LAS CIFRAS DE LAS PROYECCIONES DEL INEI
A120: FUENTE: CENSO NACIONAL XI DE POBLACION Y VI DE VIVIENDA 2017/- BOLETIN DEMOGRAFICO Nº 24,37, 39 / RENIEC / Padrón Nominal/ CNV
A121: La población de 0-5 años corresponden al reporte de la poblacion del Padrón Nominal con corte al 31/12/2024, con ajuste en la Edad "0"
A122: OFICINA DE GESTION DE LA INFORMACION - MINISTERIO DE SALUD

Sheet EESS
A4: POBLACION ESTIMADA POR EDADES SIMPLES Y GRUPOS DE EDAD, SEGÚN DEPARTAMENTO, PROVINCIA Y DISTRITO. 2025
A5: * Actualizado con datos INEI
A6: POBLACION 2025 | J6: POBLACION TOTAL, POR EDADS SIMPLES | AD6: POBLACIÓN TOTAL, POR GRUPOS QUINQUEN ALES DE EDAD | AR6: EDADES ESPECIALES | AU6: NACIMIENTOS VIVOS | AV6: POBLACION FEMENINA TOTAL | AW6: POBLACION FEMENINA | AZ6: GESTANTES ESPERADAS
A7: UBIGEO | B7: DIRESA | C7: DEPARTAMENTO | D7: PROVINCIA | E7: DISTRITO | I7: Total | J7: 0 | K7: 1 | L7: 2 | M7: 3 | N7: 4 | O7: 5 | P7: 6 | Q7: 7 | R7: 8 | S7: 9 | T7: 10 | U7: 11 | V7: 12 | W7: 13 | X7: 14 | Y7: 15 | Z7: 16 | AA7: 17 | AB7: 18 | AC7: 19 | AD7: 20-24 | AE7: 25-29 | AF7: 30-34 | AG7: 35-39 | AH7: 40-44 | AI7: 45-49 | AJ7: 50-54 | AK7: 55-59 | AL7: 60-64 | AM7: 65-69 | AN7: 70-74 | AO7: 75-79 | AP7: 80-84 | AQ7: 85-+ | AR7: 28 DIAS | AS7: 0-5 MESES | AT7: 6-11 MESES | AW7: 10 - 14 | AX7: 15- 19 | AY7: 20- 49 | BC7: TOTAL | BD7: NIÑO | BE7: Adolescente | BF7: Joven | BG7: Adulto | BH7: Adulto Mayor
A8: 000000 | B8: PERU | C8: PERU | D8: PERU | E8: PERU | F8: CODIGO IPRESS | G8: NOMBRE ESTABLECIMIENTO | H8: PORCENTAJE | I8: 1,662,314 | J8: 17,311 | K8: 16,375 | L8: 17,666 | M8: 18,060 | N8: 20,947 | O8: 22,286 | P8: 26,285 | Q8: 26,908 | R8: 26,517 | S8: 25,484 | T8: 23,712 | U8: 23,754 | V8: 24,541 | W8: 23,426 | X8: 21,994 | Y8: 25,279 | Z8: 25,532 | AA8: 25,380 | AB8: 24,892 | AC8: 25,050 | AD8: 121,154 | AE8: 135,079 | AF8: 135,250 | AG8: 122,327 | AH8: 120,810 | AI8: 112,551 | AJ8: 99,133 | AK8: 90,674 | AL8: 76,187 | AM8: 60,527 | AN8: 48,773 | AO8: 34,433 | AP8: 21,928 | AQ8: 22,089 | AR8: 661 | AS8: 8,312 | AT8: 9,013 | AU8: 25,876 | AV8: 843,731 | AW8: 58,722 | AX8: 62,903 | AY8: 379,476 | AZ8: 41,624 | BC8: 1,662,314 | BD8: 265,305 | BE8: 146,152 | BF8: 306,175 | BG8: 680,745 | BH8: 263,937
A9: 040101 | B9: AREQUIPA | C9: AREQUIPA | D9: AREQUIPA | E9: AREQUIPA | I9: 60,675 | J9: 561 | K9: 533 | L9: 480 | M9: 534 | N9: 667 | O9: 749 | P9: 635 | Q9: 684 | R9: 684 | S9: 639 | T9: 561 | U9: 581 | V9: 604 | W9: 596 | X9: 615 | Y9: 660 | Z9: 646 | AA9: 639 | AB9: 611 | AC9: 638 | AD9: 3,343 | AE9: 3,607 | AF9: 3,923 | AG9: 3,575 | AH9: 3,925 | AI9: 4,241 | AJ9: 4,384 | AK9: 4,524 | AL9: 4,335 | AM9: 3,642 | AN9: 3,156 | AO9: 2,312 | AP9: 1,621 | AQ9: 1,770 | AR9: 11 | AS9: 264 | AT9: 297 | AU9: 859 | AV9: 30,631 | AW9: 1,400 | AX9: 1,522 | AY9: 11,197 | AZ9: 1,754 | BC9: 60,675 | BD9: 7,308 | BE9: 3,760 | BF9: 8,199 | BG9: 24,572 | BH9: 16,836
F10: 7397 | G10: INSTITUTO REGIONAL DE ENFERMEDADES NEOPLASICAS | H10: 0 | I10: 0 | J10: 0 | K10: 0 | L10: 0 | M10: 0 | N10: 0 | O10: 0 | P10: 0 | Q10: 0 | R10: 0 | S10: 0 | T10: 0 | U10: 0 | V10: 0 | W10: 0 | X10: 0 | Y10: 0 | Z10: 0 | AA10: 0 | AB10: 0 | AC10: 0 | AD10: 0 | AE10: 0 | AF10: 0 | AG10: 0 | AH10: 0 | AI10: 0 | AJ10: 0 | AK10: 0 | AL10: 0 | AM10: 0 | AN10: 0 | AO10: 0 | AP10: 0 | AQ10: 0 | AR10: 0 | AS10: 0 | AT10: 0 | AU10: 0 | AV10: 0 | AW10: 0 | AX10: 0 | AY10: 0 | AZ10: 0 | BC10: 0 | BD10: 0 | BE10: 0 | BF10: 0 | BG10: 0 | BH10: 0
F11: 1232 | G11: HOSPITAL GOYENECHE | H11: 0 | I11: 0 | J11: 0 | K11: 0 | L11: 0 | M11: 0 | N11: 0 | O11: 0 | P11: 0 | Q11: 0 | R11: 0 | S11: 0 | T11: 0 | U11: 0 | V11: 0 | W11: 0 | X11: 0 | Y11: 0 | Z11: 0 | AA11: 0 | AB11: 0 | AC11: 0 | AD11: 0 | AE11: 0 | AF11: 0 | AG11: 0 | AH11: 0 | AI11: 0 | AJ11: 0 | AK11: 0 | AL11: 0 | AM11: 0 | AN11: 0 | AO11: 0 | AP11: 0 | AQ11: 0 | AR11: 0 | AS11: 0 | AT11: 0 | AU11: 0 | AV11: 0 | AW11: 0 | AX11: 0 | AY11: 0 | AZ11: 0 | BC11: 0 | BD11: 0 | BE11: 0 | BF11: 0 | BG11: 0 | BH11: 0
F12: 1231 | G12: HOSPITAL REGIONAL HONORIO DELGADO ESPINOZA | H12: 0 | I12: 0 | J12: 0 | K12: 0 | L12: 0 | M12: 0 | N12: 0 | O12: 0 | P12: 0 | Q12: 0 | R12: 0 | S12: 0 | T12: 0 | U12: 0 | V12: 0 | W12: 0 | X12: 0 | Y12: 0 | Z12: 0 | AA12: 0 | AB12: 0 | AC12: 0 | AD12: 0 | AE12: 0 | AF12: 0 | AG12: 0 | AH12: 0 | AI12: 0 | AJ12: 0 | AK12: 0 | AL12: 0 | AM12: 0 | AN12: 0 | AO12: 0 | AP12: 0 | AQ12: 0 | AR12: 0 | AS12: 0 | AT12: 0 | AU12: 0 | AV12: 0 | AW12: 0 | AX12: 0 | AY12: 0 | AZ12: 0 | BC12: 0 | BD12: 0 | BE12: 0 | BF12: 0 | BG12: 0 | BH12: 0
F13: 1291 | G13: CENTRO DE SALUD ALTO SELVA ALEGRE | H13: 20 | I13: 12,135 | J13: 113 | K13: 105 | L13: 96 | M13: 106 | N13: 135 | O13: 149 | P13: 127 | Q13: 136 | R13: 136 | S13: 127 | T13: 113 | U13: 117 | V13: 120 | W13: 120 | X13: 123 | Y13: 132 | Z13: 130 | AA13: 127 | AB13: 123 | AC13: 126 | AD13: 667 | AE13: 723 | AF13: 783 | AG13: 715 | AH13: 785 | AI13: 849 | AJ13: 876 | AK13: 904 | AL13: 867 | AM13: 730 | AN13: 632 | AO13: 464 | AP13: 325 | AQ13: 354 | AR13: 3 | AS13: 52 | AT13: 61 | AU13: 171 | AV13: 6,127 | AW13: 280 | AX13: 306 | AY13: 2,241 | AZ13: 350 | BC13: 12,135 | BD13: 1,460 | BE13: 752 | BF13: 1,639 | BG13: 4,916 | BH13: 3,368
F14: 1294 | G14: CENTRO DE SALUD MARIANO MELGAR | H14: 20 | I14: 12,135 | J14: 112 | K14: 107 | L14: 96 | M14: 107 | N14: 133 | O14: 150 | P14: 127 | Q14: 137 | R14: 137 | S14: 128 | T14: 112 | U14: 116 | V14: 121 | W14: 119 | X14: 123 | Y14: 132 | Z14: 129 | AA14: 128 | AB14: 122 | AC14: 128 | AD14: 669 | AE14: 721 | AF14: 785 | AG14: 715 | AH14: 785 | AI14: 848 | AJ14: 877 | AK14: 905 | AL14: 867 | AM14: 728 | AN14: 631 | AO14: 462 | AP14: 324 | AQ14: 354 | AR14: 2 | AS14: 53 | AT14: 59 | AU14: 172 | AV14: 6,126 | AW14: 280 | AX14: 304 | AY14: 2,239 | AZ14: 351 | BC14: 12,135 | BD14: 1,462 | BE14: 752 | BF14: 1,640 | BG14: 4,914 | BH14: 3,367
F15: 1293 | G15: CENTRO DE SALUD MIRAFLORES | H15: 20 | I15: 12,135 | J15: 112 | K15: 107 | L15: 96 | M15: 107 | N15: 133 | O15: 150 | P15: 127 | Q15: 137 | R15: 137 | S15: 128 | T15: 112 | U15: 116 | V15: 121 | W15: 119 | X15: 123 | Y15: 132 | Z15: 129 | AA15: 128 | AB15: 122 | AC15: 128 | AD15: 669 | AE15: 721 | AF15: 785 | AG15: 715 | AH15: 785 | AI15: 848 | AJ15: 877 | AK15: 905 | AL15: 867 | AM15: 728 | AN15: 631 | AO15: 462 | AP15: 324 | AQ15: 354 | AR15: 2 | AS15: 53 | AT15: 59 | AU15: 172 | AV15: 6,126 | AW15: 280 | AX15: 304 | AY15: 2,239 | AZ15: 351 | BC15: 12,135 | BD15: 1,462 | BE15: 752 | BF15: 1,640 | BG15: 4,914 | BH15: 3,367
F16: 1233 | G16: CENTRO DE SALUD YANAHUARA | H16: 20 | I16: 12,135 | J16: 112 | K16: 107 | L16: 96 | M16: 107 | N16: 133 | O16: 150 | P16: 127 | Q16: 137 | R16: 137 | S16: 128 | T16: 112 | U16: 116 | V16: 121 | W16: 119 | X16: 123 | Y16: 132 | Z16: 129 | AA16: 128 | AB16: 122 | AC16: 128 | AD16: 669 | AE16: 721 | AF16: 785 | AG16: 715 | AH16: 785 | AI16: 848 | AJ16: 877 | AK16: 905 | AL16: 867 | AM16: 728 | AN16: 631 | AO16: 462 | AP16: 324 | AQ16: 354 | AR16: 2 | AS16: 53 | AT16: 59 | AU16: 172 | AV16: 6,126 | AW16: 280 | AX16: 304 | AY16: 2,239 | AZ16: 351 | BC16: 12,135 | BD16: 1,462 | BE16: 752 | BF16: 1,640 | BG16: 4,914 | BH16: 3,367
F17: 1263 | G17: PUESTO DE SALUD 13 DE ENERO (VRH) | H17: 20 | I17: 12,135 | J17: 112 | K17: 107 | L17: 96 | M17: 107 | N17: 133 | O17: 150 | P17: 127 | Q17: 137 | R17: 137 | S17: 128 | T17: 112 | U17: 116 | V17: 121 | W17: 119 | X17: 123 | Y17: 132 | Z17: 129 | AA17: 128 | AB17: 122 | AC17: 128 | AD17: 669 | AE17: 721 | AF17: 785 | AG17: 715 | AH17: 785 | AI17: 848 | AJ17: 877 | AK17: 905 | AL17: 867 | AM17: 728 | AN17: 631 | AO17: 462 | AP17: 324 | AQ17: 354 | AR17: 2 | AS17: 53 | AT17: 59 | AU17: 172 | AV17: 6,126 | AW17: 280 | AX17: 304 | AY17: 2,239 | AZ17: 351 | BC17: 12,135 | BD17: 1,462 | BE17: 752 | BF17: 1,640 | BG17: 4,914 | BH17: 3,367
A18: 040102 | B18: AREQUIPA | C18: AREQUIPA | D18: AREQUIPA | E18: ALTO SELVA ALEGRE | I18: 96,431 | J18: 914 | K18: 910 | L18: 894 | M18: 1,042 | N18: 1,312 | O18: 1,329 | P18: 1,513 | Q18: 1,571 | R18: 1,551 | S18: 1,476 | T18: 1,328 | U18: 1,371 | V18: 1,410 | W18: 1,396 | X18: 1,289 | Y18: 1,362 | Z18: 1,431 | AA18: 1,397 | AB18: 1,318 | AC18: 1,466 | AD18: 7,375 | AE18: 8,682 | AF18: 8,480 | AG18: 7,119 | AH18: 6,809 | AI18: 6,135 | AJ18: 5,669 | AK18: 5,394 | AL18: 4,746 | AM18: 3,404 | AN18: 2,455 | AO18: 1,620 | AP18: 1,075 | AQ18: 1,188 | AR18: 31 | AS18: 437 | AT18: 477 | AU18: 1,229 | AV18: 48,865 | AW18: 3,290 | AX18: 3,377 | AY18: 22,546 | AZ18: 2,417 | BC18: 96,431 | BD18: 15,211 | BE18: 8,285 | BF18: 18,841 | BG18: 39,606 | BH18: 14,488
F19: 1291 | G19: CENTRO DE SALUD ALTO SELVA ALEGRE | H19: 28 | I19: 27,001 | J19: 256 | K19: 255 | L19: 250 | M19: 292 | N19: 367 | O19: 372 | P19: 424 | Q19: 440 | R19: 434 | S19: 413 | T19: 372 | U19: 384 | V19: 395 | W19: 391 | X19: 361 | Y19: 381 | Z19: 401 | AA19: 391 | AB19: 369 | AC19: 410 | AD19: 2,065 | AE19: 2,431 | AF19: 2,374 | AG19: 1,993 | AH19: 1,907 | AI19: 1,718 | AJ19: 1,587 | AK19: 1,510 | AL19: 1,329 | AM19: 953 | AN19: 687 | AO19: 454 | AP19: 301 | AQ19: 333 | AR19: 9 | AS19: 122 | AT19: 134 | AU19: 344 | AV19: 13,682 | AW19: 921 | AX19: 946 | AY19: 6,313 | AZ19: 677 | BC19: 27,001 | BD19: 4,259 | BE19: 2,320 | BF19: 5,275 | BG19: 11,090 | BH19: 4,057
F20: 1300 | G20: APURIMAC | H20: 11 | I20: 10,607 | J20: 101 | K20: 100 | L20: 98 | M20: 115 | N20: 144 | O20: 146 | P20: 166 | Q20: 173 | R20: 171 | S20: 162 | T20: 146 | U20: 151 | V20: 155 | W20: 154 | X20: 142 | Y20: 150 | Z20: 157 | AA20: 154 | AB20: 145 | AC20: 161 | AD20: 811 | AE20: 955 | AF20: 933 | AG20: 783 | AH20: 749 | AI20: 675 | AJ20: 624 | AK20: 593 | AL20: 522 | AM20: 374 | AN20: 270 | AO20: 178 | AP20: 118 | AQ20: 131 | AR20: 3 | AS20: 48 | AT20: 52 | AU20: 135 | AV20: 5,375 | AW20: 362 | AX20: 371 | AY20: 2,480 | AZ20: 266 | BC20: 10,607 | BD20: 1,673 | BE20: 911 | BF20: 2,073 | BG20: 4,357 | BH20: 1,594
F21: 1302 | G21: INDEPENDENCIA | H21: 33 | I21: 31,822 | J21: 301 | K21: 300 | L21: 296 | M21: 343 | N21: 434 | O21: 439 | P21: 499 | Q21: 518 | R21: 511 | S21: 488 | T21: 438 | U21: 452 | V21: 465 | W21: 459 | X21: 425 | Y21: 450 | Z21: 472 | AA21: 460 | AB21: 435 | AC21: 484 | AD21: 2,434 | AE21: 2,865 | AF21: 2,798 | AG21: 2,350 | AH21: 2,246 | AI21: 2,025 | AJ21: 1,871 | AK21: 1,781 | AL21: 1,566 | AM21: 1,125 | AN21: 810 | AO21: 535 | AP21: 355 | AQ21: 391 | AR21: 10 | AS21: 145 | AT21: 158 | AU21: 406 | AV21: 16,125 | AW21: 1,086 | AX21: 1,115 | AY21: 7,440 | AZ21: 797 | BC21: 31,822 | BD21: 5,020 | BE21: 2,734 | BF21: 6,217 | BG21: 13,069 | BH21: 4,780
F22: 1301 | G22: LEONES DEL MISTI | H22: 9 | I22: 8,679 | J22: 82 | K22: 82 | L22: 80 | M22: 94 | N22: 118 | O22: 120 | P22: 136 | Q22: 141 | R22: 140 | S22: 133 | T22: 120 | U22: 123 | V22: 127 | W22: 126 | X22: 116 | Y22: 123 | Z22: 129 | AA22: 126 | AB22: 119 | AC22: 132 | AD22: 664 | AE22: 781 | AF22: 763 | AG22: 641 | AH22: 613 | AI22: 552 | AJ22: 510 | AK22: 485 | AL22: 427 | AM22: 306 | AN22: 221 | AO22: 146 | AP22: 97 | AQ22: 107 | AR22: 3 | AS22: 39 | AT22: 43 | AU22: 111 | AV22: 4,398 | AW22: 296 | AX22: 304 | AY22: 2,029 | AZ22: 218 | BC22: 8,679 | BD22: 1,369 | BE22: 746 | BF22: 1,696 | BG22: 3,565 | BH22: 1,304
F23: 1303 | G23: SAN JUAN BAUTISTA | H23: 7 | I23: 6,750 | J23: 64 | K23: 64 | L23: 63 | M23: 73 | N23: 92 | O23: 93 | P23: 106 | Q23: 110 | R23: 109 | S23: 103 | T23: 93 | U23: 96 | V23: 99 | W23: 98 | X23: 90 | Y23: 95 | Z23: 100 | AA23: 98 | AB23: 92 | AC23: 103 | AD23: 516 | AE23: 608 | AF23: 594 | AG23: 498 | AH23: 477 | AI23: 429 | AJ23: 397 | AK23: 378 | AL23: 332 | AM23: 238 | AN23: 172 | AO23: 113 | AP23: 75 | AQ23: 83 | AR23: 2 | AS23: 31 | AT23: 33 | AU23: 86 | AV23: 3,421 | AW23: 230 | AX23: 236 | AY23: 1,578 | AZ23: 169 | BC23: 6,750 | BD23: 1,065 | BE23: 580 | BF23: 1,319 | BG23: 2,772 | BH23: 1,014
F24: 1304 | G24: HEROES DEL CENEPA | H24: 12 | I24: 11,572 | J24: 110 | K24: 109 | L24: 107 | M24: 125 | N24: 157 | O24: 159 | P24: 182 | Q24: 189 | R24: 186 | S24: 177 | T24: 159 | U24: 165 | V24: 169 | W24: 168 | X24: 155 | Y24: 163 | Z24: 172 | AA24: 168 | AB24: 158 | AC24: 176 | AD24: 885 | AE24: 1,042 | AF24: 1,018 | AG24: 854 | AH24: 817 | AI24: 736 | AJ24: 680 | AK24: 647 | AL24: 570 | AM24: 408 | AN24: 295 | AO24: 194 | AP24: 129 | AQ24: 143 | AR24: 4 | AS24: 52 | AT24: 57 | AU24: 147 | AV24: 5,864 | AW24: 395 | AX24: 405 | AY24: 2,706 | AZ24: 290 | BC24: 11,572 | BD24: 1,825 | BE24: 994 | BF24: 2,261 | BG24: 4,753 | BH24: 1,739
A25: 040103 | B25: AREQUIPA | C25: AREQUIPA | D25: AREQUIPA | E25: CAYMA | I25: 114,695 | J25: 1,104 | K25: 1,180 | L25: 1,385 | M25: 1,271 | N25: 1,454 | O25: 1,676 | P25: 1,999 | Q25: 1,959 | R25: 1,934 | S25: 1,824 | T25: 1,719 | U25: 1,687 | V25: 1,800 | W25: 1,646 | X25: 1,480 | Y25: 1,801 | Z25: 1,618 | AA25: 1,704 | AB25: 1,724 | AC25: 1,686 | AD25: 8,563 | AE25: 9,779 | AF25: 10,331 | AG25: 8,933 | AH25: 8,223 | AI25: 7,371 | AJ25: 6,458 | AK25: 5,869 | AL25: 5,050 | AM25: 3,924 | AN25: 3,038 | AO25: 2,094 | AP25: 1,172 | AQ25: 1,239 | AR25: 48 | AS25: 511 | AT25: 593 | AU25: 1,703 | AV25: 58,434 | AW25: 4,110 | AX25: 4,154 | AY25: 26,975 | AZ25: 2,619 | BC25: 114,695 | BD25: 19,192 | BE25: 10,049 | BF25: 21,752 | BG25: 47,185 | BH25: 16,517
F26: 1234 | G26: CENTRO DE SALUD FRANCISCO BOLOGNESI | H26: 16 | I26: 18,351 | J26: 177 | K26: 189 | L26: 222 | M26: 203 | N26: 233 | O26: 268 | P26: 320 | Q26: 313 | R26: 309 | S26: 292 | T26: 275 | U26: 270 | V26: 288 | W26: 263 | X26: 237 | Y26: 288 | Z26: 259 | AA26: 273 | AB26: 276 | AC26: 270 | AD26: 1,370 | AE26: 1,565 | AF26: 1,653 | AG26: 1,429 | AH26: 1,316 | AI26: 1,179 | AJ26: 1,033 | AK26: 939 | AL26: 808 | AM26: 628 | AN26: 486 | AO26: 335 | AP26: 188 | AQ26: 198 | AR26: 8 | AS26: 82 | AT26: 95 | AU26: 272 | AV26: 9,349 | AW26: 658 | AX26: 665 | AY26: 4,316 | AZ26: 419 | BC26: 18,351 | BD26: 3,071 | BE26: 1,608 | BF26: 3,480 | BG26: 7,550 | BH26: 2,643
F27: 1244 | G27: PUESTO DE SALUD LA TOMILLA | H27: 8 | I27: 9,176 | J27: 88 | K27: 94 | L27: 111 | M27: 102 | N27: 116 | O27: 134 | P27: 160 | Q27: 157 | R27: 155 | S27: 146 | T27: 138 | U27: 135 | V27: 144 | W27: 132 | X27: 118 | Y27: 144 | Z27: 129 | AA27: 136 | AB27: 138 | AC27: 135 | AD27: 685 | AE27: 782 | AF27: 826 | AG27: 715 | AH27: 658 | AI27: 590 | AJ27: 517 | AK27: 470 | AL27: 404 | AM27: 314 | AN27: 243 | AO27: 168 | AP27: 94 | AQ27: 99 | AR27: 4 | AS27: 41 | AT27: 47 | AU27: 136 | AV27: 4,675 | AW27: 329 | AX27: 332 | AY27: 2,158 | AZ27: 210 | BC27: 9,176 | BD27: 1,535 | BE27: 804 | BF27: 1,740 | BG27: 3,775 | BH27: 1,321
F28: 1235 | G28: BUENOS AIRES DE CAYMA | H28: 20 | I28: 22,939 | J28: 220 | K28: 236 | L28: 276 | M28: 254 | N28: 291 | O28: 336 | P28: 399 | Q28: 392 | R28: 387 | S28: 364 | T28: 343 | U28: 338 | V28: 360 | W28: 329 | X28: 296 | Y28: 361 | Z28: 323 | AA28: 340 | AB28: 344 | AC28: 337 | AD28: 1,713 | AE28: 1,955 | AF28: 2,066 | AG28: 1,786 | AH28: 1,644 | AI28: 1,474 | AJ28: 1,291 | AK28: 1,174 | AL28: 1,009 | AM28: 784 | AN28: 607 | AO28: 418 | AP28: 234 | AQ28: 248 | AR28: 9 | AS28: 102 | AT28: 118 | AU28: 341 | AV28: 11,687 | AW28: 821 | AX28: 831 | AY28: 5,395 | AZ28: 523 | BC28: 22,939 | BD28: 3,839 | BE28: 2,010 | BF28: 4,351 | BG28: 9,436 | BH28: 3,303
F29: 1245 | G29: SAN JOSE | H29: 20 | I29: 22,939 | J29: 221 | K29: 236 | L29: 277 | M29: 254 | N29: 291 | O29: 335 | P29: 400 | Q29: 392 | R29: 387 | S29: 365 | T29: 344 | U29: 337 | V29: 360 | W29: 329 | X29: 296 | Y29: 360 | Z29: 324 | AA29: 341 | AB29: 345 | AC29: 337 | AD29: 1,713 | AE29: 1,956 | AF29: 2,066 | AG29: 1,787 | AH29: 1,645 | AI29: 1,474 | AJ29: 1,292 | AK29: 1,174 | AL29: 1,010 | AM29: 785 | AN29: 608 | AO29: 419 | AP29: 234 | AQ29: 248 | AR29: 10 | AS29: 102 | AT29: 119 | AU29: 341 | AV29: 11,687 | AW29: 822 | AX29: 831 | AY29: 5,395 | AZ29: 524 | BC29: 22,939 | BD29: 3,838 | BE29: 2,010 | BF29: 4,350 | BG29: 9,437 | BH29: 3,303
F30: 1246 | G30: DEAN VALDIVIA | H30: 15 | I30: 17,204 | J30: 166 | K30: 177 | L30: 208 | M30: 191 | N30: 218 | O30: 251 | P30: 300 | Q30: 294 | R30: 290 | S30: 274 | T30: 258 | U30: 253 | V30: 270 | W30: 247 | X30: 222 | Y30: 270 | Z30: 243 | AA30: 256 | AB30: 259 | AC30: 253 | AD30: 1,284 | AE30: 1,467 | AF30: 1,550 | AG30: 1,340 | AH30: 1,233 | AI30: 1,106 | AJ30: 969 | AK30: 880 | AL30: 758 | AM30: 589 | AN30: 456 | AO30: 314 | AP30: 176 | AQ30: 186 | AR30: 7 | AS30: 77 | AT30: 89 | AU30: 255 | AV30: 8,765 | AW30: 617 | AX30: 623 | AY30: 4,046 | AZ30: 393 | BC30: 17,204 | BD30: 2,879 | BE30: 1,507 | BF30: 3,263 | BG30: 7,078 | BH30: 2,478
F31: 6890 | G31: PUESTO DE SALUD RAFAEL BELAUNDE | H31: 21 | I31: 24,086 | J31: 232 | K31: 248 | L31: 291 | M31: 267 | N31: 305 | O31: 352 | P31: 420 | Q31: 411 | R31: 406 | S31: 383 | T31: 361 | U31: 354 | V31: 378 | W31: 346 | X31: 311 | Y31: 378 | Z31: 340 | AA31: 358 | AB31: 362 | AC31: 354 | AD31: 1,798 | AE31: 2,054 | AF31: 2,170 | AG31: 1,876 | AH31: 1,727 | AI31: 1,548 | AJ31: 1,356 | AK31: 1,232 | AL31: 1,061 | AM31: 824 | AN31: 638 | AO31: 440 | AP31: 246 | AQ31: 260 | AR31: 10 | AS31: 107 | AT31: 125 | AU31: 358 | AV31: 12,271 | AW31: 863 | AX31: 872 | AY31: 5,665 | AZ31: 550 | BC31: 24,086 | BD31: 4,030 | BE31: 2,110 | BF31: 4,568 | BG31: 9,909 | BH31: 3,469
A32: 040104 | B32: AREQUIPA | C32: AREQUIPA | D32: AREQUIPA | E32: CERRO COLORADO | I32: 232,673 | J32: 2,527 | K32: 2,250 | L32: 2,304 | M32: 2,701 | N32: 3,134 | O32: 3,382 | P32: 4,467 | Q32: 4,593 | R32: 4,529 | S32: 4,327 | T32: 3,913 | U32: 3,730 | V32: 3,894 | W32: 3,610 | X32: 3,300 | Y32: 3,864 | Z32: 3,718 | AA32: 3,841 | AB32: 3,788 | AC32: 3,925 | AD32: 18,886 | AE32: 20,452 | AF32: 20,366 | AG32: 17,960 | AH32: 17,655 | AI32: 15,321 | AJ32: 12,524 | AK32: 10,626 | AL32: 8,050 | AM32: 6,366 | AN32: 5,238 | AO32: 3,353 | AP32: 2,113 | AQ32: 1,966 | AR32: 108 | AS32: 1,273 | AT32: 1,254 | AU32: 3,550 | AV32: 114,090 | AW32: 8,801 | AX32: 9,066 | AY32: 54,673 | AZ32: 6,600 | BC32: 232,673 | BD32: 41,857 | BE32: 22,227 | BF32: 47,051 | BG32: 94,452 | BH32: 27,086
F33: 1236 | G33: CERRO COLORADO | H33: 11 | I33: 25,594 | J33: 278 | K33: 248 | L33: 253 | M33: 297 | N33: 345 | O33: 372 | P33: 491 | Q33: 505 | R33: 498 | S33: 476 | T33: 430 | U33: 410 | V33: 428 | W33: 397 | X33: 363 | Y33: 425 | Z33: 409 | AA33: 423 | AB33: 417 | AC33: 432 | AD33: 2,077 | AE33: 2,250 | AF33: 2,240 | AG33: 1,976 | AH33: 1,942 | AI33: 1,685 | AJ33: 1,378 | AK33: 1,169 | AL33: 886 | AM33: 700 | AN33: 576 | AO33: 369 | AP33: 232 | AQ33: 216 | AR33: 12 | AS33: 140 | AT33: 138 | AU33: 391 | AV33: 12,550 | AW33: 968 | AX33: 997 | AY33: 6,014 | AZ33: 726 | BC33: 25,594 | BD33: 4,604 | BE33: 2,445 | BF33: 5,176 | BG33: 10,390 | BH33: 2,979
F34: 1248 | G34: ALTO LIBERTAD | H34: 9 | I34: 20,941 | J34: 227 | K34: 203 | L34: 207 | M34: 243 | N34: 282 | O34: 304 | P34: 402 | Q34: 413 | R34: 408 | S34: 389 | T34: 352 | U34: 336 | V34: 350 | W34: 325 | X34: 297 | Y34: 348 | Z34: 335 | AA34: 346 | AB34: 341 | AC34: 353 | AD34: 1,700 | AE34: 1,841 | AF34: 1,833 | AG34: 1,616 | AH34: 1,589 | AI34: 1,379 | AJ34: 1,127 | AK34: 956 | AL34: 725 | AM34: 573 | AN34: 471 | AO34: 302 | AP34: 190 | AQ34: 177 | AR34: 10 | AS34: 115 | AT34: 113 | AU34: 320 | AV34: 10,268 | AW34: 792 | AX34: 816 | AY34: 4,921 | AZ34: 594 | BC34: 20,941 | BD34: 3,767 | BE34: 2,000 | BF34: 4,235 | BG34: 8,501 | BH34: 2,438
F35: 1238 | G35: CENTRO DE SALUD MARISCAL CASTILLA | H35: 8 | I35: 18,614 | J35: 202 | K35: 180 | L35: 184 | M35: 216 | N35: 251 | O35: 271 | P35: 357 | Q35: 367 | R35: 362 | S35: 346 | T35: 313 | U35: 298 | V35: 312 | W35: 289 | X35: 264 | Y35: 309 | Z35: 297 | AA35: 307 | AB35: 303 | AC35: 314 | AD35: 1,511 | AE35: 1,636 | AF35: 1,629 | AG35: 1,437 | AH35: 1,412 | AI35: 1,226 | AJ35: 1,002 | AK35: 850 | AL35: 644 | AM35: 509 | AN35: 419 | AO35: 268 | AP35: 169 | AQ35: 157 | AR35: 9 | AS35: 102 | AT35: 100 | AU35: 284 | AV35: 9,127 | AW35: 704 | AX35: 725 | AY35: 4,374 | AZ35: 528 | BC35: 18,614 | BD35: 3,349 | BE35: 1,778 | BF35: 3,764 | BG35: 7,556 | BH35: 2,167
F36: 1249 | G36: CENTRO DE SALUD SEMI RURAL PACHACUTEC | H36: 8 | I36: 18,614 | J36: 202 | K36: 180 | L36: 184 | M36: 216 | N36: 251 | O36: 271 | P36: 357 | Q36: 367 | R36: 362 | S36: 346 | T36: 313 | U36: 298 | V36: 312 | W36: 289 | X36: 264 | Y36: 309 | Z36: 297 | AA36: 307 | AB36: 303 | AC36: 314 | AD36: 1,511 | AE36: 1,636 | AF36: 1,629 | AG36: 1,437 | AH36: 1,412 | AI36: 1,226 | AJ36: 1,002 | AK36: 850 | AL36: 644 | AM36: 509 | AN36: 419 | AO36: 268 | AP36: 169 | AQ36: 157 | AR36: 9 | AS36: 102 | AT36: 100 | AU36: 284 | AV36: 9,127 | AW36: 704 | AX36: 725 | AY36: 4,374 | AZ36: 528 | BC36: 18,614 | BD36: 3,349 | BE36: 1,778 | BF36: 3,764 | BG36: 7,556 | BH36: 2,167
F37: 1250 | G37: PUESTO DE SALUD JOSE SANTOS ATAHUALPA | H37: 3 | I37: 6,980 | J37: 76 | K37: 68 | L37: 69 | M37: 81 | N37: 94 | O37: 101 | P37: 134 | Q37: 138 | R37: 136 | S37: 130 | T37: 117 | U37: 112 | V37: 117 | W37: 108 | X37: 99 | Y37: 116 | Z37: 112 | AA37: 115 | AB37: 114 | AC37: 118 | AD37: 567 | AE37: 614 | AF37: 611 | AG37: 539 | AH37: 530 | AI37: 460 | AJ37: 376 | AK37: 319 | AL37: 242 | AM37: 191 | AN37: 157 | AO37: 101 | AP37: 63 | AQ37: 59 | AR37: 3 | AS37: 38 | AT37: 38 | AU37: 107 | AV37: 3,423 | AW37: 264 | AX37: 272 | AY37: 1,640 | AZ37: 198 | BC37: 6,980 | BD37: 1,256 | BE37: 667 | BF37: 1,412 | BG37: 2,834 | BH37: 813
F38: 1252 | G38: PUESTO DE SALUD EL CURAL | H38: 1 | I38: 2,327 | J38: 25 | K38: 23 | L38: 23 | M38: 27 | N38: 31 | O38: 34 | P38: 45 | Q38: 46 | R38: 45 | S38: 43 | T38: 39 | U38: 37 | V38: 39 | W38: 36 | X38: 33 | Y38: 39 | Z38: 37 | AA38: 38 | AB38: 38 | AC38: 39 | AD38: 189 | AE38: 205 | AF38: 204 | AG38: 180 | AH38: 177 | AI38: 153 | AJ38: 125 | AK38: 106 | AL38: 81 | AM38: 64 | AN38: 52 | AO38: 34 | AP38: 21 | AQ38: 20 | AR38: 1 | AS38: 13 | AT38: 13 | AU38: 36 | AV38: 1,141 | AW38: 88 | AX38: 91 | AY38: 547 | AZ38: 66 | BC38: 2,327 | BD38: 419 | BE38: 222 | BF38: 471 | BG38: 945 | BH38: 271
F39: 1237 | G39: MARITZA CAMPOS DIAZ - ZAMACOLA | H39: 13 | I39: 30,247 | J39: 329 | K39: 293 | L39: 300 | M39: 351 | N39: 407 | O39: 440 | P39: 581 | Q39: 597 | R39: 589 | S39: 563 | T39: 509 | U39: 485 | V39: 506 | W39: 469 | X39: 429 | Y39: 502 | Z39: 483 | AA39: 499 | AB39: 492 | AC39: 510 | AD39: 2,455 | AE39: 2,659 | AF39: 2,648 | AG39: 2,335 | AH39: 2,295 | AI39: 1,992 | AJ39: 1,628 | AK39: 1,381 | AL39: 1,047 | AM39: 828 | AN39: 681 | AO39: 436 | AP39: 275 | AQ39: 256 | AR39: 14 | AS39: 165 | AT39: 163 | AU39: 462 | AV39: 14,832 | AW39: 1,144 | AX39: 1,179 | AY39: 7,107 | AZ39: 858 | BC39: 30,247 | BD39: 5,441 | BE39: 2,890 | BF39: 6,117 | BG39: 12,279 | BH39: 3,521
F40: 1251 | G40: PUESTO DE SALUD NAZARENO | H40: 17 | I40: 39,554 | J40: 430 | K40: 383 | L40: 392 | M40: 459 | N40: 533 | O40: 575 | P40: 759 | Q40: 781 | R40: 770 | S40: 736 | T40: 665 | U40: 634 | V40: 662 | W40: 614 | X40: 561 | Y40: 657 | Z40: 632 | AA40: 653 | AB40: 644 | AC40: 667 | AD40: 3,211 | AE40: 3,477 | AF40: 3,462 | AG40: 3,053 | AH40: 3,001 | AI40: 2,605 | AJ40: 2,129 | AK40: 1,806 | AL40: 1,369 | AM40: 1,082 | AN40: 890 | AO40: 570 | AP40: 359 | AQ40: 334 | AR40: 18 | AS40: 216 | AT40: 213 | AU40: 604 | AV40: 19,395 | AW40: 1,496 | AX40: 1,541 | AY40: 9,294 | AZ40: 1,122 | BC40: 39,554 | BD40: 7,116 | BE40: 3,779 | BF40: 7,999 | BG40: 16,057 | BH40: 4,605
F41: 1247 | G41: PUESTO DE SALUD CIUDAD MUNICIPAL | H41: 19 | I41: 44,208 | J41: 480 | K41: 424 | L41: 439 | M41: 514 | N41: 595 | O41: 642 | P41: 850 | Q41: 874 | R41: 861 | S41: 822 | T41: 745 | U41: 710 | V41: 740 | W41: 686 | X41: 627 | Y41: 734 | Z41: 707 | AA41: 730 | AB41: 719 | AC41: 746 | AD41: 3,588 | AE41: 3,884 | AF41: 3,870 | AG41: 3,411 | AH41: 3,355 | AI41: 2,910 | AJ41: 2,379 | AK41: 2,020 | AL41: 1,526 | AM41: 1,210 | AN41: 997 | AO41: 636 | AP41: 403 | AQ41: 374 | AR41: 20 | AS41: 242 | AT41: 238 | AU41: 671 | AV41: 21,677 | AW41: 1,673 | AX41: 1,723 | AY41: 10,388 | AZ41: 1,254 | BC41: 44,208 | BD41: 7,952 | BE41: 4,223 | BF41: 8,937 | BG41: 17,944 | BH41: 5,146
F42: 11023 | G42: PUESTO DE SALUD PERUARBO | H42: 11 | I42: 25,594 | J42: 278 | K42: 248 | L42: 253 | M42: 297 | N42: 345 | O42: 372 | P42: 491 | Q42: 505 | R42: 498 | S42: 476 | T42: 430 | U42: 410 | V42: 428 | W42: 397 | X42: 363 | Y42: 425 | Z42: 409 | AA42: 423 | AB42: 417 | AC42: 432 | AD42: 2,077 | AE42: 2,250 | AF42: 2,240 | AG42: 1,976 | AH42: 1,942 | AI42: 1,685 | AJ42: 1,378 | AK42: 1,169 | AL42: 886 | AM42: 700 | AN42: 576 | AO42: 369 | AP42: 232 | AQ42: 216 | AR42: 12 | AS42: 140 | AT42: 138 | AU42: 391 | AV42: 12,550 | AW42: 968 | AX42: 997 | AY42: 6,014 | AZ42: 726 | BC42: 25,594 | BD42: 4,604 | BE42: 2,445 | BF42: 5,176 | BG42: 10,390 | BH42: 2,979
A43: 040105 | B43: AREQUIPA | C43: AREQUIPA | D43: AREQUIPA | E43: CHARACATO | I43: 19,480 | J43: 161 | K43: 139 | L43: 194 | M43: 165 | N43: 194 | O43: 214 | P43: 380 | Q43: 338 | R43: 279 | S43: 282 | T43: 294 | U43: 270 | V43: 309 | W43: 266 | X43: 283 | Y43: 291 | Z43: 298 | AA43: 265 | AB43: 294 | AC43: 363 | AD43: 1,475 | AE43: 1,502 | AF43: 1,528 | AG43: 1,501 | AH43: 1,574 | AI43: 1,429 | AJ43: 1,164 | AK43: 1,044 | AL43: 833 | AM43: 708 | AN43: 557 | AO43: 413 | AP43: 259 | AQ43: 214 | AR43: 3 | AS43: 79 | AT43: 82 | AU43: 218 | AV43: 9,806 | AW43: 696 | AX43: 740 | AY43: 4,571 | AZ43: 371 | BC43: 19,480 | BD43: 2,910 | BE43: 1,712 | BF43: 3,634 | BG43: 8,240 | BH43: 2,984
F44: 1261 | G44: CENTRO DE SALUD DE CHARACATO | H44: 100 | I44: 19,480 | J44: 161 | K44: 139 | L44: 194 | M44: 165 | N44: 194 | O44: 214 | P44: 380 | Q44: 338 | R44: 279 | S44: 282 | T44: 294 | U44: 270 | V44: 309 | W44: 266 | X44: 283 | Y44: 291 | Z44: 298 | AA44: 265 | AB44: 294 | AC44: 363 | AD44: 1,475 | AE44: 1,502 | AF44: 1,528 | AG44: 1,501 | AH44: 1,574 | AI44: 1,429 | AJ44: 1,164 | AK44: 1,044 | AL44: 833 | AM44: 708 | AN44: 557 | AO44: 413 | AP44: 259 | AQ44: 214 | AR44: 3 | AS44: 79 | AT44: 82 | AU44: 218 | AV44: 9,806 | AW44: 696 | AX44: 740 | AY44: 4,571 | AZ44: 371 | BC44: 19,480 | BD44: 2,910 | BE44: 1,712 | BF44: 3,634 | BG44: 8,240 | BH44: 2,984
A45: 040106 | B45: AREQUIPA | C45: AREQUIPA | D45: AREQUIPA | E45: CHIGUATA | I45: 3,633 | J45: 49 | K45: 43 | L45: 53 | M45: 54 | N45: 70 | O45: 56 | P45: 48 | Q45: 57 | R45: 53 | S45: 48 | T45: 39 | U45: 59 | V45: 30 | W45: 30 | X45: 50 | Y45: 52 | Z45: 28 | AA45: 45 | AB45: 46 | AC45: 43 | AD45: 240 | AE45: 270 | AF45: 307 | AG45: 267 | AH45: 249 | AI45: 231 | AJ45: 223 | AK45: 205 | AL45: 164 | AM45: 164 | AN45: 142 | AO45: 88 | AP45: 63 | AQ45: 67 | AR45: 4 | AS45: 22 | AT45: 27 | AU45: 86 | AV45: 1,910 | AW45: 105 | AX45: 110 | AY45: 854 | AZ45: 182 | BC45: 3,633 | BD45: 629 | BE45: 235 | BF45: 599 | BG45: 1,482 | BH45: 688
F46: 1299 | G46: CENTRO DE SALUD CHIGUATA | H46: 80 | I46: 2,906 | J46: 39 | K46: 34 | L46: 42 | M46: 43 | N46: 56 | O46: 45 | P46: 38 | Q46: 46 | R46: 42 | S46: 38 | T46: 31 | U46: 47 | V46: 24 | W46: 24 | X46: 40 | Y46: 42 | Z46: 22 | AA46: 36 | AB46: 37 | AC46: 34 | AD46: 192 | AE46: 216 | AF46: 246 | AG46: 214 | AH46: 199 | AI46: 185 | AJ46: 178 | AK46: 164 | AL46: 131 | AM46: 131 | AN46: 114 | AO46: 70 | AP46: 50 | AQ46: 54 | AR46: 3 | AS46: 18 | AT46: 22 | AU46: 69 | AV46: 1,528 | AW46: 84 | AX46: 88 | AY46: 683 | AZ46: 146 | BC46: 2,906 | BD46: 503 | BE46: 188 | BF46: 479 | BG46: 1,186 | BH46: 550
F47: 1320 | G47: PUESTO DE SALUD ARENALES | H47: 20 | I47: 727 | J47: 10 | K47: 9 | L47: 11 | M47: 11 | N47: 14 | O47: 11 | P47: 10 | Q47: 11 | R47: 11 | S47: 10 | T47: 8 | U47: 12 | V47: 6 | W47: 6 | X47: 10 | Y47: 10 | Z47: 6 | AA47: 9 | AB47: 9 | AC47: 9 | AD47: 48 | AE47: 54 | AF47: 61 | AG47: 53 | AH47: 50 | AI47: 46 | AJ47: 45 | AK47: 41 | AL47: 33 | AM47: 33 | AN47: 28 | AO47: 18 | AP47: 13 | AQ47: 13 | AR47: 1 | AS47: 4 | AT47: 5 | AU47: 17 | AV47: 382 | AW47: 21 | AX47: 22 | AY47: 171 | AZ47: 36 | BC47: 727 | BD47: 126 | BE47: 47 | BF47: 120 | BG47: 296 | BH47: 138
A48: 040107 | B48: AREQUIPA | C48: AREQUIPA | D48: AREQUIPA | E48: JACOBO HUNTER | I48: 57,137 | J48: 498 | K48: 509 | L48: 582 | M48: 599 | N48: 707 | O48: 756 | P48: 986 | Q48: 954 | R48: 935 | S48: 917 | T48: 821 | U48: 835 | V48: 847 | W48: 875 | X48: 667 | Y48: 842 | Z48: 878 | AA48: 885 | AB48: 801 | AC48: 807 | AD48: 4,225 | AE48: 4,698 | AF48: 4,542 | AG48: 4,346 | AH48: 4,338 | AI48: 4,005 | AJ48: 3,480 | AK48: 3,103 | AL48: 2,509 | AM48: 2,054 | AN48: 1,599 | AO48: 1,161 | AP48: 687 | AQ48: 689 | AR48: 26 | AS48: 260 | AT48: 238 | AU48: 742 | AV48: 29,155 | AW48: 2,021 | AX48: 2,140 | AY48: 13,178 | AZ48: 1,416 | BC48: 57,137 | BD48: 9,099 | BE48: 4,994 | BF48: 10,531 | BG48: 23,814 | BH48: 8,699
F49: 1259 | G49: CENTRO DE SALUD JAVIER LLOSA GARCIA - HUNTER | H49: 33 | I49: 18,855 | J49: 163 | K49: 168 | L49: 193 | M49: 197 | N49: 232 | O49: 250 | P49: 324 | Q49: 315 | R49: 308 | S49: 301 | T49: 271 | U49: 275 | V49: 279 | W49: 288 | X49: 220 | Y49: 278 | Z49: 290 | AA49: 290 | AB49: 265 | AC49: 265 | AD49: 1,394 | AE49: 1,549 | AF49: 1,499 | AG49: 1,434 | AH49: 1,432 | AI49: 1,322 | AJ49: 1,149 | AK49: 1,026 | AL49: 828 | AM49: 678 | AN49: 527 | AO49: 384 | AP49: 226 | AQ49: 228 | AR49: 9 | AS49: 86 | AT49: 79 | AU49: 245 | AV49: 9,621 | AW49: 667 | AX49: 706 | AY49: 4,349 | AZ49: 468 | BC49: 18,855 | BD49: 3,002 | BE49: 1,649 | BF49: 3,475 | BG49: 7,860 | BH49: 2,870
F50: 1273 | G50: PUESTO DE SALUD DANIEL ALCIDES CARRION | H50: 15 | I50: 8,571 | J50: 75 | K50: 76 | L50: 87 | M50: 90 | N50: 106 | O50: 113 | P50: 148 | Q50: 143 | R50: 140 | S50: 138 | T50: 123 | U50: 125 | V50: 127 | W50: 131 | X50: 100 | Y50: 126 | Z50: 132 | AA50: 133 | AB50: 120 | AC50: 121 | AD50: 634 | AE50: 705 | AF50: 681 | AG50: 652 | AH50: 651 | AI50: 601 | AJ50: 522 | AK50: 465 | AL50: 376 | AM50: 308 | AN50: 240 | AO50: 174 | AP50: 103 | AQ50: 103 | AR50: 4 | AS50: 39 | AT50: 36 | AU50: 111 | AV50: 4,373 | AW50: 303 | AX50: 321 | AY50: 1,977 | AZ50: 212 | BC50: 8,571 | BD50: 1,365 | BE50: 749 | BF50: 1,580 | BG50: 3,572 | BH50: 1,305
F51: 1274 | G51: PUESTO DE SALUD PAMPAS DEL CUZCO | H51: 16 | I51: 9,142 | J51: 80 | K51: 81 | L51: 93 | M51: 96 | N51: 113 | O51: 121 | P51: 158 | Q51: 153 | R51: 150 | S51: 147 | T51: 131 | U51: 134 | V51: 136 | W51: 140 | X51: 107 | Y51: 135 | Z51: 140 | AA51: 142 | AB51: 128 | AC51: 129 | AD51: 676 | AE51: 752 | AF51: 727 | AG51: 695 | AH51: 694 | AI51: 641 | AJ51: 557 | AK51: 496 | AL51: 401 | AM51: 329 | AN51: 256 | AO51: 186 | AP51: 110 | AQ51: 110 | AR51: 4 | AS51: 42 | AT51: 38 | AU51: 119 | AV51: 4,665 | AW51: 323 | AX51: 342 | AY51: 2,108 | AZ51: 227 | BC51: 9,142 | BD51: 1,456 | BE51: 799 | BF51: 1,685 | BG51: 3,810 | BH51: 1,392
F52: 1275 | G52: PUESTO DE SALUD CHILPINILLA | H52: 9 | I52: 5,142 | J52: 45 | K52: 46 | L52: 52 | M52: 54 | N52: 64 | O52: 68 | P52: 89 | Q52: 86 | R52: 84 | S52: 83 | T52: 74 | U52: 75 | V52: 76 | W52: 79 | X52: 60 | Y52: 76 | Z52: 79 | AA52: 80 | AB52: 72 | AC52: 73 | AD52: 380 | AE52: 423 | AF52: 409 | AG52: 391 | AH52: 390 | AI52: 360 | AJ52: 313 | AK52: 279 | AL52: 226 | AM52: 185 | AN52: 144 | AO52: 104 | AP52: 62 | AQ52: 62 | AR52: 2 | AS52: 23 | AT52: 21 | AU52: 67 | AV52: 2,624 | AW52: 182 | AX52: 193 | AY52: 1,186 | AZ52: 127 | BC52: 5,142 | BD52: 819 | BE52: 449 | BF52: 948 | BG52: 2,143 | BH52: 783
F53: 1276 | G53: CENTRO DE SALUD CAMINOS DEL INCA | H53: 10 | I53: 5,714 | J53: 50 | K53: 51 | L53: 58 | M53: 60 | N53: 71 | O53: 76 | P53: 99 | Q53: 95 | R53: 94 | S53: 92 | T53: 82 | U53: 84 | V53: 85 | W53: 88 | X53: 67 | Y53: 84 | Z53: 88 | AA53: 89 | AB53: 80 | AC53: 81 | AD53: 423 | AE53: 470 | AF53: 454 | AG53: 435 | AH53: 434 | AI53: 401 | AJ53: 348 | AK53: 310 | AL53: 251 | AM53: 205 | AN53: 160 | AO53: 116 | AP53: 69 | AQ53: 69 | AR53: 3 | AS53: 26 | AT53: 24 | AU53: 74 | AV53: 2,916 | AW53: 202 | AX53: 214 | AY53: 1,318 | AZ53: 142 | BC53: 5,714 | BD53: 910 | BE53: 499 | BF53: 1,053 | BG53: 2,381 | BH53: 870
F54: 1277 | G54: ALTO ALIANZA | H54: 8 | I54: 4,571 | J54: 40 | K54: 41 | L54: 47 | M54: 48 | N54: 57 | O54: 60 | P54: 79 | Q54: 76 | R54: 75 | S54: 73 | T54: 66 | U54: 67 | V54: 68 | W54: 70 | X54: 53 | Y54: 67 | Z54: 70 | AA54: 71 | AB54: 64 | AC54: 65 | AD54: 338 | AE54: 376 | AF54: 363 | AG54: 348 | AH54: 347 | AI54: 320 | AJ54: 278 | AK54: 248 | AL54: 201 | AM54: 164 | AN54: 128 | AO54: 93 | AP54: 55 | AQ54: 55 | AR54: 2 | AS54: 21 | AT54: 19 | AU54: 59 | AV54: 2,332 | AW54: 162 | AX54: 171 | AY54: 1,054 | AZ54: 113 | BC54: 4,571 | BD54: 728 | BE54: 400 | BF54: 842 | BG54: 1,905 | BH54: 696
F55: 1279 | G55: PUESTO DE SALUD UPIS PAISAJISTA | H55: 9 | I55: 5,142 | J55: 45 | K55: 46 | L55: 52 | M55: 54 | N55: 64 | O55: 68 | P55: 89 | Q55: 86 | R55: 84 | S55: 83 | T55: 74 | U55: 75 | V55: 76 | W55: 79 | X55: 60 | Y55: 76 | Z55: 79 | AA55: 80 | AB55: 72 | AC55: 73 | AD55: 380 | AE55: 423 | AF55: 409 | AG55: 391 | AH55: 390 | AI55: 360 | AJ55: 313 | AK55: 279 | AL55: 226 | AM55: 185 | AN55: 144 | AO55: 104 | AP55: 62 | AQ55: 62 | AR55: 2 | AS55: 23 | AT55: 21 | AU55: 67 | AV55: 2,624 | AW55: 182 | AX55: 193 | AY55: 1,186 | AZ55: 127 | BC55: 5,142 | BD55: 819 | BE55: 449 | BF55: 948 | BG55: 2,143 | BH55: 783
A56: 040108 | B56: AREQUIPA | C56: AREQUIPA | D56: AREQUIPA | E56: LA JOYA | I56: 44,201 | J56: 491 | K56: 516 | L56: 607 | M56: 597 | N56: 650 | O56: 595 | P56: 689 | Q56: 626 | R56: 793 | S56: 825 | T56: 701 | U56: 699 | V56: 771 | W56: 672 | X56: 708 | Y56: 778 | Z56: 810 | AA56: 797 | AB56: 826 | AC56: 805 | AD56: 3,652 | AE56: 4,011 | AF56: 3,597 | AG56: 3,351 | AH56: 2,976 | AI56: 2,852 | AJ56: 2,265 | AK56: 2,060 | AL56: 1,674 | AM56: 1,364 | AN56: 934 | AO56: 693 | AP56: 432 | AQ56: 384 | AR56: 24 | AS56: 234 | AT56: 257 | AU56: 803 | AV56: 22,646 | AW56: 1,865 | AX56: 2,060 | AY56: 10,601 | AZ56: 1,130 | BC56: 44,201 | BD56: 7,789 | BE56: 4,536 | BF56: 9,294 | BG56: 17,101 | BH56: 5,481
F57: 1322 | G57: LA JOYA | H57: 20 | I57: 8,840 | J57: 98 | K57: 103 | L57: 121 | M57: 119 | N57: 130 | O57: 119 | P57: 138 | Q57: 125 | R57: 159 | S57: 165 | T57: 140 | U57: 140 | V57: 154 | W57: 134 | X57: 142 | Y57: 156 | Z57: 162 | AA57: 159 | AB57: 165 | AC57: 161 | AD57: 730 | AE57: 802 | AF57: 719 | AG57: 670 | AH57: 595 | AI57: 570 | AJ57: 453 | AK57: 412 | AL57: 335 | AM57: 273 | AN57: 187 | AO57: 139 | AP57: 86 | AQ57: 77 | AR57: 5 | AS57: 47 | AT57: 51 | AU57: 161 | AV57: 4,529 | AW57: 373 | AX57: 412 | AY57: 2,120 | AZ57: 226 | BC57: 8,840 | BD57: 1,558 | BE57: 907 | BF57: 1,859 | BG57: 3,420 | BH57: 1,096
F58: 1327 | G58: PUESTO DE SALUD CERRITO BUENA VISTA | H58: 14 | I58: 6,188 | J58: 69 | K58: 72 | L58: 85 | M58: 84 | N58: 91 | O58: 83 | P58: 96 | Q58: 88 | R58: 111 | S58: 116 | T58: 98 | U58: 98 | V58: 108 | W58: 94 | X58: 99 | Y58: 109 | Z58: 113 | AA58: 112 | AB58: 116 | AC58: 113 | AD58: 511 | AE58: 562 | AF58: 504 | AG58: 469 | AH58: 417 | AI58: 399 | AJ58: 317 | AK58: 288 | AL58: 234 | AM58: 191 | AN58: 131 | AO58: 97 | AP58: 60 | AQ58: 54 | AR58: 3 | AS58: 33 | AT58: 36 | AU58: 112 | AV58: 3,170 | AW58: 261 | AX58: 288 | AY58: 1,484 | AZ58: 158 | BC58: 6,188 | BD58: 1,090 | BE58: 635 | BF58: 1,301 | BG58: 2,394 | BH58: 767
F59: 1330 | G59: EL CRUCE - TRIUNFO | H59: 27 | I59: 11,935 | J59: 132 | K59: 140 | L59: 166 | M59: 160 | N59: 173 | O59: 160 | P59: 187 | Q59: 169 | R59: 212 | S59: 222 | T59: 190 | U59: 188 | V59: 208 | W59: 182 | X59: 192 | Y59: 210 | Z59: 218 | AA59: 214 | AB59: 223 | AC59: 218 | AD59: 985 | AE59: 1,082 | AF59: 970 | AG59: 903 | AH59: 803 | AI59: 769 | AJ59: 612 | AK59: 556 | AL59: 452 | AM59: 369 | AN59: 252 | AO59: 185 | AP59: 117 | AQ59: 103 | AR59: 7 | AS59: 63 | AT59: 70 | AU59: 218 | AV59: 6,116 | AW59: 504 | AX59: 556 | AY59: 2,863 | AZ59: 304 | BC59: 11,935 | BD59: 2,104 | BE59: 1,224 | BF59: 2,508 | BG59: 4,618 | BH59: 1,480
F60: 1328 | G60: LOS MEDANOS | H60: 5 | I60: 2,210 | J60: 25 | K60: 26 | L60: 30 | M60: 30 | N60: 33 | O60: 30 | P60: 34 | Q60: 31 | R60: 40 | S60: 41 | T60: 35 | U60: 35 | V60: 39 | W60: 34 | X60: 35 | Y60: 39 | Z60: 41 | AA60: 40 | AB60: 41 | AC60: 40 | AD60: 183 | AE60: 201 | AF60: 180 | AG60: 168 | AH60: 149 | AI60: 143 | AJ60: 113 | AK60: 103 | AL60: 84 | AM60: 68 | AN60: 47 | AO60: 35 | AP60: 22 | AQ60: 19 | AR60: 1 | AS60: 12 | AT60: 13 | AU60: 40 | AV60: 1,132 | AW60: 93 | AX60: 103 | AY60: 530 | AZ60: 57 | BC60: 2,210 | BD60: 389 | BE60: 227 | BF60: 465 | BG60: 855 | BH60: 274
F61: 1329 | G61: BENITO LAZO | H61: 5 | I61: 2,210 | J61: 25 | K61: 26 | L61: 30 | M61: 30 | N61: 33 | O61: 30 | P61: 34 | Q61: 31 | R61: 40 | S61: 41 | T61: 35 | U61: 35 | V61: 39 | W61: 34 | X61: 35 | Y61: 39 | Z61: 41 | AA61: 40 | AB61: 41 | AC61: 40 | AD61: 183 | AE61: 201 | AF61: 180 | AG61: 168 | AH61: 149 | AI61: 143 | AJ61: 113 | AK61: 103 | AL61: 84 | AM61: 68 | AN61: 47 | AO61: 35 | AP61: 22 | AQ61: 19 | AR61: 1 | AS61: 12 | AT61: 13 | AU61: 40 | AV61: 1,132 | AW61: 93 | AX61: 103 | AY61: 530 | AZ61: 57 | BC61: 2,210 | BD61: 389 | BE61: 227 | BF61: 465 | BG61: 855 | BH61: 274
F62: 1323 | G62: SAN ISIDRO | H62: 13 | I62: 5,746 | J62: 64 | K62: 67 | L62: 79 | M62: 78 | N62: 85 | O62: 77 | P62: 90 | Q62: 81 | R62: 103 | S62: 107 | T62: 91 | U62: 91 | V62: 100 | W62: 87 | X62: 92 | Y62: 101 | Z62: 105 | AA62: 104 | AB62: 107 | AC62: 105 | AD62: 475 | AE62: 521 | AF62: 468 | AG62: 436 | AH62: 387 | AI62: 371 | AJ62: 294 | AK62: 268 | AL62: 218 | AM62: 177 | AN62: 121 | AO62: 90 | AP62: 56 | AQ62: 50 | AR62: 3 | AS62: 30 | AT62: 33 | AU62: 104 | AV62: 2,944 | AW62: 242 | AX62: 268 | AY62: 1,378 | AZ62: 147 | BC62: 5,746 | BD62: 1,013 | BE62: 590 | BF62: 1,208 | BG62: 2,223 | BH62: 713
F63: 1333 | G63: SAN JOSE | H63: 3 | I63: 1,326 | J63: 15 | K63: 15 | L63: 18 | M63: 18 | N63: 20 | O63: 18 | P63: 21 | Q63: 19 | R63: 24 | S63: 25 | T63: 21 | U63: 21 | V63: 23 | W63: 20 | X63: 21 | Y63: 23 | Z63: 24 | AA63: 24 | AB63: 25 | AC63: 24 | AD63: 110 | AE63: 120 | AF63: 108 | AG63: 101 | AH63: 89 | AI63: 86 | AJ63: 68 | AK63: 62 | AL63: 50 | AM63: 41 | AN63: 28 | AO63: 21 | AP63: 13 | AQ63: 12 | AR63: 1 | AS63: 7 | AT63: 8 | AU63: 24 | AV63: 679 | AW63: 56 | AX63: 62 | AY63: 318 | AZ63: 34 | BC63: 1,326 | BD63: 234 | BE63: 136 | BF63: 279 | BG63: 513 | BH63: 164
F64: 1332 | G64: PUESTO DE SALUD SAN CAMILO 6 | H64: 6 | I64: 2,652 | J64: 29 | K64: 31 | L64: 36 | M64: 36 | N64: 39 | O64: 36 | P64: 41 | Q64: 38 | R64: 48 | S64: 50 | T64: 42 | U64: 42 | V64: 46 | W64: 40 | X64: 42 | Y64: 47 | Z64: 49 | AA64: 48 | AB64: 50 | AC64: 48 | AD64: 219 | AE64: 241 | AF64: 216 | AG64: 201 | AH64: 179 | AI64: 171 | AJ64: 136 | AK64: 124 | AL64: 100 | AM64: 82 | AN64: 56 | AO64: 42 | AP64: 26 | AQ64: 23 | AR64: 1 | AS64: 14 | AT64: 15 | AU64: 48 | AV64: 1,359 | AW64: 112 | AX64: 124 | AY64: 636 | AZ64: 68 | BC64: 2,652 | BD64: 467 | BE64: 272 | BF64: 558 | BG64: 1,026 | BH64: 329
F65: 1331 | G65: LA CANO | H65: 7 | I65: 3,094 | J65: 34 | K65: 36 | L65: 42 | M65: 42 | N65: 46 | O65: 42 | P65: 48 | Q65: 44 | R65: 56 | S65: 58 | T65: 49 | U65: 49 | V65: 54 | W65: 47 | X65: 50 | Y65: 54 | Z65: 57 | AA65: 56 | AB65: 58 | AC65: 56 | AD65: 256 | AE65: 281 | AF65: 252 | AG65: 235 | AH65: 208 | AI65: 200 | AJ65: 159 | AK65: 144 | AL65: 117 | AM65: 95 | AN65: 65 | AO65: 49 | AP65: 30 | AQ65: 27 | AR65: 2 | AS65: 16 | AT65: 18 | AU65: 56 | AV65: 1,585 | AW65: 131 | AX65: 144 | AY65: 742 | AZ65: 79 | BC65: 3,094 | BD65: 545 | BE65: 318 | BF65: 651 | BG65: 1,197 | BH65: 384
A66: 040109 | B66: AREQUIPA | C66: AREQUIPA | D66: AREQUIPA | E66: MARIANO MELGAR | I66: 71,941 | J66: 727 | K66: 724 | L66: 724 | M66: 759 | N66: 863 | O66: 883 | P66: 1,092 | Q66: 1,064 | R66: 1,114 | S66: 1,081 | T66: 963 | U66: 944 | V66: 1,036 | W66: 1,002 | X66: 956 | Y66: 1,072 | Z66: 1,085 | AA66: 1,009 | AB66: 1,029 | AC66: 1,084 | AD66: 5,179 | AE66: 5,837 | AF66: 5,855 | AG66: 5,043 | AH66: 5,155 | AI66: 4,964 | AJ66: 4,513 | AK66: 4,134 | AL66: 3,540 | AM66: 2,770 | AN66: 2,229 | AO66: 1,489 | AP66: 977 | AQ66: 1,045 | AR66: 36 | AS66: 379 | AT66: 348 | AU66: 1,053 | AV66: 36,533 | AW66: 2,446 | AX66: 2,630 | AY66: 16,159 | AZ66: 1,732 | BC66: 71,941 | BD66: 10,938 | BE66: 6,160 | BF66: 13,129 | BG66: 29,664 | BH66: 12,050
F67: 1294 | G67: CENTRO DE SALUD MARIANO MELGAR | H67: 30 | I67: 21,583 | J67: 217 | K67: 218 | L67: 219 | M67: 227 | N67: 256 | O67: 264 | P67: 329 | Q67: 319 | R67: 332 | S67: 323 | T67: 290 | U67: 282 | V67: 311 | W67: 302 | X67: 288 | Y67: 322 | Z67: 325 | AA67: 302 | AB67: 309 | AC67: 326 | AD67: 1,553 | AE67: 1,750 | AF67: 1,756 | AG67: 1,511 | AH67: 1,546 | AI67: 1,488 | AJ67: 1,354 | AK67: 1,240 | AL67: 1,062 | AM67: 832 | AN67: 669 | AO67: 445 | AP67: 293 | AQ67: 313 | AR67: 12 | AS67: 114 | AT67: 105 | AU67: 317 | AV67: 10,962 | AW67: 734 | AX67: 789 | AY67: 4,849 | AZ67: 519 | BC67: 21,583 | BD67: 3,282 | BE67: 1,847 | BF67: 3,938 | BG67: 8,900 | BH67: 3,615
F68: 1308 | G68: PUESTO DE SALUD ATALAYA | H68: 20 | I68: 14,388 | J68: 147 | K68: 144 | L68: 143 | M68: 152 | N68: 175 | O68: 177 | P68: 218 | Q68: 213 | R68: 225 | S68: 218 | T68: 191 | U68: 190 | V68: 207 | W68: 200 | X68: 190 | Y68: 215 | Z68: 217 | AA68: 202 | AB68: 205 | AC68: 216 | AD68: 1,036 | AE68: 1,169 | AF68: 1,171 | AG68: 1,010 | AH68: 1,031 | AI68: 994 | AJ68: 902 | AK68: 827 | AL68: 708 | AM68: 553 | AN68: 445 | AO68: 299 | AP68: 196 | AQ68: 209 | AR68: 6 | AS68: 75 | AT68: 68 | AU68: 209 | AV68: 7,304 | AW68: 489 | AX68: 526 | AY68: 3,230 | AZ68: 348 | BC68: 14,388 | BD68: 2,186 | BE68: 1,233 | BF68: 2,626 | BG68: 5,932 | BH68: 2,410
F69: 1295 | G69: CENTRO DE SALUD GENERALISIMO SAN MARTIN | H69: 20 | I69: 14,388 | J69: 145 | K69: 145 | L69: 145 | M69: 152 | N69: 173 | O69: 177 | P69: 218 | Q69: 213 | R69: 223 | S69: 216 | T69: 193 | U69: 189 | V69: 207 | W69: 200 | X69: 191 | Y69: 214 | Z69: 217 | AA69: 202 | AB69: 206 | AC69: 217 | AD69: 1,036 | AE69: 1,167 | AF69: 1,171 | AG69: 1,009 | AH69: 1,031 | AI69: 993 | AJ69: 903 | AK69: 827 | AL69: 708 | AM69: 554 | AN69: 446 | AO69: 298 | AP69: 195 | AQ69: 209 | AR69: 7 | AS69: 76 | AT69: 70 | AU69: 211 | AV69: 7,307 | AW69: 489 | AX69: 526 | AY69: 3,232 | AZ69: 346 | BC69: 14,388 | BD69: 2,188 | BE69: 1,232 | BF69: 2,626 | BG69: 5,933 | BH69: 2,410
F70: 1309 | G70: JERUSALEN | H70: 20 | I70: 14,388 | J70: 145 | K70: 145 | L70: 145 | M70: 152 | N70: 173 | O70: 177 | P70: 218 | Q70: 213 | R70: 223 | S70: 216 | T70: 193 | U70: 189 | V70: 207 | W70: 200 | X70: 191 | Y70: 214 | Z70: 217 | AA70: 202 | AB70: 206 | AC70: 217 | AD70: 1,036 | AE70: 1,167 | AF70: 1,171 | AG70: 1,009 | AH70: 1,031 | AI70: 993 | AJ70: 903 | AK70: 827 | AL70: 708 | AM70: 554 | AN70: 446 | AO70: 298 | AP70: 195 | AQ70: 209 | AR70: 7 | AS70: 76 | AT70: 70 | AU70: 211 | AV70: 7,307 | AW70: 489 | AX70: 526 | AY70: 3,232 | AZ70: 346 | BC70: 14,388 | BD70: 2,188 | BE70: 1,232 | BF70: 2,626 | BG70: 5,933 | BH70: 2,410
F71: 7743 | G71: PUESTO DE SALUD SANTA ROSA | H71: 0 | I71: 0 | J71: 0 | K71: 0 | L71: 0 | M71: 0 | N71: 0 | O71: 0 | P71: 0 | Q71: 0 | R71: 0 | S71: 0 | T71: 0 | U71: 0 | V71: 0 | W71: 0 | X71: 0 | Y71: 0 | Z71: 0 | AA71: 0 | AB71: 0 | AC71: 0 | AD71: 0 | AE71: 0 | AF71: 0 | AG71: 0 | AH71: 0 | AI71: 0 | AJ71: 0 | AK71: 0 | AL71: 0 | AM71: 0 | AN71: 0 | AO71: 0 | AP71: 0 | AQ71: 0 | AR71: 0 | AS71: 0 | AT71: 0 | AU71: 0 | AV71: 0 | AW71: 0 | AX71: 0 | AY71: 0 | AZ71: 0 | BC71: 0 | BD71: 0 | BE71: 0 | BF71: 0 | BG71: 0 | BH71: 0
F72: 7722 | G72: EL MIRADOR | H72: 10 | I72: 7,194 | J72: 73 | K72: 72 | L72: 72 | M72: 76 | N72: 86 | O72: 88 | P72: 109 | Q72: 106 | R72: 111 | S72: 108 | T72: 96 | U72: 94 | V72: 104 | W72: 100 | X72: 96 | Y72: 107 | Z72: 109 | AA72: 101 | AB72: 103 | AC72: 108 | AD72: 518 | AE72: 584 | AF72: 586 | AG72: 504 | AH72: 516 | AI72: 496 | AJ72: 451 | AK72: 413 | AL72: 354 | AM72: 277 | AN72: 223 | AO72: 149 | AP72: 98 | AQ72: 105 | AR72: 4 | AS72: 38 | AT72: 35 | AU72: 105 | AV72: 3,653 | AW72: 245 | AX72: 263 | AY72: 1,616 | AZ72: 173 | BC72: 7,194 | BD72: 1,094 | BE72: 616 | BF72: 1,313 | BG72: 2,966 | BH72: 1,205
A73: 040110 | B73: AREQUIPA | C73: AREQUIPA | D73: AREQUIPA | E73: MIRAFLORES | I73: 70,842 | J73: 603 | K73: 643 | L73: 727 | M73: 702 | N73: 821 | O73: 922 | P73: 1,020 | Q73: 1,058 | R73: 1,122 | S73: 987 | T73: 1,020 | U73: 923 | V73: 925 | W73: 905 | X73: 835 | Y73: 923 | Z73: 992 | AA73: 947 | AB73: 972 | AC73: 1,047 | AD73: 5,196 | AE73: 5,784 | AF73: 5,752 | AG73: 5,057 | AH73: 5,308 | AI73: 5,077 | AJ73: 4,591 | AK73: 4,074 | AL73: 3,513 | AM73: 2,675 | AN73: 2,146 | AO73: 1,501 | AP73: 983 | AQ73: 1,091 | AR73: 29 | AS73: 295 | AT73: 308 | AU73: 984 | AV73: 36,211 | AW73: 2,353 | AX73: 2,503 | AY73: 16,332 | AZ73: 1,739 | BC73: 70,842 | BD73: 10,548 | BE73: 5,527 | BF73: 12,999 | BG73: 29,859 | BH73: 11,909
F74: 1293 | G74: CENTRO DE SALUD MIRAFLORES | H74: 34 | I74: 24,086 | J74: 205 | K74: 219 | L74: 247 | M74: 239 | N74: 279 | O74: 313 | P74: 347 | Q74: 360 | R74: 381 | S74: 336 | T74: 347 | U74: 314 | V74: 315 | W74: 308 | X74: 284 | Y74: 314 | Z74: 337 | AA74: 322 | AB74: 330 | AC74: 356 | AD74: 1,767 | AE74: 1,967 | AF74: 1,956 | AG74: 1,719 | AH74: 1,805 | AI74: 1,726 | AJ74: 1,561 | AK74: 1,385 | AL74: 1,194 | AM74: 910 | AN74: 730 | AO74: 510 | AP74: 334 | AQ74: 371 | AR74: 10 | AS74: 100 | AT74: 105 | AU74: 335 | AV74: 12,312 | AW74: 800 | AX74: 851 | AY74: 5,553 | AZ74: 591 | BC74: 24,086 | BD74: 3,586 | BE74: 1,879 | BF74: 4,420 | BG74: 10,152 | BH74: 4,049
F75: 1292 | G75: CENTRO DE SALUD EDIFICADORES MISTI | H75: 40 | I75: 28,338 | J75: 242 | K75: 258 | L75: 291 | M75: 281 | N75: 328 | O75: 369 | P75: 407 | Q75: 422 | R75: 449 | S75: 394 | T75: 407 | U75: 369 | V75: 369 | W75: 362 | X75: 333 | Y75: 369 | Z75: 398 | AA75: 378 | AB75: 389 | AC75: 418 | AD75: 2,077 | AE75: 2,313 | AF75: 2,301 | AG75: 2,022 | AH75: 2,122 | AI75: 2,031 | AJ75: 1,837 | AK75: 1,630 | AL75: 1,406 | AM75: 1,069 | AN75: 857 | AO75: 601 | AP75: 393 | AQ75: 437 | AR75: 12 | AS75: 117 | AT75: 122 | AU75: 393 | AV75: 14,484 | AW75: 942 | AX75: 1,002 | AY75: 6,532 | AZ75: 696 | BC75: 28,338 | BD75: 4,219 | BE75: 2,211 | BF75: 5,199 | BG75: 11,943 | BH75: 4,763
F76: 1306 | G76: CENTRO DE SALUD PORVENIR-MIRAFLORES | H76: 10 | I76: 7,084 | J76: 60 | K76: 64 | L76: 73 | M76: 70 | N76: 82 | O76: 92 | P76: 102 | Q76: 106 | R76: 112 | S76: 99 | T76: 102 | U76: 92 | V76: 93 | W76: 91 | X76: 84 | Y76: 92 | Z76: 99 | AA76: 95 | AB76: 97 | AC76: 105 | AD76: 520 | AE76: 578 | AF76: 575 | AG76: 506 | AH76: 531 | AI76: 508 | AJ76: 459 | AK76: 407 | AL76: 351 | AM76: 268 | AN76: 215 | AO76: 150 | AP76: 98 | AQ76: 109 | AR76: 3 | AS76: 30 | AT76: 31 | AU76: 98 | AV76: 3,621 | AW76: 235 | AX76: 250 | AY76: 1,633 | AZ76: 174 | BC76: 7,084 | BD76: 1,055 | BE76: 553 | BF76: 1,300 | BG76: 2,986 | BH76: 1,191
F77: 1307 | G77: CENTRO DE SALUD MATEO PUMACAHUA | H77: 8 | I77: 5,667 | J77: 48 | K77: 51 | L77: 58 | M77: 56 | N77: 66 | O77: 74 | P77: 82 | Q77: 85 | R77: 90 | S77: 79 | T77: 82 | U77: 74 | V77: 74 | W77: 72 | X77: 67 | Y77: 74 | Z77: 79 | AA77: 76 | AB77: 78 | AC77: 84 | AD77: 416 | AE77: 463 | AF77: 460 | AG77: 405 | AH77: 425 | AI77: 406 | AJ77: 367 | AK77: 326 | AL77: 281 | AM77: 214 | AN77: 172 | AO77: 120 | AP77: 79 | AQ77: 87 | AR77: 2 | AS77: 24 | AT77: 25 | AU77: 79 | AV77: 2,897 | AW77: 188 | AX77: 200 | AY77: 1,307 | AZ77: 139 | BC77: 5,667 | BD77: 844 | BE77: 442 | BF77: 1,040 | BG77: 2,389 | BH77: 953
F78: 1305 | G78: PUESTO DE SALUD TOMASA T. COMDEMAYTA | H78: 8 | I78: 5,667 | J78: 48 | K78: 51 | L78: 58 | M78: 56 | N78: 66 | O78: 74 | P78: 82 | Q78: 85 | R78: 90 | S78: 79 | T78: 82 | U78: 74 | V78: 74 | W78: 72 | X78: 67 | Y78: 74 | Z78: 79 | AA78: 76 | AB78: 78 | AC78: 84 | AD78: 416 | AE78: 463 | AF78: 460 | AG78: 405 | AH78: 425 | AI78: 406 | AJ78: 367 | AK78: 326 | AL78: 281 | AM78: 214 | AN78: 172 | AO78: 120 | AP78: 79 | AQ78: 87 | AR78: 2 | AS78: 24 | AT78: 25 | AU78: 79 | AV78: 2,897 | AW78: 188 | AX78: 200 | AY78: 1,307 | AZ78: 139 | BC78: 5,667 | BD78: 844 | BE78: 442 | BF78: 1,040 | BG78: 2,389 | BH78: 953
A79: 040111 | B79: AREQUIPA | C79: AREQUIPA | D79: AREQUIPA | E79: MOLLEBAYA | I79: 8,627 | J79: 67 | K79: 56 | L79: 83 | M79: 62 | N79: 70 | O79: 67 | P79: 116 | Q79: 179 | R79: 164 | S79: 135 | T79: 94 | U79: 115 | V79: 111 | W79: 131 | X79: 119 | Y79: 135 | Z79: 134 | AA79: 121 | AB79: 138 | AC79: 92 | AD79: 513 | AE79: 719 | AF79: 901 | AG79: 779 | AH79: 718 | AI79: 681 | AJ79: 420 | AK79: 438 | AL79: 399 | AM79: 295 | AN79: 245 | AO79: 165 | AP79: 82 | AQ79: 83 | AR79: 2 | AS79: 31 | AT79: 36 | AU79: 99 | AV79: 4,339 | AW79: 287 | AX79: 303 | AY79: 2,241 | AZ79: 175 | BC79: 8,627 | BD79: 1,208 | BE79: 751 | BF79: 1,462 | BG79: 3,937 | BH79: 1,269
F80: 1285 | G80: PUESTO DE SALUD MOLLEBAYA | H80: 30 | I80: 2,588 | J80: 20 | K80: 17 | L80: 25 | M80: 19 | N80: 21 | O80: 20 | P80: 35 | Q80: 54 | R80: 49 | S80: 41 | T80: 28 | U80: 35 | V80: 33 | W80: 39 | X80: 36 | Y80: 41 | Z80: 40 | AA80: 36 | AB80: 41 | AC80: 28 | AD80: 154 | AE80: 216 | AF80: 270 | AG80: 234 | AH80: 215 | AI80: 204 | AJ80: 126 | AK80: 131 | AL80: 120 | AM80: 89 | AN80: 74 | AO80: 50 | AP80: 25 | AQ80: 25 | AR80: 1 | AS80: 9 | AT80: 11 | AU80: 30 | AV80: 1,302 | AW80: 86 | AX80: 91 | AY80: 672 | AZ80: 53 | BC80: 2,588 | BD80: 362 | BE80: 225 | BF80: 439 | BG80: 1,181 | BH80: 381
F81: 11677 | G81: PUESTO DE SALUD MACHAHUAYA | H81: 70 | I81: 6,039 | J81: 47 | K81: 39 | L81: 58 | M81: 43 | N81: 49 | O81: 47 | P81: 81 | Q81: 125 | R81: 115 | S81: 94 | T81: 66 | U81: 80 | V81: 78 | W81: 92 | X81: 83 | Y81: 94 | Z81: 94 | AA81: 85 | AB81: 97 | AC81: 64 | AD81: 359 | AE81: 503 | AF81: 631 | AG81: 545 | AH81: 503 | AI81: 477 | AJ81: 294 | AK81: 307 | AL81: 279 | AM81: 206 | AN81: 171 | AO81: 115 | AP81: 57 | AQ81: 58 | AR81: 1 | AS81: 22 | AT81: 25 | AU81: 69 | AV81: 3,037 | AW81: 201 | AX81: 212 | AY81: 1,569 | AZ81: 122 | BC81: 6,039 | BD81: 846 | BE81: 526 | BF81: 1,023 | BG81: 2,756 | BH81: 888
A82: 040112 | B82: AREQUIPA | C82: AREQUIPA | D82: AREQUIPA | E82: PAUCARPATA | I82: 142,855 | J82: 1,505 | K82: 1,642 | L82: 1,699 | M82: 1,610 | N82: 1,779 | O82: 2,123 | P82: 2,294 | Q82: 2,369 | R82: 2,302 | S82: 2,190 | T82: 2,127 | U82: 2,111 | V82: 2,121 | W82: 2,031 | X82: 1,996 | Y82: 2,231 | Z82: 2,264 | AA82: 2,159 | AB82: 2,150 | AC82: 2,150 | AD82: 10,384 | AE82: 11,335 | AF82: 11,184 | AG82: 10,225 | AH82: 10,689 | AI82: 10,163 | AJ82: 8,913 | AK82: 7,370 | AL82: 5,822 | AM82: 4,848 | AN82: 4,130 | AO82: 3,183 | AP82: 1,957 | AQ82: 1,799 | AR82: 65 | AS82: 699 | AT82: 806 | AU82: 2,084 | AV82: 73,204 | AW82: 5,225 | AX82: 5,561 | AY82: 32,524 | AZ82: 3,575 | BC82: 142,855 | BD82: 23,751 | BE82: 12,802 | BF82: 26,019 | BG82: 58,544 | BH82: 21,739
F83: 1298 | G83: CENTRO DE SALUD 15 DE AGOSTO | H83: 11 | I83: 15,715 | J83: 167 | K83: 182 | L83: 187 | M83: 175 | N83: 196 | O83: 233 | P83: 250 | Q83: 258 | R83: 254 | S83: 243 | T83: 233 | U83: 232 | V83: 233 | W83: 226 | X83: 216 | Y83: 248 | Z83: 250 | AA83: 236 | AB83: 236 | AC83: 236 | AD83: 1,142 | AE83: 1,247 | AF83: 1,230 | AG83: 1,123 | AH83: 1,176 | AI83: 1,119 | AJ83: 981 | AK83: 809 | AL83: 639 | AM83: 532 | AN83: 456 | AO83: 349 | AP83: 213 | AQ83: 197 | AR83: 5 | AS83: 77 | AT83: 92 | AU83: 229 | AV83: 8,056 | AW83: 573 | AX83: 612 | AY83: 3,578 | AZ83: 392 | BC83: 15,715 | BD83: 2,613 | BE83: 1,410 | BF83: 2,861 | BG83: 6,438 | BH83: 2,391
F84: 1316 | G84: PUESTO DE SALUD MIGUEL GRAU MODULO A | H84: 8 | I84: 11,428 | J84: 120 | K84: 131 | L84: 136 | M84: 129 | N84: 142 | O84: 170 | P84: 184 | Q84: 190 | R84: 184 | S84: 175 | T84: 170 | U84: 169 | V84: 170 | W84: 162 | X84: 160 | Y84: 178 | Z84: 181 | AA84: 173 | AB84: 172 | AC84: 172 | AD84: 831 | AE84: 907 | AF84: 895 | AG84: 818 | AH84: 855 | AI84: 813 | AJ84: 713 | AK84: 590 | AL84: 466 | AM84: 388 | AN84: 330 | AO84: 255 | AP84: 157 | AQ84: 144 | AR84: 5 | AS84: 56 | AT84: 64 | AU84: 167 | AV84: 5,856 | AW84: 418 | AX84: 445 | AY84: 2,602 | AZ84: 286 | BC84: 11,428 | BD84: 1,900 | BE84: 1,024 | BF84: 2,082 | BG84: 4,684 | BH84: 1,739
F85: 1317 | G85: CENTRO DE SALUD MIGUEL GRAU B | H85: 7 | I85: 10,000 | J85: 105 | K85: 115 | L85: 119 | M85: 113 | N85: 125 | O85: 149 | P85: 161 | Q85: 166 | R85: 161 | S85: 153 | T85: 149 | U85: 148 | V85: 148 | W85: 142 | X85: 140 | Y85: 156 | Z85: 158 | AA85: 151 | AB85: 151 | AC85: 151 | AD85: 727 | AE85: 793 | AF85: 783 | AG85: 716 | AH85: 748 | AI85: 711 | AJ85: 624 | AK85: 516 | AL85: 408 | AM85: 339 | AN85: 289 | AO85: 223 | AP85: 137 | AQ85: 126 | AR85: 5 | AS85: 49 | AT85: 56 | AU85: 146 | AV85: 5,124 | AW85: 366 | AX85: 389 | AY85: 2,277 | AZ85: 250 | BC85: 10,000 | BD85: 1,663 | BE85: 896 | BF85: 1,821 | BG85: 4,098 | BH85: 1,522
F86: 1318 | G86: PUESTO DE SALUD MIGUEL GRAU MODULO C-D | H86: 7.5 | I86: 10,714 | J86: 113 | K86: 123 | L86: 127 | M86: 121 | N86: 133 | O86: 159 | P86: 172 | Q86: 178 | R86: 173 | S86: 164 | T86: 160 | U86: 158 | V86: 159 | W86: 152 | X86: 150 | Y86: 167 | Z86: 170 | AA86: 162 | AB86: 161 | AC86: 161 | AD86: 779 | AE86: 850 | AF86: 839 | AG86: 767 | AH86: 802 | AI86: 762 | AJ86: 668 | AK86: 553 | AL86: 437 | AM86: 364 | AN86: 310 | AO86: 239 | AP86: 147 | AQ86: 135 | AR86: 5 | AS86: 52 | AT86: 60 | AU86: 156 | AV86: 5,490 | AW86: 392 | AX86: 417 | AY86: 2,439 | AZ86: 268 | BC86: 10,714 | BD86: 1,781 | BE86: 960 | BF86: 1,951 | BG86: 4,391 | BH86: 1,630
F87: 1296 | G87: CENTRO DE SALUD AMPLIACIÓN PAUCARPATA | H87: 10 | I87: 14,286 | J87: 151 | K87: 164 | L87: 170 | M87: 161 | N87: 178 | O87: 212 | P87: 229 | Q87: 237 | R87: 230 | S87: 219 | T87: 213 | U87: 211 | V87: 212 | W87: 203 | X87: 200 | Y87: 223 | Z87: 226 | AA87: 216 | AB87: 215 | AC87: 215 | AD87: 1,038 | AE87: 1,134 | AF87: 1,118 | AG87: 1,023 | AH87: 1,069 | AI87: 1,016 | AJ87: 891 | AK87: 737 | AL87: 582 | AM87: 485 | AN87: 413 | AO87: 318 | AP87: 196 | AQ87: 180 | AR87: 7 | AS87: 70 | AT87: 81 | AU87: 208 | AV87: 7,320 | AW87: 523 | AX87: 556 | AY87: 3,252 | AZ87: 358 | BC87: 14,286 | BD87: 2,375 | BE87: 1,280 | BF87: 2,602 | BG87: 5,854 | BH87: 2,174
F88: 1310 | G88: CENTRO DE SALUD MANUEL PRADO | H88: 8 | I88: 11,428 | J88: 120 | K88: 131 | L88: 136 | M88: 129 | N88: 142 | O88: 170 | P88: 184 | Q88: 190 | R88: 184 | S88: 175 | T88: 170 | U88: 169 | V88: 170 | W88: 162 | X88: 160 | Y88: 178 | Z88: 181 | AA88: 173 | AB88: 172 | AC88: 172 | AD88: 831 | AE88: 907 | AF88: 895 | AG88: 818 | AH88: 855 | AI88: 813 | AJ88: 713 | AK88: 590 | AL88: 466 | AM88: 388 | AN88: 330 | AO88: 255 | AP88: 157 | AQ88: 144 | AR88: 5 | AS88: 56 | AT88: 64 | AU88: 167 | AV88: 5,856 | AW88: 418 | AX88: 445 | AY88: 2,602 | AZ88: 286 | BC88: 11,428 | BD88: 1,900 | BE88: 1,024 | BF88: 2,082 | BG88: 4,684 | BH88: 1,739
F89: 1313 | G89: CENTRO DE SALUD NUEVA ALBORADA | H89: 8 | I89: 11,428 | J89: 120 | K89: 131 | L89: 136 | M89: 129 | N89: 142 | O89: 170 | P89: 184 | Q89: 190 | R89: 184 | S89: 175 | T89: 170 | U89: 169 | V89: 170 | W89: 162 | X89: 160 | Y89: 178 | Z89: 181 | AA89: 173 | AB89: 172 | AC89: 172 | AD89: 831 | AE89: 907 | AF89: 895 | AG89: 818 | AH89: 855 | AI89: 813 | AJ89: 713 | AK89: 590 | AL89: 466 | AM89: 388 | AN89: 330 | AO89: 255 | AP89: 157 | AQ89: 144 | AR89: 5 | AS89: 56 | AT89: 64 | AU89: 167 | AV89: 5,856 | AW89: 418 | AX89: 445 | AY89: 2,602 | AZ89: 286 | BC89: 11,428 | BD89: 1,900 | BE89: 1,024 | BF89: 2,082 | BG89: 4,684 | BH89: 1,739
F90: 1315 | G90: CENTRO DE SALUD CAMPO MARTE | H90: 7 | I90: 10,000 | J90: 105 | K90: 115 | L90: 119 | M90: 113 | N90: 125 | O90: 149 | P90: 161 | Q90: 166 | R90: 161 | S90: 153 | T90: 149 | U90: 148 | V90: 148 | W90: 142 | X90: 140 | Y90: 156 | Z90: 158 | AA90: 151 | AB90: 151 | AC90: 151 | AD90: 727 | AE90: 793 | AF90: 783 | AG90: 716 | AH90: 748 | AI90: 711 | AJ90: 624 | AK90: 516 | AL90: 408 | AM90: 339 | AN90: 289 | AO90: 223 | AP90: 137 | AQ90: 126 | AR90: 5 | AS90: 49 | AT90: 56 | AU90: 146 | AV90: 5,124 | AW90: 366 | AX90: 389 | AY90: 2,277 | AZ90: 250 | BC90: 10,000 | BD90: 1,663 | BE90: 896 | BF90: 1,821 | BG90: 4,098 | BH90: 1,522
F91: 1297 | G91: CENTRO DE SALUD CIUDAD BLANCA | H91: 10 | I91: 14,286 | J91: 151 | K91: 164 | L91: 170 | M91: 161 | N91: 178 | O91: 212 | P91: 229 | Q91: 237 | R91: 230 | S91: 219 | T91: 213 | U91: 211 | V91: 212 | W91: 203 | X91: 200 | Y91: 223 | Z91: 226 | AA91: 216 | AB91: 215 | AC91: 215 | AD91: 1,038 | AE91: 1,134 | AF91: 1,118 | AG91: 1,023 | AH91: 1,069 | AI91: 1,016 | AJ91: 891 | AK91: 737 | AL91: 582 | AM91: 485 | AN91: 413 | AO91: 318 | AP91: 196 | AQ91: 180 | AR91: 7 | AS91: 70 | AT91: 81 | AU91: 208 | AV91: 7,320 | AW91: 523 | AX91: 556 | AY91: 3,252 | AZ91: 358 | BC91: 14,286 | BD91: 2,375 | BE91: 1,280 | BF91: 2,602 | BG91: 5,854 | BH91: 2,174
F92: 1314 | G92: SAN JUAN DE CIUDAD BLANCA | H92: 8 | I92: 11,428 | J92: 120 | K92: 131 | L92: 136 | M92: 129 | N92: 142 | O92: 170 | P92: 184 | Q92: 190 | R92: 184 | S92: 175 | T92: 170 | U92: 169 | V92: 170 | W92: 162 | X92: 160 | Y92: 178 | Z92: 181 | AA92: 173 | AB92: 172 | AC92: 172 | AD92: 831 | AE92: 907 | AF92: 895 | AG92: 818 | AH92: 855 | AI92: 813 | AJ92: 713 | AK92: 590 | AL92: 466 | AM92: 388 | AN92: 330 | AO92: 255 | AP92: 157 | AQ92: 144 | AR92: 5 | AS92: 56 | AT92: 64 | AU92: 167 | AV92: 5,856 | AW92: 418 | AX92: 445 | AY92: 2,602 | AZ92: 286 | BC92: 11,428 | BD92: 1,900 | BE92: 1,024 | BF92: 2,082 | BG92: 4,684 | BH92: 1,739
F93: 1311 | G93: ALTO JESUS | H93: 4 | I93: 5,714 | J93: 60 | K93: 66 | L93: 68 | M93: 64 | N93: 71 | O93: 85 | P93: 92 | Q93: 95 | R93: 92 | S93: 88 | T93: 85 | U93: 84 | V93: 85 | W93: 81 | X93: 80 | Y93: 89 | Z93: 91 | AA93: 86 | AB93: 86 | AC93: 86 | AD93: 415 | AE93: 453 | AF93: 447 | AG93: 409 | AH93: 428 | AI93: 407 | AJ93: 357 | AK93: 295 | AL93: 233 | AM93: 194 | AN93: 165 | AO93: 127 | AP93: 78 | AQ93: 72 | AR93: 3 | AS93: 28 | AT93: 32 | AU93: 83 | AV93: 2,928 | AW93: 209 | AX93: 222 | AY93: 1,301 | AZ93: 143 | BC93: 5,714 | BD93: 950 | BE93: 512 | BF93: 1,041 | BG93: 2,342 | BH93: 870
F94: 1312 | G94: ISRAEL | H94: 6 | I94: 8,571 | J94: 90 | K94: 99 | L94: 102 | M94: 97 | N94: 107 | O94: 127 | P94: 138 | Q94: 142 | R94: 138 | S94: 131 | T94: 128 | U94: 127 | V94: 127 | W94: 122 | X94: 120 | Y94: 134 | Z94: 136 | AA94: 130 | AB94: 129 | AC94: 129 | AD94: 623 | AE94: 680 | AF94: 671 | AG94: 614 | AH94: 641 | AI94: 610 | AJ94: 535 | AK94: 442 | AL94: 349 | AM94: 291 | AN94: 248 | AO94: 191 | AP94: 117 | AQ94: 108 | AR94: 4 | AS94: 42 | AT94: 48 | AU94: 125 | AV94: 4,392 | AW94: 314 | AX94: 334 | AY94: 1,951 | AZ94: 215 | BC94: 8,571 | BD94: 1,425 | BE94: 768 | BF94: 1,561 | BG94: 3,513 | BH94: 1,304
F95: 7744 | G95: P.S. VILLA JESUS | H95: 5.5 | I95: 7,857 | J95: 83 | K95: 90 | L95: 93 | M95: 89 | N95: 98 | O95: 117 | P95: 126 | Q95: 130 | R95: 127 | S95: 120 | T95: 117 | U95: 116 | V95: 117 | W95: 112 | X95: 110 | Y95: 123 | Z95: 125 | AA95: 119 | AB95: 118 | AC95: 118 | AD95: 571 | AE95: 623 | AF95: 615 | AG95: 562 | AH95: 588 | AI95: 559 | AJ95: 490 | AK95: 405 | AL95: 320 | AM95: 267 | AN95: 227 | AO95: 175 | AP95: 108 | AQ95: 99 | AR95: 4 | AS95: 38 | AT95: 44 | AU95: 115 | AV95: 4,026 | AW95: 287 | AX95: 306 | AY95: 1,789 | AZ95: 197 | BC95: 7,857 | BD95: 1,306 | BE95: 704 | BF95: 1,431 | BG95: 3,220 | BH95: 1,196
A96: 040113 | B96: AREQUIPA | C96: AREQUIPA | D96: AREQUIPA | E96: POCSI | I96: 525 | J96: 11 | K96: 4 | L96: 5 | M96: 2 | N96: 9 | O96: 9 | P96: 2 | Q96: 2 | R96: 2 | S96: 2 | T96: 2 | U96: 2 | V96: 4 | W96: 4 | X96: 3 | Y96: 3 | Z96: 3 | AA96: 3 | AB96: 5 | AC96: 5 | AD96: 25 | AE96: 41 | AF96: 45 | AG96: 33 | AH96: 39 | AI96: 42 | AJ96: 39 | AK96: 38 | AL96: 35 | AM96: 27 | AN96: 24 | AO96: 19 | AP96: 21 | AQ96: 15 | AR96: 0 | AS96: 4 | AT96: 7 | AU96: 17 | AV96: 273 | AW96: 7 | AX96: 7 | AY96: 117 | AZ96: 11 | BC96: 525 | BD96: 52 | BE96: 20 | BF96: 76 | BG96: 236 | BH96: 141
F97: 1288 | G97: PUESTO DE SALUD POCSI | H97: 56 | I97: 294 | J97: 6 | K97: 2 | L97: 3 | M97: 1 | N97: 5 | O97: 5 | P97: 1 | Q97: 1 | R97: 1 | S97: 1 | T97: 1 | U97: 1 | V97: 2 | W97: 2 | X97: 2 | Y97: 2 | Z97: 2 | AA97: 2 | AB97: 3 | AC97: 3 | AD97: 14 | AE97: 23 | AF97: 25 | AG97: 18 | AH97: 22 | AI97: 24 | AJ97: 22 | AK97: 21 | AL97: 20 | AM97: 15 | AN97: 13 | AO97: 11 | AP97: 12 | AQ97: 8 | AR97: 0 | AS97: 2 | AT97: 4 | AU97: 10 | AV97: 153 | AW97: 4 | AX97: 4 | AY97: 66 | AZ97: 6 | BC97: 294 | BD97: 29 | BE97: 11 | BF97: 43 | BG97: 132 | BH97: 79
F98: 1289 | G98: PUESTO DE SALUD PIACA | H98: 44 | I98: 231 | J98: 5 | K98: 2 | L98: 2 | M98: 1 | N98: 4 | O98: 4 | P98: 1 | Q98: 1 | R98: 1 | S98: 1 | T98: 1 | U98: 1 | V98: 2 | W98: 2 | X98: 1 | Y98: 1 | Z98: 1 | AA98: 1 | AB98: 2 | AC98: 2 | AD98: 11 | AE98: 18 | AF98: 20 | AG98: 15 | AH98: 17 | AI98: 18 | AJ98: 17 | AK98: 17 | AL98: 15 | AM98: 12 | AN98: 11 | AO98: 8 | AP98: 9 | AQ98: 7 | AR98: 0 | AS98: 2 | AT98: 3 | AU98: 7 | AV98: 120 | AW98: 3 | AX98: 3 | AY98: 51 | AZ98: 5 | BC98: 231 | BD98: 23 | BE98: 9 | BF98: 33 | BG98: 104 | BH98: 62
A99: 040114 | B99: AREQUIPA | C99: AREQUIPA | D99: AREQUIPA | E99: POLOBAYA | I99: 878 | J99: 13 | K99: 6 | L99: 12 | M99: 12 | N99: 17 | O99: 8 | P99: 3 | Q99: 5 | R99: 6 | S99: 7 | T99: 6 | U99: 8 | V99: 13 | W99: 8 | X99: 7 | Y99: 7 | Z99: 8 | AA99: 5 | AB99: 7 | AC99: 20 | AD99: 54 | AE99: 64 | AF99: 66 | AG99: 55 | AH99: 54 | AI99: 51 | AJ99: 54 | AK99: 73 | AL99: 66 | AM99: 56 | AN99: 43 | AO99: 20 | AP99: 22 | AQ99: 22 | AR99: 0 | AS99: 5 | AT99: 8 | AU99: 25 | AV99: 452 | AW99: 20 | AX99: 22 | AY99: 179 | AZ99: 30 | BC99: 878 | BD99: 103 | BE99: 48 | BF99: 145 | BG99: 353 | BH99: 229
F100: 1262 | G100: PUESTO DE SALUD POLOBAYA | H100: 100 | I100: 878 | J100: 13 | K100: 6 | L100: 12 | M100: 12 | N100: 17 | O100: 8 | P100: 3 | Q100: 5 | R100: 6 | S100: 7 | T100: 6 | U100: 8 | V100: 13 | W100: 8 | X100: 7 | Y100: 7 | Z100: 8 | AA100: 5 | AB100: 7 | AC100: 20 | AD100: 54 | AE100: 64 | AF100: 66 | AG100: 55 | AH100: 54 | AI100: 51 | AJ100: 54 | AK100: 73 | AL100: 66 | AM100: 56 | AN100: 43 | AO100: 20 | AP100: 22 | AQ100: 22 | AR100: 0 | AS100: 5 | AT100: 8 | AU100: 25 | AV100: 452 | AW100: 20 | AX100: 22 | AY100: 179 | AZ100: 30 | BC100: 878 | BD100: 103 | BE100: 48 | BF100: 145 | BG100: 353 | BH100: 229
A101: 040115 | B101: AREQUIPA | C101: AREQUIPA | D101: AREQUIPA | E101: QUEQUEÑA | I101: 8,720 | J101: 39 | K101: 35 | L101: 43 | M101: 53 | N101: 40 | O101: 35 | P101: 113 | Q101: 110 | R101: 67 | S101: 96 | T101: 89 | U101: 95 | V101: 111 | W101: 68 | X101: 75 | Y101: 104 | Z101: 94 | AA101: 97 | AB101: 121 | AC101: 95 | AD101: 401 | AE101: 586 | AF101: 843 | AG101: 906 | AH101: 727 | AI101: 709 | AJ101: 683 | AK101: 593 | AL101: 540 | AM101: 360 | AN101: 289 | AO101: 235 | AP101: 135 | AQ101: 133 | AR101: 3 | AS101: 21 | AT101: 18 | AU101: 99 | AV101: 4,313 | AW101: 206 | AX101: 253 | AY101: 2,166 | AZ101: 129 | BC101: 8,720 | BD101: 815 | BE101: 549 | BF101: 1,203 | BG101: 4,461 | BH101: 1,692
F102: 1286 | G102: PUESTO DE SALUD QUEQUEÑA | H102: 100 | I102: 8,720 | J102: 39 | K102: 35 | L102: 43 | M102: 53 | N102: 40 | O102: 35 | P102: 113 | Q102: 110 | R102: 67 | S102: 96 | T102: 89 | U102: 95 | V102: 111 | W102: 68 | X102: 75 | Y102: 104 | Z102: 94 | AA102: 97 | AB102: 121 | AC102: 95 | AD102: 401 | AE102: 586 | AF102: 843 | AG102: 906 | AH102: 727 | AI102: 709 | AJ102: 683 | AK102: 593 | AL102: 540 | AM102: 360 | AN102: 289 | AO102: 235 | AP102: 135 | AQ102: 133 | AR102: 3 | AS102: 21 | AT102: 18 | AU102: 99 | AV102: 4,313 | AW102: 206 | AX102: 253 | AY102: 2,166 | AZ102: 129 | BC102: 8,720 | BD102: 815 | BE102: 549 | BF102: 1,203 | BG102: 4,461 | BH102: 1,692
A103: 040116 | B103: AREQUIPA | C103: AREQUIPA | D103: AREQUIPA | E103: SABANDIA | I103: 5,241 | J103: 81 | K103: 67 | L103: 63 | M103: 100 | N103: 93 | O103: 96 | P103: 76 | Q103: 72 | R103: 89 | S103: 64 | T103: 62 | U103: 70 | V103: 74 | W103: 64 | X103: 62 | Y103: 75 | Z103: 70 | AA103: 64 | AB103: 69 | AC103: 64 | AD103: 344 | AE103: 403 | AF103: 369 | AG103: 403 | AH103: 388 | AI103: 366 | AJ103: 311 | AK103: 266 | AL103: 220 | AM103: 193 | AN103: 191 | AO103: 129 | AP103: 103 | AQ103: 80 | AR103: 1 | AS103: 45 | AT103: 36 | AU103: 164 | AV103: 2,665 | AW103: 166 | AX103: 172 | AY103: 1,168 | AZ103: 202 | BC103: 5,241 | BD103: 933 | BE103: 409 | BF103: 880 | BG103: 2,103 | BH103: 916
F104: 1284 | G104: PUESTO DE SALUD LEOPOLDO RONDON - SABANDIA | H104: 100 | I104: 5,241 | J104: 81 | K104: 67 | L104: 63 | M104: 100 | N104: 93 | O104: 96 | P104: 76 | Q104: 72 | R104: 89 | S104: 64 | T104: 62 | U104: 70 | V104: 74 | W104: 64 | X104: 62 | Y104: 75 | Z104: 70 | AA104: 64 | AB104: 69 | AC104: 64 | AD104: 344 | AE104: 403 | AF104: 369 | AG104: 403 | AH104: 388 | AI104: 366 | AJ104: 311 | AK104: 266 | AL104: 220 | AM104: 193 | AN104: 191 | AO104: 129 | AP104: 103 | AQ104: 80 | AR104: 1 | AS104: 45 | AT104: 36 | AU104: 164 | AV104: 2,665 | AW104: 166 | AX104: 172 | AY104: 1,168 | AZ104: 202 | BC104: 5,241 | BD104: 933 | BE104: 409 | BF104: 880 | BG104: 2,103 | BH104: 916
A105: 040117 | B105: AREQUIPA | C105: AREQUIPA | D105: AREQUIPA | E105: SACHACA | I105: 31,532 | J105: 365 | K105: 331 | L105: 347 | M105: 371 | N105: 429 | O105: 466 | P105: 508 | Q105: 525 | R105: 499 | S105: 471 | T105: 384 | U105: 446 | V105: 466 | W105: 470 | X105: 414 | Y105: 479 | Z105: 456 | AA105: 478 | AB105: 461 | AC105: 470 | AD105: 2,298 | AE105: 2,323 | AF105: 2,420 | AG105: 2,189 | AH105: 2,283 | AI105: 2,135 | AJ105: 1,870 | AK105: 1,708 | AL105: 1,476 | AM105: 1,296 | AN105: 1,048 | AO105: 748 | AP105: 458 | AQ105: 444 | AR105: 13 | AS105: 198 | AT105: 167 | AU105: 528 | AV105: 16,052 | AW105: 1,066 | AX105: 1,180 | AY105: 6,894 | AZ105: 669 | BC105: 31,532 | BD105: 5,142 | BE105: 2,763 | BF105: 5,552 | BG105: 12,605 | BH105: 5,470
F106: 1282 | G106: PUESTO DE SALUD SACHACA | H106: 65 | I106: 20,496 | J106: 237 | K106: 215 | L106: 226 | M106: 241 | N106: 279 | O106: 303 | P106: 330 | Q106: 341 | R106: 324 | S106: 306 | T106: 250 | U106: 290 | V106: 303 | W106: 305 | X106: 269 | Y106: 311 | Z106: 296 | AA106: 311 | AB106: 300 | AC106: 305 | AD106: 1,494 | AE106: 1,510 | AF106: 1,573 | AG106: 1,423 | AH106: 1,484 | AI106: 1,388 | AJ106: 1,215 | AK106: 1,110 | AL106: 959 | AM106: 842 | AN106: 681 | AO106: 486 | AP106: 298 | AQ106: 289 | AR106: 8 | AS106: 129 | AT106: 109 | AU106: 343 | AV106: 10,434 | AW106: 693 | AX106: 767 | AY106: 4,481 | AZ106: 435 | BC106: 20,496 | BD106: 3,342 | BE106: 1,796 | BF106: 3,609 | BG106: 8,193 | BH106: 3,555
F107: 1283 | G107: PUESTO DE SALUD PAMPA DE CAMARONES | H107: 35 | I107: 11,036 | J107: 128 | K107: 116 | L107: 121 | M107: 130 | N107: 150 | O107: 163 | P107: 178 | Q107: 184 | R107: 175 | S107: 165 | T107: 134 | U107: 156 | V107: 163 | W107: 165 | X107: 145 | Y107: 168 | Z107: 160 | AA107: 167 | AB107: 161 | AC107: 165 | AD107: 804 | AE107: 813 | AF107: 847 | AG107: 766 | AH107: 799 | AI107: 747 | AJ107: 655 | AK107: 598 | AL107: 517 | AM107: 454 | AN107: 367 | AO107: 262 | AP107: 160 | AQ107: 155 | AR107: 5 | AS107: 69 | AT107: 58 | AU107: 185 | AV107: 5,618 | AW107: 373 | AX107: 413 | AY107: 2,413 | AZ107: 234 | BC107: 11,036 | BD107: 1,800 | BE107: 967 | BF107: 1,943 | BG107: 4,412 | BH107: 1,915
A108: 040118 | B108: AREQUIPA | C108: AREQUIPA | D108: AREQUIPA | E108: SAN JUAN DE SIGUAS | I108: 597 | J108: 6 | K108: 5 | L108: 10 | M108: 11 | N108: 9 | O108: 6 | P108: 4 | Q108: 7 | R108: 4 | S108: 6 | T108: 9 | U108: 9 | V108: 9 | W108: 3 | X108: 3 | Y108: 3 | Z108: 11 | AA108: 5 | AB108: 7 | AC108: 6 | AD108: 40 | AE108: 43 | AF108: 47 | AG108: 36 | AH108: 43 | AI108: 33 | AJ108: 47 | AK108: 46 | AL108: 36 | AM108: 37 | AN108: 24 | AO108: 14 | AP108: 7 | AQ108: 11 | AR108: 1 | AS108: 5 | AT108: 1 | AU108: 17 | AV108: 331 | AW108: 22 | AX108: 18 | AY108: 135 | AZ108: 49 | BC108: 597 | BD108: 86 | BE108: 34 | BF108: 96 | BG108: 252 | BH108: 129
F109: 1339 | G109: PUESTO DE SALUD SAN JUAN DE SIGUAS - TAMBILLO | H109: 100 | I109: 597 | J109: 6 | K109: 5 | L109: 10 | M109: 11 | N109: 9 | O109: 6 | P109: 4 | Q109: 7 | R109: 4 | S109: 6 | T109: 9 | U109: 9 | V109: 9 | W109: 3 | X109: 3 | Y109: 3 | Z109: 11 | AA109: 5 | AB109: 7 | AC109: 6 | AD109: 40 | AE109: 43 | AF109: 47 | AG109: 36 | AH109: 43 | AI109: 33 | AJ109: 47 | AK109: 46 | AL109: 36 | AM109: 37 | AN109: 24 | AO109: 14 | AP109: 7 | AQ109: 11 | AR109: 1 | AS109: 5 | AT109: 1 | AU109: 17 | AV109: 331 | AW109: 22 | AX109: 18 | AY109: 135 | AZ109: 49 | BC109: 597 | BD109: 86 | BE109: 34 | BF109: 96 | BG109: 252 | BH109: 129
A110: 040119 | B110: AREQUIPA | C110: AREQUIPA | D110: AREQUIPA | E110: SAN JUAN DE TARUCANI | I110: 1,377 | J110: 20 | K110: 15 | L110: 27 | M110: 18 | N110: 27 | O110: 23 | P110: 7 | Q110: 10 | R110: 9 | S110: 9 | T110: 10 | U110: 6 | V110: 6 | W110: 21 | X110: 6 | Y110: 17 | Z110: 9 | AA110: 15 | AB110: 13 | AC110: 13 | AD110: 69 | AE110: 98 | AF110: 97 | AG110: 108 | AH110: 128 | AI110: 104 | AJ110: 97 | AK110: 106 | AL110: 82 | AM110: 64 | AN110: 47 | AO110: 35 | AP110: 31 | AQ110: 30 | AR110: 0 | AS110: 13 | AT110: 8 | AU110: 29 | AV110: 723 | AW110: 23 | AX110: 34 | AY110: 337 | AZ110: 49 | BC110: 1,377 | BD110: 181 | BE110: 74 | BF110: 193 | BG110: 640 | BH110: 289
F111: 1319 | G111: PUESTO DE SALUD SAN JUAN DE TARUCANI | H111: 80 | I111: 1,102 | J111: 16 | K111: 12 | L111: 22 | M111: 14 | N111: 22 | O111: 18 | P111: 6 | Q111: 8 | R111: 7 | S111: 7 | T111: 8 | U111: 5 | V111: 5 | W111: 17 | X111: 5 | Y111: 14 | Z111: 7 | AA111: 12 | AB111: 10 | AC111: 10 | AD111: 55 | AE111: 78 | AF111: 78 | AG111: 86 | AH111: 102 | AI111: 83 | AJ111: 78 | AK111: 85 | AL111: 66 | AM111: 51 | AN111: 38 | AO111: 28 | AP111: 25 | AQ111: 24 | AR111: 0 | AS111: 10 | AT111: 6 | AU111: 23 | AV111: 578 | AW111: 18 | AX111: 27 | AY111: 270 | AZ111: 39 | BC111: 1,102 | BD111: 145 | BE111: 59 | BF111: 154 | BG111: 512 | BH111: 231
F112: 1321 | G112: PUESTO DE SALUD SALINAS HUITO | H112: 20 | I112: 275 | J112: 4 | K112: 3 | L112: 5 | M112: 4 | N112: 5 | O112: 5 | P112: 1 | Q112: 2 | R112: 2 | S112: 2 | T112: 2 | U112: 1 | V112: 1 | W112: 4 | X112: 1 | Y112: 3 | Z112: 2 | AA112: 3 | AB112: 3 | AC112: 3 | AD112: 14 | AE112: 20 | AF112: 19 | AG112: 22 | AH112: 26 | AI112: 21 | AJ112: 19 | AK112: 21 | AL112: 16 | AM112: 13 | AN112: 9 | AO112: 7 | AP112: 6 | AQ112: 6 | AR112: 0 | AS112: 3 | AT112: 2 | AU112: 6 | AV112: 145 | AW112: 5 | AX112: 7 | AY112: 67 | AZ112: 10 | BC112: 275 | BD112: 36 | BE112: 15 | BF112: 39 | BG112: 128 | BH112: 58
A113: 040120 | B113: AREQUIPA | C113: AREQUIPA | D113: AREQUIPA | E113: SANTA ISABEL DE SIGUAS | I113: 705 | J113: 8 | K113: 3 | L113: 5 | M113: 4 | N113: 13 | O113: 7 | P113: 10 | Q113: 11 | R113: 9 | S113: 6 | T113: 10 | U113: 10 | V113: 9 | W113: 12 | X113: 2 | Y113: 10 | Z113: 10 | AA113: 15 | AB113: 6 | AC113: 9 | AD113: 52 | AE113: 48 | AF113: 53 | AG113: 35 | AH113: 37 | AI113: 46 | AJ113: 52 | AK113: 46 | AL113: 46 | AM113: 38 | AN113: 26 | AO113: 23 | AP113: 18 | AQ113: 16 | AR113: 0 | AS113: 4 | AT113: 4 | AU113: 9 | AV113: 377 | AW113: 29 | AX113: 25 | AY113: 147 | AZ113: 15 | BC113: 705 | BD113: 96 | BE113: 58 | BF113: 115 | BG113: 269 | BH113: 167
F114: 1336 | G114: SANTA ISABEL DE SIGUAS | H114: 74 | I114: 521 | J114: 6 | K114: 3 | L114: 3 | M114: 2 | N114: 9 | O114: 5 | P114: 8 | Q114: 9 | R114: 7 | S114: 4 | T114: 8 | U114: 8 | V114: 7 | W114: 8 | X114: 2 | Y114: 8 | Z114: 8 | AA114: 11 | AB114: 4 | AC114: 7 | AD114: 38 | AE114: 36 | AF114: 39 | AG114: 25 | AH114: 27 | AI114: 34 | AJ114: 38 | AK114: 34 | AL114: 34 | AM114: 28 | AN114: 20 | AO114: 17 | AP114: 14 | AQ114: 12 | AR114: 0 | AS114: 2 | AT114: 2 | AU114: 7 | AV114: 279 | AW114: 21 | AX114: 19 | AY114: 109 | AZ114: 11 | BC114: 521 | BD114: 72 | BE114: 42 | BF114: 85 | BG114: 199 | BH114: 123
F115: 1378 | G115: PUESTO DE SALUD SONDOR | H115: 13 | I115: 92 | J115: 1 | K115: 0 | L115: 1 | M115: 1 | N115: 2 | O115: 1 | P115: 1 | Q115: 1 | R115: 1 | S115: 1 | T115: 1 | U115: 1 | V115: 1 | W115: 2 | X115: 0 | Y115: 1 | Z115: 1 | AA115: 2 | AB115: 1 | AC115: 1 | AD115: 7 | AE115: 6 | AF115: 7 | AG115: 5 | AH115: 5 | AI115: 6 | AJ115: 7 | AK115: 6 | AL115: 6 | AM115: 5 | AN115: 3 | AO115: 3 | AP115: 2 | AQ115: 2 | AR115: 0 | AS115: 1 | AT115: 1 | AU115: 1 | AV115: 49 | AW115: 4 | AX115: 3 | AY115: 19 | AZ115: 2 | BC115: 92 | BD115: 12 | BE115: 8 | BF115: 15 | BG115: 35 | BH115: 22
F116: 1337 | G116: PUESTO DE SALUD PITAY | H116: 13 | I116: 92 | J116: 1 | K116: 0 | L116: 1 | M116: 1 | N116: 2 | O116: 1 | P116: 1 | Q116: 1 | R116: 1 | S116: 1 | T116: 1 | U116: 1 | V116: 1 | W116: 2 | X116: 0 | Y116: 1 | Z116: 1 | AA116: 2 | AB116: 1 | AC116: 1 | AD116: 7 | AE116: 6 | AF116: 7 | AG116: 5 | AH116: 5 | AI116: 6 | AJ116: 7 | AK116: 6 | AL116: 6 | AM116: 5 | AN116: 3 | AO116: 3 | AP116: 2 | AQ116: 2 | AR116: 0 | AS116: 1 | AT116: 1 | AU116: 1 | AV116: 49 | AW116: 4 | AX116: 3 | AY116: 19 | AZ116: 2 | BC116: 92 | BD116: 12 | BE116: 8 | BF116: 15 | BG116: 35 | BH116: 22
A117: 040121 | B117: AREQUIPA | C117: AREQUIPA | D117: AREQUIPA | E117: SANTA RITA DE SIGUAS | I117: 8,744 | J117: 93 | K117: 86 | L117: 100 | M117: 104 | N117: 112 | O117: 98 | P117: 165 | Q117: 176 | R117: 140 | S117: 141 | T117: 143 | U117: 138 | V117: 145 | W117: 147 | X117: 123 | Y117: 163 | Z117: 129 | AA117: 130 | AB117: 139 | AC117: 164 | AD117: 713 | AE117: 887 | AF117: 912 | AG117: 791 | AH117: 682 | AI117: 504 | AJ117: 397 | AK117: 385 | AL117: 314 | AM117: 176 | AN117: 148 | AO117: 96 | AP117: 58 | AQ117: 45 | AR117: 1 | AS117: 39 | AT117: 54 | AU117: 175 | AV117: 4,505 | AW117: 357 | AX117: 374 | AY117: 2,317 | AZ117: 250 | BC117: 8,744 | BD117: 1,496 | BE117: 837 | BF117: 1,903 | BG117: 3,671 | BH117: 837
F118: 1335 | G118: CENTRO DE SALUD SANTA RITA DE SIGUAS | H118: 100 | I118: 8,744 | J118: 93 | K118: 86 | L118: 100 | M118: 104 | N118: 112 | O118: 98 | P118: 165 | Q118: 176 | R118: 140 | S118: 141 | T118: 143 | U118: 138 | V118: 145 | W118: 147 | X118: 123 | Y118: 163 | Z118: 129 | AA118: 130 | AB118: 139 | AC118: 164 | AD118: 713 | AE118: 887 | AF118: 912 | AG118: 791 | AH118: 682 | AI118: 504 | AJ118: 397 | AK118: 385 | AL118: 314 | AM118: 176 | AN118: 148 | AO118: 96 | AP118: 58 | AQ118: 45 | AR118: 1 | AS118: 39 | AT118: 54 | AU118: 175 | AV118: 4,505 | AW118: 357 | AX118: 374 | AY118: 2,317 | AZ118: 250 | BC118: 8,744 | BD118: 1,496 | BE118: 837 | BF118: 1,903 | BG118: 3,671 | BH118: 837
A119: 040122 | B119: AREQUIPA | C119: AREQUIPA | D119: AREQUIPA | E119: SOCABAYA | I119: 91,530 | J119: 714 | K119: 717 | L119: 656 | M119: 779 | N119: 935 | O119: 1,096 | P119: 1,400 | Q119: 1,467 | R119: 1,472 | S119: 1,494 | T119: 1,262 | U119: 1,386 | V119: 1,366 | W119: 1,404 | X119: 1,181 | Y119: 1,393 | Z119: 1,500 | AA119: 1,395 | AB119: 1,474 | AC119: 1,482 | AD119: 7,238 | AE119: 7,799 | AF119: 7,445 | AG119: 6,681 | AH119: 6,788 | AI119: 6,350 | AJ119: 5,407 | AK119: 4,965 | AL119: 4,274 | AM119: 3,565 | AN119: 2,616 | AO119: 1,802 | AP119: 1,041 | AQ119: 986 | AR119: 20 | AS119: 356 | AT119: 358 | AU119: 1,216 | AV119: 46,307 | AW119: 3,357 | AX119: 3,567 | AY119: 21,293 | AZ119: 1,445 | BC119: 91,530 | BD119: 13,378 | BE119: 8,239 | BF119: 17,993 | BG119: 37,636 | BH119: 14,284
F120: 1258 | G120: CENTRO DE SALUD SAN MARTIN DE SOCABAYA | H120: 21 | I120: 19,220 | J120: 150 | K120: 150 | L120: 138 | M120: 163 | N120: 196 | O120: 230 | P120: 294 | Q120: 308 | R120: 309 | S120: 314 | T120: 265 | U120: 291 | V120: 286 | W120: 295 | X120: 248 | Y120: 292 | Z120: 315 | AA120: 293 | AB120: 309 | AC120: 312 | AD120: 1,520 | AE120: 1,637 | AF120: 1,564 | AG120: 1,403 | AH120: 1,425 | AI120: 1,333 | AJ120: 1,136 | AK120: 1,043 | AL120: 897 | AM120: 749 | AN120: 549 | AO120: 380 | AP120: 218 | AQ120: 207 | AR120: 5 | AS120: 75 | AT120: 76 | AU120: 255 | AV120: 9,725 | AW120: 706 | AX120: 749 | AY120: 4,471 | AZ120: 304 | BC120: 19,220 | BD120: 2,810 | BE120: 1,730 | BF120: 3,778 | BG120: 7,904 | BH120: 3,000
F121: 1269 | G121: PUESTO DE SALUD CIUDAD MI TRABAJO | H121: 16 | I121: 14,645 | J121: 114 | K121: 115 | L121: 105 | M121: 125 | N121: 150 | O121: 175 | P121: 224 | Q121: 235 | R121: 236 | S121: 239 | T121: 202 | U121: 222 | V121: 219 | W121: 225 | X121: 189 | Y121: 223 | Z121: 240 | AA121: 223 | AB121: 236 | AC121: 237 | AD121: 1,158 | AE121: 1,248 | AF121: 1,191 | AG121: 1,069 | AH121: 1,086 | AI121: 1,016 | AJ121: 865 | AK121: 794 | AL121: 684 | AM121: 570 | AN121: 419 | AO121: 288 | AP121: 167 | AQ121: 158 | AR121: 3 | AS121: 57 | AT121: 57 | AU121: 195 | AV121: 7,409 | AW121: 537 | AX121: 571 | AY121: 3,407 | AZ121: 231 | BC121: 14,645 | BD121: 2,140 | BE121: 1,318 | BF121: 2,879 | BG121: 6,022 | BH121: 2,285
F122: 1270 | G122: PUESTO DE SALUD LARA | H122: 16 | I122: 14,645 | J122: 114 | K122: 115 | L122: 105 | M122: 125 | N122: 150 | O122: 175 | P122: 224 | Q122: 235 | R122: 236 | S122: 239 | T122: 202 | U122: 222 | V122: 219 | W122: 225 | X122: 189 | Y122: 223 | Z122: 240 | AA122: 223 | AB122: 236 | AC122: 237 | AD122: 1,158 | AE122: 1,248 | AF122: 1,191 | AG122: 1,069 | AH122: 1,086 | AI122: 1,016 | AJ122: 865 | AK122: 794 | AL122: 684 | AM122: 570 | AN122: 419 | AO122: 288 | AP122: 167 | AQ122: 158 | AR122: 3 | AS122: 57 | AT122: 57 | AU122: 195 | AV122: 7,409 | AW122: 537 | AX122: 571 | AY122: 3,407 | AZ122: 231 | BC122: 14,645 | BD122: 2,140 | BE122: 1,318 | BF122: 2,879 | BG122: 6,022 | BH122: 2,285
F123: 1271 | G123: CENTRO DE SALUD SAN FERNANDO | H123: 6 | I123: 5,492 | J123: 43 | K123: 43 | L123: 39 | M123: 47 | N123: 56 | O123: 66 | P123: 84 | Q123: 88 | R123: 88 | S123: 90 | T123: 76 | U123: 83 | V123: 82 | W123: 84 | X123: 71 | Y123: 84 | Z123: 90 | AA123: 84 | AB123: 88 | AC123: 89 | AD123: 434 | AE123: 468 | AF123: 447 | AG123: 401 | AH123: 407 | AI123: 381 | AJ123: 324 | AK123: 298 | AL123: 256 | AM123: 214 | AN123: 157 | AO123: 108 | AP123: 62 | AQ123: 59 | AR123: 1 | AS123: 21 | AT123: 21 | AU123: 73 | AV123: 2,778 | AW123: 201 | AX123: 214 | AY123: 1,278 | AZ123: 87 | BC123: 5,492 | BD123: 803 | BE123: 494 | BF123: 1,080 | BG123: 2,258 | BH123: 857
F124: 1272 | G124: PUESTO DE SALUD SALAVERRY | H124: 12 | I124: 10,984 | J124: 86 | K124: 86 | L124: 79 | M124: 93 | N124: 112 | O124: 132 | P124: 168 | Q124: 176 | R124: 177 | S124: 179 | T124: 151 | U124: 166 | V124: 164 | W124: 168 | X124: 142 | Y124: 167 | Z124: 180 | AA124: 167 | AB124: 177 | AC124: 178 | AD124: 869 | AE124: 936 | AF124: 893 | AG124: 802 | AH124: 815 | AI124: 762 | AJ124: 649 | AK124: 596 | AL124: 513 | AM124: 428 | AN124: 314 | AO124: 216 | AP124: 125 | AQ124: 118 | AR124: 2 | AS124: 43 | AT124: 43 | AU124: 146 | AV124: 5,557 | AW124: 403 | AX124: 428 | AY124: 2,555 | AZ124: 173 | BC124: 10,984 | BD124: 1,605 | BE124: 989 | BF124: 2,159 | BG124: 4,516 | BH124: 1,714
F125: 1268 | G125: CENTRO DE SALUD 4 DE OCTUBRE | H125: 20 | I125: 18,306 | J125: 143 | K125: 143 | L125: 131 | M125: 156 | N125: 187 | O125: 219 | P125: 280 | Q125: 293 | R125: 294 | S125: 299 | T125: 252 | U125: 277 | V125: 273 | W125: 281 | X125: 236 | Y125: 279 | Z125: 300 | AA125: 279 | AB125: 295 | AC125: 296 | AD125: 1,448 | AE125: 1,560 | AF125: 1,489 | AG125: 1,336 | AH125: 1,358 | AI125: 1,270 | AJ125: 1,081 | AK125: 993 | AL125: 855 | AM125: 713 | AN125: 523 | AO125: 360 | AP125: 208 | AQ125: 197 | AR125: 4 | AS125: 71 | AT125: 72 | AU125: 243 | AV125: 9,261 | AW125: 671 | AX125: 713 | AY125: 4,259 | AZ125: 289 | BC125: 18,306 | BD125: 2,676 | BE125: 1,648 | BF125: 3,599 | BG125: 7,527 | BH125: 2,857
F126: 23338 | G126: PUESTO DE SALUD HORACIO ZEBALLOS GÁMEZ | H126: 9 | I126: 8,238 | J126: 64 | K126: 65 | L126: 59 | M126: 70 | N126: 84 | O126: 99 | P126: 126 | Q126: 132 | R126: 132 | S126: 134 | T126: 114 | U126: 125 | V126: 123 | W126: 126 | X126: 106 | Y126: 125 | Z126: 135 | AA126: 126 | AB126: 133 | AC126: 133 | AD126: 651 | AE126: 702 | AF126: 670 | AG126: 601 | AH126: 611 | AI126: 572 | AJ126: 487 | AK126: 447 | AL126: 385 | AM126: 321 | AN126: 235 | AO126: 162 | AP126: 94 | AQ126: 89 | AR126: 2 | AS126: 32 | AT126: 32 | AU126: 109 | AV126: 4,168 | AW126: 302 | AX126: 321 | AY126: 1,916 | AZ126: 130 | BC126: 8,238 | BD126: 1,204 | BE126: 742 | BF126: 1,619 | BG126: 3,387 | BH126: 1,286
A127: 040123 | B127: AREQUIPA | C127: AREQUIPA | D127: AREQUIPA | E127: TIABAYA | I127: 19,123 | J127: 262 | K127: 261 | L127: 252 | M127: 232 | N127: 298 | O127: 272 | P127: 293 | Q127: 358 | R127: 286 | S127: 282 | T127: 231 | U127: 258 | V127: 298 | W127: 245 | X127: 248 | Y127: 264 | Z127: 257 | AA127: 292 | AB127: 245 | AC127: 279 | AD127: 1,382 | AE127: 1,626 | AF127: 1,620 | AG127: 1,469 | AH127: 1,435 | AI127: 1,260 | AJ127: 1,056 | AK127: 995 | AL127: 812 | AM127: 643 | AN127: 527 | AO127: 392 | AP127: 242 | AQ127: 251 | AR127: 8 | AS127: 121 | AT127: 141 | AU127: 380 | AV127: 9,858 | AW127: 659 | AX127: 705 | AY127: 4,414 | AZ127: 720 | BC127: 19,123 | BD127: 3,285 | BE127: 1,604 | BF127: 3,532 | BG127: 7,835 | BH127: 2,867
F128: 1260 | G128: CENTRO DE SALUD TIABAYA | H128: 100 | I128: 19,123 | J128: 262 | K128: 261 | L128: 252 | M128: 232 | N128: 298 | O128: 272 | P128: 293 | Q128: 358 | R128: 286 | S128: 282 | T128: 231 | U128: 258 | V128: 298 | W128: 245 | X128: 248 | Y128: 264 | Z128: 257 | AA128: 292 | AB128: 245 | AC128: 279 | AD128: 1,382 | AE128: 1,626 | AF128: 1,620 | AG128: 1,469 | AH128: 1,435 | AI128: 1,260 | AJ128: 1,056 | AK128: 995 | AL128: 812 | AM128: 643 | AN128: 527 | AO128: 392 | AP128: 242 | AQ128: 251 | AR128: 8 | AS128: 121 | AT128: 141 | AU128: 380 | AV128: 9,858 | AW128: 659 | AX128: 705 | AY128: 4,414 | AZ128: 720 | BC128: 19,123 | BD128: 3,285 | BE128: 1,604 | BF128: 3,532 | BG128: 7,835 | BH128: 2,867
A129: 040124 | B129: AREQUIPA | C129: AREQUIPA | D129: AREQUIPA | E129: UCHUMAYO | I129: 18,826 | J129: 212 | K129: 214 | L129: 222 | M129: 202 | N129: 247 | O129: 266 | P129: 305 | Q129: 293 | R129: 276 | S129: 257 | T129: 251 | U129: 251 | V129: 286 | W129: 242 | X129: 213 | Y129: 258 | Z129: 260 | AA129: 249 | AB129: 271 | AC129: 262 | AD129: 1,212 | AE129: 1,631 | AF129: 1,660 | AG129: 1,627 | AH129: 1,608 | AI129: 1,361 | AJ129: 1,105 | AK129: 1,008 | AL129: 830 | AM129: 670 | AN129: 460 | AO129: 309 | AP129: 183 | AQ129: 125 | AR129: 13 | AS129: 97 | AT129: 115 | AU129: 282 | AV129: 9,923 | AW129: 687 | AX129: 698 | AY129: 4,667 | AZ129: 534 | BC129: 18,826 | BD129: 2,996 | BE129: 1,508 | BF129: 3,376 | BG129: 8,369 | BH129: 2,577
F130: 1280 | G130: CERRO VERDE | H130: 43.5 | I130: 8,190 | J130: 92 | K130: 93 | L130: 96 | M130: 88 | N130: 108 | O130: 115 | P130: 132 | Q130: 128 | R130: 120 | S130: 112 | T130: 109 | U130: 109 | V130: 125 | W130: 106 | X130: 92 | Y130: 112 | Z130: 113 | AA130: 109 | AB130: 118 | AC130: 114 | AD130: 527 | AE130: 710 | AF130: 722 | AG130: 707 | AH130: 700 | AI130: 592 | AJ130: 480 | AK130: 439 | AL130: 361 | AM130: 292 | AN130: 200 | AO130: 135 | AP130: 79 | AQ130: 55 | AR130: 5 | AS130: 42 | AT130: 50 | AU130: 122 | AV130: 4,316 | AW130: 299 | AX130: 303 | AY130: 2,030 | AZ130: 233 | BC130: 8,190 | BD130: 1,304 | BE130: 656 | BF130: 1,468 | BG130: 3,640 | BH130: 1,121
F131: 1281 | G131: CONGATA | H131: 43.5 | I131: 8,189 | J131: 92 | K131: 93 | L131: 97 | M131: 88 | N131: 107 | O131: 116 | P131: 133 | Q131: 127 | R131: 120 | S131: 112 | T131: 109 | U131: 109 | V131: 124 | W131: 105 | X131: 93 | Y131: 112 | Z131: 113 | AA131: 108 | AB131: 118 | AC131: 114 | AD131: 527 | AE131: 709 | AF131: 722 | AG131: 708 | AH131: 699 | AI131: 592 | AJ131: 481 | AK131: 438 | AL131: 361 | AM131: 291 | AN131: 200 | AO131: 134 | AP131: 80 | AQ131: 54 | AR131: 6 | AS131: 42 | AT131: 50 | AU131: 123 | AV131: 4,317 | AW131: 299 | AX131: 304 | AY131: 2,030 | AZ131: 232 | BC131: 8,189 | BD131: 1,303 | BE131: 656 | BF131: 1,469 | BG131: 3,641 | BH131: 1,121
F132: 1290 | G132: UCHUMAYO | H132: 13 | I132: 2,447 | J132: 28 | K132: 28 | L132: 29 | M132: 26 | N132: 32 | O132: 35 | P132: 40 | Q132: 38 | R132: 36 | S132: 33 | T132: 33 | U132: 33 | V132: 37 | W132: 31 | X132: 28 | Y132: 34 | Z132: 34 | AA132: 32 | AB132: 35 | AC132: 34 | AD132: 158 | AE132: 212 | AF132: 216 | AG132: 212 | AH132: 209 | AI132: 177 | AJ132: 144 | AK132: 131 | AL132: 108 | AM132: 87 | AN132: 60 | AO132: 40 | AP132: 24 | AQ132: 16 | AR132: 2 | AS132: 13 | AT132: 15 | AU132: 37 | AV132: 1,290 | AW132: 89 | AX132: 91 | AY132: 607 | AZ132: 69 | BC132: 2,447 | BD132: 389 | BE132: 196 | BF132: 439 | BG132: 1,088 | BH132: 335
A133: 040125 | B133: AREQUIPA | C133: AREQUIPA | D133: AREQUIPA | E133: VITOR | I133: 5,469 | J133: 67 | K133: 52 | L133: 37 | M133: 38 | N133: 36 | O133: 34 | P133: 60 | Q133: 87 | R133: 70 | S133: 74 | T133: 63 | U133: 67 | V133: 72 | W133: 97 | X133: 71 | Y133: 97 | Z133: 92 | AA133: 103 | AB133: 100 | AC133: 97 | AD133: 420 | AE133: 464 | AF133: 434 | AG133: 419 | AH133: 384 | AI133: 332 | AJ133: 308 | AK133: 329 | AL133: 289 | AM133: 234 | AN133: 176 | AO133: 104 | AP133: 82 | AQ133: 80 | AR133: 0 | AS133: 28 | AT133: 39 | AU133: 87 | AV133: 2,837 | AW133: 206 | AX133: 263 | AY133: 1,307 | AZ133: 97 | BC133: 5,469 | BD133: 685 | BE133: 532 | BF133: 1,081 | BG133: 2,206 | BH133: 965
F134: 1324 | G134: CENTRO DE SALUD VITOR | H134: 80 | I134: 4,375 | J134: 54 | K134: 42 | L134: 30 | M134: 30 | N134: 29 | O134: 27 | P134: 48 | Q134: 70 | R134: 56 | S134: 59 | T134: 50 | U134: 54 | V134: 58 | W134: 78 | X134: 57 | Y134: 78 | Z134: 74 | AA134: 82 | AB134: 80 | AC134: 78 | AD134: 336 | AE134: 371 | AF134: 347 | AG134: 335 | AH134: 307 | AI134: 266 | AJ134: 246 | AK134: 263 | AL134: 231 | AM134: 187 | AN134: 141 | AO134: 83 | AP134: 66 | AQ134: 64 | AR134: 0 | AS134: 22 | AT134: 31 | AU134: 70 | AV134: 2,270 | AW134: 165 | AX134: 210 | AY134: 1,046 | AZ134: 78 | BC134: 4,375 | BD134: 548 | BE134: 426 | BF134: 865 | BG134: 1,765 | BH134: 772
F135: 1334 | G135: PUESTO DE SALUD YURAMAYO | H135: 20 | I135: 1,094 | J135: 13 | K135: 10 | L135: 7 | M135: 8 | N135: 7 | O135: 7 | P135: 12 | Q135: 17 | R135: 14 | S135: 15 | T135: 13 | U135: 13 | V135: 14 | W135: 19 | X135: 14 | Y135: 19 | Z135: 18 | AA135: 21 | AB135: 20 | AC135: 19 | AD135: 84 | AE135: 93 | AF135: 87 | AG135: 84 | AH135: 77 | AI135: 66 | AJ135: 62 | AK135: 66 | AL135: 58 | AM135: 47 | AN135: 35 | AO135: 21 | AP135: 16 | AQ135: 16 | AR135: 0 | AS135: 6 | AT135: 8 | AU135: 17 | AV135: 567 | AW135: 41 | AX135: 53 | AY135: 261 | AZ135: 19 | BC135: 1,094 | BD135: 137 | BE135: 106 | BF135: 216 | BG135: 441 | BH135: 193
A136: 040126 | B136: AREQUIPA | C136: AREQUIPA | D136: AREQUIPA | E136: YANAHUARA | I136: 30,515 | J136: 277 | K136: 181 | L136: 225 | M136: 306 | N136: 411 | O136: 431 | P136: 386 | Q136: 369 | R136: 403 | S136: 421 | T136: 370 | U136: 331 | V136: 352 | W136: 342 | X136: 313 | Y136: 331 | Z136: 365 | AA136: 328 | AB136: 366 | AC136: 386 | AD136: 1,676 | AE136: 1,923 | AF136: 2,069 | AG136: 1,938 | AH136: 2,067 | AI136: 2,197 | AJ136: 2,080 | AK136: 1,998 | AL136: 1,909 | AM136: 1,626 | AN136: 1,442 | AO136: 1,090 | AP136: 751 | AQ136: 855 | AR136: 6 | AS136: 160 | AT136: 117 | AU136: 369 | AV136: 15,023 | AW136: 748 | AX136: 774 | AY136: 5,869 | AZ136: 545 | BC136: 30,515 | BD136: 4,111 | BE136: 2,031 | BF136: 4,351 | BG136: 12,349 | BH136: 7,673
F137: 1233 | G137: CENTRO DE SALUD YANAHUARA | H137: 38 | I137: 11,596 | J137: 105 | K137: 69 | L137: 86 | M137: 116 | N137: 156 | O137: 164 | P137: 147 | Q137: 140 | R137: 153 | S137: 160 | T137: 141 | U137: 126 | V137: 134 | W137: 130 | X137: 119 | Y137: 126 | Z137: 139 | AA137: 125 | AB137: 139 | AC137: 147 | AD137: 637 | AE137: 731 | AF137: 786 | AG137: 736 | AH137: 785 | AI137: 835 | AJ137: 790 | AK137: 759 | AL137: 725 | AM137: 618 | AN137: 548 | AO137: 414 | AP137: 285 | AQ137: 325 | AR137: 2 | AS137: 61 | AT137: 44 | AU137: 140 | AV137: 5,709 | AW137: 284 | AX137: 294 | AY137: 2,230 | AZ137: 207 | BC137: 11,596 | BD137: 1,562 | BE137: 772 | BF137: 1,653 | BG137: 4,693 | BH137: 2,916
F138: 1241 | G138: PUESTO DE SALUD SUMBAY - CHASQUIPAMPA | H138: 4 | I138: 1,221 | J138: 11 | K138: 7 | L138: 9 | M138: 12 | N138: 16 | O138: 17 | P138: 15 | Q138: 15 | R138: 16 | S138: 17 | T138: 15 | U138: 13 | V138: 14 | W138: 14 | X138: 13 | Y138: 13 | Z138: 15 | AA138: 13 | AB138: 15 | AC138: 15 | AD138: 67 | AE138: 77 | AF138: 83 | AG138: 78 | AH138: 83 | AI138: 88 | AJ138: 83 | AK138: 80 | AL138: 76 | AM138: 65 | AN138: 58 | AO138: 44 | AP138: 30 | AQ138: 34 | AR138: 0 | AS138: 6 | AT138: 5 | AU138: 15 | AV138: 601 | AW138: 30 | AX138: 31 | AY138: 235 | AZ138: 22 | BC138: 1,221 | BD138: 164 | BE138: 81 | BF138: 174 | BG138: 494 | BH138: 307
G139: NO MINSA | H139: 58 | I139: 17,698 | J139: 161 | K139: 105 | L139: 130 | M139: 178 | N139: 239 | O139: 250 | P139: 224 | Q139: 214 | R139: 234 | S139: 244 | T139: 214 | U139: 192 | V139: 204 | W139: 198 | X139: 181 | Y139: 192 | Z139: 211 | AA139: 190 | AB139: 212 | AC139: 224 | AD139: 972 | AE139: 1,115 | AF139: 1,200 | AG139: 1,124 | AH139: 1,199 | AI139: 1,274 | AJ139: 1,207 | AK139: 1,159 | AL139: 1,108 | AM139: 943 | AN139: 836 | AO139: 632 | AP139: 436 | AQ139: 496 | AR139: 4 | AS139: 93 | AT139: 68 | AU139: 214 | AV139: 8,713 | AW139: 434 | AX139: 449 | AY139: 3,404 | AZ139: 316 | BC139: 17,698 | BD139: 2,385 | BE139: 1,178 | BF139: 2,524 | BG139: 7,162 | BH139: 4,450
A140: 040127 | B140: AREQUIPA | C140: AREQUIPA | D140: AREQUIPA | E140: YARABAMBA | I140: 1,977 | J140: 50 | K140: 44 | L140: 40 | M140: 31 | N140: 37 | O140: 22 | P140: 15 | Q140: 21 | R140: 17 | S140: 14 | T140: 16 | U140: 18 | V140: 13 | W140: 16 | X140: 11 | Y140: 20 | Z140: 16 | AA140: 17 | AB140: 28 | AC140: 20 | AD140: 116 | AE140: 167 | AF140: 196 | AG140: 155 | AH140: 155 | AI140: 163 | AJ140: 123 | AK140: 117 | AL140: 97 | AM140: 70 | AN140: 63 | AO140: 35 | AP140: 25 | AQ140: 29 | AR140: 2 | AS140: 28 | AT140: 22 | AU140: 76 | AV140: 1,093 | AW140: 46 | AX140: 55 | AY140: 515 | AZ140: 86 | BC140: 1,977 | BD140: 325 | BE140: 93 | BF140: 331 | BG140: 909 | BH140: 319
F141: 1287 | G141: PUESTO DE SALUD YARABAMBA | H141: 100 | I141: 1,977 | J141: 50 | K141: 44 | L141: 40 | M141: 31 | N141: 37 | O141: 22 | P141: 15 | Q141: 21 | R141: 17 | S141: 14 | T141: 16 | U141: 18 | V141: 13 | W141: 16 | X141: 11 | Y141: 20 | Z141: 16 | AA141: 17 | AB141: 28 | AC141: 20 | AD141: 116 | AE141: 167 | AF141: 196 | AG141: 155 | AH141: 155 | AI141: 163 | AJ141: 123 | AK141: 117 | AL141: 97 | AM141: 70 | AN141: 63 | AO141: 35 | AP141: 25 | AQ141: 29 | AR141: 2 | AS141: 28 | AT141: 22 | AU141: 76 | AV141: 1,093 | AW141: 46 | AX141: 55 | AY141: 515 | AZ141: 86 | BC141: 1,977 | BD141: 325 | BE141: 93 | BF141: 331 | BG141: 909 | BH141: 319
A142: 040128 | B142: AREQUIPA | C142: AREQUIPA | D142: AREQUIPA | E142: YURA | I142: 48,226 | J142: 594 | K142: 563 | L142: 619 | M142: 609 | N142: 766 | O142: 886 | P142: 997 | Q142: 927 | R142: 909 | S142: 788 | T142: 817 | U142: 782 | V142: 771 | W142: 773 | X142: 676 | Y142: 780 | Z142: 701 | AA142: 792 | AB142: 875 | AC142: 798 | AD142: 3,942 | AE142: 4,609 | AF142: 4,675 | AG142: 3,908 | AH142: 3,348 | AI142: 2,871 | AJ142: 2,372 | AK142: 2,097 | AL142: 1,628 | AM142: 1,304 | AN142: 912 | AO142: 567 | AP142: 304 | AQ142: 266 | AR142: 20 | AS142: 289 | AT142: 305 | AU142: 867 | AV142: 24,313 | AW142: 1,893 | AX142: 1,961 | AY142: 12,022 | AZ142: 1,179 | BC142: 48,226 | BD142: 9,257 | BE142: 4,493 | BF142: 10,224 | BG142: 19,271 | BH142: 4,981
F143: 1253 | G143: CENTRO DE SALUD CIUDAD DE DIOS | H143: 85 | I143: 40,992 | J143: 505 | K143: 479 | L143: 526 | M143: 518 | N143: 651 | O143: 753 | P143: 847 | Q143: 788 | R143: 773 | S143: 670 | T143: 694 | U143: 665 | V143: 655 | W143: 657 | X143: 575 | Y143: 663 | Z143: 596 | AA143: 673 | AB143: 744 | AC143: 678 | AD143: 3,351 | AE143: 3,918 | AF143: 3,974 | AG143: 3,322 | AH143: 2,846 | AI143: 2,440 | AJ143: 2,016 | AK143: 1,782 | AL143: 1,384 | AM143: 1,108 | AN143: 775 | AO143: 482 | AP143: 258 | AQ143: 226 | AR143: 17 | AS143: 246 | AT143: 259 | AU143: 737 | AV143: 20,666 | AW143: 1,609 | AX143: 1,667 | AY143: 10,219 | AZ143: 1,002 | BC143: 40,992 | BD143: 7,868 | BE143: 3,819 | BF143: 8,690 | BG143: 16,380 | BH143: 4,234
F144: 1254 | G144: PUESTO DE SALUD YURA | H144: 15 | I144: 7,234 | J144: 89 | K144: 84 | L144: 93 | M144: 91 | N144: 115 | O144: 133 | P144: 150 | Q144: 139 | R144: 136 | S144: 118 | T144: 123 | U144: 117 | V144: 116 | W144: 116 | X144: 101 | Y144: 117 | Z144: 105 | AA144: 119 | AB144: 131 | AC144: 120 | AD144: 591 | AE144: 691 | AF144: 701 | AG144: 586 | AH144: 502 | AI144: 431 | AJ144: 356 | AK144: 315 | AL144: 244 | AM144: 196 | AN144: 137 | AO144: 85 | AP144: 46 | AQ144: 40 | AR144: 3 | AS144: 43 | AT144: 46 | AU144: 130 | AV144: 3,647 | AW144: 284 | AX144: 294 | AY144: 1,803 | AZ144: 177 | BC144: 7,234 | BD144: 1,389 | BE144: 674 | BF144: 1,534 | BG144: 2,891 | BH144: 747
A145: 040129 | B145: AREQUIPA | C145: AREQUIPA | D145: AREQUIPA | E145: JOSE LUIS BUSTAMANTE Y RIVERO | I145: 90,831 | J145: 698 | K145: 724 | L145: 770 | M145: 775 | N145: 924 | O145: 1,067 | P145: 1,238 | Q145: 1,294 | R145: 1,326 | S145: 1,232 | T145: 1,147 | U145: 1,143 | V145: 1,260 | W145: 1,076 | X145: 1,136 | Y145: 1,250 | Z145: 1,247 | AA145: 1,277 | AB145: 1,255 | AC145: 1,302 | AD145: 6,506 | AE145: 7,118 | AF145: 7,317 | AG145: 6,478 | AH145: 6,738 | AI145: 6,326 | AJ145: 5,635 | AK145: 5,117 | AL145: 4,518 | AM145: 3,729 | AN145: 3,441 | AO145: 2,589 | AP145: 1,640 | AQ145: 1,538 | AR145: 27 | AS145: 361 | AT145: 337 | AU145: 930 | AV145: 46,096 | AW145: 2,827 | AX145: 3,133 | AY145: 20,175 | AZ145: 1,703 | BC145: 90,831 | BD145: 12,338 | BE145: 7,246 | BF145: 16,181 | BG145: 37,611 | BH145: 17,455
F146: 1257 | G146: VICTOR RAUL HINOJOSA | H146: 57 | I146: 51,774 | J146: 397 | K146: 413 | L146: 439 | M146: 441 | N146: 527 | O146: 608 | P146: 706 | Q146: 738 | R146: 755 | S146: 703 | T146: 653 | U146: 652 | V146: 719 | W146: 613 | X146: 647 | Y146: 712 | Z146: 710 | AA146: 727 | AB146: 715 | AC146: 743 | AD146: 3,708 | AE146: 4,057 | AF146: 4,171 | AG146: 3,692 | AH146: 3,841 | AI146: 3,605 | AJ146: 3,211 | AK146: 2,917 | AL146: 2,575 | AM146: 2,125 | AN146: 1,961 | AO146: 1,476 | AP146: 934 | AQ146: 877 | AR146: 15 | AS146: 205 | AT146: 192 | AU146: 530 | AV146: 26,275 | AW146: 1,611 | AX146: 1,786 | AY146: 11,499 | AZ146: 971 | BC146: 51,774 | BD146: 7,033 | BE146: 4,130 | BF146: 9,224 | BG146: 21,438 | BH146: 9,949
F147: 1263 | G147: PUESTO DE SALUD 13 DE ENERO | H147: 19 | I147: 17,258 | J147: 133 | K147: 138 | L147: 146 | M147: 147 | N147: 176 | O147: 203 | P147: 235 | Q147: 246 | R147: 252 | S147: 234 | T147: 218 | U147: 217 | V147: 239 | W147: 204 | X147: 216 | Y147: 238 | Z147: 237 | AA147: 243 | AB147: 238 | AC147: 247 | AD147: 1,236 | AE147: 1,352 | AF147: 1,390 | AG147: 1,231 | AH147: 1,280 | AI147: 1,202 | AJ147: 1,071 | AK147: 972 | AL147: 858 | AM147: 709 | AN147: 654 | AO147: 492 | AP147: 312 | AQ147: 292 | AR147: 5 | AS147: 69 | AT147: 64 | AU147: 177 | AV147: 8,758 | AW147: 537 | AX147: 595 | AY147: 3,833 | AZ147: 324 | BC147: 17,258 | BD147: 2,344 | BE147: 1,377 | BF147: 3,074 | BG147: 7,146 | BH147: 3,316
F148: 1264 | G148: CENTRO DE SALUD LAS ESMERALDAS | H148: 14 | I148: 12,716 | J148: 98 | K148: 101 | L148: 108 | M148: 109 | N148: 129 | O148: 149 | P148: 173 | Q148: 181 | R148: 186 | S148: 172 | T148: 161 | U148: 160 | V148: 176 | W148: 151 | X148: 159 | Y148: 175 | Z148: 175 | AA148: 179 | AB148: 176 | AC148: 182 | AD148: 911 | AE148: 997 | AF148: 1,024 | AG148: 907 | AH148: 943 | AI148: 886 | AJ148: 789 | AK148: 716 | AL148: 633 | AM148: 522 | AN148: 482 | AO148: 362 | AP148: 230 | AQ148: 215 | AR148: 4 | AS148: 51 | AT148: 47 | AU148: 130 | AV148: 6,453 | AW148: 396 | AX148: 439 | AY148: 2,825 | AZ148: 238 | BC148: 12,716 | BD148: 1,727 | BE148: 1,014 | BF148: 2,265 | BG148: 5,266 | BH148: 2,444
F149: 1267 | G149: CERRO JULI | H149: 10 | I149: 9,083 | J149: 70 | K149: 72 | L149: 77 | M149: 78 | N149: 92 | O149: 107 | P149: 124 | Q149: 129 | R149: 133 | S149: 123 | T149: 115 | U149: 114 | V149: 126 | W149: 108 | X149: 114 | Y149: 125 | Z149: 125 | AA149: 128 | AB149: 126 | AC149: 130 | AD149: 651 | AE149: 712 | AF149: 732 | AG149: 648 | AH149: 674 | AI149: 633 | AJ149: 564 | AK149: 512 | AL149: 452 | AM149: 373 | AN149: 344 | AO149: 259 | AP149: 164 | AQ149: 154 | AR149: 3 | AS149: 36 | AT149: 34 | AU149: 93 | AV149: 4,610 | AW149: 283 | AX149: 313 | AY149: 2,018 | AZ149: 170 | BC149: 9,083 | BD149: 1,234 | BE149: 725 | BF149: 1,618 | BG149: 3,761 | BH149: 1,746
F150: 1266 | G150: FELIX NAQUIRA VILDOSO | H150: 0 | I150: 0 | J150: 0 | K150: 0 | L150: 0 | M150: 0 | N150: 0 | O150: 0 | P150: 0 | Q150: 0 | R150: 0 | S150: 0 | T150: 0 | U150: 0 | V150: 0 | W150: 0 | X150: 0 | Y150: 0 | Z150: 0 | AA150: 0 | AB150: 0 | AC150: 0 | AD150: 0 | AE150: 0 | AF150: 0 | AG150: 0 | AH150: 0 | AI150: 0 | AJ150: 0 | AK150: 0 | AL150: 0 | AM150: 0 | AN150: 0 | AO150: 0 | AP150: 0 | AQ150: 0 | AR150: 0 | AS150: 0 | AT150: 0 | AU150: 0 | AV150: 0 | AW150: 0 | AX150: 0 | AY150: 0 | AZ150: 0 | BC150: 0 | BD150: 0 | BE150: 0 | BF150: 0 | BG150: 0 | BH150: 0
F151: 1265 | G151: HUGO LUMBRERAS CRUZ | H151: 0 | I151: 0 | J151: 0 | K151: 0 | L151: 0 | M151: 0 | N151: 0 | O151: 0 | P151: 0 | Q151: 0 | R151: 0 | S151: 0 | T151: 0 | U151: 0 | V151: 0 | W151: 0 | X151: 0 | Y151: 0 | Z151: 0 | AA151: 0 | AB151: 0 | AC151: 0 | AD151: 0 | AE151: 0 | AF151: 0 | AG151: 0 | AH151: 0 | AI151: 0 | AJ151: 0 | AK151: 0 | AL151: 0 | AM151: 0 | AN151: 0 | AO151: 0 | AP151: 0 | AQ151: 0 | AR151: 0 | AS151: 0 | AT151: 0 | AU151: 0 | AV151: 0 | AW151: 0 | AX151: 0 | AY151: 0 | AZ151: 0 | BC151: 0 | BD151: 0 | BE151: 0 | BF151: 0 | BG151: 0 | BH151: 0
A152: 040201 | B152: AREQUIPA | C152: AREQUIPA | D152: CAMANA | E152: CAMANA | I152: 15,524 | J152: 156 | K152: 97 | L152: 79 | M152: 40 | N152: 20 | O152: 75 | P152: 224 | Q152: 252 | R152: 260 | S152: 220 | T152: 255 | U152: 203 | V152: 238 | W152: 238 | X152: 237 | Y152: 297 | Z152: 257 | AA152: 282 | AB152: 252 | AC152: 265 | AD152: 1,252 | AE152: 1,213 | AF152: 1,172 | AG152: 954 | AH152: 954 | AI152: 1,020 | AJ152: 1,012 | AK152: 957 | AL152: 922 | AM152: 672 | AN152: 550 | AO152: 383 | AP152: 272 | AQ152: 244 | AR152: 9 | AS152: 79 | AT152: 77 | AU152: 210 | AV152: 8,035 | AW152: 589 | AX152: 711 | AY152: 3,384 | AZ152: 250 | BC152: 15,524 | BD152: 1,881 | BE152: 1,549 | BF152: 2,982 | BG152: 6,069 | BH152: 3,043
F153: 1344 | G153: HOSPITAL DE CAMANA | H153: 100 | I153: 15,524 | J153: 156 | K153: 97 | L153: 79 | M153: 40 | N153: 20 | O153: 75 | P153: 224 | Q153: 252 | R153: 260 | S153: 220 | T153: 255 | U153: 203 | V153: 238 | W153: 238 | X153: 237 | Y153: 297 | Z153: 257 | AA153: 282 | AB153: 252 | AC153: 265 | AD153: 1,252 | AE153: 1,213 | AF153: 1,172 | AG153: 954 | AH153: 954 | AI153: 1,020 | AJ153: 1,012 | AK153: 957 | AL153: 922 | AM153: 672 | AN153: 550 | AO153: 383 | AP153: 272 | AQ153: 244 | AR153: 9 | AS153: 79 | AT153: 77 | AU153: 210 | AV153: 8,035 | AW153: 589 | AX153: 711 | AY153: 3,384 | AZ153: 250 | BC153: 15,524 | BD153: 1,881 | BE153: 1,549 | BF153: 2,982 | BG153: 6,069 | BH153: 3,043
A154: 040202 | B154: AREQUIPA | C154: AREQUIPA | D154: CAMANA | E154: JOSE MARIA QUIMPER | I154: 5,988 | J154: 86 | K154: 76 | L154: 70 | M154: 47 | N154: 80 | O154: 84 | P154: 86 | Q154: 123 | R154: 115 | S154: 81 | T154: 77 | U154: 89 | V154: 94 | W154: 71 | X154: 89 | Y154: 92 | Z154: 91 | AA154: 74 | AB154: 82 | AC154: 77 | AD154: 372 | AE154: 491 | AF154: 455 | AG154: 439 | AH154: 400 | AI154: 365 | AJ154: 332 | AK154: 363 | AL154: 354 | AM154: 292 | AN154: 183 | AO154: 117 | AP154: 74 | AQ154: 67 | AR154: 4 | AS154: 45 | AT154: 41 | AU154: 111 | AV154: 3,004 | AW154: 219 | AX154: 219 | AY154: 1,300 | AZ154: 119 | BC154: 5,988 | BD154: 1,014 | BE154: 511 | BF154: 1,022 | BG154: 2,354 | BH154: 1,087
F155: 1355 | G155: EL CARDO | H155: 10 | I155: 599 | J155: 9 | K155: 8 | L155: 7 | M155: 5 | N155: 8 | O155: 8 | P155: 9 | Q155: 12 | R155: 12 | S155: 8 | T155: 8 | U155: 9 | V155: 9 | W155: 7 | X155: 9 | Y155: 9 | Z155: 9 | AA155: 7 | AB155: 8 | AC155: 8 | AD155: 37 | AE155: 49 | AF155: 46 | AG155: 44 | AH155: 40 | AI155: 37 | AJ155: 33 | AK155: 36 | AL155: 35 | AM155: 29 | AN155: 18 | AO155: 12 | AP155: 7 | AQ155: 7 | AR155: 0 | AS155: 5 | AT155: 4 | AU155: 11 | AV155: 300 | AW155: 22 | AX155: 22 | AY155: 130 | AZ155: 12 | BC155: 599 | BD155: 101 | BE155: 51 | BF155: 102 | BG155: 235 | BH155: 109
F156: 1354 | G156: PUESTO DE SALUD LUIS FERNANDEZ CORTEGANA - HUACAPUY | H156: 45 | I156: 2,694 | J156: 38 | K156: 34 | L156: 31 | M156: 21 | N156: 36 | O156: 38 | P156: 38 | Q156: 56 | R156: 51 | S156: 37 | T156: 34 | U156: 40 | V156: 43 | W156: 32 | X156: 40 | Y156: 42 | Z156: 41 | AA156: 34 | AB156: 37 | AC156: 34 | AD156: 168 | AE156: 221 | AF156: 204 | AG156: 197 | AH156: 180 | AI156: 164 | AJ156: 150 | AK156: 164 | AL156: 160 | AM156: 132 | AN156: 83 | AO156: 52 | AP156: 34 | AQ156: 30 | AR156: 2 | AS156: 20 | AT156: 19 | AU156: 50 | AV156: 1,352 | AW156: 98 | AX156: 98 | AY156: 585 | AZ156: 53 | BC156: 2,694 | BD156: 457 | BE156: 230 | BF156: 460 | BG156: 1,060 | BH156: 489
F157: 1356 | G157: PUESTO DE SALUD EL PUENTE | H157: 45 | I157: 2,695 | J157: 39 | K157: 34 | L157: 32 | M157: 21 | N157: 36 | O157: 38 | P157: 39 | Q157: 55 | R157: 52 | S157: 36 | T157: 35 | U157: 40 | V157: 42 | W157: 32 | X157: 40 | Y157: 41 | Z157: 41 | AA157: 33 | AB157: 37 | AC157: 35 | AD157: 167 | AE157: 221 | AF157: 205 | AG157: 198 | AH157: 180 | AI157: 164 | AJ157: 149 | AK157: 163 | AL157: 159 | AM157: 131 | AN157: 82 | AO157: 53 | AP157: 33 | AQ157: 30 | AR157: 2 | AS157: 20 | AT157: 18 | AU157: 50 | AV157: 1,352 | AW157: 99 | AX157: 99 | AY157: 585 | AZ157: 54 | BC157: 2,695 | BD157: 456 | BE157: 230 | BF157: 460 | BG157: 1,059 | BH157: 489
A158: 040203 | B158: AREQUIPA | C158: AREQUIPA | D158: CAMANA | E158: MARIANO NICOLAS VALCARCEL | I158: 9,512 | J158: 158 | K158: 149 | L158: 154 | M158: 182 | N158: 163 | O158: 211 | P158: 168 | Q158: 130 | R158: 96 | S158: 151 | T158: 136 | U158: 174 | V158: 162 | W158: 133 | X158: 96 | Y158: 108 | Z158: 113 | AA158: 106 | AB158: 82 | AC158: 49 | AD158: 369 | AE158: 679 | AF158: 1,101 | AG158: 1,030 | AH158: 836 | AI158: 727 | AJ158: 613 | AK158: 617 | AL158: 371 | AM158: 221 | AN158: 108 | AO158: 53 | AP158: 44 | AQ158: 22 | AR158: 7 | AS158: 82 | AT158: 76 | AU158: 228 | AV158: 4,785 | AW158: 411 | AX158: 243 | AY158: 2,588 | AZ158: 156 | BC158: 9,512 | BD158: 1,872 | BE158: 718 | BF158: 1,179 | BG158: 4,924 | BH158: 819
F159: 1365 | G159: PUESTO DE SALUD URASQUI | H159: 15 | I159: 1,427 | J159: 24 | K159: 22 | L159: 23 | M159: 27 | N159: 24 | O159: 32 | P159: 25 | Q159: 20 | R159: 14 | S159: 23 | T159: 20 | U159: 26 | V159: 24 | W159: 20 | X159: 14 | Y159: 16 | Z159: 17 | AA159: 16 | AB159: 12 | AC159: 7 | AD159: 55 | AE159: 102 | AF159: 165 | AG159: 155 | AH159: 125 | AI159: 109 | AJ159: 92 | AK159: 93 | AL159: 56 | AM159: 33 | AN159: 16 | AO159: 8 | AP159: 7 | AQ159: 3 | AR159: 1 | AS159: 12 | AT159: 11 | AU159: 34 | AV159: 718 | AW159: 62 | AX159: 36 | AY159: 388 | AZ159: 23 | BC159: 1,427 | BD159: 281 | BE159: 108 | BF159: 177 | BG159: 739 | BH159: 123
F160: 18691 | G160: PUESTO DE SALUD SECOCHA | H160: 75 | I160: 7,134 | J160: 118 | K160: 112 | L160: 116 | M160: 137 | N160: 123 | O160: 158 | P160: 126 | Q160: 97 | R160: 72 | S160: 113 | T160: 102 | U160: 131 | V160: 122 | W160: 100 | X160: 72 | Y160: 81 | Z160: 85 | AA160: 79 | AB160: 62 | AC160: 37 | AD160: 277 | AE160: 509 | AF160: 826 | AG160: 772 | AH160: 627 | AI160: 545 | AJ160: 460 | AK160: 462 | AL160: 278 | AM160: 166 | AN160: 81 | AO160: 40 | AP160: 33 | AQ160: 17 | AR160: 5 | AS160: 62 | AT160: 57 | AU160: 171 | AV160: 3,588 | AW160: 308 | AX160: 183 | AY160: 1,941 | AZ160: 117 | BC160: 7,134 | BD160: 1,404 | BE160: 538 | BF160: 884 | BG160: 3,693 | BH160: 614
F161: 1366 | G161: LA EUGENIA | H161: 10 | I161: 951 | J161: 16 | K161: 15 | L161: 15 | M161: 18 | N161: 16 | O161: 21 | P161: 17 | Q161: 13 | R161: 10 | S161: 15 | T161: 14 | U161: 17 | V161: 16 | W161: 13 | X161: 10 | Y161: 11 | Z161: 11 | AA161: 11 | AB161: 8 | AC161: 5 | AD161: 37 | AE161: 68 | AF161: 110 | AG161: 103 | AH161: 84 | AI161: 73 | AJ161: 61 | AK161: 62 | AL161: 37 | AM161: 22 | AN161: 11 | AO161: 5 | AP161: 4 | AQ161: 2 | AR161: 1 | AS161: 8 | AT161: 8 | AU161: 23 | AV161: 479 | AW161: 41 | AX161: 24 | AY161: 259 | AZ161: 16 | BC161: 951 | BD161: 187 | BE161: 72 | BF161: 118 | BG161: 492 | BH161: 82
A162: 040204 | B162: AREQUIPA | C162: AREQUIPA | D162: CAMANA | E162: MARISCAL CACERES | I162: 8,458 | J162: 108 | K162: 103 | L162: 80 | M162: 80 | N162: 106 | O162: 95 | P162: 115 | Q162: 117 | R162: 128 | S162: 111 | T162: 100 | U162: 110 | V162: 94 | W162: 116 | X162: 118 | Y162: 126 | Z162: 125 | AA162: 132 | AB162: 134 | AC162: 113 | AD162: 508 | AE162: 732 | AF162: 682 | AG162: 654 | AH162: 638 | AI162: 624 | AJ162: 585 | AK162: 507 | AL162: 436 | AM162: 337 | AN162: 238 | AO162: 132 | AP162: 94 | AQ162: 80 | AR162: 5 | AS162: 50 | AT162: 58 | AU162: 133 | AV162: 4,284 | AW162: 258 | AX162: 322 | AY162: 2,016 | AZ162: 312 | BC162: 8,458 | BD162: 1,253 | BE162: 711 | BF162: 1,487 | BG162: 3,690 | BH162: 1,317
F163: 1345 | G163: CENTRO DE SALUD SAN JOSE | H163: 20 | I163: 1,692 | J163: 22 | K163: 21 | L163: 16 | M163: 16 | N163: 21 | O163: 19 | P163: 23 | Q163: 23 | R163: 26 | S163: 22 | T163: 20 | U163: 22 | V163: 19 | W163: 23 | X163: 24 | Y163: 25 | Z163: 25 | AA163: 26 | AB163: 27 | AC163: 23 | AD163: 102 | AE163: 146 | AF163: 136 | AG163: 131 | AH163: 128 | AI163: 125 | AJ163: 117 | AK163: 101 | AL163: 87 | AM163: 67 | AN163: 48 | AO163: 26 | AP163: 19 | AQ163: 16 | AR163: 1 | AS163: 10 | AT163: 12 | AU163: 27 | AV163: 857 | AW163: 52 | AX163: 64 | AY163: 403 | AZ163: 62 | BC163: 1,692 | BD163: 251 | BE163: 142 | BF163: 297 | BG163: 738 | BH163: 263
F164: 1353 | G164: CENTRO DE SALUD PUCCHUN | H164: 80 | I164: 6,766 | J164: 86 | K164: 82 | L164: 64 | M164: 64 | N164: 85 | O164: 76 | P164: 92 | Q164: 94 | R164: 102 | S164: 89 | T164: 80 | U164: 88 | V164: 75 | W164: 93 | X164: 94 | Y164: 101 | Z164: 100 | AA164: 106 | AB164: 107 | AC164: 90 | AD164: 406 | AE164: 586 | AF164: 546 | AG164: 523 | AH164: 510 | AI164: 499 | AJ164: 468 | AK164: 406 | AL164: 349 | AM164: 270 | AN164: 190 | AO164: 106 | AP164: 75 | AQ164: 64 | AR164: 4 | AS164: 40 | AT164: 46 | AU164: 106 | AV164: 3,427 | AW164: 206 | AX164: 258 | AY164: 1,613 | AZ164: 250 | BC164: 6,766 | BD164: 1,002 | BE164: 569 | BF164: 1,190 | BG164: 2,952 | BH164: 1,054
A165: 040205 | B165: AREQUIPA | C165: AREQUIPA | D165: CAMANA | E165: NICOLAS DE PIEROLA | I165: 9,336 | J165: 92 | K165: 87 | L165: 94 | M165: 84 | N165: 116 | O165: 110 | P165: 129 | Q165: 168 | R165: 154 | S165: 141 | T165: 118 | U165: 147 | V165: 153 | W165: 165 | X165: 123 | Y165: 144 | Z165: 155 | AA165: 141 | AB165: 151 | AC165: 143 | AD165: 620 | AE165: 695 | AF165: 721 | AG165: 678 | AH165: 651 | AI165: 621 | AJ165: 597 | AK165: 577 | AL165: 506 | AM165: 370 | AN165: 285 | AO165: 194 | AP165: 109 | AQ165: 97 | AR165: 1 | AS165: 49 | AT165: 44 | AU165: 134 | AV165: 4,749 | AW165: 346 | AX165: 360 | AY165: 2,108 | AZ165: 247 | BC165: 9,336 | BD165: 1,440 | BE165: 881 | BF165: 1,609 | BG165: 3,845 | BH165: 1,561
F166: 1347 | G166: CENTRO DE SALUD SAN GREGORIO | H166: 65 | I166: 6,068 | J166: 60 | K166: 56 | L166: 61 | M166: 54 | N166: 76 | O166: 72 | P166: 83 | Q166: 110 | R166: 100 | S166: 91 | T166: 77 | U166: 95 | V166: 100 | W166: 108 | X166: 80 | Y166: 93 | Z166: 101 | AA166: 91 | AB166: 98 | AC166: 93 | AD166: 403 | AE166: 452 | AF166: 469 | AG166: 440 | AH166: 423 | AI166: 404 | AJ166: 388 | AK166: 375 | AL166: 329 | AM166: 241 | AN166: 185 | AO166: 126 | AP166: 71 | AQ166: 63 | AR166: 1 | AS166: 32 | AT166: 28 | AU166: 87 | AV166: 3,087 | AW166: 225 | AX166: 234 | AY166: 1,370 | AZ166: 160 | BC166: 6,068 | BD166: 936 | BE166: 572 | BF166: 1,046 | BG166: 2,499 | BH166: 1,015
F167: 1360 | G167: PUESTO DE SALUD HACIENDA DEL MEDIO | H167: 33 | I167: 3,081 | J167: 30 | K167: 29 | L167: 31 | M167: 28 | N167: 38 | O167: 36 | P167: 43 | Q167: 55 | R167: 51 | S167: 47 | T167: 39 | U167: 49 | V167: 50 | W167: 54 | X167: 41 | Y167: 48 | Z167: 51 | AA167: 47 | AB167: 50 | AC167: 47 | AD167: 205 | AE167: 229 | AF167: 238 | AG167: 224 | AH167: 215 | AI167: 205 | AJ167: 197 | AK167: 190 | AL167: 167 | AM167: 122 | AN167: 94 | AO167: 64 | AP167: 36 | AQ167: 32 | AR167: 0 | AS167: 16 | AT167: 15 | AU167: 44 | AV167: 1,567 | AW167: 114 | AX167: 119 | AY167: 696 | AZ167: 82 | BC167: 3,081 | BD167: 475 | BE167: 291 | BF167: 531 | BG167: 1,269 | BH167: 515
F168: 1361 | G168: SONAY | H168: 2 | I168: 187 | J168: 2 | K168: 2 | L168: 2 | M168: 2 | N168: 2 | O168: 2 | P168: 3 | Q168: 3 | R168: 3 | S168: 3 | T168: 2 | U168: 3 | V168: 3 | W168: 3 | X168: 2 | Y168: 3 | Z168: 3 | AA168: 3 | AB168: 3 | AC168: 3 | AD168: 12 | AE168: 14 | AF168: 14 | AG168: 14 | AH168: 13 | AI168: 12 | AJ168: 12 | AK168: 12 | AL168: 10 | AM168: 7 | AN168: 6 | AO168: 4 | AP168: 2 | AQ168: 2 | AR168: 0 | AS168: 1 | AT168: 1 | AU168: 3 | AV168: 95 | AW168: 7 | AX168: 7 | AY168: 42 | AZ168: 5 | BC168: 187 | BD168: 29 | BE168: 18 | BF168: 32 | BG168: 77 | BH168: 31
A169: 040206 | B169: AREQUIPA | C169: AREQUIPA | D169: CAMANA | E169: OCOÑA | I169: 4,900 | J169: 57 | K169: 48 | L169: 49 | M169: 46 | N169: 68 | O169: 58 | P169: 70 | Q169: 75 | R169: 65 | S169: 47 | T169: 49 | U169: 55 | V169: 53 | W169: 66 | X169: 64 | Y169: 78 | Z169: 72 | AA169: 95 | AB169: 63 | AC169: 60 | AD169: 281 | AE169: 368 | AF169: 295 | AG169: 320 | AH169: 345 | AI169: 319 | AJ169: 345 | AK169: 336 | AL169: 323 | AM169: 244 | AN169: 208 | AO169: 120 | AP169: 80 | AQ169: 78 | AR169: 6 | AS169: 29 | AT169: 28 | AU169: 104 | AV169: 2,568 | AW169: 157 | AX169: 201 | AY169: 1,062 | AZ169: 102 | BC169: 4,900 | BD169: 687 | BE169: 428 | BF169: 772 | BG169: 1,960 | BH169: 1,053
F170: 1348 | G170: CENTRO DE SALUD OCOÑA | H170: 78 | I170: 3,822 | J170: 44 | K170: 38 | L170: 39 | M170: 36 | N170: 53 | O170: 45 | P170: 54 | Q170: 59 | R170: 50 | S170: 37 | T170: 39 | U170: 43 | V170: 41 | W170: 51 | X170: 50 | Y170: 61 | Z170: 56 | AA170: 74 | AB170: 50 | AC170: 47 | AD170: 219 | AE170: 287 | AF170: 230 | AG170: 250 | AH170: 269 | AI170: 249 | AJ170: 269 | AK170: 262 | AL170: 252 | AM170: 190 | AN170: 162 | AO170: 94 | AP170: 62 | AQ170: 61 | AR170: 5 | AS170: 23 | AT170: 22 | AU170: 81 | AV170: 2,003 | AW170: 122 | AX170: 157 | AY170: 829 | AZ170: 80 | BC170: 3,822 | BD170: 536 | BE170: 334 | BF170: 602 | BG170: 1,529 | BH170: 821
F171: 1363 | G171: LA PLANCHADA | H171: 15 | I171: 735 | J171: 9 | K171: 7 | L171: 7 | M171: 7 | N171: 10 | O171: 9 | P171: 11 | Q171: 11 | R171: 10 | S171: 7 | T171: 7 | U171: 8 | V171: 8 | W171: 10 | X171: 10 | Y171: 12 | Z171: 11 | AA171: 14 | AB171: 9 | AC171: 9 | AD171: 42 | AE171: 55 | AF171: 44 | AG171: 48 | AH171: 52 | AI171: 48 | AJ171: 52 | AK171: 50 | AL171: 48 | AM171: 37 | AN171: 31 | AO171: 18 | AP171: 12 | AQ171: 12 | AR171: 1 | AS171: 4 | AT171: 4 | AU171: 16 | AV171: 385 | AW171: 24 | AX171: 30 | AY171: 159 | AZ171: 15 | BC171: 735 | BD171: 103 | BE171: 64 | BF171: 116 | BG171: 294 | BH171: 158
F172: 1364 | G172: PESCADORES | H172: 7 | I172: 343 | J172: 4 | K172: 3 | L172: 3 | M172: 3 | N172: 5 | O172: 4 | P172: 5 | Q172: 5 | R172: 5 | S172: 3 | T172: 3 | U172: 4 | V172: 4 | W172: 5 | X172: 4 | Y172: 5 | Z172: 5 | AA172: 7 | AB172: 4 | AC172: 4 | AD172: 20 | AE172: 26 | AF172: 21 | AG172: 22 | AH172: 24 | AI172: 22 | AJ172: 24 | AK172: 24 | AL172: 23 | AM172: 17 | AN172: 15 | AO172: 8 | AP172: 6 | AQ172: 5 | AR172: 0 | AS172: 2 | AT172: 2 | AU172: 7 | AV172: 180 | AW172: 11 | AX172: 14 | AY172: 74 | AZ172: 7 | BC172: 343 | BD172: 48 | BE172: 30 | BF172: 54 | BG172: 137 | BH172: 74
A173: 040207 | B173: AREQUIPA | C173: AREQUIPA | D173: CAMANA | E173: QUILCA | I173: 1,449 | J173: 14 | K173: 11 | L173: 17 | M173: 15 | N173: 13 | O173: 13 | P173: 23 | Q173: 18 | R173: 12 | S173: 21 | T173: 15 | U173: 23 | V173: 9 | W173: 18 | X173: 24 | Y173: 20 | Z173: 23 | AA173: 22 | AB173: 12 | AC173: 17 | AD173: 72 | AE173: 102 | AF173: 119 | AG173: 121 | AH173: 110 | AI173: 102 | AJ173: 99 | AK173: 85 | AL173: 111 | AM173: 60 | AN173: 54 | AO173: 33 | AP173: 20 | AQ173: 21 | AR173: 0 | AS173: 6 | AT173: 8 | AU173: 31 | AV173: 772 | AW173: 55 | AX173: 56 | AY173: 351 | AZ173: 45 | BC173: 1,449 | BD173: 195 | BE173: 116 | BF173: 203 | BG173: 636 | BH173: 299
F174: 1362 | G174: PUESTO DE SALUD QUILCA | H174: 100 | I174: 1,449 | J174: 14 | K174: 11 | L174: 17 | M174: 15 | N174: 13 | O174: 13 | P174: 23 | Q174: 18 | R174: 12 | S174: 21 | T174: 15 | U174: 23 | V174: 9 | W174: 18 | X174: 24 | Y174: 20 | Z174: 23 | AA174: 22 | AB174: 12 | AC174: 17 | AD174: 72 | AE174: 102 | AF174: 119 | AG174: 121 | AH174: 110 | AI174: 102 | AJ174: 99 | AK174: 85 | AL174: 111 | AM174: 60 | AN174: 54 | AO174: 33 | AP174: 20 | AQ174: 21 | AR174: 0 | AS174: 6 | AT174: 8 | AU174: 31 | AV174: 772 | AW174: 55 | AX174: 56 | AY174: 351 | AZ174: 45 | BC174: 1,449 | BD174: 195 | BE174: 116 | BF174: 203 | BG174: 636 | BH174: 299
A175: 040208 | B175: AREQUIPA | C175: AREQUIPA | D175: CAMANA | E175: SAMUEL PASTOR | I175: 18,561 | J175: 191 | K175: 200 | L175: 255 | M175: 249 | N175: 307 | O175: 325 | P175: 333 | Q175: 325 | R175: 324 | S175: 291 | T175: 278 | U175: 311 | V175: 315 | W175: 270 | X175: 259 | Y175: 310 | Z175: 314 | AA175: 308 | AB175: 312 | AC175: 286 | AD175: 1,388 | AE175: 1,546 | AF175: 1,465 | AG175: 1,384 | AH175: 1,286 | AI175: 1,217 | AJ175: 1,127 | AK175: 990 | AL175: 846 | AM175: 576 | AN175: 402 | AO175: 260 | AP175: 153 | AQ175: 158 | AR175: 3 | AS175: 84 | AT175: 107 | AU175: 363 | AV175: 9,482 | AW175: 727 | AX175: 757 | AY175: 4,330 | AZ175: 505 | BC175: 18,561 | BD175: 3,389 | BE175: 1,776 | BF175: 3,532 | BG175: 7,469 | BH175: 2,395
F176: 1346 | G176: LA PAMPA | H176: 33 | I176: 6,125 | J176: 63 | K176: 66 | L176: 84 | M176: 82 | N176: 101 | O176: 107 | P176: 110 | Q176: 107 | R176: 107 | S176: 96 | T176: 92 | U176: 103 | V176: 104 | W176: 89 | X176: 85 | Y176: 102 | Z176: 104 | AA176: 102 | AB176: 103 | AC176: 94 | AD176: 458 | AE176: 510 | AF176: 483 | AG176: 457 | AH176: 424 | AI176: 402 | AJ176: 372 | AK176: 327 | AL176: 279 | AM176: 190 | AN176: 133 | AO176: 86 | AP176: 50 | AQ176: 52 | AR176: 1 | AS176: 28 | AT176: 35 | AU176: 120 | AV176: 3,129 | AW176: 240 | AX176: 250 | AY176: 1,429 | AZ176: 167 | BC176: 6,125 | BD176: 1,118 | BE176: 586 | BF176: 1,166 | BG176: 2,465 | BH176: 790
F177: 1357 | G177: EL CARMEN-CAMANA | H177: 36 | I177: 6,682 | J177: 68 | K177: 72 | L177: 92 | M177: 91 | N177: 111 | O177: 117 | P177: 120 | Q177: 117 | R177: 116 | S177: 104 | T177: 100 | U177: 112 | V177: 114 | W177: 97 | X177: 93 | Y177: 112 | Z177: 113 | AA177: 111 | AB177: 112 | AC177: 103 | AD177: 500 | AE177: 557 | AF177: 528 | AG177: 497 | AH177: 463 | AI177: 437 | AJ177: 405 | AK177: 355 | AL177: 305 | AM177: 208 | AN177: 145 | AO177: 93 | AP177: 55 | AQ177: 56 | AR177: 2 | AS177: 29 | AT177: 39 | AU177: 131 | AV177: 3,414 | AW177: 261 | AX177: 272 | AY177: 1,558 | AZ177: 181 | BC177: 6,682 | BD177: 1,220 | BE177: 640 | BF177: 1,271 | BG177: 2,689 | BH177: 863
F178: 1359 | G178: JUAN PABLO VIZCARDO GUZMAN | H178: 13 | I178: 2,413 | J178: 25 | K178: 26 | L178: 33 | M178: 32 | N178: 40 | O178: 42 | P178: 43 | Q178: 42 | R178: 42 | S178: 38 | T178: 36 | U178: 40 | V178: 41 | W178: 35 | X178: 34 | Y178: 40 | Z178: 41 | AA178: 40 | AB178: 41 | AC178: 37 | AD178: 180 | AE178: 201 | AF178: 190 | AG178: 180 | AH178: 167 | AI178: 158 | AJ178: 147 | AK178: 129 | AL178: 110 | AM178: 75 | AN178: 52 | AO178: 34 | AP178: 20 | AQ178: 21 | AR178: 0 | AS178: 11 | AT178: 14 | AU178: 47 | AV178: 1,233 | AW178: 95 | AX178: 98 | AY178: 563 | AZ178: 66 | BC178: 2,413 | BD178: 441 | BE178: 231 | BF178: 459 | BG178: 971 | BH178: 311
F179: 1358 | G179: PUESTO DE SALUD LA PUNTA | H179: 3 | I179: 557 | J179: 6 | K179: 6 | L179: 8 | M179: 7 | N179: 9 | O179: 10 | P179: 10 | Q179: 10 | R179: 10 | S179: 9 | T179: 8 | U179: 9 | V179: 9 | W179: 8 | X179: 8 | Y179: 9 | Z179: 9 | AA179: 9 | AB179: 9 | AC179: 9 | AD179: 42 | AE179: 46 | AF179: 44 | AG179: 42 | AH179: 39 | AI179: 37 | AJ179: 34 | AK179: 30 | AL179: 25 | AM179: 17 | AN179: 12 | AO179: 8 | AP179: 5 | AQ179: 5 | AR179: 0 | AS179: 3 | AT179: 3 | AU179: 11 | AV179: 284 | AW179: 22 | AX179: 23 | AY179: 130 | AZ179: 15 | BC179: 557 | BD179: 102 | BE179: 53 | BF179: 106 | BG179: 224 | BH179: 72
F180: 7723 | G180: PUESTO DE SALUD SOLIDARIDAD | H180: 15 | I180: 2,784 | J180: 29 | K180: 30 | L180: 38 | M180: 37 | N180: 46 | O180: 49 | P180: 50 | Q180: 49 | R180: 49 | S180: 44 | T180: 42 | U180: 47 | V180: 47 | W180: 41 | X180: 39 | Y180: 47 | Z180: 47 | AA180: 46 | AB180: 47 | AC180: 43 | AD180: 208 | AE180: 232 | AF180: 220 | AG180: 208 | AH180: 193 | AI180: 183 | AJ180: 169 | AK180: 149 | AL180: 127 | AM180: 86 | AN180: 60 | AO180: 39 | AP180: 23 | AQ180: 24 | AR180: 0 | AS180: 13 | AT180: 16 | AU180: 54 | AV180: 1,422 | AW180: 109 | AX180: 114 | AY180: 650 | AZ180: 76 | BC180: 2,784 | BD180: 508 | BE180: 266 | BF180: 530 | BG180: 1,120 | BH180: 359
A181: 040301 | B181: AREQUIPA | C181: AREQUIPA | D181: CARAVELI | E181: CARAVELI | I181: 5,398 | J181: 91 | K181: 97 | L181: 88 | M181: 81 | N181: 70 | O181: 72 | P181: 89 | Q181: 83 | R181: 68 | S181: 66 | T181: 89 | U181: 46 | V181: 81 | W181: 68 | X181: 54 | Y181: 86 | Z181: 104 | AA181: 89 | AB181: 110 | AC181: 104 | AD181: 453 | AE181: 482 | AF181: 404 | AG181: 349 | AH181: 306 | AI181: 324 | AJ181: 327 | AK181: 270 | AL181: 232 | AM181: 183 | AN181: 133 | AO181: 103 | AP181: 97 | AQ181: 99 | AR181: 7 | AS181: 32 | AT181: 59 | AU181: 111 | AV181: 2,749 | AW181: 170 | AX181: 249 | AY181: 1,224 | AZ181: 148 | BC181: 5,398 | BD181: 940 | BE181: 482 | BF181: 1,149 | BG181: 1,980 | BH181: 847
F182: 1351 | G182: CENTRO DE SALUD CARAVELI | H182: 100 | I182: 5,398 | J182: 91 | K182: 97 | L182: 88 | M182: 81 | N182: 70 | O182: 72 | P182: 89 | Q182: 83 | R182: 68 | S182: 66 | T182: 89 | U182: 46 | V182: 81 | W182: 68 | X182: 54 | Y182: 86 | Z182: 104 | AA182: 89 | AB182: 110 | AC182: 104 | AD182: 453 | AE182: 482 | AF182: 404 | AG182: 349 | AH182: 306 | AI182: 324 | AJ182: 327 | AK182: 270 | AL182: 232 | AM182: 183 | AN182: 133 | AO182: 103 | AP182: 97 | AQ182: 99 | AR182: 7 | AS182: 32 | AT182: 59 | AU182: 111 | AV182: 2,749 | AW182: 170 | AX182: 249 | AY182: 1,224 | AZ182: 148 | BC182: 5,398 | BD182: 940 | BE182: 482 | BF182: 1,149 | BG182: 1,980 | BH182: 847
A183: 040302 | B183: AREQUIPA | C183: AREQUIPA | D183: CARAVELI | E183: ACARI | I183: 6,593 | J183: 49 | K183: 38 | L183: 65 | M183: 51 | N183: 63 | O183: 57 | P183: 83 | Q183: 107 | R183: 82 | S183: 106 | T183: 120 | U183: 110 | V183: 118 | W183: 126 | X183: 87 | Y183: 126 | Z183: 136 | AA183: 130 | AB183: 104 | AC183: 83 | AD183: 422 | AE183: 402 | AF183: 368 | AG183: 415 | AH183: 404 | AI183: 431 | AJ183: 428 | AK183: 407 | AL183: 377 | AM183: 297 | AN183: 282 | AO183: 238 | AP183: 120 | AQ183: 161 | AR183: 1 | AS183: 21 | AT183: 28 | AU183: 85 | AV183: 3,329 | AW183: 285 | AX183: 287 | AY183: 1,288 | AZ183: 185 | BC183: 6,593 | BD183: 931 | BE183: 723 | BF183: 1,011 | BG183: 2,453 | BH183: 1,475
F184: 1352 | G184: CENTRO DE SALUD ACARI | H184: 100 | I184: 6,593 | J184: 49 | K184: 38 | L184: 65 | M184: 51 | N184: 63 | O184: 57 | P184: 83 | Q184: 107 | R184: 82 | S184: 106 | T184: 120 | U184: 110 | V184: 118 | W184: 126 | X184: 87 | Y184: 126 | Z184: 136 | AA184: 130 | AB184: 104 | AC184: 83 | AD184: 422 | AE184: 402 | AF184: 368 | AG184: 415 | AH184: 404 | AI184: 431 | AJ184: 428 | AK184: 407 | AL184: 377 | AM184: 297 | AN184: 282 | AO184: 238 | AP184: 120 | AQ184: 161 | AR184: 1 | AS184: 21 | AT184: 28 | AU184: 85 | AV184: 3,329 | AW184: 285 | AX184: 287 | AY184: 1,288 | AZ184: 185 | BC184: 6,593 | BD184: 931 | BE184: 723 | BF184: 1,011 | BG184: 2,453 | BH184: 1,475
A185: 040303 | B185: AREQUIPA | C185: AREQUIPA | D185: CARAVELI | E185: ATICO | I185: 6,696 | J185: 81 | K185: 74 | L185: 79 | M185: 58 | N185: 74 | O185: 67 | P185: 118 | Q185: 92 | R185: 98 | S185: 98 | T185: 111 | U185: 113 | V185: 74 | W185: 109 | X185: 113 | Y185: 115 | Z185: 125 | AA185: 110 | AB185: 113 | AC185: 90 | AD185: 404 | AE185: 498 | AF185: 559 | AG185: 519 | AH185: 487 | AI185: 497 | AJ185: 448 | AK185: 388 | AL185: 293 | AM185: 258 | AN185: 166 | AO185: 133 | AP185: 78 | AQ185: 56 | AR185: 5 | AS185: 29 | AT185: 52 | AU185: 112 | AV185: 3,453 | AW185: 262 | AX185: 280 | AY185: 1,574 | AZ185: 191 | BC185: 6,696 | BD185: 1,063 | BE185: 646 | BF185: 1,105 | BG185: 2,898 | BH185: 984
F186: 1349 | G186: CENTRO DE SALUD ATICO | H186: 100 | I186: 6,696 | J186: 81 | K186: 74 | L186: 79 | M186: 58 | N186: 74 | O186: 67 | P186: 118 | Q186: 92 | R186: 98 | S186: 98 | T186: 111 | U186: 113 | V186: 74 | W186: 109 | X186: 113 | Y186: 115 | Z186: 125 | AA186: 110 | AB186: 113 | AC186: 90 | AD186: 404 | AE186: 498 | AF186: 559 | AG186: 519 | AH186: 487 | AI186: 497 | AJ186: 448 | AK186: 388 | AL186: 293 | AM186: 258 | AN186: 166 | AO186: 133 | AP186: 78 | AQ186: 56 | AR186: 5 | AS186: 29 | AT186: 52 | AU186: 112 | AV186: 3,453 | AW186: 262 | AX186: 280 | AY186: 1,574 | AZ186: 191 | BC186: 6,696 | BD186: 1,063 | BE186: 646 | BF186: 1,105 | BG186: 2,898 | BH186: 984
A187: 040304 | B187: AREQUIPA | C187: AREQUIPA | D187: CARAVELI | E187: ATIQUIPA | I187: 745 | J187: 11 | K187: 4 | L187: 11 | M187: 6 | N187: 13 | O187: 11 | P187: 3 | Q187: 7 | R187: 11 | S187: 12 | T187: 14 | U187: 8 | V187: 14 | W187: 8 | X187: 6 | Y187: 8 | Z187: 11 | AA187: 9 | AB187: 11 | AC187: 8 | AD187: 46 | AE187: 74 | AF187: 61 | AG187: 51 | AH187: 60 | AI187: 32 | AJ187: 48 | AK187: 49 | AL187: 47 | AM187: 21 | AN187: 34 | AO187: 15 | AP187: 11 | AQ187: 10 | AR187: 0 | AS187: 7 | AT187: 5 | AU187: 18 | AV187: 389 | AW187: 30 | AX187: 29 | AY187: 172 | AZ187: 28 | BC187: 745 | BD187: 111 | BE187: 56 | BF187: 139 | BG187: 301 | BH187: 138
F188: 1369 | G188: PUESTO DE SALUD ATIQUIPA | H188: 75 | I188: 559 | J188: 8 | K188: 3 | L188: 8 | M188: 4 | N188: 10 | O188: 8 | P188: 2 | Q188: 5 | R188: 8 | S188: 9 | T188: 10 | U188: 6 | V188: 10 | W188: 6 | X188: 4 | Y188: 6 | Z188: 8 | AA188: 7 | AB188: 8 | AC188: 6 | AD188: 34 | AE188: 55 | AF188: 46 | AG188: 38 | AH188: 45 | AI188: 24 | AJ188: 36 | AK188: 37 | AL188: 35 | AM188: 16 | AN188: 25 | AO188: 11 | AP188: 8 | AQ188: 7 | AR188: 0 | AS188: 5 | AT188: 4 | AU188: 13 | AV188: 292 | AW188: 22 | AX188: 22 | AY188: 129 | AZ188: 21 | BC188: 559 | BD188: 83 | BE188: 42 | BF188: 104 | BG188: 226 | BH188: 103
F189: 1368 | G189: PUESTO DE SALUD SANTA ROSA | H189: 25 | I189: 186 | J189: 3 | K189: 1 | L189: 3 | M189: 2 | N189: 3 | O189: 3 | P189: 1 | Q189: 2 | R189: 3 | S189: 3 | T189: 4 | U189: 2 | V189: 4 | W189: 2 | X189: 2 | Y189: 2 | Z189: 3 | AA189: 2 | AB189: 3 | AC189: 2 | AD189: 12 | AE189: 19 | AF189: 15 | AG189: 13 | AH189: 15 | AI189: 8 | AJ189: 12 | AK189: 12 | AL189: 12 | AM189: 5 | AN189: 9 | AO189: 4 | AP189: 3 | AQ189: 3 | AR189: 0 | AS189: 2 | AT189: 1 | AU189: 5 | AV189: 97 | AW189: 8 | AX189: 7 | AY189: 43 | AZ189: 7 | BC189: 186 | BD189: 28 | BE189: 14 | BF189: 35 | BG189: 75 | BH189: 35
A190: 040305 | B190: AREQUIPA | C190: AREQUIPA | D190: CARAVELI | E190: BELLA UNION | I190: 3,563 | J190: 48 | K190: 32 | L190: 48 | M190: 45 | N190: 37 | O190: 40 | P190: 58 | Q190: 48 | R190: 50 | S190: 46 | T190: 30 | U190: 50 | V190: 48 | W190: 52 | X190: 30 | Y190: 56 | Z190: 75 | AA190: 52 | AB190: 55 | AC190: 56 | AD190: 232 | AE190: 281 | AF190: 251 | AG190: 272 | AH190: 265 | AI190: 269 | AJ190: 212 | AK190: 205 | AL190: 177 | AM190: 121 | AN190: 125 | AO190: 90 | AP190: 54 | AQ190: 53 | AR190: 1 | AS190: 24 | AT190: 24 | AU190: 68 | AV190: 1,817 | AW190: 106 | AX190: 161 | AY190: 837 | AZ190: 135 | BC190: 3,563 | BD190: 532 | BE190: 313 | BF190: 624 | BG190: 1,474 | BH190: 620
F191: 1374 | G191: PUESTO DE SALUD BELLA UNION | H191: 100 | I191: 3,563 | J191: 48 | K191: 32 | L191: 48 | M191: 45 | N191: 37 | O191: 40 | P191: 58 | Q191: 48 | R191: 50 | S191: 46 | T191: 30 | U191: 50 | V191: 48 | W191: 52 | X191: 30 | Y191: 56 | Z191: 75 | AA191: 52 | AB191: 55 | AC191: 56 | AD191: 232 | AE191: 281 | AF191: 251 | AG191: 272 | AH191: 265 | AI191: 269 | AJ191: 212 | AK191: 205 | AL191: 177 | AM191: 121 | AN191: 125 | AO191: 90 | AP191: 54 | AQ191: 53 | AR191: 1 | AS191: 24 | AT191: 24 | AU191: 68 | AV191: 1,817 | AW191: 106 | AX191: 161 | AY191: 837 | AZ191: 135 | BC191: 3,563 | BD191: 532 | BE191: 313 | BF191: 624 | BG191: 1,474 | BH191: 620
A192: 040306 | B192: AREQUIPA | C192: AREQUIPA | D192: CARAVELI | E192: CAHUACHO | I192: 1,369 | J192: 11 | K192: 8 | L192: 10 | M192: 32 | N192: 10 | O192: 6 | P192: 10 | Q192: 10 | R192: 26 | S192: 17 | T192: 16 | U192: 16 | V192: 28 | W192: 23 | X192: 16 | Y192: 23 | Z192: 16 | AA192: 22 | AB192: 26 | AC192: 27 | AD192: 69 | AE192: 92 | AF192: 78 | AG192: 72 | AH192: 89 | AI192: 74 | AJ192: 85 | AK192: 79 | AL192: 63 | AM192: 67 | AN192: 68 | AO192: 56 | AP192: 51 | AQ192: 73 | AR192: 0 | AS192: 9 | AT192: 2 | AU192: 57 | AV192: 719 | AW192: 57 | AX192: 64 | AY192: 242 | AZ192: 348 | BC192: 1,369 | BD192: 172 | BE192: 128 | BF192: 214 | BG192: 477 | BH192: 378
F193: 1377 | G193: PUESTO DE SALUD CAHUACHO | H193: 31 | I193: 424 | J193: 3 | K193: 2 | L193: 3 | M193: 10 | N193: 3 | O193: 2 | P193: 3 | Q193: 3 | R193: 8 | S193: 5 | T193: 5 | U193: 5 | V193: 9 | W193: 7 | X193: 5 | Y193: 7 | Z193: 5 | AA193: 7 | AB193: 8 | AC193: 8 | AD193: 21 | AE193: 29 | AF193: 24 | AG193: 22 | AH193: 28 | AI193: 23 | AJ193: 26 | AK193: 24 | AL193: 20 | AM193: 21 | AN193: 21 | AO193: 17 | AP193: 16 | AQ193: 23 | AR193: 0 | AS193: 3 | AT193: 1 | AU193: 18 | AV193: 223 | AW193: 18 | AX193: 20 | AY193: 75 | AZ193: 108 | BC193: 424 | BD193: 53 | BE193: 40 | BF193: 66 | BG193: 148 | BH193: 117
F194: 1338 | G194: PUESTO DE SALUD SONDOR - CARAVELI | H194: 33 | I194: 452 | J194: 4 | K194: 3 | L194: 3 | M194: 11 | N194: 3 | O194: 2 | P194: 3 | Q194: 3 | R194: 9 | S194: 6 | T194: 5 | U194: 5 | V194: 9 | W194: 8 | X194: 5 | Y194: 8 | Z194: 5 | AA194: 7 | AB194: 9 | AC194: 9 | AD194: 23 | AE194: 30 | AF194: 26 | AG194: 24 | AH194: 29 | AI194: 24 | AJ194: 28 | AK194: 26 | AL194: 21 | AM194: 22 | AN194: 22 | AO194: 18 | AP194: 17 | AQ194: 24 | AR194: 0 | AS194: 3 | AT194: 1 | AU194: 19 | AV194: 237 | AW194: 19 | AX194: 21 | AY194: 80 | AZ194: 115 | BC194: 452 | BD194: 57 | BE194: 42 | BF194: 71 | BG194: 157 | BH194: 125
F195: 1379 | G195: PUESTO DE SALUD AYROCA | H195: 36 | I195: 493 | J195: 4 | K195: 3 | L195: 4 | M195: 11 | N195: 4 | O195: 2 | P195: 4 | Q195: 4 | R195: 9 | S195: 6 | T195: 6 | U195: 6 | V195: 10 | W195: 8 | X195: 6 | Y195: 8 | Z195: 6 | AA195: 8 | AB195: 9 | AC195: 10 | AD195: 25 | AE195: 33 | AF195: 28 | AG195: 26 | AH195: 32 | AI195: 27 | AJ195: 31 | AK195: 29 | AL195: 22 | AM195: 24 | AN195: 25 | AO195: 21 | AP195: 18 | AQ195: 26 | AR195: 0 | AS195: 3 | AT195: 0 | AU195: 20 | AV195: 259 | AW195: 20 | AX195: 23 | AY195: 87 | AZ195: 125 | BC195: 493 | BD195: 62 | BE195: 46 | BF195: 77 | BG195: 172 | BH195: 136
A196: 040307 | B196: AREQUIPA | C196: AREQUIPA | D196: CARAVELI | E196: CHALA | I196: 11,423 | J196: 160 | K196: 163 | L196: 181 | M196: 159 | N196: 192 | O196: 174 | P196: 230 | Q196: 236 | R196: 265 | S196: 223 | T196: 238 | U196: 194 | V196: 169 | W196: 155 | X196: 197 | Y196: 225 | Z196: 229 | AA196: 207 | AB196: 172 | AC196: 175 | AD196: 757 | AE196: 853 | AF196: 945 | AG196: 977 | AH196: 835 | AI196: 741 | AJ196: 619 | AK196: 528 | AL196: 428 | AM196: 315 | AN196: 204 | AO196: 115 | AP196: 77 | AQ196: 85 | AR196: 5 | AS196: 67 | AT196: 93 | AU196: 249 | AV196: 5,822 | AW196: 457 | AX196: 519 | AY196: 2,805 | AZ196: 364 | BC196: 11,423 | BD196: 2,415 | BE196: 1,182 | BF196: 1,957 | BG196: 4,645 | BH196: 1,224
F197: 1350 | G197: CENTRO DE SALUD CHALA | H197: 100 | I197: 11,423 | J197: 160 | K197: 163 | L197: 181 | M197: 159 | N197: 192 | O197: 174 | P197: 230 | Q197: 236 | R197: 265 | S197: 223 | T197: 238 | U197: 194 | V197: 169 | W197: 155 | X197: 197 | Y197: 225 | Z197: 229 | AA197: 207 | AB197: 172 | AC197: 175 | AD197: 757 | AE197: 853 | AF197: 945 | AG197: 977 | AH197: 835 | AI197: 741 | AJ197: 619 | AK197: 528 | AL197: 428 | AM197: 315 | AN197: 204 | AO197: 115 | AP197: 77 | AQ197: 85 | AR197: 5 | AS197: 67 | AT197: 93 | AU197: 249 | AV197: 5,822 | AW197: 457 | AX197: 519 | AY197: 2,805 | AZ197: 364 | BC197: 11,423 | BD197: 2,415 | BE197: 1,182 | BF197: 1,957 | BG197: 4,645 | BH197: 1,224
A198: 040308 | B198: AREQUIPA | C198: AREQUIPA | D198: CARAVELI | E198: CHAPARRA | I198: 3,778 | J198: 38 | K198: 36 | L198: 56 | M198: 48 | N198: 61 | O198: 77 | P198: 52 | Q198: 54 | R198: 45 | S198: 48 | T198: 63 | U198: 76 | V198: 55 | W198: 47 | X198: 77 | Y198: 82 | Z198: 68 | AA198: 76 | AB198: 48 | AC198: 41 | AD198: 197 | AE198: 207 | AF198: 321 | AG198: 336 | AH198: 335 | AI198: 268 | AJ198: 233 | AK198: 259 | AL198: 134 | AM198: 108 | AN198: 104 | AO198: 41 | AP198: 41 | AQ198: 46 | AR198: 1 | AS198: 19 | AT198: 19 | AU198: 71 | AV198: 2,051 | AW198: 202 | AX198: 211 | AY198: 868 | AZ198: 106 | BC198: 3,778 | BD198: 654 | BE198: 405 | BF198: 493 | BG198: 1,752 | BH198: 474
F199: 1370 | G199: PUESTO DE SALUD CHAPARRA | H199: 80 | I199: 3,022 | J199: 30 | K199: 29 | L199: 45 | M199: 38 | N199: 49 | O199: 62 | P199: 42 | Q199: 43 | R199: 36 | S199: 38 | T199: 50 | U199: 61 | V199: 44 | W199: 38 | X199: 62 | Y199: 66 | Z199: 54 | AA199: 61 | AB199: 38 | AC199: 33 | AD199: 158 | AE199: 166 | AF199: 257 | AG199: 269 | AH199: 268 | AI199: 214 | AJ199: 186 | AK199: 207 | AL199: 107 | AM199: 86 | AN199: 83 | AO199: 33 | AP199: 33 | AQ199: 37 | AR199: 1 | AS199: 15 | AT199: 15 | AU199: 57 | AV199: 1,641 | AW199: 162 | AX199: 169 | AY199: 694 | AZ199: 85 | BC199: 3,022 | BD199: 523 | BE199: 324 | BF199: 394 | BG199: 1,402 | BH199: 379
F200: 1371 | G200: PUESTO DE SALUD ACHANIZO | H200: 20 | I200: 756 | J200: 8 | K200: 7 | L200: 11 | M200: 10 | N200: 12 | O200: 15 | P200: 10 | Q200: 11 | R200: 9 | S200: 10 | T200: 13 | U200: 15 | V200: 11 | W200: 9 | X200: 15 | Y200: 16 | Z200: 14 | AA200: 15 | AB200: 10 | AC200: 8 | AD200: 39 | AE200: 41 | AF200: 64 | AG200: 67 | AH200: 67 | AI200: 54 | AJ200: 47 | AK200: 52 | AL200: 27 | AM200: 22 | AN200: 21 | AO200: 8 | AP200: 8 | AQ200: 9 | AR200: 0 | AS200: 4 | AT200: 4 | AU200: 14 | AV200: 410 | AW200: 40 | AX200: 42 | AY200: 174 | AZ200: 21 | BC200: 756 | BD200: 131 | BE200: 81 | BF200: 99 | BG200: 350 | BH200: 95
A201: 040309 | B201: AREQUIPA | C201: AREQUIPA | D201: CARAVELI | E201: HUANUHUANU | I201: 3,453 | J201: 45 | K201: 31 | L201: 49 | M201: 42 | N201: 55 | O201: 32 | P201: 42 | Q201: 47 | R201: 37 | S201: 60 | T201: 44 | U201: 65 | V201: 51 | W201: 92 | X201: 78 | Y201: 63 | Z201: 62 | AA201: 57 | AB201: 46 | AC201: 49 | AD201: 198 | AE201: 261 | AF201: 357 | AG201: 313 | AH201: 253 | AI201: 273 | AJ201: 226 | AK201: 178 | AL201: 145 | AM201: 79 | AN201: 48 | AO201: 15 | AP201: 21 | AQ201: 39 | AR201: 2 | AS201: 28 | AT201: 18 | AU201: 72 | AV201: 1,942 | AW201: 219 | AX201: 165 | AY201: 914 | AZ201: 104 | BC201: 3,453 | BD201: 549 | BE201: 403 | BF201: 554 | BG201: 1,600 | BH201: 347
F202: 25072 | G202: PUESTO DE SALUD MOLLEHUACA | H202: 20 | I202: 691 | J202: 9 | K202: 6 | L202: 10 | M202: 8 | N202: 11 | O202: 6 | P202: 8 | Q202: 9 | R202: 7 | S202: 12 | T202: 9 | U202: 13 | V202: 10 | W202: 18 | X202: 16 | Y202: 13 | Z202: 12 | AA202: 11 | AB202: 9 | AC202: 10 | AD202: 40 | AE202: 52 | AF202: 71 | AG202: 63 | AH202: 51 | AI202: 55 | AJ202: 45 | AK202: 36 | AL202: 29 | AM202: 16 | AN202: 10 | AO202: 3 | AP202: 4 | AQ202: 8 | AR202: 0 | AS202: 6 | AT202: 4 | AU202: 14 | AV202: 388 | AW202: 44 | AX202: 33 | AY202: 183 | AZ202: 21 | BC202: 691 | BD202: 110 | BE202: 81 | BF202: 111 | BG202: 320 | BH202: 69
F203: 1367 | G203: PUESTO DE SALUD TOCOTA | H203: 80 | I203: 2,762 | J203: 36 | K203: 25 | L203: 39 | M203: 34 | N203: 44 | O203: 26 | P203: 34 | Q203: 38 | R203: 30 | S203: 48 | T203: 35 | U203: 52 | V203: 41 | W203: 74 | X203: 62 | Y203: 50 | Z203: 50 | AA203: 46 | AB203: 37 | AC203: 39 | AD203: 158 | AE203: 209 | AF203: 286 | AG203: 250 | AH203: 202 | AI203: 218 | AJ203: 181 | AK203: 142 | AL203: 116 | AM203: 63 | AN203: 38 | AO203: 12 | AP203: 17 | AQ203: 31 | AR203: 2 | AS203: 22 | AT203: 14 | AU203: 58 | AV203: 1,554 | AW203: 175 | AX203: 132 | AY203: 731 | AZ203: 83 | BC203: 2,762 | BD203: 439 | BE203: 322 | BF203: 443 | BG203: 1,280 | BH203: 278
... 175 more rows

Sheet Pob x Genero
A4: POBLACION ESTIMADA POR EDADES SIMPLES, GRUPOS DE EDAD y GÉNERO, SEGÚN DEPARTAMENTO, PROVINCIA Y DISTRITO. 2025
A5: * Actualizado con datos INEI
A6: POBLACION 2025 | G6: Total Hombres | H6: HOMBRES | AB6: POBLACIÓN TOTAL, POR GRUPOS QUINQUEN ALES DE EDAD | AP6: EDADES ESPECIALES | AS6: NACIMIENTOS VIVOS | AT6: Total Mujeres | AU6: MUJERES | BO6: POBLACIÓN TOTAL, POR GRUPOS QUINQUEN ALES DE EDAD | CC6: EDADES ESPECIALES | CF6: NACIMIENTOS VIVOS | CG6: GESTANTES ESPERADAS | CJ6: Hombre | CO6: Mujer | CT6: Hombre | DL6: Mujer
A7: UBIGEO | B7: DIRESA | C7: DEPARTAMENTO | D7: PROVINCIA | E7: DISTRITO | F7: TOTAL | H7: 0 | I7: 1 | J7: 2 | K7: 3 | L7: 4 | M7: 5 | N7: 6 | O7: 7 | P7: 8 | Q7: 9 | R7: 10 | S7: 11 | T7: 12 | U7: 13 | V7: 14 | W7: 15 | X7: 16 | Y7: 17 | Z7: 18 | AA7: 19 | AB7: 20-24 | AC7: 25-29 | AD7: 30-34 | AE7: 35-39 | AF7: 40-44 | AG7: 45-49 | AH7: 50-54 | AI7: 55-59 | AJ7: 60-64 | AK7: 65-69 | AL7: 70-74 | AM7: 75-79 | AN7: 80-84 | AO7: 85-+ | AP7: 28 DIAS | AQ7: 0-5 MESES | AR7: 6-11 MESES | AU7: 0 | AV7: 1 | AW7: 2 | AX7: 3 | AY7: 4 | AZ7: 5 | BA7: 6 | BB7: 7 | BC7: 8 | BD7: 9 | BE7: 10 | BF7: 11 | BG7: 12 | BH7: 13 | BI7: 14 | BJ7: 15 | BK7: 16 | BL7: 17 | BM7: 18 | BN7: 19 | BO7: 20-24 | BP7: 25-29 | BQ7: 30-34 | BR7: 35-39 | BS7: 40-44 | BT7: 45-49 | BU7: 50-54 | BV7: 55-59 | BW7: 60-64 | BX7: 65-69 | BY7: 70-74 | BZ7: 75-79 | CA7: 80-84 | CB7: 85-+ | CC7: 28 DIAS | CD7: 0-5 MESES | CE7: 6-11 MESES | CJ7: NIÑO | CK7: Adolescente | CL7: Joven | CM7: Adulto | CN7: Adulto Mayor | CO7: NIÑO | CP7: Adolescente | CQ7: Joven | CR7: Adulto | CS7: Adulto Mayor | CT7: 00-04 | CU7: 05-09 | CV7: 10-14 | CW7: 15-19 | CX7: 20-24 | CY7: 25-29 | CZ7: 30-34 | DA7: 35-39 | DB7: 40-44 | DC7: 45-49 | DD7: 50-54 | DE7: 55-59 | DF7: 60-64 | DG7: 65-69 | DH7: 70-74 | DI7: 75-79 | DJ7: 80-84 | DK7: 85-+ | DL7: 00-04 | DM7: 05-09 | DN7: 10-14 | DO7: 15-19 | DP7: 20-24 | DQ7: 25-29 | DR7: 30-34 | DS7: 35-39 | DT7: 40-44 | DU7: 45-49 | DV7: 50-54 | DW7: 55-59 | DX7: 60-64 | DY7: 65-69 | DZ7: 70-74 | EA7: 75-79 | EB7: 80-84 | EC7: 85-+
A8: 000000 | B8: PERU | C8: PERU | D8: PERU | E8: PERU | F8: =G8+AT8 -> 1,662,314 | G8: =SUM(G9:G117) -> 818,583 | H8: 8,897 | I8: 8,325 | J8: 8,972 | K8: 9,184 | L8: 10,669 | M8: 11,392 | N8: 13,324 | O8: 13,692 | P8: 13,527 | Q8: 13,359 | R8: 11,866 | S8: 11,866 | T8: 12,274 | U8: 11,708 | V8: 10,991 | W8: 12,620 | X8: 12,792 | Y8: 12,689 | Z8: 12,448 | AA8: 12,681 | AB8: 58,784 | AC8: 63,333 | AD8: 66,465 | AE8: 62,287 | AF8: 60,582 | AG8: 56,244 | AH8: 47,933 | AI8: 44,629 | AJ8: 37,706 | AK8: 28,919 | AL8: 23,107 | AM8: 16,290 | AN8: 9,959 | AO8: 9,069 | AP8: 328 | AQ8: 4,244 | AR8: 138,066 | AS8: =SUM(AS9:AS117) -> 13,240 | AT8: 843,731 | AU8: 8,414 | AV8: 8,050 | AW8: 8,694 | AX8: 8,876 | AY8: 10,278 | AZ8: 10,894 | BA8: 12,961 | BB8: 13,216 | BC8: 12,990 | BD8: 12,125 | BE8: 11,846 | BF8: 11,888 | BG8: 12,267 | BH8: 11,718 | BI8: 11,003 | BJ8: 12,659 | BK8: 12,740 | BL8: 12,691 | BM8: 12,444 | BN8: 12,369 | BO8: 62,370 | BP8: 71,746 | BQ8: 68,785 | BR8: 60,040 | BS8: 60,228 | BT8: 56,307 | BU8: 51,200 | BV8: 46,045 | BW8: 38,481 | BX8: 31,608 | BY8: 25,666 | BZ8: 18,143 | CA8: 11,969 | CB8: 13,020 | CC8: 333 | CD8: 4,068 | CE8: 4,352 | CF8: 12,636 | CG8: 41,624 | CJ8: =SUM(CJ9:CJ117) -> 135,073 | CK8: 73,074 | CL8: 147,246 | CM8: 338,140 | CN8: 125,050 | CO8: 130,232 | CP8: 73,078 | CQ8: 158,929 | CR8: 342,605 | CS8: 138,887 | CT8: 46,047 | CU8: 65,294 | CV8: 58,705 | CW8: 63,230 | CX8: 58,784 | CY8: 63,333 | CZ8: 66,465 | DA8: 62,287 | DB8: 60,582 | DC8: 56,244 | DD8: 47,933 | DE8: 44,629 | DF8: 37,706 | DG8: 28,919 | DH8: 23,107 | DI8: 16,290 | DJ8: 9,959 | DK8: 9,069 | DL8: 44,312 | DM8: 62,186 | DN8: 58,722 | DO8: 62,903 | DP8: 62,370 | DQ8: 71,746 | DR8: 68,785 | DS8: 60,040 | DT8: 60,228 | DU8: 56,307 | DV8: 51,200 | DW8: 46,045 | DX8: 38,481 | DY8: 31,608 | DZ8: 25,666 | EA8: 18,143 | EB8: 11,969 | EC8: 13,020
A9: 040101 | B9: AREQUIPA | C9: AREQUIPA | D9: AREQUIPA | E9: AREQUIPA | F9: =G9+AT9 -> 60675 | G9: =SUM(H9:AO9) -> 30044 | H9: 293 | I9: 273 | J9: 236 | K9: 269 | L9: 344 | M9: 383 | N9: 358 | O9: 372 | P9: 357 | Q9: 344 | R9: 295 | S9: 306 | T9: 318 | U9: 314 | V9: 324 | W9: 340 | X9: 332 | Y9: 332 | Z9: 316 | AA9: 352 | AB9: 1,691 | AC9: 1,771 | AD9: 2,038 | AE9: 1,833 | AF9: 1,937 | AG9: 2,147 | AH9: 2,163 | AI9: 2,229 | AJ9: 2,149 | AK9: 1,696 | AL9: 1,448 | AM9: 1,074 | AN9: 715 | AO9: 695 | AP9: 6 | AQ9: 151 | AR9: 142 | AS9: 445 | AT9: =SUM(AU9:CB9) -> 30,631 | AU9: 268 | AV9: 260 | AW9: 244 | AX9: 265 | AY9: 323 | AZ9: 366 | BA9: 277 | BB9: 312 | BC9: 327 | BD9: 295 | BE9: 266 | BF9: 275 | BG9: 286 | BH9: 282 | BI9: 291 | BJ9: 320 | BK9: 314 | BL9: 307 | BM9: 295 | BN9: 286 | BO9: 1,652 | BP9: 1,836 | BQ9: 1,885 | BR9: 1,742 | BS9: 1,988 | BT9: 2,094 | BU9: 2,221 | BV9: 2,295 | BW9: 2,186 | BX9: 1,946 | BY9: 1,708 | BZ9: 1,238 | CA9: 906 | CB9: 1,075 | CC9: 5 | CD9: 113 | CE9: 155 | CF9: 414 | CG9: 1,754 | CJ9: =SUM(H9:S9) -> 3,830 | CK9: =SUM(T9:Y9) -> 1,960 | CL9: =SUM(Z9:AC9) -> 4,130 | CM9: =SUM(AD9:AI9) -> 12,347 | CN9: =SUM(AJ9:AO9) -> 7,777 | CO9: =SUM(AU9:BF9) -> 3,478 | CP9: =SUM(BG9:BL9) -> 1,800 | CQ9: =SUM(BM9:BP9) -> 4,069 | CR9: =SUM(BQ9:BV9) -> 12,225 | CS9: =SUM(BW9:CB9) -> 9,059 | CT9: =SUM(H9:L9) -> 1,415 | CU9: =SUM(M9:Q9) -> 1,814 | CV9: =SUM(R9:V9) -> 1,557 | CW9: =SUM(W9:AA9) -> 1,672 | CX9: =AB9 -> 1,691 | CY9: =AC9 -> 1,771 | CZ9: =AD9 -> 2,038 | DA9: =AE9 -> 1,833 | DB9: =AF9 -> 1,937 | DC9: =AG9 -> 2,147 | DD9: =AH9 -> 2,163 | DE9: =AI9 -> 2,229 | DF9: =AJ9 -> 2,149 | DG9: =AK9 -> 1,696 | DH9: =AL9 -> 1,448 | DI9: =AM9 -> 1,074 | DJ9: =AN9 -> 715 | DK9: =AO9 -> 695 | DL9: =SUM(AU9:AY9) -> 1,360 | DM9: =SUM(AZ9:BD9) -> 1,577 | DN9: =SUM(BE9:BI9) -> 1,400 | DO9: =SUM(BJ9:BN9) -> 1,522 | DP9: =BO9 -> 1,652 | DQ9: =BP9 -> 1,836 | DR9: =BQ9 -> 1,885 | DS9: =BR9 -> 1,742 | DT9: =BS9 -> 1,988 | DU9: =BT9 -> 2,094 | DV9: =BU9 -> 2,221 | DW9: =BV9 -> 2,295 | DX9: =BW9 -> 2,186 | DY9: =BX9 -> 1,946 | DZ9: =BY9 -> 1,708 | EA9: =BZ9 -> 1,238 | EB9: =CA9 -> 906 | EC9: =CB9 -> 1,075
A10: 040102 | B10: AREQUIPA | C10: AREQUIPA | D10: AREQUIPA | E10: ALTO SELVA ALEGRE | F10: 96431 | G10: 47566 | H10: 456 | I10: 449 | J10: 447 | K10: 517 | L10: 705 | M10: 639 | N10: 758 | O10: 865 | P10: 802 | Q10: 807 | R10: 685 | S10: 707 | T10: 727 | U10: 720 | V10: 665 | W10: 699 | X10: 763 | Y10: 700 | Z10: 689 | AA10: 746 | AB10: 3,586 | AC10: 4,055 | AD10: 4,251 | AE10: 3,698 | AF10: 3,487 | AG10: 2,977 | AH10: 2,562 | AI10: 2,609 | AJ10: 2,299 | AK10: 1,616 | AL10: 1,150 | AM10: 753 | AN10: 482 | AO10: 495 | AP10: 18 | AQ10: 226 | AR10: 230 | AS10: 596 | AT10: 48,865 | AU10: 458 | AV10: 461 | AW10: 447 | AX10: 525 | AY10: 607 | AZ10: 690 | BA10: 755 | BB10: 706 | BC10: 749 | BD10: 669 | BE10: 643 | BF10: 664 | BG10: 683 | BH10: 676 | BI10: 624 | BJ10: 663 | BK10: 668 | BL10: 697 | BM10: 629 | BN10: 720 | BO10: 3,789 | BP10: 4,627 | BQ10: 4,229 | BR10: 3,421 | BS10: 3,322 | BT10: 3,158 | BU10: 3,107 | BV10: 2,785 | BW10: 2,447 | BX10: 1,788 | BY10: 1,305 | BZ10: 867 | CA10: 593 | CB10: 693 | CC10: 13 | CD10: 211 | CE10: 247 | CF10: 633 | CG10: 2,417 | CJ10: 7,837 | CK10: 4,274 | CL10: 9,076 | CM10: 19,584 | CN10: 6,795 | CO10: 7,374 | CP10: 4,011 | CQ10: 9,765 | CR10: 20,022 | CS10: 7,693 | CT10: 2,574 | CU10: 3,871 | CV10: 3,504 | CW10: 3,597 | CX10: 3,586 | CY10: 4,055 | CZ10: 4,251 | DA10: 3,698 | DB10: 3,487 | DC10: 2,977 | DD10: 2,562 | DE10: 2,609 | DF10: 2,299 | DG10: 1,616 | DH10: 1,150 | DI10: 753 | DJ10: 482 | DK10: 495 | DL10: 2,498 | DM10: 3,569 | DN10: 3,290 | DO10: 3,377 | DP10: 3,789 | DQ10: 4,627 | DR10: 4,229 | DS10: 3,421 | DT10: 3,322 | DU10: 3,158 | DV10: 3,107 | DW10: 2,785 | DX10: 2,447 | DY10: 1,788 | DZ10: 1,305 | EA10: 867 | EB10: 593 | EC10: 693
A11: 040103 | B11: AREQUIPA | C11: AREQUIPA | D11: AREQUIPA | E11: CAYMA | F11: 114695 | G11: 56261 | H11: 554 | I11: 570 | J11: 667 | K11: 645 | L11: 752 | M11: 878 | N11: 1,022 | O11: 954 | P11: 1,014 | Q11: 984 | R11: 871 | S11: 855 | T11: 912 | U11: 834 | V11: 750 | W11: 915 | X11: 780 | Y11: 880 | Z11: 913 | AA11: 891 | AB11: 4,217 | AC11: 4,681 | AD11: 5,090 | AE11: 4,504 | AF11: 4,076 | AG11: 3,657 | AH11: 3,012 | AI11: 2,763 | AJ11: 2,443 | AK11: 1,792 | AL11: 1,410 | AM11: 962 | AN11: 504 | AO11: 509 | AP11: 15 | AQ11: 243 | AR11: 311 | AS11: 903 | AT11: 58,434 | AU11: 550 | AV11: 610 | AW11: 718 | AX11: 626 | AY11: 702 | AZ11: 798 | BA11: 977 | BB11: 1005 | BC11: 920 | BD11: 840 | BE11: 848 | BF11: 832 | BG11: 888 | BH11: 812 | BI11: 730 | BJ11: 886 | BK11: 838 | BL11: 824 | BM11: 811 | BN11: 795 | BO11: 4,346 | BP11: 5,098 | BQ11: 5,241 | BR11: 4,429 | BS11: 4,147 | BT11: 3,714 | BU11: 3,446 | BV11: 3,106 | BW11: 2,607 | BX11: 2,132 | BY11: 1,628 | BZ11: 1,132 | CA11: 668 | CB11: 730 | CC11: 33 | CD11: 268 | CE11: 282 | CF11: 800 | CG11: 2,619 | CJ11: 9,766 | CK11: 5,071 | CL11: 10,702 | CM11: 23,102 | CN11: 7,620 | CO11: 9,426 | CP11: 4,978 | CQ11: 11,050 | CR11: 24,083 | CS11: 8,897 | CT11: 3,188 | CU11: 4,852 | CV11: 4,222 | CW11: 4,379 | CX11: 4,217 | CY11: 4,681 | CZ11: 5,090 | DA11: 4,504 | DB11: 4,076 | DC11: 3,657 | DD11: 3,012 | DE11: 2,763 | DF11: 2,443 | DG11: 1,792 | DH11: 1,410 | DI11: 962 | DJ11: 504 | DK11: 509 | DL11: 3,206 | DM11: 4,540 | DN11: 4,110 | DO11: 4,154 | DP11: 4,346 | DQ11: 5,098 | DR11: 5,241 | DS11: 4,429 | DT11: 4,147 | DU11: 3,714 | DV11: 3,446 | DW11: 3,106 | DX11: 2,607 | DY11: 2,132 | DZ11: 1,628 | EA11: 1,132 | EB11: 668 | EC11: 730
A12: 040104 | B12: AREQUIPA | C12: AREQUIPA | D12: AREQUIPA | E12: CERRO COLORADO | F12: 232673 | G12: 118583 | H12: 1,285 | I12: 1,150 | J12: 1,178 | K12: 1,373 | L12: 1,669 | M12: 1,733 | N12: 2,318 | O12: 2,389 | P12: 2,397 | Q12: 2,381 | R12: 2,046 | S12: 1,950 | T12: 2,036 | U12: 1,887 | V12: 1,727 | W12: 2,034 | X12: 2,009 | Y12: 2,001 | Z12: 1,949 | AA12: 2,077 | AB12: 9,674 | AC12: 9,944 | AD12: 10,205 | AE12: 9,353 | AF12: 9,035 | AG12: 7,756 | AH12: 6,417 | AI12: 5,387 | AJ12: 4,117 | AK12: 3,069 | AL12: 2,599 | AM12: 1,613 | AN12: 980 | AO12: 845 | AP12: 57 | AQ12: 624 | AR12: 661 | AS12: 1,820 | AT12: 114,090 | AU12: 1,242 | AV12: 1,100 | AW12: 1,126 | AX12: 1,328 | AY12: 1,465 | AZ12: 1,649 | BA12: 2149 | BB12: 2204 | BC12: 2132 | BD12: 1,946 | BE12: 1,867 | BF12: 1780 | BG12: 1858 | BH12: 1723 | BI12: 1,573 | BJ12: 1,830 | BK12: 1709 | BL12: 1840 | BM12: 1839 | BN12: 1,848 | BO12: 9,212 | BP12: 10,508 | BQ12: 10,161 | BR12: 8,607 | BS12: 8,620 | BT12: 7,565 | BU12: 6,107 | BV12: 5,239 | BW12: 3,933 | BX12: 3,297 | BY12: 2,639 | BZ12: 1,740 | CA12: 1,133 | CB12: 1,121 | CC12: 51 | CD12: 649 | CE12: 593 | CF12: 1,730 | CG12: 6,600 | CJ12: 21,869 | CK12: 11,694 | CL12: 23,644 | CM12: 48,153 | CN12: 13,223 | CO12: 19,988 | CP12: 10,533 | CQ12: 23,407 | CR12: 46,299 | CS12: 13,863 | CT12: 6,655 | CU12: 11,218 | CV12: 9,646 | CW12: 10,070 | CX12: 9,674 | CY12: 9,944 | CZ12: 10,205 | DA12: 9,353 | DB12: 9,035 | DC12: 7,756 | DD12: 6,417 | DE12: 5,387 | DF12: 4,117 | DG12: 3,069 | DH12: 2,599 | DI12: 1,613 | DJ12: 980 | DK12: 845 | DL12: 6,261 | DM12: 10,080 | DN12: 8,801 | DO12: 9,066 | DP12: 9,212 | DQ12: 10,508 | DR12: 10,161 | DS12: 8,607 | DT12: 8,620 | DU12: 7,565 | DV12: 6,107 | DW12: 5,239 | DX12: 3,933 | DY12: 3,297 | DZ12: 2,639 | EA12: 1,740 | EB12: 1,133 | EC12: 1,121
A13: 040105 | B13: AREQUIPA | C13: AREQUIPA | D13: AREQUIPA | E13: CHARACATO | F13: 19480 | G13: 9674 | H13: 88 | I13: 72 | J13: 102 | K13: 87 | L13: 92 | M13: 97 | N13: 179 | O13: 164 | P13: 125 | Q13: 155 | R13: 150 | S13: 138 | T13: 158 | U13: 136 | V13: 144 | W13: 133 | X13: 171 | Y13: 140 | Z13: 150 | AA13: 177 | AB13: 727 | AC13: 701 | AD13: 761 | AE13: 785 | AF13: 756 | AG13: 708 | AH13: 578 | AI13: 520 | AJ13: 425 | AK13: 341 | AL13: 302 | AM13: 207 | AN13: 119 | AO13: 86 | AP13: 3 | AQ13: 42 | AR13: 46 | AS13: 121 | AT13: 9,806 | AU13: 73 | AV13: 67 | AW13: 92 | AX13: 78 | AY13: 102 | AZ13: 117 | BA13: 201 | BB13: 174 | BC13: 154 | BD13: 127 | BE13: 144 | BF13: 132 | BG13: 151 | BH13: 130 | BI13: 139 | BJ13: 158 | BK13: 127 | BL13: 125 | BM13: 144 | BN13: 186 | BO13: 748 | BP13: 801 | BQ13: 767 | BR13: 716 | BS13: 818 | BT13: 721 | BU13: 586 | BV13: 524 | BW13: 408 | BX13: 367 | BY13: 255 | BZ13: 206 | CA13: 140 | CB13: 128 | CC13: 0 | CD13: 37 | CE13: 36 | CF13: 97 | CG13: 371 | CJ13: 1,449 | CK13: 882 | CL13: 1,755 | CM13: 4,108 | CN13: 1,480 | CO13: 1,461 | CP13: 830 | CQ13: 1,879 | CR13: 4,132 | CS13: 1,504 | CT13: 441 | CU13: 720 | CV13: 726 | CW13: 771 | CX13: 727 | CY13: 701 | CZ13: 761 | DA13: 785 | DB13: 756 | DC13: 708 | DD13: 578 | DE13: 520 | DF13: 425 | DG13: 341 | DH13: 302 | DI13: 207 | DJ13: 119 | DK13: 86 | DL13: 412 | DM13: 773 | DN13: 696 | DO13: 740 | DP13: 748 | DQ13: 801 | DR13: 767 | DS13: 716 | DT13: 818 | DU13: 721 | DV13: 586 | DW13: 524 | DX13: 408 | DY13: 367 | DZ13: 255 | EA13: 206 | EB13: 140 | EC13: 128
A14: 040106 | B14: AREQUIPA | C14: AREQUIPA | D14: AREQUIPA | E14: CHIGUATA | F14: 3633 | G14: 1723 | H14: 24 | I14: 19 | J14: 29 | K14: 30 | L14: 40 | M14: 24 | N14: 26 | O14: 31 | P14: 24 | Q14: 24 | R14: 19 | S14: 29 | T14: 15 | U14: 15 | V14: 25 | W14: 26 | X14: 12 | Y14: 23 | Z14: 20 | AA14: 23 | AB14: 111 | AC14: 115 | AD14: 146 | AE14: 129 | AF14: 104 | AG14: 105 | AH14: 100 | AI14: 98 | AJ14: 74 | AK14: 78 | AL14: 74 | AM14: 46 | AN14: 32 | AO14: 33 | AP14: 2 | AQ14: 12 | AR14: 12 | AS14: 45 | AT14: 1,910 | AU14: 25 | AV14: 24 | AW14: 24 | AX14: 24 | AY14: 30 | AZ14: 32 | BA14: 22 | BB14: 26 | BC14: 29 | BD14: 24 | BE14: 20 | BF14: 30 | BG14: 15 | BH14: 15 | BI14: 25 | BJ14: 26 | BK14: 16 | BL14: 22 | BM14: 26 | BN14: 20 | BO14: 129 | BP14: 155 | BQ14: 161 | BR14: 138 | BS14: 145 | BT14: 126 | BU14: 123 | BV14: 107 | BW14: 90 | BX14: 86 | BY14: 68 | BZ14: 42 | CA14: 31 | CB14: 34 | CC14: 2 | CD14: 10 | CE14: 15 | CF14: 41 | CG14: 182 | CJ14: 319 | CK14: 116 | CL14: 269 | CM14: 682 | CN14: 337 | CO14: 310 | CP14: 119 | CQ14: 330 | CR14: 800 | CS14: 351 | CT14: 142 | CU14: 129 | CV14: 103 | CW14: 104 | CX14: 111 | CY14: 115 | CZ14: 146 | DA14: 129 | DB14: 104 | DC14: 105 | DD14: 100 | DE14: 98 | DF14: 74 | DG14: 78 | DH14: 74 | DI14: 46 | DJ14: 32 | DK14: 33 | DL14: 127 | DM14: 133 | DN14: 105 | DO14: 110 | DP14: 129 | DQ14: 155 | DR14: 161 | DS14: 138 | DT14: 145 | DU14: 126 | DV14: 123 | DW14: 107 | DX14: 90 | DY14: 86 | DZ14: 68 | EA14: 42 | EB14: 31 | EC14: 34
A15: 040107 | B15: AREQUIPA | C15: AREQUIPA | D15: AREQUIPA | E15: JACOBO HUNTER | F15: 57137 | G15: 27982 | H15: 246 | I15: 250 | J15: 312 | K15: 303 | L15: 372 | M15: 387 | N15: 491 | O15: 486 | P15: 445 | Q15: 472 | R15: 411 | S15: 418 | T15: 424 | U15: 438 | V15: 333 | W15: 398 | X15: 432 | Y15: 438 | Z15: 398 | AA15: 407 | AB15: 2,047 | AC15: 2,210 | AD15: 2,274 | AE15: 2,246 | AF15: 2,231 | AG15: 1,968 | AH15: 1,629 | AI15: 1,488 | AJ15: 1,189 | AK15: 986 | AL15: 721 | AM15: 543 | AN15: 304 | AO15: 285 | AP15: 11 | AQ15: 123 | AR15: 123 | AS15: 393 | AT15: 29,155 | AU15: 252 | AV15: 259 | AW15: 270 | AX15: 296 | AY15: 335 | AZ15: 369 | BA15: 495 | BB15: 468 | BC15: 490 | BD15: 445 | BE15: 410 | BF15: 417 | BG15: 423 | BH15: 437 | BI15: 334 | BJ15: 444 | BK15: 446 | BL15: 447 | BM15: 403 | BN15: 400 | BO15: 2,178 | BP15: 2,488 | BQ15: 2,268 | BR15: 2,100 | BS15: 2,107 | BT15: 2,037 | BU15: 1,851 | BV15: 1,615 | BW15: 1,320 | BX15: 1,068 | BY15: 878 | BZ15: 618 | CA15: 383 | CB15: 404 | CC15: 15 | CD15: 137 | CE15: 115 | CF15: 349 | CG15: 1,416 | CJ15: 4,593 | CK15: 2,463 | CL15: 5,062 | CM15: 11,836 | CN15: 4,028 | CO15: 4,506 | CP15: 2,531 | CQ15: 5,469 | CR15: 11,978 | CS15: 4,671 | CT15: 1,483 | CU15: 2,281 | CV15: 2,024 | CW15: 2,073 | CX15: 2,047 | CY15: 2,210 | CZ15: 2,274 | DA15: 2,246 | DB15: 2,231 | DC15: 1,968 | DD15: 1,629 | DE15: 1,488 | DF15: 1,189 | DG15: 986 | DH15: 721 | DI15: 543 | DJ15: 304 | DK15: 285 | DL15: 1,412 | DM15: 2,267 | DN15: 2,021 | DO15: 2,140 | DP15: 2,178 | DQ15: 2,488 | DR15: 2,268 | DS15: 2,100 | DT15: 2,107 | DU15: 2,037 | DV15: 1,851 | DW15: 1,615 | DX15: 1,320 | DY15: 1,068 | DZ15: 878 | EA15: 618 | EB15: 383 | EC15: 404
A16: 040108 | B16: AREQUIPA | C16: AREQUIPA | D16: AREQUIPA | E16: LA JOYA | F16: 44201 | G16: 21555 | H16: 269 | I16: 270 | J16: 315 | K16: 301 | L16: 327 | M16: 340 | N16: 304 | O16: 280 | P16: 389 | Q16: 432 | R16: 333 | S16: 332 | T16: 366 | U16: 319 | V16: 336 | W16: 390 | X16: 390 | Y16: 410 | Z16: 402 | AA16: 364 | AB16: 1,720 | AC16: 1,856 | AD16: 1,753 | AE16: 1,662 | AF16: 1,459 | AG16: 1,388 | AH16: 1,111 | AI16: 1,029 | AJ16: 838 | AK16: 665 | AL16: 481 | AM16: 331 | AN16: 205 | AO16: 188 | AP16: 17 | AQ16: 127 | AR16: 142 | AS16: 437 | AT16: 22,646 | AU16: 222 | AV16: 246 | AW16: 292 | AX16: 296 | AY16: 323 | AZ16: 255 | BA16: 385 | BB16: 346 | BC16: 404 | BD16: 393 | BE16: 368 | BF16: 367 | BG16: 405 | BH16: 353 | BI16: 372 | BJ16: 388 | BK16: 420 | BL16: 387 | BM16: 424 | BN16: 441 | BO16: 1,932 | BP16: 2,155 | BQ16: 1,844 | BR16: 1,689 | BS16: 1,517 | BT16: 1,464 | BU16: 1,154 | BV16: 1,031 | BW16: 836 | BX16: 699 | BY16: 453 | BZ16: 362 | CA16: 227 | CB16: 196 | CC16: 7 | CD16: 107 | CE16: 115 | CF16: 366 | CG16: 1,130 | CJ16: 3,892 | CK16: 2,211 | CL16: 4,342 | CM16: 8,402 | CN16: 2,708 | CO16: 3,897 | CP16: 2,325 | CQ16: 4,952 | CR16: 8,699 | CS16: 2,773 | CT16: 1,482 | CU16: 1,745 | CV16: 1,686 | CW16: 1,956 | CX16: 1,720 | CY16: 1,856 | CZ16: 1,753 | DA16: 1,662 | DB16: 1,459 | DC16: 1,388 | DD16: 1,111 | DE16: 1,029 | DF16: 838 | DG16: 665 | DH16: 481 | DI16: 331 | DJ16: 205 | DK16: 188 | DL16: 1,379 | DM16: 1,783 | DN16: 1,865 | DO16: 2,060 | DP16: 1,932 | DQ16: 2,155 | DR16: 1,844 | DS16: 1,689 | DT16: 1,517 | DU16: 1,464 | DV16: 1,154 | DW16: 1,031 | DX16: 836 | DY16: 699 | DZ16: 453 | EA16: 362 | EB16: 227 | EC16: 196
A17: 040109 | B17: AREQUIPA | C17: AREQUIPA | D17: AREQUIPA | E17: MARIANO MELGAR | F17: 71941 | G17: 35408 | H17: 379 | I17: 366 | J17: 374 | K17: 382 | L17: 414 | M17: 465 | N17: 591 | O17: 545 | P17: 560 | Q17: 543 | R17: 482 | S17: 473 | T17: 519 | U17: 502 | V17: 479 | W17: 525 | X17: 548 | Y17: 479 | Z17: 517 | AA17: 580 | AB17: 2,552 | AC17: 2,752 | AD17: 2,927 | AE17: 2,550 | AF17: 2,622 | AG17: 2,471 | AH17: 2,169 | AI17: 2,062 | AJ17: 1,718 | AK17: 1,294 | AL17: 1,030 | AM17: 691 | AN17: 449 | AO17: 398 | AP17: 16 | AQ17: 200 | AR17: 179 | AS17: 563 | AT17: 36,533 | AU17: 348 | AV17: 358 | AW17: 350 | AX17: 377 | AY17: 449 | AZ17: 418 | BA17: 501 | BB17: 519 | BC17: 554 | BD17: 538 | BE17: 481 | BF17: 471 | BG17: 517 | BH17: 500 | BI17: 477 | BJ17: 547 | BK17: 537 | BL17: 530 | BM17: 512 | BN17: 504 | BO17: 2,627 | BP17: 3,085 | BQ17: 2,928 | BR17: 2,493 | BS17: 2,533 | BT17: 2,493 | BU17: 2,344 | BV17: 2,072 | BW17: 1,822 | BX17: 1,476 | BY17: 1,199 | BZ17: 798 | CA17: 528 | CB17: 647 | CC17: 20 | CD17: 179 | CE17: 169 | CF17: 490 | CG17: 1,732 | CJ17: 5,574 | CK17: 3,052 | CL17: 6,401 | CM17: 14,801 | CN17: 5,580 | CO17: 5,364 | CP17: 3,108 | CQ17: 6,728 | CR17: 14,863 | CS17: 6,470 | CT17: 1,915 | CU17: 2,704 | CV17: 2,455 | CW17: 2,649 | CX17: 2,552 | CY17: 2,752 | CZ17: 2,927 | DA17: 2,550 | DB17: 2,622 | DC17: 2,471 | DD17: 2,169 | DE17: 2,062 | DF17: 1,718 | DG17: 1,294 | DH17: 1,030 | DI17: 691 | DJ17: 449 | DK17: 398 | DL17: 1,882 | DM17: 2,530 | DN17: 2,446 | DO17: 2,630 | DP17: 2,627 | DQ17: 3,085 | DR17: 2,928 | DS17: 2,493 | DT17: 2,533 | DU17: 2,493 | DV17: 2,344 | DW17: 2,072 | DX17: 1,822 | DY17: 1,476 | DZ17: 1,199 | EA17: 798 | EB17: 528 | EC17: 647
A18: 040110 | B18: AREQUIPA | C18: AREQUIPA | D18: AREQUIPA | E18: MIRAFLORES | F18: 70842 | G18: 34631 | H18: 324 | I18: 346 | J18: 367 | K18: 356 | L18: 417 | M18: 496 | N18: 566 | O18: 532 | P18: 574 | Q18: 518 | R18: 499 | S18: 452 | T18: 453 | U18: 443 | V18: 408 | W18: 431 | X18: 488 | Y18: 458 | Z18: 483 | AA18: 518 | AB18: 2,534 | AC18: 2,738 | AD18: 2,827 | AE18: 2,583 | AF18: 2,647 | AG18: 2,513 | AH18: 2,225 | AI18: 1,959 | AJ18: 1,720 | AK18: 1,264 | AL18: 980 | AM18: 668 | AN18: 422 | AO18: 422 | AP18: 16 | AQ18: 162 | AR18: 162 | AS18: 492 | AT18: 36,211 | AU18: 279 | AV18: 297 | AW18: 360 | AX18: 346 | AY18: 404 | AZ18: 426 | BA18: 454 | BB18: 526 | BC18: 548 | BD18: 469 | BE18: 521 | BF18: 471 | BG18: 472 | BH18: 462 | BI18: 427 | BJ18: 492 | BK18: 504 | BL18: 489 | BM18: 489 | BN18: 529 | BO18: 2,662 | BP18: 3,046 | BQ18: 2,925 | BR18: 2,474 | BS18: 2,661 | BT18: 2,564 | BU18: 2,366 | BV18: 2,115 | BW18: 1,793 | BX18: 1,411 | BY18: 1,166 | BZ18: 833 | CA18: 561 | CB18: 669 | CC18: 13 | CD18: 133 | CE18: 146 | CF18: 492 | CG18: 1,739 | CJ18: 5,447 | CK18: 2,681 | CL18: 6,273 | CM18: 14,754 | CN18: 5,476 | CO18: 5,101 | CP18: 2,846 | CQ18: 6,726 | CR18: 15,105 | CS18: 6,433 | CT18: 1,810 | CU18: 2,686 | CV18: 2,255 | CW18: 2,378 | CX18: 2,534 | CY18: 2,738 | CZ18: 2,827 | DA18: 2,583 | DB18: 2,647 | DC18: 2,513 | DD18: 2,225 | DE18: 1,959 | DF18: 1,720 | DG18: 1,264 | DH18: 980 | DI18: 668 | DJ18: 422 | DK18: 422 | DL18: 1,686 | DM18: 2,423 | DN18: 2,353 | DO18: 2,503 | DP18: 2,662 | DQ18: 3,046 | DR18: 2,925 | DS18: 2,474 | DT18: 2,661 | DU18: 2,564 | DV18: 2,366 | DW18: 2,115 | DX18: 1,793 | DY18: 1,411 | DZ18: 1,166 | EA18: 833 | EB18: 561 | EC18: 669
A19: 040111 | B19: AREQUIPA | C19: AREQUIPA | D19: AREQUIPA | E19: MOLLEBAYA | F19: 8627 | G19: 4288 | H19: 33 | I19: 24 | J19: 45 | K19: 37 | L19: 36 | M19: 26 | N19: 60 | O19: 95 | P19: 92 | Q19: 60 | R19: 47 | S19: 57 | T19: 55 | U19: 65 | V19: 59 | W19: 68 | X19: 61 | Y19: 71 | Z19: 75 | AA19: 42 | AB19: 244 | AC19: 277 | AD19: 449 | AE19: 393 | AF19: 355 | AG19: 352 | AH19: 218 | AI19: 221 | AJ19: 217 | AK19: 145 | AL19: 126 | AM19: 107 | AN19: 38 | AO19: 38 | AP19: 0 | AQ19: 17 | AR19: 16 | AS19: 50 | AT19: 4,339 | AU19: 34 | AV19: 32 | AW19: 38 | AX19: 25 | AY19: 34 | AZ19: 41 | BA19: 56 | BB19: 84 | BC19: 72 | BD19: 75 | BE19: 47 | BF19: 58 | BG19: 56 | BH19: 66 | BI19: 60 | BJ19: 67 | BK19: 73 | BL19: 50 | BM19: 63 | BN19: 50 | BO19: 269 | BP19: 442 | BQ19: 452 | BR19: 386 | BS19: 363 | BT19: 329 | BU19: 202 | BV19: 217 | BW19: 182 | BX19: 150 | BY19: 119 | BZ19: 58 | CA19: 44 | CB19: 45 | CC19: 2 | CD19: 14 | CE19: 20 | CF19: 49 | CG19: 175 | CJ19: 612 | CK19: 379 | CL19: 638 | CM19: 1,988 | CN19: 671 | CO19: 596 | CP19: 372 | CQ19: 824 | CR19: 1,949 | CS19: 598 | CT19: 175 | CU19: 333 | CV19: 283 | CW19: 317 | CX19: 244 | CY19: 277 | CZ19: 449 | DA19: 393 | DB19: 355 | DC19: 352 | DD19: 218 | DE19: 221 | DF19: 217 | DG19: 145 | DH19: 126 | DI19: 107 | DJ19: 38 | DK19: 38 | DL19: 163 | DM19: 328 | DN19: 287 | DO19: 303 | DP19: 269 | DQ19: 442 | DR19: 452 | DS19: 386 | DT19: 363 | DU19: 329 | DV19: 202 | DW19: 217 | DX19: 182 | DY19: 150 | DZ19: 119 | EA19: 58 | EB19: 44 | EC19: 45
A20: 040112 | B20: AREQUIPA | C20: AREQUIPA | D20: AREQUIPA | E20: PAUCARPATA | F20: 142855 | G20: 69651 | H20: 785 | I20: 840 | J20: 854 | K20: 812 | L20: 889 | M20: 1,094 | N20: 1,165 | O20: 1,164 | P20: 1,136 | Q20: 1,121 | R20: 1,057 | S20: 1,049 | T20: 1,054 | U20: 1,009 | V20: 992 | W20: 1,109 | X20: 1,105 | Y20: 1,065 | Z20: 1,051 | AA20: 1,063 | AB20: 4,970 | AC20: 5,338 | AD20: 5,484 | AE20: 5,189 | AF20: 5,393 | AG20: 5,082 | AH20: 4,258 | AI20: 3,602 | AJ20: 2,792 | AK20: 2,191 | AL20: 1,794 | AM20: 1,499 | AN20: 886 | AO20: 759 | AP20: 27 | AQ20: 353 | AR20: 432 | AS20: 1,047 | AT20: 73,204 | AU20: 720 | AV20: 802 | AW20: 845 | AX20: 798 | AY20: 890 | AZ20: 1,029 | BA20: 1129 | BB20: 1205 | BC20: 1166 | BD20: 1,069 | BE20: 1,070 | BF20: 1062 | BG20: 1067 | BH20: 1022 | BI20: 1,004 | BJ20: 1,122 | BK20: 1159 | BL20: 1094 | BM20: 1099 | BN20: 1,087 | BO20: 5,414 | BP20: 5,997 | BQ20: 5,700 | BR20: 5,036 | BS20: 5,296 | BT20: 5,081 | BU20: 4,655 | BV20: 3,768 | BW20: 3,030 | BX20: 2,657 | BY20: 2,336 | BZ20: 1,684 | CA20: 1,071 | CB20: 1,040 | CC20: 38 | CD20: 346 | CE20: 374 | CF20: 1,037 | CG20: 3,575 | CJ20: 11,966 | CK20: 6,334 | CL20: 12,422 | CM20: 29,008 | CN20: 9,921 | CO20: 11,785 | CP20: 6,468 | CQ20: 13,597 | CR20: 29,536 | CS20: 11,818 | CT20: 4,180 | CU20: 5,680 | CV20: 5,161 | CW20: 5,393 | CX20: 4,970 | CY20: 5,338 | CZ20: 5,484 | DA20: 5,189 | DB20: 5,393 | DC20: 5,082 | DD20: 4,258 | DE20: 3,602 | DF20: 2,792 | DG20: 2,191 | DH20: 1,794 | DI20: 1,499 | DJ20: 886 | DK20: 759 | DL20: 4,055 | DM20: 5,598 | DN20: 5,225 | DO20: 5,561 | DP20: 5,414 | DQ20: 5,997 | DR20: 5,700 | DS20: 5,036 | DT20: 5,296 | DU20: 5,081 | DV20: 4,655 | DW20: 3,768 | DX20: 3,030 | DY20: 2,657 | DZ20: 2,336 | EA20: 1,684 | EB20: 1,071 | EC20: 1,040
A21: 040113 | B21: AREQUIPA | C21: AREQUIPA | D21: AREQUIPA | E21: POCSI | F21: 525 | G21: 252 | H21: 6 | I21: 4 | J21: 4 | K21: 1 | L21: 4 | M21: 6 | N21: 1 | O21: 1 | P21: 1 | Q21: 1 | R21: 1 | S21: 1 | T21: 2 | U21: 2 | V21: 2 | W21: 2 | X21: 2 | Y21: 2 | Z21: 2 | AA21: 4 | AB21: 11 | AC21: 18 | AD21: 23 | AE21: 19 | AF21: 20 | AG21: 17 | AH21: 18 | AI21: 16 | AJ21: 17 | AK21: 11 | AL21: 9 | AM21: 9 | AN21: 9 | AO21: 6 | AP21: 0 | AQ21: 2 | AR21: 4 | AS21: 10 | AT21: 273 | AU21: 5 | AV21: 0 | AW21: 1 | AX21: 1 | AY21: 5 | AZ21: 3 | BA21: 1 | BB21: 1 | BC21: 1 | BD21: 1 | BE21: 1 | BF21: 1 | BG21: 2 | BH21: 2 | BI21: 1 | BJ21: 1 | BK21: 1 | BL21: 1 | BM21: 3 | BN21: 1 | BO21: 14 | BP21: 23 | BQ21: 22 | BR21: 14 | BS21: 19 | BT21: 25 | BU21: 21 | BV21: 22 | BW21: 18 | BX21: 16 | BY21: 15 | BZ21: 10 | CA21: 12 | CB21: 9 | CC21: 0 | CD21: 2 | CE21: 3 | CF21: 7 | CG21: 11 | CJ21: 31 | CK21: 12 | CL21: 35 | CM21: 113 | CN21: 61 | CO21: 21 | CP21: 8 | CQ21: 41 | CR21: 123 | CS21: 80 | CT21: 19 | CU21: 10 | CV21: 8 | CW21: 12 | CX21: 11 | CY21: 18 | CZ21: 23 | DA21: 19 | DB21: 20 | DC21: 17 | DD21: 18 | DE21: 16 | DF21: 17 | DG21: 11 | DH21: 9 | DI21: 9 | DJ21: 9 | DK21: 6 | DL21: 12 | DM21: 7 | DN21: 7 | DO21: 7 | DP21: 14 | DQ21: 23 | DR21: 22 | DS21: 14 | DT21: 19 | DU21: 25 | DV21: 21 | DW21: 22 | DX21: 18 | DY21: 16 | DZ21: 15 | EA21: 10 | EB21: 12 | EC21: 9
A22: 040114 | B22: AREQUIPA | C22: AREQUIPA | D22: AREQUIPA | E22: POLOBAYA | F22: 878 | G22: 426 | H22: 5 | I22: 3 | J22: 6 | K22: 3 | L22: 8 | M22: 5 | N22: 1 | O22: 2 | P22: 4 | Q22: 7 | R22: 3 | S22: 4 | T22: 7 | U22: 4 | V22: 4 | W22: 3 | X22: 4 | Y22: 3 | Z22: 4 | AA22: 11 | AB22: 22 | AC22: 31 | AD22: 29 | AE22: 29 | AF22: 31 | AG22: 23 | AH22: 25 | AI22: 35 | AJ22: 38 | AK22: 25 | AL22: 16 | AM22: 15 | AN22: 10 | AO22: 6 | AP22: 0 | AQ22: 1 | AR22: 4 | AS22: 12 | AT22: 452 | AU22: 8 | AV22: 3 | AW22: 6 | AX22: 9 | AY22: 9 | AZ22: 3 | BA22: 2 | BB22: 3 | BC22: 2 | BD22: 0 | BE22: 3 | BF22: 4 | BG22: 6 | BH22: 4 | BI22: 3 | BJ22: 4 | BK22: 4 | BL22: 2 | BM22: 3 | BN22: 9 | BO22: 32 | BP22: 33 | BQ22: 37 | BR22: 26 | BS22: 23 | BT22: 28 | BU22: 29 | BV22: 38 | BW22: 28 | BX22: 31 | BY22: 27 | BZ22: 5 | CA22: 12 | CB22: 16 | CC22: 0 | CD22: 4 | CE22: 4 | CF22: 13 | CG22: 30 | CJ22: 51 | CK22: 25 | CL22: 68 | CM22: 172 | CN22: 110 | CO22: 52 | CP22: 23 | CQ22: 77 | CR22: 181 | CS22: 119 | CT22: 25 | CU22: 19 | CV22: 22 | CW22: 25 | CX22: 22 | CY22: 31 | CZ22: 29 | DA22: 29 | DB22: 31 | DC22: 23 | DD22: 25 | DE22: 35 | DF22: 38 | DG22: 25 | DH22: 16 | DI22: 15 | DJ22: 10 | DK22: 6 | DL22: 35 | DM22: 10 | DN22: 20 | DO22: 22 | DP22: 32 | DQ22: 33 | DR22: 37 | DS22: 26 | DT22: 23 | DU22: 28 | DV22: 29 | DW22: 38 | DX22: 28 | DY22: 31 | DZ22: 27 | EA22: 5 | EB22: 12 | EC22: 16
A23: 040115 | B23: AREQUIPA | C23: AREQUIPA | D23: AREQUIPA | E23: QUEQUEÑA | F23: 8720 | G23: 4407 | H23: 17 | I23: 16 | J23: 23 | K23: 30 | L23: 21 | M23: 19 | N23: 59 | O23: 49 | P23: 34 | Q23: 53 | R23: 47 | S23: 50 | T23: 59 | U23: 36 | V23: 40 | W23: 63 | X23: 36 | Y23: 39 | Z23: 63 | AA23: 57 | AB23: 185 | AC23: 304 | AD23: 346 | AE23: 480 | AF23: 349 | AG23: 342 | AH23: 335 | AI23: 308 | AJ23: 332 | AK23: 190 | AL23: 150 | AM23: 119 | AN23: 86 | AO23: 70 | AP23: 1 | AQ23: 8 | AR23: 9 | AS23: 41 | AT23: 4,313 | AU23: 22 | AV23: 19 | AW23: 20 | AX23: 23 | AY23: 19 | AZ23: 16 | BA23: 54 | BB23: 61 | BC23: 33 | BD23: 43 | BE23: 42 | BF23: 45 | BG23: 52 | BH23: 32 | BI23: 35 | BJ23: 41 | BK23: 58 | BL23: 58 | BM23: 58 | BN23: 38 | BO23: 216 | BP23: 282 | BQ23: 497 | BR23: 426 | BS23: 378 | BT23: 367 | BU23: 348 | BV23: 285 | BW23: 208 | BX23: 170 | BY23: 139 | BZ23: 116 | CA23: 49 | CB23: 63 | CC23: 2 | CD23: 13 | CE23: 9 | CF23: 58 | CG23: 129 | CJ23: 418 | CK23: 273 | CL23: 609 | CM23: 2,160 | CN23: 947 | CO23: 397 | CP23: 276 | CQ23: 594 | CR23: 2,301 | CS23: 745 | CT23: 107 | CU23: 214 | CV23: 232 | CW23: 258 | CX23: 185 | CY23: 304 | CZ23: 346 | DA23: 480 | DB23: 349 | DC23: 342 | DD23: 335 | DE23: 308 | DF23: 332 | DG23: 190 | DH23: 150 | DI23: 119 | DJ23: 86 | DK23: 70 | DL23: 103 | DM23: 207 | DN23: 206 | DO23: 253 | DP23: 216 | DQ23: 282 | DR23: 497 | DS23: 426 | DT23: 378 | DU23: 367 | DV23: 348 | DW23: 285 | DX23: 208 | DY23: 170 | DZ23: 139 | EA23: 116 | EB23: 49 | EC23: 63
A24: 040116 | B24: AREQUIPA | C24: AREQUIPA | D24: AREQUIPA | E24: SABANDIA | F24: 5241 | G24: 2576 | H24: 40 | I24: 35 | J24: 29 | K24: 46 | L24: 50 | M24: 48 | N24: 37 | O24: 38 | P24: 51 | Q24: 31 | R24: 31 | S24: 35 | T24: 37 | U24: 32 | V24: 31 | W24: 37 | X24: 35 | Y24: 26 | Z24: 40 | AA24: 32 | AB24: 173 | AC24: 178 | AD24: 184 | AE24: 205 | AF24: 187 | AG24: 178 | AH24: 147 | AI24: 127 | AJ24: 106 | AK24: 102 | AL24: 90 | AM24: 67 | AN24: 51 | AO24: 40 | AP24: 0 | AQ24: 19 | AR24: 21 | AS24: 74 | AT24: 2,665 | AU24: 41 | AV24: 32 | AW24: 34 | AX24: 54 | AY24: 43 | AZ24: 48 | BA24: 39 | BB24: 34 | BC24: 38 | BD24: 33 | BE24: 31 | BF24: 35 | BG24: 37 | BH24: 32 | BI24: 31 | BJ24: 38 | BK24: 35 | BL24: 38 | BM24: 29 | BN24: 32 | BO24: 171 | BP24: 225 | BQ24: 185 | BR24: 198 | BS24: 201 | BT24: 188 | BU24: 164 | BV24: 139 | BW24: 114 | BX24: 91 | BY24: 101 | BZ24: 62 | CA24: 52 | CB24: 40 | CC24: 1 | CD24: 26 | CE24: 15 | CF24: 90 | CG24: 202 | CJ24: 471 | CK24: 198 | CL24: 423 | CM24: 1,028 | CN24: 456 | CO24: 462 | CP24: 211 | CQ24: 457 | CR24: 1,075 | CS24: 460 | CT24: 200 | CU24: 205 | CV24: 166 | CW24: 170 | CX24: 173 | CY24: 178 | CZ24: 184 | DA24: 205 | DB24: 187 | DC24: 178 | DD24: 147 | DE24: 127 | DF24: 106 | DG24: 102 | DH24: 90 | DI24: 67 | DJ24: 51 | DK24: 40 | DL24: 204 | DM24: 192 | DN24: 166 | DO24: 172 | DP24: 171 | DQ24: 225 | DR24: 185 | DS24: 198 | DT24: 201 | DU24: 188 | DV24: 164 | DW24: 139 | DX24: 114 | DY24: 91 | DZ24: 101 | EA24: 62 | EB24: 52 | EC24: 40
A25: 040117 | B25: AREQUIPA | C25: AREQUIPA | D25: AREQUIPA | E25: SACHACA | F25: 31532 | G25: 15480 | H25: 165 | I25: 156 | J25: 169 | K25: 187 | L25: 227 | M25: 262 | N25: 274 | O25: 281 | P25: 254 | Q25: 243 | R25: 196 | S25: 228 | T25: 238 | U25: 240 | V25: 212 | W25: 228 | X25: 225 | Y25: 255 | Z25: 230 | AA25: 226 | AB25: 1,139 | AC25: 1,131 | AD25: 1,177 | AE25: 1,121 | AF25: 1,114 | AG25: 1,072 | AH25: 893 | AI25: 836 | AJ25: 693 | AK25: 593 | AL25: 482 | AM25: 339 | AN25: 206 | AO25: 188 | AP25: 8 | AQ25: 80 | AR25: 85 | AS25: 233 | AT25: 16,052 | AU25: 200 | AV25: 175 | AW25: 178 | AX25: 184 | AY25: 202 | AZ25: 204 | BA25: 234 | BB25: 244 | BC25: 245 | BD25: 228 | BE25: 188 | BF25: 218 | BG25: 228 | BH25: 230 | BI25: 202 | BJ25: 251 | BK25: 231 | BL25: 223 | BM25: 231 | BN25: 244 | BO25: 1,159 | BP25: 1,192 | BQ25: 1,243 | BR25: 1,068 | BS25: 1,169 | BT25: 1,063 | BU25: 977 | BV25: 872 | BW25: 783 | BX25: 703 | BY25: 566 | BZ25: 409 | CA25: 252 | CB25: 256 | CC25: 5 | CD25: 118 | CE25: 82 | CF25: 295 | CG25: 669 | CJ25: 2,642 | CK25: 1,398 | CL25: 2,726 | CM25: 6,213 | CN25: 2,501 | CO25: 2,500 | CP25: 1,365 | CQ25: 2,826 | CR25: 6,392 | CS25: 2,969 | CT25: 904 | CU25: 1,314 | CV25: 1,114 | CW25: 1,164 | CX25: 1,139 | CY25: 1,131 | CZ25: 1,177 | DA25: 1,121 | DB25: 1,114 | DC25: 1,072 | DD25: 893 | DE25: 836 | DF25: 693 | DG25: 593 | DH25: 482 | DI25: 339 | DJ25: 206 | DK25: 188 | DL25: 939 | DM25: 1,155 | DN25: 1,066 | DO25: 1,180 | DP25: 1,159 | DQ25: 1,192 | DR25: 1,243 | DS25: 1,068 | DT25: 1,169 | DU25: 1,063 | DV25: 977 | DW25: 872 | DX25: 783 | DY25: 703 | DZ25: 566 | EA25: 409 | EB25: 252 | EC25: 256
A26: 040118 | B26: AREQUIPA | C26: AREQUIPA | D26: AREQUIPA | E26: SAN JUAN DE SIGUAS | F26: 597 | G26: 266 | H26: 4 | I26: 4 | J26: 7 | K26: 5 | L26: 4 | M26: 5 | N26: 3 | O26: 2 | P26: 3 | Q26: 2 | R26: 3 | S26: 3 | T26: 3 | U26: 1 | V26: 1 | W26: 2 | X26: 4 | Y26: 3 | Z26: 2 | AA26: 3 | AB26: 16 | AC26: 19 | AD26: 18 | AE26: 15 | AF26: 23 | AG26: 16 | AH26: 21 | AI26: 21 | AJ26: 16 | AK26: 15 | AL26: 7 | AM26: 8 | AN26: 4 | AO26: 3 | AP26: 1 | AQ26: 3 | AR26: 1 | AS26: 10 | AT26: 331 | AU26: 2 | AV26: 1 | AW26: 3 | AX26: 6 | AY26: 5 | AZ26: 1 | BA26: 1 | BB26: 5 | BC26: 1 | BD26: 4 | BE26: 6 | BF26: 6 | BG26: 6 | BH26: 2 | BI26: 2 | BJ26: 1 | BK26: 7 | BL26: 2 | BM26: 5 | BN26: 3 | BO26: 24 | BP26: 24 | BQ26: 29 | BR26: 21 | BS26: 20 | BT26: 17 | BU26: 26 | BV26: 25 | BW26: 20 | BX26: 22 | BY26: 17 | BZ26: 6 | CA26: 3 | CB26: 8 | CC26: 0 | CD26: 2 | CE26: 0 | CF26: 7 | CG26: 49 | CJ26: 45 | CK26: 14 | CL26: 40 | CM26: 114 | CN26: 53 | CO26: 41 | CP26: 20 | CQ26: 56 | CR26: 138 | CS26: 76 | CT26: 24 | CU26: 15 | CV26: 11 | CW26: 14 | CX26: 16 | CY26: 19 | CZ26: 18 | DA26: 15 | DB26: 23 | DC26: 16 | DD26: 21 | DE26: 21 | DF26: 16 | DG26: 15 | DH26: 7 | DI26: 8 | DJ26: 4 | DK26: 3 | DL26: 17 | DM26: 12 | DN26: 22 | DO26: 18 | DP26: 24 | DQ26: 24 | DR26: 29 | DS26: 21 | DT26: 20 | DU26: 17 | DV26: 26 | DW26: 25 | DX26: 20 | DY26: 22 | DZ26: 17 | EA26: 6 | EB26: 3 | EC26: 8
A27: 040119 | B27: AREQUIPA | C27: AREQUIPA | D27: AREQUIPA | E27: SAN JUAN DE TARUCANI | F27: 1377 | G27: 654 | H27: 11 | I27: 12 | J27: 15 | K27: 10 | L27: 13 | M27: 12 | N27: 5 | O27: 5 | P27: 6 | Q27: 9 | R27: 5 | S27: 3 | T27: 3 | U27: 11 | V27: 4 | W27: 7 | X27: 6 | Y27: 10 | Z27: 8 | AA27: 2 | AB27: 33 | AC27: 34 | AD27: 47 | AE27: 48 | AF27: 53 | AG27: 52 | AH27: 46 | AI27: 50 | AJ27: 38 | AK27: 29 | AL27: 27 | AM27: 16 | AN27: 12 | AO27: 12 | AP27: 0 | AQ27: 6 | AR27: 6 | AS27: 18 | AT27: 723 | AU27: 9 | AV27: 3 | AW27: 12 | AX27: 8 | AY27: 14 | AZ27: 11 | BA27: 2 | BB27: 5 | BC27: 3 | BD27: 0 | BE27: 5 | BF27: 3 | BG27: 3 | BH27: 10 | BI27: 2 | BJ27: 10 | BK27: 3 | BL27: 5 | BM27: 5 | BN27: 11 | BO27: 36 | BP27: 64 | BQ27: 50 | BR27: 60 | BS27: 75 | BT27: 52 | BU27: 51 | BV27: 56 | BW27: 44 | BX27: 35 | BY27: 20 | BZ27: 19 | CA27: 19 | CB27: 18 | CC27: 0 | CD27: 7 | CE27: 2 | CF27: 11 | CG27: 49 | CJ27: 106 | CK27: 41 | CL27: 77 | CM27: 296 | CN27: 134 | CO27: 75 | CP27: 33 | CQ27: 116 | CR27: 344 | CS27: 155 | CT27: 61 | CU27: 37 | CV27: 26 | CW27: 33 | CX27: 33 | CY27: 34 | CZ27: 47 | DA27: 48 | DB27: 53 | DC27: 52 | DD27: 46 | DE27: 50 | DF27: 38 | DG27: 29 | DH27: 27 | DI27: 16 | DJ27: 12 | DK27: 12 | DL27: 46 | DM27: 21 | DN27: 23 | DO27: 34 | DP27: 36 | DQ27: 64 | DR27: 50 | DS27: 60 | DT27: 75 | DU27: 52 | DV27: 51 | DW27: 56 | DX27: 44 | DY27: 35 | DZ27: 20 | EA27: 19 | EB27: 19 | EC27: 18
A28: 040120 | B28: AREQUIPA | C28: AREQUIPA | D28: AREQUIPA | E28: SANTA ISABEL DE SIGUAS | F28: 705 | G28: 328 | H28: 3 | I28: 1 | J28: 3 | K28: 2 | L28: 7 | M28: 5 | N28: 4 | O28: 3 | P28: 3 | Q28: 4 | R28: 3 | S28: 3 | T28: 3 | U28: 4 | V28: 1 | W28: 4 | X28: 4 | Y28: 7 | Z28: 5 | AA28: 5 | AB28: 25 | AC28: 20 | AD28: 22 | AE28: 18 | AF28: 18 | AG28: 21 | AH28: 28 | AI28: 22 | AJ28: 23 | AK28: 19 | AL28: 15 | AM28: 5 | AN28: 10 | AO28: 8 | AP28: 0 | AQ28: 1 | AR28: 2 | AS28: 5 | AT28: 377 | AU28: 5 | AV28: 2 | AW28: 2 | AX28: 2 | AY28: 6 | AZ28: 2 | BA28: 6 | BB28: 8 | BC28: 6 | BD28: 2 | BE28: 7 | BF28: 7 | BG28: 6 | BH28: 8 | BI28: 1 | BJ28: 6 | BK28: 6 | BL28: 8 | BM28: 1 | BN28: 4 | BO28: 27 | BP28: 28 | BQ28: 31 | BR28: 17 | BS28: 19 | BT28: 25 | BU28: 24 | BV28: 24 | BW28: 23 | BX28: 19 | BY28: 11 | BZ28: 18 | CA28: 8 | CB28: 8 | CC28: 0 | CD28: 3 | CE28: 2 | CF28: 4 | CG28: 15 | CJ28: 41 | CK28: 23 | CL28: 55 | CM28: 129 | CN28: 80 | CO28: 55 | CP28: 35 | CQ28: 60 | CR28: 140 | CS28: 87 | CT28: 16 | CU28: 19 | CV28: 14 | CW28: 25 | CX28: 25 | CY28: 20 | CZ28: 22 | DA28: 18 | DB28: 18 | DC28: 21 | DD28: 28 | DE28: 22 | DF28: 23 | DG28: 19 | DH28: 15 | DI28: 5 | DJ28: 10 | DK28: 8 | DL28: 17 | DM28: 24 | DN28: 29 | DO28: 25 | DP28: 27 | DQ28: 28 | DR28: 31 | DS28: 17 | DT28: 19 | DU28: 25 | DV28: 24 | DW28: 24 | DX28: 23 | DY28: 19 | DZ28: 11 | EA28: 18 | EB28: 8 | EC28: 8
A29: 040121 | B29: AREQUIPA | C29: AREQUIPA | D29: AREQUIPA | E29: SANTA RITA DE SIGUAS | F29: 8744 | G29: 4239 | H29: 38 | I29: 40 | J29: 45 | K29: 54 | L29: 60 | M29: 48 | N29: 67 | O29: 94 | P29: 72 | Q29: 68 | R29: 70 | S29: 67 | T29: 71 | U29: 72 | V29: 59 | W29: 66 | X29: 61 | Y29: 63 | Z29: 67 | AA29: 94 | AB29: 336 | AC29: 394 | AD29: 430 | AE29: 405 | AF29: 338 | AG29: 269 | AH29: 192 | AI29: 176 | AJ29: 166 | AK29: 88 | AL29: 89 | AM29: 47 | AN29: 19 | AO29: 14 | AP29: 0 | AQ29: 18 | AR29: 20 | AS29: 75 | AT29: 4,505 | AU29: 55 | AV29: 46 | AW29: 55 | AX29: 50 | AY29: 52 | AZ29: 50 | BA29: 98 | BB29: 82 | BC29: 68 | BD29: 73 | BE29: 73 | BF29: 71 | BG29: 74 | BH29: 75 | BI29: 64 | BJ29: 97 | BK29: 68 | BL29: 67 | BM29: 72 | BN29: 70 | BO29: 377 | BP29: 493 | BQ29: 482 | BR29: 386 | BS29: 344 | BT29: 235 | BU29: 205 | BV29: 209 | BW29: 148 | BX29: 88 | BY29: 59 | BZ29: 49 | CA29: 39 | CB29: 31 | CC29: 1 | CD29: 21 | CE29: 34 | CF29: 100 | CG29: 250 | CJ29: 723 | CK29: 392 | CL29: 891 | CM29: 1,810 | CN29: 423 | CO29: 773 | CP29: 445 | CQ29: 1,012 | CR29: 1,861 | CS29: 414 | CT29: 237 | CU29: 349 | CV29: 339 | CW29: 351 | CX29: 336 | CY29: 394 | CZ29: 430 | DA29: 405 | DB29: 338 | DC29: 269 | DD29: 192 | DE29: 176 | DF29: 166 | DG29: 88 | DH29: 89 | DI29: 47 | DJ29: 19 | DK29: 14 | DL29: 258 | DM29: 371 | DN29: 357 | DO29: 374 | DP29: 377 | DQ29: 493 | DR29: 482 | DS29: 386 | DT29: 344 | DU29: 235 | DV29: 205 | DW29: 209 | DX29: 148 | DY29: 88 | DZ29: 59 | EA29: 49 | EB29: 39 | EC29: 31
A30: 040122 | B30: AREQUIPA | C30: AREQUIPA | D30: AREQUIPA | E30: SOCABAYA | F30: 91530 | G30: 45223 | H30: 382 | I30: 370 | J30: 330 | K30: 408 | L30: 470 | M30: 558 | N30: 709 | O30: 762 | P30: 790 | Q30: 776 | R30: 620 | S30: 681 | T30: 671 | U30: 690 | V30: 580 | W30: 709 | X30: 747 | Y30: 706 | Z30: 752 | AA30: 763 | AB30: 3,565 | AC30: 3,676 | AD30: 3,722 | AE30: 3,471 | AF30: 3,433 | AG30: 3,141 | AH30: 2,567 | AI30: 2,365 | AJ30: 2,069 | AK30: 1,697 | AL30: 1,233 | AM30: 873 | AN30: 496 | AO30: 441 | AP30: 15 | AQ30: 200 | AR30: 182 | AS30: 643 | AT30: 46,307 | AU30: 332 | AV30: 347 | AW30: 326 | AX30: 371 | AY30: 465 | AZ30: 538 | BA30: 691 | BB30: 705 | BC30: 682 | BD30: 718 | BE30: 642 | BF30: 705 | BG30: 695 | BH30: 714 | BI30: 601 | BJ30: 684 | BK30: 753 | BL30: 689 | BM30: 722 | BN30: 719 | BO30: 3,673 | BP30: 4,123 | BQ30: 3,723 | BR30: 3,210 | BS30: 3,355 | BT30: 3,209 | BU30: 2,840 | BV30: 2,600 | BW30: 2,205 | BX30: 1,868 | BY30: 1,383 | BZ30: 929 | CA30: 545 | CB30: 545 | CC30: 5 | CD30: 156 | CE30: 176 | CF30: 573 | CG30: 1,445 | CJ30: 6,856 | CK30: 4,103 | CL30: 8,756 | CM30: 18,699 | CN30: 6,809 | CO30: 6,522 | CP30: 4,136 | CQ30: 9,237 | CR30: 18,937 | CS30: 7,475 | CT30: 1,960 | CU30: 3,595 | CV30: 3,242 | CW30: 3,677 | CX30: 3,565 | CY30: 3,676 | CZ30: 3,722 | DA30: 3,471 | DB30: 3,433 | DC30: 3,141 | DD30: 2,567 | DE30: 2,365 | DF30: 2,069 | DG30: 1,697 | DH30: 1,233 | DI30: 873 | DJ30: 496 | DK30: 441 | DL30: 1,841 | DM30: 3,334 | DN30: 3,357 | DO30: 3,567 | DP30: 3,673 | DQ30: 4,123 | DR30: 3,723 | DS30: 3,210 | DT30: 3,355 | DU30: 3,209 | DV30: 2,840 | DW30: 2,600 | DX30: 2,205 | DY30: 1,868 | DZ30: 1,383 | EA30: 929 | EB30: 545 | EC30: 545
A31: 040123 | B31: AREQUIPA | C31: AREQUIPA | D31: AREQUIPA | E31: TIABAYA | F31: 19123 | G31: 9265 | H31: 146 | I31: 135 | J31: 126 | K31: 112 | L31: 144 | M31: 140 | N31: 136 | O31: 172 | P31: 133 | Q31: 131 | R31: 112 | S31: 125 | T31: 145 | U31: 119 | V31: 120 | W31: 134 | X31: 115 | Y31: 139 | Z31: 112 | AA31: 132 | AB31: 678 | AC31: 776 | AD31: 835 | AE31: 758 | AF31: 715 | AG31: 616 | AH31: 488 | AI31: 478 | AJ31: 411 | AK31: 278 | AL31: 236 | AM31: 161 | AN31: 110 | AO31: 97 | AP31: 5 | AQ31: 75 | AR31: 71 | AS31: 209 | AT31: 9,858 | AU31: 116 | AV31: 126 | AW31: 126 | AX31: 120 | AY31: 154 | AZ31: 132 | BA31: 157 | BB31: 186 | BC31: 153 | BD31: 151 | BE31: 119 | BF31: 133 | BG31: 153 | BH31: 126 | BI31: 128 | BJ31: 130 | BK31: 142 | BL31: 153 | BM31: 133 | BN31: 147 | BO31: 704 | BP31: 850 | BQ31: 785 | BR31: 711 | BS31: 720 | BT31: 644 | BU31: 568 | BV31: 517 | BW31: 401 | BX31: 365 | BY31: 291 | BZ31: 231 | CA31: 132 | CB31: 154 | CC31: 3 | CD31: 46 | CE31: 70 | CF31: 171 | CG31: 720 | CJ31: 1,612 | CK31: 772 | CL31: 1,698 | CM31: 3,890 | CN31: 1,293 | CO31: 1,673 | CP31: 832 | CQ31: 1,834 | CR31: 3,945 | CS31: 1,574 | CT31: 663 | CU31: 712 | CV31: 621 | CW31: 632 | CX31: 678 | CY31: 776 | CZ31: 835 | DA31: 758 | DB31: 715 | DC31: 616 | DD31: 488 | DE31: 478 | DF31: 411 | DG31: 278 | DH31: 236 | DI31: 161 | DJ31: 110 | DK31: 97 | DL31: 642 | DM31: 779 | DN31: 659 | DO31: 705 | DP31: 704 | DQ31: 850 | DR31: 785 | DS31: 711 | DT31: 720 | DU31: 644 | DV31: 568 | DW31: 517 | DX31: 401 | DY31: 365 | DZ31: 291 | EA31: 231 | EB31: 132 | EC31: 154
A32: 040124 | B32: AREQUIPA | C32: AREQUIPA | D32: AREQUIPA | E32: UCHUMAYO | F32: 18826 | G32: 8903 | H32: 108 | I32: 105 | J32: 125 | K32: 97 | L32: 138 | M32: 139 | N32: 139 | O32: 142 | P32: 123 | Q32: 128 | R32: 112 | S32: 112 | T32: 128 | U32: 108 | V32: 96 | W32: 115 | X32: 121 | Y32: 121 | Z32: 127 | AA32: 118 | AB32: 547 | AC32: 753 | AD32: 832 | AE32: 847 | AF32: 805 | AG32: 648 | AH32: 508 | AI32: 468 | AJ32: 354 | AK32: 274 | AL32: 208 | AM32: 130 | AN32: 82 | AO32: 45 | AP32: 6 | AQ32: 50 | AR32: 58 | AS32: 142 | AT32: 9,923 | AU32: 104 | AV32: 109 | AW32: 97 | AX32: 105 | AY32: 109 | AZ32: 127 | BA32: 166 | BB32: 151 | BC32: 153 | BD32: 129 | BE32: 139 | BF32: 139 | BG32: 158 | BH32: 134 | BI32: 117 | BJ32: 143 | BK32: 139 | BL32: 128 | BM32: 144 | BN32: 144 | BO32: 665 | BP32: 878 | BQ32: 828 | BR32: 780 | BS32: 803 | BT32: 713 | BU32: 597 | BV32: 540 | BW32: 476 | BX32: 396 | BY32: 252 | BZ32: 179 | CA32: 101 | CB32: 80 | CC32: 7 | CD32: 47 | CE32: 57 | CF32: 140 | CG32: 534 | CJ32: 1,468 | CK32: 689 | CL32: 1,545 | CM32: 4,108 | CN32: 1,093 | CO32: 1,528 | CP32: 819 | CQ32: 1,831 | CR32: 4,261 | CS32: 1,484 | CT32: 573 | CU32: 671 | CV32: 556 | CW32: 602 | CX32: 547 | CY32: 753 | CZ32: 832 | DA32: 847 | DB32: 805 | DC32: 648 | DD32: 508 | DE32: 468 | DF32: 354 | DG32: 274 | DH32: 208 | DI32: 130 | DJ32: 82 | DK32: 45 | DL32: 524 | DM32: 726 | DN32: 687 | DO32: 698 | DP32: 665 | DQ32: 878 | DR32: 828 | DS32: 780 | DT32: 803 | DU32: 713 | DV32: 597 | DW32: 540 | DX32: 476 | DY32: 396 | DZ32: 252 | EA32: 179 | EB32: 101 | EC32: 80
A33: 040125 | B33: AREQUIPA | C33: AREQUIPA | D33: AREQUIPA | E33: VITOR | F33: 5469 | G33: 2632 | H33: 40 | I33: 28 | J33: 20 | K33: 16 | L33: 22 | M33: 14 | N33: 23 | O33: 43 | P33: 36 | Q33: 37 | R33: 28 | S33: 30 | T33: 32 | U33: 43 | V33: 31 | W33: 43 | X33: 55 | Y33: 48 | Z33: 43 | AA33: 37 | AB33: 184 | AC33: 197 | AD33: 223 | AE33: 196 | AF33: 191 | AG33: 155 | AH33: 148 | AI33: 156 | AJ33: 167 | AK33: 124 | AL33: 90 | AM33: 56 | AN33: 41 | AO33: 35 | AP33: 0 | AQ33: 20 | AR33: 20 | AS33: 43 | AT33: 2,837 | AU33: 27 | AV33: 24 | AW33: 17 | AX33: 22 | AY33: 14 | AZ33: 20 | BA33: 37 | BB33: 44 | BC33: 34 | BD33: 37 | BE33: 35 | BF33: 37 | BG33: 40 | BH33: 54 | BI33: 40 | BJ33: 54 | BK33: 37 | BL33: 55 | BM33: 57 | BN33: 60 | BO33: 236 | BP33: 267 | BQ33: 211 | BR33: 223 | BS33: 193 | BT33: 177 | BU33: 160 | BV33: 173 | BW33: 122 | BX33: 110 | BY33: 86 | BZ33: 48 | CA33: 41 | CB33: 45 | CC33: 0 | CD33: 8 | CE33: 19 | CF33: 44 | CG33: 97 | CJ33: 337 | CK33: 252 | CL33: 461 | CM33: 1,069 | CN33: 513 | CO33: 348 | CP33: 280 | CQ33: 620 | CR33: 1,137 | CS33: 452 | CT33: 126 | CU33: 153 | CV33: 164 | CW33: 226 | CX33: 184 | CY33: 197 | CZ33: 223 | DA33: 196 | DB33: 191 | DC33: 155 | DD33: 148 | DE33: 156 | DF33: 167 | DG33: 124 | DH33: 90 | DI33: 56 | DJ33: 41 | DK33: 35 | DL33: 104 | DM33: 172 | DN33: 206 | DO33: 263 | DP33: 236 | DQ33: 267 | DR33: 211 | DS33: 223 | DT33: 193 | DU33: 177 | DV33: 160 | DW33: 173 | DX33: 122 | DY33: 110 | DZ33: 86 | EA33: 48 | EB33: 41 | EC33: 45
A34: 040126 | B34: AREQUIPA | C34: AREQUIPA | D34: AREQUIPA | E34: YANAHUARA | F34: 30515 | G34: 15492 | H34: 146 | I34: 92 | J34: 122 | K34: 178 | L34: 200 | M34: 243 | N34: 218 | O34: 206 | P34: 236 | Q34: 241 | R34: 208 | S34: 186 | T34: 198 | U34: 192 | V34: 176 | W34: 189 | X34: 212 | Y34: 175 | Z34: 195 | AA34: 231 | AB34: 845 | AC34: 959 | AD34: 1,022 | AE34: 1,030 | AF34: 1,044 | AG34: 1,101 | AH34: 1,062 | AI34: 985 | AJ34: 916 | AK34: 802 | AL34: 683 | AM34: 533 | AN34: 317 | AO34: 349 | AP34: 3 | AQ34: 89 | AR34: 57 | AS34: 212 | AT34: 15,023 | AU34: 131 | AV34: 89 | AW34: 103 | AX34: 128 | AY34: 211 | AZ34: 188 | BA34: 168 | BB34: 163 | BC34: 167 | BD34: 180 | BE34: 162 | BF34: 145 | BG34: 154 | BH34: 150 | BI34: 137 | BJ34: 142 | BK34: 153 | BL34: 153 | BM34: 171 | BN34: 155 | BO34: 831 | BP34: 964 | BQ34: 1,047 | BR34: 908 | BS34: 1,023 | BT34: 1,096 | BU34: 1,018 | BV34: 1,013 | BW34: 993 | BX34: 824 | BY34: 759 | BZ34: 557 | CA34: 434 | CB34: 506 | CC34: 3 | CD34: 71 | CE34: 60 | CF34: 157 | CG34: 545 | CJ34: 2,276 | CK34: 1,142 | CL34: 2,230 | CM34: 6,244 | CN34: 3,600 | CO34: 1,835 | CP34: 889 | CQ34: 2,121 | CR34: 6,105 | CS34: 4,073 | CT34: 738 | CU34: 1,144 | CV34: 960 | CW34: 1,002 | CX34: 845 | CY34: 959 | CZ34: 1,022 | DA34: 1,030 | DB34: 1,044 | DC34: 1,101 | DD34: 1,062 | DE34: 985 | DF34: 916 | DG34: 802 | DH34: 683 | DI34: 533 | DJ34: 317 | DK34: 349 | DL34: 662 | DM34: 866 | DN34: 748 | DO34: 774 | DP34: 831 | DQ34: 964 | DR34: 1,047 | DS34: 908 | DT34: 1,023 | DU34: 1,096 | DV34: 1,018 | DW34: 1,013 | DX34: 993 | DY34: 824 | DZ34: 759 | EA34: 557 | EB34: 434 | EC34: 506
A35: 040127 | B35: AREQUIPA | C35: AREQUIPA | D35: AREQUIPA | E35: YARABAMBA | F35: 1977 | G35: 884 | H35: 26 | I35: 25 | J35: 19 | K35: 18 | L35: 16 | M35: 11 | N35: 7 | O35: 8 | P35: 6 | Q35: 7 | R35: 6 | S35: 7 | T35: 5 | U35: 6 | V35: 4 | W35: 8 | X35: 8 | Y35: 5 | Z35: 13 | AA35: 12 | AB35: 55 | AC35: 70 | AD35: 83 | AE35: 79 | AF35: 72 | AG35: 78 | AH35: 56 | AI35: 47 | AJ35: 35 | AK35: 26 | AL35: 31 | AM35: 16 | AN35: 9 | AO35: 10 | AP35: 0 | AQ35: 16 | AR35: 10 | AS35: 33 | AT35: 1,093 | AU35: 24 | AV35: 19 | AW35: 21 | AX35: 13 | AY35: 21 | AZ35: 11 | BA35: 8 | BB35: 13 | BC35: 11 | BD35: 7 | BE35: 10 | BF35: 11 | BG35: 8 | BH35: 10 | BI35: 7 | BJ35: 12 | BK35: 8 | BL35: 12 | BM35: 15 | BN35: 8 | BO35: 61 | BP35: 97 | BQ35: 113 | BR35: 76 | BS35: 83 | BT35: 85 | BU35: 67 | BV35: 70 | BW35: 62 | BX35: 44 | BY35: 32 | BZ35: 19 | CA35: 16 | CB35: 19 | CC35: 2 | CD35: 12 | CE35: 12 | CF35: 43 | CG35: 86 | CJ35: 156 | CK35: 36 | CL35: 150 | CM35: 415 | CN35: 127 | CO35: 169 | CP35: 57 | CQ35: 181 | CR35: 494 | CS35: 192 | CT35: 104 | CU35: 39 | CV35: 28 | CW35: 46 | CX35: 55 | CY35: 70 | CZ35: 83 | DA35: 79 | DB35: 72 | DC35: 78 | DD35: 56 | DE35: 47 | DF35: 35 | DG35: 26 | DH35: 31 | DI35: 16 | DJ35: 9 | DK35: 10 | DL35: 98 | DM35: 50 | DN35: 46 | DO35: 55 | DP35: 61 | DQ35: 97 | DR35: 113 | DS35: 76 | DT35: 83 | DU35: 85 | DV35: 67 | DW35: 70 | DX35: 62 | DY35: 44 | DZ35: 32 | EA35: 19 | EB35: 16 | EC35: 19
A36: 040128 | B36: AREQUIPA | C36: AREQUIPA | D36: AREQUIPA | E36: YURA | F36: 48226 | G36: 23913 | H36: 308 | I36: 292 | J36: 343 | K36: 313 | L36: 360 | M36: 440 | N36: 534 | O36: 479 | P36: 493 | Q36: 406 | R36: 412 | S36: 394 | T36: 389 | U36: 390 | V36: 341 | W36: 404 | X36: 353 | Y36: 399 | Z36: 423 | AA36: 406 | AB36: 1,908 | AC36: 2,164 | AD36: 2,211 | AE36: 1,989 | AF36: 1,680 | AG36: 1,379 | AH36: 1,144 | AI36: 1,019 | AJ36: 855 | AK36: 683 | AL36: 443 | AM36: 271 | AN36: 151 | AO36: 137 | AP36: 14 | AQ36: 149 | AR36: 159 | AS36: 430 | AT36: 24,313 | AU36: 286 | AV36: 271 | AW36: 276 | AX36: 296 | AY36: 406 | AZ36: 446 | BA36: 463 | BB36: 448 | BC36: 416 | BD36: 382 | BE36: 405 | BF36: 388 | BG36: 382 | BH36: 383 | BI36: 335 | BJ36: 376 | BK36: 348 | BL36: 393 | BM36: 452 | BN36: 392 | BO36: 2,034 | BP36: 2,445 | BQ36: 2,464 | BR36: 1,919 | BS36: 1,668 | BT36: 1,492 | BU36: 1,228 | BV36: 1,078 | BW36: 773 | BX36: 621 | BY36: 469 | BZ36: 296 | CA36: 153 | CB36: 129 | CC36: 6 | CD36: 140 | CE36: 146 | CF36: 437 | CG36: 1,179 | CJ36: 4,774 | CK36: 2,276 | CL36: 4,901 | CM36: 9,422 | CN36: 2,540 | CO36: 4,483 | CP36: 2,217 | CQ36: 5,323 | CR36: 9,849 | CS36: 2,441 | CT36: 1,616 | CU36: 2,352 | CV36: 1,926 | CW36: 1,985 | CX36: 1,908 | CY36: 2,164 | CZ36: 2,211 | DA36: 1,989 | DB36: 1,680 | DC36: 1,379 | DD36: 1,144 | DE36: 1,019 | DF36: 855 | DG36: 683 | DH36: 443 | DI36: 271 | DJ36: 151 | DK36: 137 | DL36: 1,535 | DM36: 2,155 | DN36: 1,893 | DO36: 1,961 | DP36: 2,034 | DQ36: 2,445 | DR36: 2,464 | DS36: 1,919 | DT36: 1,668 | DU36: 1,492 | DV36: 1,228 | DW36: 1,078 | DX36: 773 | DY36: 621 | DZ36: 469 | EA36: 296 | EB36: 153 | EC36: 129
A37: 040129 | B37: AREQUIPA | C37: AREQUIPA | D37: AREQUIPA | E37: JOSE LUIS BUSTAMANTE Y RIVERO | F37: 90831 | G37: 44735 | H37: 357 | I37: 364 | J37: 408 | K37: 397 | L37: 454 | M37: 519 | N37: 650 | O37: 689 | P37: 712 | Q37: 649 | R37: 584 | S37: 582 | T37: 642 | U37: 548 | V37: 579 | W37: 627 | X37: 623 | Y37: 625 | Z37: 658 | AA37: 665 | AB37: 3,140 | AC37: 3,406 | AD37: 3,689 | AE37: 3,361 | AF37: 3,495 | AG37: 3,217 | AH37: 2,643 | AI37: 2,437 | AJ37: 2,141 | AK37: 1,675 | AL37: 1,573 | AM37: 1,200 | AN37: 775 | AO37: 651 | AP37: 17 | AQ37: 185 | AR37: 172 | AS37: 498 | AT37: 46,096 | AU37: 341 | AV37: 360 | AW37: 362 | AX37: 378 | AY37: 470 | AZ37: 548 | BA37: 588 | BB37: 605 | BC37: 614 | BD37: 583 | BE37: 563 | BF37: 561 | BG37: 618 | BH37: 528 | BI37: 557 | BJ37: 623 | BK37: 624 | BL37: 652 | BM37: 597 | BN37: 637 | BO37: 3,366 | BP37: 3,712 | BQ37: 3,628 | BR37: 3,117 | BS37: 3,243 | BT37: 3,109 | BU37: 2,992 | BV37: 2,680 | BW37: 2,377 | BX37: 2,054 | BY37: 1,868 | BZ37: 1,389 | CA37: 865 | CB37: 887 | CC37: 10 | CD37: 176 | CE37: 165 | CF37: 432 | CG37: 1,703 | CJ37: 6,365 | CK37: 3,644 | CL37: 7,869 | CM37: 18,842 | CN37: 8,015 | CO37: 5,973 | CP37: 3,602 | CQ37: 8,312 | CR37: 18,769 | CS37: 9,440 | CT37: 1,980 | CU37: 3,219 | CV37: 2,935 | CW37: 3,198 | CX37: 3,140 | CY37: 3,406 | CZ37: 3,689 | DA37: 3,361 | DB37: 3,495 | DC37: 3,217 | DD37: 2,643 | DE37: 2,437 | DF37: 2,141 | DG37: 1,675 | DH37: 1,573 | DI37: 1,200 | DJ37: 775 | DK37: 651 | DL37: 1,911 | DM37: 2,938 | DN37: 2,827 | DO37: 3,133 | DP37: 3,366 | DQ37: 3,712 | DR37: 3,628 | DS37: 3,117 | DT37: 3,243 | DU37: 3,109 | DV37: 2,992 | DW37: 2,680 | DX37: 2,377 | DY37: 2,054 | DZ37: 1,868 | EA37: 1,389 | EB37: 865 | EC37: 887
A38: 040201 | B38: AREQUIPA | C38: AREQUIPA | D38: CAMANA | E38: CAMANA | F38: 15524 | G38: 7489 | H38: 89 | I38: 49 | J38: 39 | K38: 16 | L38: 9 | M38: 37 | N38: 104 | O38: 122 | P38: 119 | Q38: 116 | R38: 127 | S38: 101 | T38: 118 | U38: 118 | V38: 118 | W38: 150 | X38: 123 | Y38: 129 | Z38: 123 | AA38: 117 | AB38: 597 | AC38: 590 | AD38: 596 | AE38: 468 | AF38: 435 | AG38: 495 | AH38: 477 | AI38: 464 | AJ38: 469 | AK38: 331 | AL38: 259 | AM38: 174 | AN38: 114 | AO38: 96 | AP38: 3 | AQ38: 43 | AR38: 46 | AS38: 103 | AT38: 8,035 | AU38: 67 | AV38: 48 | AW38: 40 | AX38: 24 | AY38: 11 | AZ38: 38 | BA38: 120 | BB38: 130 | BC38: 141 | BD38: 104 | BE38: 128 | BF38: 102 | BG38: 120 | BH38: 120 | BI38: 119 | BJ38: 147 | BK38: 134 | BL38: 153 | BM38: 129 | BN38: 148 | BO38: 655 | BP38: 623 | BQ38: 576 | BR38: 486 | BS38: 519 | BT38: 525 | BU38: 535 | BV38: 493 | BW38: 453 | BX38: 341 | BY38: 291 | BZ38: 209 | CA38: 158 | CB38: 148 | CC38: 6 | CD38: 36 | CE38: 31 | CF38: 107 | CG38: 250 | CJ38: 928 | CK38: 756 | CL38: 1,427 | CM38: 2,935 | CN38: 1,443 | CO38: 953 | CP38: 793 | CQ38: 1,555 | CR38: 3,134 | CS38: 1,600 | CT38: 202 | CU38: 498 | CV38: 582 | CW38: 642 | CX38: 597 | CY38: 590 | CZ38: 596 | DA38: 468 | DB38: 435 | DC38: 495 | DD38: 477 | DE38: 464 | DF38: 469 | DG38: 331 | DH38: 259 | DI38: 174 | DJ38: 114 | DK38: 96 | DL38: 190 | DM38: 533 | DN38: 589 | DO38: 711 | DP38: 655 | DQ38: 623 | DR38: 576 | DS38: 486 | DT38: 519 | DU38: 525 | DV38: 535 | DW38: 493 | DX38: 453 | DY38: 341 | DZ38: 291 | EA38: 209 | EB38: 158 | EC38: 148
A39: 040202 | B39: AREQUIPA | C39: AREQUIPA | D39: CAMANA | E39: JOSE MARIA QUIMPER | F39: 5988 | G39: 2984 | H39: 47 | I39: 41 | J39: 32 | K39: 26 | L39: 37 | M39: 36 | N39: 49 | O39: 65 | P39: 62 | Q39: 35 | R39: 37 | S39: 43 | T39: 45 | U39: 34 | V39: 42 | W39: 49 | X39: 37 | Y39: 40 | Z39: 35 | AA39: 36 | AB39: 178 | AC39: 212 | AD39: 231 | AE39: 215 | AF39: 202 | AG39: 184 | AH39: 160 | AI39: 196 | AJ39: 169 | AK39: 174 | AL39: 92 | AM39: 74 | AN39: 33 | AO39: 36 | AP39: 2 | AQ39: 25 | AR39: 22 | AS39: 48 | AT39: 3,004 | AU39: 39 | AV39: 35 | AW39: 38 | AX39: 21 | AY39: 43 | AZ39: 48 | BA39: 37 | BB39: 58 | BC39: 53 | BD39: 46 | BE39: 40 | BF39: 46 | BG39: 49 | BH39: 37 | BI39: 47 | BJ39: 43 | BK39: 54 | BL39: 34 | BM39: 47 | BN39: 41 | BO39: 194 | BP39: 279 | BQ39: 224 | BR39: 224 | BS39: 198 | BT39: 181 | BU39: 172 | BV39: 167 | BW39: 185 | BX39: 118 | BY39: 91 | BZ39: 43 | CA39: 41 | CB39: 31 | CC39: 2 | CD39: 20 | CE39: 19 | CF39: 63 | CG39: 119 | CJ39: 510 | CK39: 247 | CL39: 461 | CM39: 1,188 | CN39: 578 | CO39: 504 | CP39: 264 | CQ39: 561 | CR39: 1,166 | CS39: 509 | CT39: 183 | CU39: 247 | CV39: 201 | CW39: 197 | CX39: 178 | CY39: 212 | CZ39: 231 | DA39: 215 | DB39: 202 | DC39: 184 | DD39: 160 | DE39: 196 | DF39: 169 | DG39: 174 | DH39: 92 | DI39: 74 | DJ39: 33 | DK39: 36 | DL39: 176 | DM39: 242 | DN39: 219 | DO39: 219 | DP39: 194 | DQ39: 279 | DR39: 224 | DS39: 224 | DT39: 198 | DU39: 181 | DV39: 172 | DW39: 167 | DX39: 185 | DY39: 118 | DZ39: 91 | EA39: 43 | EB39: 41 | EC39: 31
A40: 040203 | B40: AREQUIPA | C40: AREQUIPA | D40: CAMANA | E40: MARIANO NICOLAS VALCARCEL | F40: 9512 | G40: 4727 | H40: 65 | I40: 72 | J40: 73 | K40: 93 | L40: 86 | M40: 107 | N40: 81 | O40: 61 | P40: 65 | Q40: 68 | R40: 56 | S40: 72 | T40: 67 | U40: 55 | V40: 40 | W40: 41 | X40: 58 | Y40: 53 | Z40: 36 | AA40: 27 | AB40: 152 | AC40: 223 | AD40: 415 | AE40: 504 | AF40: 459 | AG40: 401 | AH40: 371 | AI40: 408 | AJ40: 226 | AK40: 144 | AL40: 72 | AM40: 34 | AN40: 28 | AO40: 14 | AP40: 3 | AQ40: 34 | AR40: 31 | AS40: 109 | AT40: 4,785 | AU40: 93 | AV40: 77 | AW40: 81 | AX40: 89 | AY40: 77 | AZ40: 104 | BA40: 87 | BB40: 69 | BC40: 31 | BD40: 83 | BE40: 80 | BF40: 102 | BG40: 95 | BH40: 78 | BI40: 56 | BJ40: 67 | BK40: 55 | BL40: 53 | BM40: 46 | BN40: 22 | BO40: 217 | BP40: 456 | BQ40: 686 | BR40: 526 | BS40: 377 | BT40: 326 | BU40: 242 | BV40: 209 | BW40: 145 | BX40: 77 | BY40: 36 | BZ40: 19 | CA40: 16 | CB40: 8 | CC40: 4 | CD40: 48 | CE40: 45 | CF40: 119 | CG40: 156 | CJ40: 899 | CK40: 314 | CL40: 438 | CM40: 2,558 | CN40: 518 | CO40: 973 | CP40: 404 | CQ40: 741 | CR40: 2,366 | CS40: 301 | CT40: 389 | CU40: 382 | CV40: 290 | CW40: 215 | CX40: 152 | CY40: 223 | CZ40: 415 | DA40: 504 | DB40: 459 | DC40: 401 | DD40: 371 | DE40: 408 | DF40: 226 | DG40: 144 | DH40: 72 | DI40: 34 | DJ40: 28 | DK40: 14 | DL40: 417 | DM40: 374 | DN40: 411 | DO40: 243 | DP40: 217 | DQ40: 456 | DR40: 686 | DS40: 526 | DT40: 377 | DU40: 326 | DV40: 242 | DW40: 209 | DX40: 145 | DY40: 77 | DZ40: 36 | EA40: 19 | EB40: 16 | EC40: 8
A41: 040204 | B41: AREQUIPA | C41: AREQUIPA | D41: CAMANA | E41: MARISCAL CACERES | F41: 8458 | G41: 4174 | H41: 64 | I41: 61 | J41: 47 | K41: 37 | L41: 46 | M41: 48 | N41: 58 | O41: 61 | P41: 66 | Q41: 54 | R41: 52 | S41: 57 | T41: 49 | U41: 60 | V41: 62 | W41: 58 | X41: 70 | Y41: 54 | Z41: 71 | AA41: 55 | AB41: 237 | AC41: 327 | AD41: 323 | AE41: 308 | AF41: 320 | AG41: 307 | AH41: 299 | AI41: 266 | AJ41: 232 | AK41: 168 | AL41: 113 | AM41: 71 | AN41: 45 | AO41: 28 | AP41: 4 | AQ41: 31 | AR41: 33 | AS41: 86 | AT41: 4,284 | AU41: 44 | AV41: 42 | AW41: 33 | AX41: 43 | AY41: 60 | AZ41: 47 | BA41: 57 | BB41: 56 | BC41: 62 | BD41: 57 | BE41: 48 | BF41: 53 | BG41: 45 | BH41: 56 | BI41: 56 | BJ41: 68 | BK41: 55 | BL41: 78 | BM41: 63 | BN41: 58 | BO41: 271 | BP41: 405 | BQ41: 359 | BR41: 346 | BS41: 318 | BT41: 317 | BU41: 286 | BV41: 241 | BW41: 204 | BX41: 169 | BY41: 125 | BZ41: 61 | CA41: 49 | CB41: 52 | CC41: 1 | CD41: 19 | CE41: 25 | CF41: 47 | CG41: 312 | CJ41: 651 | CK41: 353 | CL41: 690 | CM41: 1,823 | CN41: 657 | CO41: 602 | CP41: 358 | CQ41: 797 | CR41: 1,867 | CS41: 660 | CT41: 255 | CU41: 287 | CV41: 280 | CW41: 308 | CX41: 237 | CY41: 327 | CZ41: 323 | DA41: 308 | DB41: 320 | DC41: 307 | DD41: 299 | DE41: 266 | DF41: 232 | DG41: 168 | DH41: 113 | DI41: 71 | DJ41: 45 | DK41: 28 | DL41: 222 | DM41: 279 | DN41: 258 | DO41: 322 | DP41: 271 | DQ41: 405 | DR41: 359 | DS41: 346 | DT41: 318 | DU41: 317 | DV41: 286 | DW41: 241 | DX41: 204 | DY41: 169 | DZ41: 125 | EA41: 61 | EB41: 49 | EC41: 52
A42: 040205 | B42: AREQUIPA | C42: AREQUIPA | D42: CAMANA | E42: NICOLAS DE PIEROLA | F42: 9336 | G42: 4587 | H42: 47 | I42: 43 | J42: 44 | K42: 46 | L42: 51 | M42: 60 | N42: 67 | O42: 85 | P42: 83 | Q42: 77 | R42: 60 | S42: 75 | T42: 78 | U42: 84 | V42: 63 | W42: 80 | X42: 76 | Y42: 72 | Z42: 75 | AA42: 71 | AB42: 271 | AC42: 315 | AD42: 334 | AE42: 314 | AF42: 327 | AG42: 317 | AH42: 270 | AI42: 287 | AJ42: 276 | AK42: 188 | AL42: 142 | AM42: 98 | AN42: 59 | AO42: 52 | AP42: 0 | AQ42: 24 | AR42: 24 | AS42: 68 | AT42: 4,749 | AU42: 45 | AV42: 44 | AW42: 50 | AX42: 38 | AY42: 65 | AZ42: 50 | BA42: 62 | BB42: 83 | BC42: 71 | BD42: 64 | BE42: 58 | BF42: 72 | BG42: 75 | BH42: 81 | BI42: 60 | BJ42: 64 | BK42: 79 | BL42: 69 | BM42: 76 | BN42: 72 | BO42: 349 | BP42: 380 | BQ42: 387 | BR42: 364 | BS42: 324 | BT42: 304 | BU42: 327 | BV42: 290 | BW42: 230 | BX42: 182 | BY42: 143 | BZ42: 96 | CA42: 50 | CB42: 45 | CC42: 1 | CD42: 25 | CE42: 20 | CF42: 66 | CG42: 247 | CJ42: 738 | CK42: 453 | CL42: 732 | CM42: 1,849 | CN42: 815 | CO42: 702 | CP42: 428 | CQ42: 877 | CR42: 1,996 | CS42: 746 | CT42: 231 | CU42: 372 | CV42: 360 | CW42: 374 | CX42: 271 | CY42: 315 | CZ42: 334 | DA42: 314 | DB42: 327 | DC42: 317 | DD42: 270 | DE42: 287 | DF42: 276 | DG42: 188 | DH42: 142 | DI42: 98 | DJ42: 59 | DK42: 52 | DL42: 242 | DM42: 330 | DN42: 346 | DO42: 360 | DP42: 349 | DQ42: 380 | DR42: 387 | DS42: 364 | DT42: 324 | DU42: 304 | DV42: 327 | DW42: 290 | DX42: 230 | DY42: 182 | DZ42: 143 | EA42: 96 | EB42: 50 | EC42: 45
A43: 040206 | B43: AREQUIPA | C43: AREQUIPA | D43: CAMANA | E43: OCOÑA | F43: 4900 | G43: 2332 | H43: 27 | I43: 26 | J43: 24 | K43: 29 | L43: 34 | M43: 26 | N43: 32 | O43: 43 | P43: 30 | Q43: 17 | R43: 22 | S43: 25 | T43: 24 | U43: 30 | V43: 29 | W43: 35 | X43: 26 | Y43: 52 | Z43: 28 | AA43: 26 | AB43: 128 | AC43: 139 | AD43: 135 | AE43: 145 | AF43: 159 | AG43: 160 | AH43: 165 | AI43: 190 | AJ43: 158 | AK43: 123 | AL43: 113 | AM43: 58 | AN43: 37 | AO43: 37 | AP43: 4 | AQ43: 12 | AR43: 15 | AS43: 39 | AT43: 2,568 | AU43: 30 | AV43: 22 | AW43: 25 | AX43: 17 | AY43: 34 | AZ43: 32 | BA43: 38 | BB43: 32 | BC43: 35 | BD43: 30 | BE43: 27 | BF43: 30 | BG43: 29 | BH43: 36 | BI43: 35 | BJ43: 43 | BK43: 46 | BL43: 43 | BM43: 35 | BN43: 34 | BO43: 153 | BP43: 229 | BQ43: 160 | BR43: 175 | BS43: 186 | BT43: 159 | BU43: 180 | BV43: 146 | BW43: 165 | BX43: 121 | BY43: 95 | BZ43: 62 | CA43: 43 | CB43: 41 | CC43: 2 | CD43: 17 | CE43: 13 | CF43: 65 | CG43: 102 | CJ43: 335 | CK43: 196 | CL43: 321 | CM43: 954 | CN43: 526 | CO43: 352 | CP43: 232 | CQ43: 451 | CR43: 1,006 | CS43: 527 | CT43: 140 | CU43: 148 | CV43: 130 | CW43: 167 | CX43: 128 | CY43: 139 | CZ43: 135 | DA43: 145 | DB43: 159 | DC43: 160 | DD43: 165 | DE43: 190 | DF43: 158 | DG43: 123 | DH43: 113 | DI43: 58 | DJ43: 37 | DK43: 37 | DL43: 128 | DM43: 167 | DN43: 157 | DO43: 201 | DP43: 153 | DQ43: 229 | DR43: 160 | DS43: 175 | DT43: 186 | DU43: 159 | DV43: 180 | DW43: 146 | DX43: 165 | DY43: 121 | DZ43: 95 | EA43: 62 | EB43: 43 | EC43: 41
A44: 040207 | B44: AREQUIPA | C44: AREQUIPA | D44: CAMANA | E44: QUILCA | F44: 1449 | G44: 677 | H44: 6 | I44: 5 | J44: 11 | K44: 12 | L44: 6 | M44: 7 | N44: 6 | O44: 6 | P44: 5 | Q44: 11 | R44: 6 | S44: 9 | T44: 3 | U44: 7 | V44: 9 | W44: 9 | X44: 7 | Y44: 10 | Z44: 7 | AA44: 5 | AB44: 26 | AC44: 34 | AD44: 61 | AE44: 51 | AF44: 46 | AG44: 57 | AH44: 50 | AI44: 48 | AJ44: 48 | AK44: 34 | AL44: 34 | AM44: 24 | AN44: 12 | AO44: 5 | AP44: 0 | AQ44: 2 | AR44: 4 | AS44: 17 | AT44: 772 | AU44: 8 | AV44: 6 | AW44: 6 | AX44: 3 | AY44: 7 | AZ44: 6 | BA44: 17 | BB44: 12 | BC44: 7 | BD44: 10 | BE44: 9 | BF44: 14 | BG44: 6 | BH44: 11 | BI44: 15 | BJ44: 11 | BK44: 16 | BL44: 12 | BM44: 5 | BN44: 12 | BO44: 46 | BP44: 68 | BQ44: 58 | BR44: 70 | BS44: 64 | BT44: 45 | BU44: 49 | BV44: 37 | BW44: 63 | BX44: 26 | BY44: 20 | BZ44: 9 | CA44: 8 | CB44: 16 | CC44: 0 | CD44: 4 | CE44: 4 | CF44: 14 | CG44: 45 | CJ44: 90 | CK44: 45 | CL44: 72 | CM44: 313 | CN44: 157 | CO44: 105 | CP44: 71 | CQ44: 131 | CR44: 323 | CS44: 142 | CT44: 40 | CU44: 35 | CV44: 34 | CW44: 38 | CX44: 26 | CY44: 34 | CZ44: 61 | DA44: 51 | DB44: 46 | DC44: 57 | DD44: 50 | DE44: 48 | DF44: 48 | DG44: 34 | DH44: 34 | DI44: 24 | DJ44: 12 | DK44: 5 | DL44: 30 | DM44: 52 | DN44: 55 | DO44: 56 | DP44: 46 | DQ44: 68 | DR44: 58 | DS44: 70 | DT44: 64 | DU44: 45 | DV44: 49 | DW44: 37 | DX44: 63 | DY44: 26 | DZ44: 20 | EA44: 9 | EB44: 8 | EC44: 16
A45: 040208 | B45: AREQUIPA | C45: AREQUIPA | D45: CAMANA | E45: SAMUEL PASTOR | F45: 18561 | G45: 9079 | H45: 95 | I45: 97 | J45: 127 | K45: 131 | L45: 151 | M45: 167 | N45: 157 | O45: 166 | P45: 146 | Q45: 179 | R45: 137 | S45: 153 | T45: 155 | U45: 133 | V45: 128 | W45: 157 | X45: 157 | Y45: 149 | Z45: 170 | AA45: 140 | AB45: 658 | AC45: 703 | AD45: 691 | AE45: 675 | AF45: 612 | AG45: 617 | AH45: 525 | AI45: 494 | AJ45: 444 | AK45: 283 | AL45: 197 | AM45: 134 | AN45: 73 | AO45: 78 | AP45: 0 | AQ45: 40 | AR45: 55 | AS45: 179 | AT45: 9,482 | AU45: 96 | AV45: 103 | AW45: 128 | AX45: 118 | AY45: 156 | AZ45: 158 | BA45: 176 | BB45: 159 | BC45: 178 | BD45: 112 | BE45: 141 | BF45: 158 | BG45: 160 | BH45: 137 | BI45: 131 | BJ45: 153 | BK45: 157 | BL45: 159 | BM45: 142 | BN45: 146 | BO45: 730 | BP45: 843 | BQ45: 774 | BR45: 709 | BS45: 674 | BT45: 600 | BU45: 602 | BV45: 496 | BW45: 402 | BX45: 293 | BY45: 205 | BZ45: 126 | CA45: 80 | CB45: 80 | CC45: 3 | CD45: 44 | CE45: 52 | CF45: 184 | CG45: 505 | CJ45: 1,706 | CK45: 879 | CL45: 1,671 | CM45: 3,614 | CN45: 1,209 | CO45: 1,683 | CP45: 897 | CQ45: 1,861 | CR45: 3,855 | CS45: 1,186 | CT45: 601 | CU45: 815 | CV45: 706 | CW45: 773 | CX45: 658 | CY45: 703 | CZ45: 691 | DA45: 675 | DB45: 612 | DC45: 617 | DD45: 525 | DE45: 494 | DF45: 444 | DG45: 283 | DH45: 197 | DI45: 134 | DJ45: 73 | DK45: 78 | DL45: 601 | DM45: 783 | DN45: 727 | DO45: 757 | DP45: 730 | DQ45: 843 | DR45: 774 | DS45: 709 | DT45: 674 | DU45: 600 | DV45: 602 | DW45: 496 | DX45: 402 | DY45: 293 | DZ45: 205 | EA45: 126 | EB45: 80 | EC45: 80
A46: 040301 | B46: AREQUIPA | C46: AREQUIPA | D46: CARAVELI | E46: CARAVELI | F46: 5398 | G46: 2649 | H46: 47 | I46: 49 | J46: 46 | K46: 43 | L46: 35 | M46: 41 | N46: 39 | O46: 41 | P46: 29 | Q46: 40 | R46: 44 | S46: 23 | T46: 40 | U46: 34 | V46: 27 | W46: 53 | X46: 58 | Y46: 49 | Z46: 42 | AA46: 42 | AB46: 193 | AC46: 211 | AD46: 197 | AE46: 185 | AF46: 152 | AG46: 156 | AH46: 181 | AI46: 144 | AJ46: 121 | AK46: 93 | AL46: 74 | AM46: 46 | AN46: 31 | AO46: 43 | AP46: 5 | AQ46: 17 | AR46: 30 | AS46: 61 | AT46: 2,749 | AU46: 44 | AV46: 48 | AW46: 42 | AX46: 38 | AY46: 35 | AZ46: 31 | BA46: 50 | BB46: 42 | BC46: 39 | BD46: 26 | BE46: 45 | BF46: 23 | BG46: 41 | BH46: 34 | BI46: 27 | BJ46: 33 | BK46: 46 | BL46: 40 | BM46: 68 | BN46: 62 | BO46: 260 | BP46: 271 | BQ46: 207 | BR46: 164 | BS46: 154 | BT46: 168 | BU46: 146 | BV46: 126 | BW46: 111 | BX46: 90 | BY46: 59 | BZ46: 57 | CA46: 66 | CB46: 56 | CC46: 2 | CD46: 15 | CE46: 29 | CF46: 50 | CG46: 148 | CJ46: 477 | CK46: 261 | CL46: 488 | CM46: 1,015 | CN46: 408 | CO46: 463 | CP46: 221 | CQ46: 661 | CR46: 965 | CS46: 439 | CT46: 220 | CU46: 190 | CV46: 168 | CW46: 244 | CX46: 193 | CY46: 211 | CZ46: 197 | DA46: 185 | DB46: 152 | DC46: 156 | DD46: 181 | DE46: 144 | DF46: 121 | DG46: 93 | DH46: 74 | DI46: 46 | DJ46: 31 | DK46: 43 | DL46: 207 | DM46: 188 | DN46: 170 | DO46: 249 | DP46: 260 | DQ46: 271 | DR46: 207 | DS46: 164 | DT46: 154 | DU46: 168 | DV46: 146 | DW46: 126 | DX46: 111 | DY46: 90 | DZ46: 59 | EA46: 57 | EB46: 66 | EC46: 56
